Workbook

Sheet Contents
D3: Distribution Future Electricity Scenarios 2022 Data Workbook
D9: This workbook is an accompaniment to our 2022 DFES. It contains detailed datasets and interactive tools which allow our customers to understand what our Distribution Future Electricity Scenarios mean to them. Please refer to our main DFES report for a full description of our forecasts and scenarios. Our forecasts are not precise predictions of what the future is likely to be, but instead frame the uncertainty within our planning as explained in the main report.
B20: OUR DISTRIBUTION FUTURE ELECTRICITY SCENARIOS
B22: Best View | D22: Highest certainty scenario in 1 to 10 years horizon
B23: Falling Short | D23: Slow decarbonisation not meeting net zero carbon, limited efficiencies
B24: System Transformation | D24: Hydrogen helps to meet net zero carbon beyond 2040, limited efficiencies
B25: Consumer Transformation | D25: Electric transport and heating and renewable DG to meet zero carbon, high efficiencies
B26: Leading the Way | D26: Net zero carbon before 2050, early electrification of transport and heating
B29: CONTENTS
B31: Section | C31: Tab | D31: Description
B32: USEFUL INFORMATION | C32: Geographical Information | D32: A tool to locate the nearest 10 substations to a specified location and maps showing supply areas
C33: LCT Profiles | D33: Charts which show electric vehicle (EV) and heat pump (HP) profiles adopted in the forecasts
B34: INTERACTIVE GRAPH TOOLS | C34: Single Primary Charts | D34: Charts which plot minimum/maximum demand, DG/storage capacity and EV/HP volumes for a single primary substation supply area
C35: Single Local Authority Charts | D35: Charts which plot number of EV, HP, energy from domestic, I&C, EV,HP, Renewable generation, non-renewable generation and the installed capacity for renewable and non-renewable generation. All data is provides per individual local authority
C36: Single BSP Charts | D36: Charts which plot minimum/maximum demand, DG/storage capacity and EV/HP volumes for a single bulk supply point (BSP) supply area
C37: Multiple Primary Charts | D37: Charts which plot aggregated minimum/maximum demand, DG/storage capacity and EV/HP volumes for multiple primary substation supply areas
C39: Multiple BSP Charts | D39: Charts which plot aggregated minimum/maximum demand, DG/storage capacity and EV/HP volumes for multiple BSP supply areas
B40: BSP AND PRIMARY SUBSTATION DATASETS | C40: Maximum Demand | D40: Data table containing maximum demand values for each BSP and primary substation
C41: Minimum Demand | D41: Data table containing minimum demand values for each BSP and primary substation
C42: Generation | D42: Data table containing DG capacity values for each BSP and primary substation
C43: Electric Vehicle uptake | D43: Data table containing the number of EVs per BSP and primary substation
C44: Heat Pump Uptake | D44: Data table containing the number of HPs per BSP and primary substation
C45: Storage | D45: Data table containing battery storage capacity values per BSP and primary substation
C46: Energy Demand | D46: Data table containing energy demand consumption per BSP and primary substation
C47: Demand - Flexibility Services | D47: Data table containing the maximum flexibility service requirements in MW per primary and BSP
C48: Energy - Flexibility Services | D48: Data table containing the flexibility service requirements in MWh per primary and BSP
B49: LOCAL AUTHORITY AND COUNTY DATA | C49: Heat Pump Uptake | D49: Data table containing the number of HPs per Local Authority and County
C50: Energy Demand | D50: Data table containing the total energy demand per Local Authority and County
C51: Wind Uptake | D51: Data table containing the total wind installed capacity per Local Authority and County
C52: PV Uptake | D52: Data table containing the total PV installed capacity per Local Authority and County
C53: PV Energy | D53: Data table containing the total PV energy generated per Local Authority and County
C54: Wind Energy | D54: Data table containing the total wind energy generated per Local Authority and County
C55: I&C Energy | D55: Data table containing the total energy demand from Industrial and Commercial customers per Local Authority and County
C56: Domestic Energy | D56: Data table containing the total energy demand from domestic customers per Local Authority and County
C57: HP Energy | D57: Data table containing the total energy demand from heat pumps per Local Authority and County
C58: EV Energy | D58: Data table containing the total energy demand from electric vehicles per Local Authority and County
C59: Battey Storage | D59: Data table containing the total battery storage installed capacity per Local Authority and County
C60: EV Uptake | D60: Data table containing the number of Evs uptake per Local Authority and County
C61: Generation Uptake | D61: Data table containing the total generation installed capacity per Local Authority and County
C62: Carbon Savings | D62: Data table containing the total carbon savings per Local Authority and County due to low carbon technologies and renewable generation
B63: ENTIRE ENWL NETWORK DATASETS | C63: LCT Seasonal Demand | D63: Data table containing the demand in winter and summer day for low carbon technologies and air conditioning
C64: Annual Energy Demand & Generation | D64: Data table containing energy for demand and distributed generation for the entire ENWL network broken down by technology
C65: DG and Storage Breakdown | D65: Data table containing DG and storage capacity values for the entire ENWL network with breakdown per technology
C66: Total Transport | D66: Data table containing the number of EV per type for the entire ENWL area

Sheet Geographical Information
H2: Geographical Information
E6: This worksheet contains geographical information to allow users to better understand the locations of our substations. Maps are provided for each of our supply regions and show the BSP and primary supply areas on our network. A helpful tool is also provided which allows you to locate the ten nearest BSP and primary substations by entering co-ordinates.
C14: Locate the nearest BSP and primary substations | L14: Maps
B16: To locate the nearest BSP or primary substations, enter the co-ordinates of your point of interest in the grey boxes below. If you are unsure of the co-ordinates, there are many tools available online that will allow you to obtain co-ordinates from a post code. | L16: The maps below show the BSP and primary supply areas on our network. To open a map, double click on icon for the area you wish to view below.
L18: Primary Supply Areas
B20: Easting | D20: 223834 | F20: Northing | H20: 396173
B24: 10 NEAREST PRIMARY SUBSTATIONS | F24: 10 NEAREST BSP SUBSTATIONS
B25: No | C25: Distance (km) | D25: Primary Substation | F25: No | G25: Distance (km) | H25: BSP Substation
B27: 1 | C27: =IF(OR(ISBLANK($D$20),ISBLANK($H$20)),"-",'Substation Location'!F382) -> 113.0159232 | D27: =IF(OR(ISBLANK($D$20),ISBLANK($H$20)),"",'Substation Location'!E382) -> ST ANNES | F27: 1 | G27: =IF(OR(ISBLANK($D$20),ISBLANK($H$20)),"-",'Substation Location'!M382) -> 113.9331481 | H27: =IF(OR(ISBLANK($D$20),ISBLANK($H$20)),"",'Substation Location'!L382) -> BLACKPOOL
B28: 2 | C28: =IF(OR(ISBLANK($D$20),ISBLANK($H$20)),"-",'Substation Location'!F383) -> 113.6175054 | D28: =IF(OR(ISBLANK($D$20),ISBLANK($H$20)),"",'Substation Location'!E383) -> ST THOMAS RD | F28: 2 | G28: =IF(OR(ISBLANK($D$20),ISBLANK($H$20)),"-",'Substation Location'!M383) -> 116.3474545 | H28: =IF(OR(ISBLANK($D$20),ISBLANK($H$20)),"",'Substation Location'!L383) -> LYTHAM | L28: BSP supply areas
B29: 3 | C29: =IF(OR(ISBLANK($D$20),ISBLANK($H$20)),"-",'Substation Location'!F384) -> 113.9000733 | D29: =IF(OR(ISBLANK($D$20),ISBLANK($H$20)),"",'Substation Location'!E384) -> SHANNON ST SOUTH | F29: 3 | G29: =IF(OR(ISBLANK($D$20),ISBLANK($H$20)),"-",'Substation Location'!M384) -> 116.90383 | H29: =IF(OR(ISBLANK($D$20),ISBLANK($H$20)),"",'Substation Location'!L384) -> BISPHAM
B30: 4 | C30: =IF(OR(ISBLANK($D$20),ISBLANK($H$20)),"-",'Substation Location'!F385) -> 113.9331481 | D30: =IF(OR(ISBLANK($D$20),ISBLANK($H$20)),"",'Substation Location'!E385) -> BLACKPOOL | F30: 4 | G30: =IF(OR(ISBLANK($D$20),ISBLANK($H$20)),"-",'Substation Location'!M385) -> 117.434189 | H30: =IF(OR(ISBLANK($D$20),ISBLANK($H$20)),"",'Substation Location'!L385) -> PEEL
B31: 5 | C31: =IF(OR(ISBLANK($D$20),ISBLANK($H$20)),"-",'Substation Location'!F386) -> 113.999918 | D31: =IF(OR(ISBLANK($D$20),ISBLANK($H$20)),"",'Substation Location'!E386) -> SQUIRES GATE | F31: 5 | G31: =IF(OR(ISBLANK($D$20),ISBLANK($H$20)),"-",'Substation Location'!M386) -> 120.3635894 | H31: =IF(OR(ISBLANK($D$20),ISBLANK($H$20)),"",'Substation Location'!L386) -> THORNTON
B32: 6 | C32: =IF(OR(ISBLANK($D$20),ISBLANK($H$20)),"-",'Substation Location'!F387) -> 114.9690332 | D32: =IF(OR(ISBLANK($D$20),ISBLANK($H$20)),"",'Substation Location'!E387) -> CECIL ST | F32: 6 | G32: =IF(OR(ISBLANK($D$20),ISBLANK($H$20)),"-",'Substation Location'!M387) -> 121.3049194 | H32: =IF(OR(ISBLANK($D$20),ISBLANK($H$20)),"",'Substation Location'!L387) -> BARROW
B33: 7 | C33: =IF(OR(ISBLANK($D$20),ISBLANK($H$20)),"-",'Substation Location'!F388) -> 115.1345555 | D33: =IF(OR(ISBLANK($D$20),ISBLANK($H$20)),"",'Substation Location'!E388) -> ANSDELL | F33: 7 | G33: =IF(OR(ISBLANK($D$20),ISBLANK($H$20)),"-",'Substation Location'!M388) -> 121.745385 | H33: =IF(OR(ISBLANK($D$20),ISBLANK($H$20)),"",'Substation Location'!L388) -> SANDGATE
B34: 8 | C34: =IF(OR(ISBLANK($D$20),ISBLANK($H$20)),"-",'Substation Location'!F389) -> 115.3380197 | D34: =IF(OR(ISBLANK($D$20),ISBLANK($H$20)),"",'Substation Location'!E389) -> SCARISBRICK | F34: 8 | G34: =IF(OR(ISBLANK($D$20),ISBLANK($H$20)),"-",'Substation Location'!M389) -> 123.8529199 | H34: =IF(OR(ISBLANK($D$20),ISBLANK($H$20)),"",'Substation Location'!L389) -> SKELMERSDALE
B35: 9 | C35: =IF(OR(ISBLANK($D$20),ISBLANK($H$20)),"-",'Substation Location'!F390) -> 115.4287898 | D35: =IF(OR(ISBLANK($D$20),ISBLANK($H$20)),"",'Substation Location'!E390) -> PRESTON OLD RD | F35: 9 | G35: =IF(OR(ISBLANK($D$20),ISBLANK($H$20)),"-",'Substation Location'!M390) -> 129.222785 | H35: =IF(OR(ISBLANK($D$20),ISBLANK($H$20)),"",'Substation Location'!L390) -> ORRELL
B36: 10 | C36: =IF(OR(ISBLANK($D$20),ISBLANK($H$20)),"-",'Substation Location'!F391) -> 115.6891023 | D36: =IF(OR(ISBLANK($D$20),ISBLANK($H$20)),"",'Substation Location'!E391) -> MARTON | F36: 10 | G36: =IF(OR(ISBLANK($D$20),ISBLANK($H$20)),"-",'Substation Location'!M391) -> 131.7846761 | H36: =IF(OR(ISBLANK($D$20),ISBLANK($H$20)),"",'Substation Location'!L391) -> WRIGHTINGTON

Sheet LCT Profiles
A8: EV Charging Demand Profiles
F11: 00:00:00 | G11: 00:30:00 | H11: 01:00:00 | I11: 01:30:00 | J11: 02:00:00 | K11: 02:30:00 | L11: 03:00:00 | M11: 03:30:00 | N11: 04:00:00 | O11: 04:30:00 | P11: 05:00:00 | Q11: 05:30:00 | R11: 06:00:00 | S11: 06:30:00 | T11: 07:00:00 | U11: 07:30:00 | V11: 08:00:00 | W11: 08:30:00 | X11: 09:00:00 | Y11: 09:30:00 | Z11: 10:00:00 | AA11: 10:30:00 | AB11: 11:00:00 | AC11: 11:30:00 | AD11: 12:00:00 | AE11: 12:30:00 | AF11: 13:00:00 | AG11: 13:30:00 | AH11: 14:00:00 | AI11: 14:30:00 | AJ11: 15:00:00 | AK11: 15:30:00 | AL11: 16:00:00 | AM11: 16:30:00 | AN11: 17:00:00 | AO11: 17:30:00 | AP11: 18:00:00 | AQ11: 18:30:00 | AR11: 19:00:00 | AS11: 19:30:00 | AT11: 20:00:00 | AU11: 20:30:00 | AV11: 21:00:00 | AW11: 21:30:00 | AX11: 22:00:00 | AY11: 22:30:00 | AZ11: 23:00:00 | BA11: 23:30:00
E12: 2022 | F12: 54.56846825 | G12: 48.7391895 | H12: 41.93772882 | I12: 35.41966349 | J12: 30.38381699 | K12: 25.51834068 | L12: 21.89883039 | M12: 18.10852479 | N12: 15.3585057 | O12: 12.64016746 | P12: 10.5880051 | Q12: 9.44077682 | R12: 9.121495947 | S12: 8.838300818 | T12: 10.02762764 | U12: 11.4180058 | V12: 13.27437998 | W12: 16.22742156 | X12: 19.37813556 | Y12: 21.99880599 | Z12: 23.40990859 | AA12: 25.06298035 | AB12: 26.85094178 | AC12: 28.77066106 | AD12: 30.87555621 | AE12: 32.66922531 | AF12: 34.08249369 | AG12: 35.4023147 | AH12: 36.11891836 | AI12: 37.54518036 | AJ12: 40.53257893 | AK12: 45.35116023 | AL12: 53.10311916 | AM12: 61.5200784 | AN12: 71.36931338 | AO12: 81.16724481 | AP12: 90.73855073 | AQ12: 97.45587175 | AR12: 99.37287866 | AS12: 99.23410815 | AT12: 96.1342265 | AU12: 92.77937328 | AV12: 88.05864618 | AW12: 83.18839134 | AX12: 78.25681002 | AY12: 72.70645686 | AZ12: 66.44655965 | BA12: 59.97161864
E13: 2030 | F13: 40.74269176 | G13: 39.83777608 | H13: 35.90677124 | I13: 32.17818867 | J13: 29.59585201 | K13: 26.85145929 | L13: 24.10706657 | M13: 20.66630218 | N13: 17.63818631 | O13: 14.44712982 | P13: 11.4853225 | Q13: 10.15360908 | R13: 9.372093679 | S13: 8.389401729 | T13: 9.057303873 | U13: 9.827734855 | V13: 10.00211797 | W13: 12.22153217 | X13: 13.79904866 | Y13: 14.75667488 | Z13: 15.5767516 | AA13: 16.79298931 | AB13: 17.77997785 | AC13: 18.98005125 | AD13: 20.27182431 | AE13: 21.07097959 | AF13: 21.82428504 | AG13: 22.55097456 | AH13: 22.86501556 | AI13: 24.07868392 | AJ13: 25.70500079 | AK13: 29.99999974 | AL13: 34.84519672 | AM13: 40.46866297 | AN13: 46.09212923 | AO13: 51.7033041 | AP13: 57.31447897 | AQ13: 58.99516808 | AR13: 60.49245785 | AS13: 59.00826373 | AT13: 57.66161912 | AU13: 56.19650996 | AV13: 53.95195358 | AW13: 51.42519272 | AX13: 48.89843186 | AY13: 45.58383456 | AZ13: 43.23208382 | BA13: 40.56604287
E14: 2050 | F14: 46.75111111 | G14: 51.82776927 | H14: 49.81348935 | I14: 46.00347418 | J14: 42.42042769 | K14: 37.03944507 | L14: 32.84889035 | M14: 28.04966661 | N14: 24.27276094 | O14: 19.59518612 | P14: 15.30245601 | Q14: 12.98102364 | R14: 11.49733502 | S14: 9.372028243 | T14: 9.39757733 | U14: 9.161715838 | V14: 8.162027648 | W14: 9.571797147 | X14: 10.23664359 | Y14: 10.90171814 | Z14: 11.41903294 | AA14: 12.26613286 | AB14: 12.80732923 | AC14: 13.52463803 | AD14: 14.36601218 | AE14: 14.80303919 | AF14: 15.18655313 | AG14: 15.83029164 | AH14: 15.88165764 | AI14: 15.85156772 | AJ14: 16.16393038 | AK14: 15.40047042 | AL14: 15.55144616 | AM14: 18.85879821 | AN14: 22.11252439 | AO14: 25.52360628 | AP14: 28.87323942 | AQ14: 33.7249368 | AR14: 38.28652759 | AS14: 38.07485517 | AT14: 37.82915451 | AU14: 38.10183133 | AV14: 37.75409513 | AW14: 37.24945445 | AX14: 36.95644368 | AY14: 36.51057417 | AZ14: 38.10043203 | BA14: 38.88698295
A35: Further References
A36: EV Charging Behaviour Study - Element Energy
A37: REFLECT NIA project documentation - Electricity North West
A39: Heat Pump Demand Profiles
F43: 00:00:00 | G43: 00:30:00 | H43: 01:00:00 | I43: 01:30:00 | J43: 02:00:00 | K43: 02:30:00 | L43: 03:00:00 | M43: 03:30:00 | N43: 04:00:00 | O43: 04:30:00 | P43: 05:00:00 | Q43: 05:30:00 | R43: 06:00:00 | S43: 06:30:00 | T43: 07:00:00 | U43: 07:30:00 | V43: 08:00:00 | W43: 08:30:00 | X43: 09:00:00 | Y43: 09:30:00 | Z43: 10:00:00 | AA43: 10:30:00 | AB43: 11:00:00 | AC43: 11:30:00 | AD43: 12:00:00 | AE43: 12:30:00 | AF43: 13:00:00 | AG43: 13:30:00 | AH43: 14:00:00 | AI43: 14:30:00 | AJ43: 15:00:00 | AK43: 15:30:00 | AL43: 16:00:00 | AM43: 16:30:00 | AN43: 17:00:00 | AO43: 17:30:00 | AP43: 18:00:00 | AQ43: 18:30:00 | AR43: 19:00:00 | AS43: 19:30:00 | AT43: 20:00:00 | AU43: 20:30:00 | AV43: 21:00:00 | AW43: 21:30:00 | AX43: 22:00:00 | AY43: 22:30:00 | AZ43: 23:00:00 | BA43: 23:30:00
E44: 2022 | F44: 81.4990082 | G44: 81.4990082 | H44: 81.4990082 | I44: 81.60695461 | J44: 81.82731393 | K44: 81.97785304 | L44: 84.82618719 | M44: 82.6199992 | N44: 84.0352477 | O44: 85.80629559 | P44: 96.87070173 | Q44: 107.9449663 | R44: 118.9304048 | S44: 127.4784154 | T44: 126.6330366 | U44: 126.390023 | V44: 119.9629672 | W44: 110.3957664 | X44: 101.6771325 | Y44: 91.96987237 | Z44: 88.77781405 | AA44: 89.27479086 | AB44: 88.46744978 | AC44: 87.93992881 | AD44: 87.3527269 | AE44: 87.23441888 | AF44: 87.16018614 | AG44: 87.80763189 | AH44: 95.29722652 | AI44: 103.8715078 | AJ44: 112.1982606 | AK44: 119.9927667 | AL44: 120.5578136 | AM44: 122.7895485 | AN44: 125.3758628 | AO44: 125.5145473 | AP44: 122.8162693 | AQ44: 117.5637901 | AR44: 114.3704232 | AS44: 112.8160788 | AT44: 114.9786099 | AU44: 117.4477448 | AV44: 116.3821568 | AW44: 114.5741029 | AX44: 106.2787703 | AY44: 97.06365181 | AZ44: 89.08724252 | BA44: 81.4990082
E45: 2030 | F45: 57.79243625 | G45: 57.79243625 | H45: 57.79243625 | I45: 58.28089945 | J45: 58.29056567 | K45: 58.46196816 | L45: 59.61914092 | M45: 58.99335395 | N45: 59.95772253 | O45: 61.46745721 | P45: 68.70531123 | Q45: 73.13838511 | R45: 79.67392945 | S45: 85.49016462 | T45: 85.28440004 | U45: 88.36629746 | V45: 84.09360341 | W45: 77.54732336 | X45: 71.58822019 | Y45: 65.1117356 | Z45: 63.54324998 | AA45: 63.73127235 | AB45: 63.34263981 | AC45: 62.72235793 | AD45: 62.55507612 | AE45: 62.67230608 | AF45: 62.48881535 | AG45: 63.24117228 | AH45: 68.92701569 | AI45: 75.33575062 | AJ45: 81.95497476 | AK45: 87.52716368 | AL45: 87.77545489 | AM45: 88.70031416 | AN45: 89.5611396 | AO45: 88.70882135 | AP45: 87.06305542 | AQ45: 83.95048293 | AR45: 82.29621575 | AS45: 81.08360468 | AT45: 81.46914961 | AU45: 82.44233178 | AV45: 81.54533615 | AW45: 81.36022708 | AX45: 75.64834416 | AY45: 69.3386209 | AZ45: 63.32105877 | BA45: 57.79243625
E46: 2050 | F46: 56.48417652 | G46: 56.48417652 | H46: 56.48417652 | I46: 56.93681302 | J46: 56.95356379 | K46: 57.11689912 | L46: 58.28192857 | M46: 57.6314731 | N46: 58.57089025 | O46: 60.02691111 | P46: 67.16831811 | Q46: 71.73237645 | R46: 78.22291406 | S46: 83.91276261 | T46: 83.63252708 | U46: 86.46335308 | V46: 82.24825746 | W46: 75.85090951 | X46: 70.03637403 | Y46: 63.64039157 | Z46: 62.05397271 | AA46: 62.24728392 | AB46: 61.85774899 | AC46: 61.26695411 | AD46: 61.09100315 | AE46: 61.19424307 | AF46: 61.02355183 | AG46: 61.73801914 | AH46: 67.25580149 | AI46: 73.47148331 | AJ46: 79.86999907 | AK46: 85.29066388 | AL46: 85.54091274 | AM46: 86.55463418 | AN46: 87.51411354 | AO46: 86.72615158 | AP46: 85.11173931 | AQ46: 82.00834552 | AR46: 80.38248632 | AS46: 79.21434931 | AT46: 79.64208079 | AU46: 80.61037783 | AV46: 79.75416509 | AW46: 79.55911783 | AX46: 73.99060049 | AY46: 67.82356227 | AZ46: 61.89386079 | BA46: 56.48417652
A68: Further References
A69: Demand Scenario NIA project documentation - Electricity North West

Sheet INTERACTIVE GRAPH TOOLS >>>>
B3: Interactive Graph Tools
B11: CONTENTS
B13: Section | C13: Tab | D13: Short Description
B14: CHARTS | C14: Single Primary Charts | D14: Charts which plot minimum/maximum demand, DG/storage capacity and EV/HP volumes for a single primary substation supply area
C15: Single BSP Charts | D15: Charts which plot minimum/maximum demand, DG/storage capacity and EV/HP volumes for a single BSP supply area
C16: Multiple Primary Charts | D16: Charts which plot aggregated minimum/maximum demand, DG/storage capacity and EV/HP volumes for multiple primary substation supply areas
C18: Multiple BSP Charts | D18: Charts which plot aggregated minimum/maximum demand, DG/storage capacity and EV/HP volumes for multiple BSP supply areas
C19: Local Authority Charts | D19: Charts which plot aggregated minimum/maximum demand, DG/storage capacity and EV/HP volumes, carbon saving per Local Authority

Sheet Single BSP charts
B2: Bulk Supply Point Forecast Charts
B5: These charts show the forecasts for a single bulk supply point (BSP). You can choose a BSP to view by using the drop down box below. If you would like to understand more about which BSPs are located in the area you are interested in, head to our geographical information worksheet. This charts plot our DFES forecast charts for minimum demand, maximum demand, installed distributed generation capacity, installed storage capacity, uptake of electric vehicles and uptake of heat pumps.
B8: Select BSP | D8: Select a BSP
B122: Select a BSP
B123: Adswood
B124: Agecroft
B125: Altrincham
B126: Atherton
B127: Barrow & Sandgate
B128: Barton
B129: Belfield
B130: Bispham
B131: Blackburn
B132: Blackpool
B133: Bloom St
B134: Bolton
B135: Burnley
B136: Bury
B137: Buxton
B138: Carlisle
B139: Carlisle North
B140: Carrington BSP
B141: Castleton
B142: Chadderton
B143: Droylsden
B144: Egremont
B145: Frederick Rd
B146: Golborne
B147: Greenhill
B148: Hartshead-Heyrod
B149: Hazel Grove
B150: Huncoat
B151: Hyde
B152: Kendal (Parkside Rd)
B153: Lancaster
B154: Leyland
B155: Longsight
B156: Lower Darwen
B157: Lytham
B158: Moss Nook
B159: Moss Nook Primary
B160: Nelson
B161: New Mills
B162: Orrell
B163: Padiham
B164: Peel
B165: Penrith & Shap
B166: Preston East
B167: Radcliffe
B168: Red Bank
B169: Ribble
B170: Risley
B171: Rochdale Central
B172: Rossendale
B173: Royton
B174: Sale
B175: Skelmersdale
B176: Spadeadam 11/33kV
B177: Spadeadam 132/11kV
B178: Stainburn & Siddick
B179: Stretford
B180: Stuart St
B181: Thornton
B182: Trimpell
B183: Ulverston
B184: Vernon Park
B185: West Didsbury
B186: Westhoughton
B187: Wigan
B188: Wrightington

Sheet Single Primary charts
B3: Primary Substation Forecast Charts
B7: These charts show the forecasts for a single primary substation. You can choose a primary substation to view by using the drop down box below. If you would like to understand more about which primary substations are located in the area you are interested in, head to our geographical information worksheet. The charts plot our DFES charts for minimum and maximum demand, installed distributed generation capacity, installed storage capacity, uptake of electric vehicles and uptake of heat pumps.
B11: Select Primary Substation | D11: Select a Primary
B125: Select a Primary
B126: Albion St
B127: Alderley & Chelford
B128: Alston
B129: Ambleside
B130: Ancoats North T11 & T12
B131: Ancoats North T14
B132: Annie Pit
B133: Ansdell
B134: Ardwick
B135: Arnside
B136: Ashton (Golborne)
B137: Ashton (Ribble)
B138: Ashton On Mersey
B139: Ashton Under Lyne T11 & T12
B140: Ashton Under Lyne T13
B141: Ashwood Dale
B142: Askam & Dalton
B143: Askerton Castle
B144: Aspatria
B145: Atherton Town Centre
B146: Athletic St
B147: Avenham
B148: Baguley
B149: Bamber Bridge
B150: Barbara St
B151: Barrow
B152: Barton Dock Rd
B153: Bedford
B154: Belgrave
B155: Benchill
B156: Bentham
B157: Bispham
B158: Blackbull
B159: Blackburn
B160: Blackburn Rd Clayton
B161: Blackfriars
B162: Blackley
B163: Blackpool
B164: Bollington
B165: Bolton By Bowland
B166: Bolton Le Sands
B167: Botany Bay
B168: Bow Lane
B169: Bowaters
B170: Bowdon
B171: Bradford
B172: Bradshawgate
B173: Bramhall
B174: Bridgewater
B175: Brinksway
B176: Broadheath
B177: Broadway
B178: Buckshaw
B179: Burnley
B180: Burnley Centre
B181: Burnley North
B182: Burrow Beck
B183: Burscough Bridge
B184: Bury Town Centre
B185: Campbell St
B186: Cannon St
B187: Capontree
B188: Carleton
B189: Carlisle North
B190: Carr St
B191: Castleton
B192: Catterall Waterworks
B193: Cecil St
B194: Central Manchester
B195: Chadderton
B196: Chamberhall
B197: Chapel Wharf
B198: Chassen Rd
B199: Chatsworth St
B200: Cheadle Heath
B201: Cheadle Hulme
B202: Cheetham Hill
B203: Chester Rd T11 & T12
B204: Chester Rd T13
B205: Chorley South
B206: Chorlton
B207: Church
B208: Circle Square
B209: Clarendon Rd
B210: Claughton
B211: Cleveleys
B212: Clifton Junction
B213: Clover Hill
B214: Cog Lane
B215: Coniston
B216: Copse Rd
B217: Cox Green
B218: Craggs Row & Bushell St
B219: Crown Lane
B220: Culcheth
B221: Cutacre
B222: Deansgate
B223: Denton East
B224: Denton West
B225: Dickinson St
B226: Didsbury
B227: Dodgson Rd
B228: Douglas St
B229: Droylsden East
B230: Dukinfield
B231: Dumers Lane
B232: Dumplington
B233: Eastlands
B234: Easton
B235: Egremont
B236: Embleton
B237: Exchange St
B238: Failsworth
B239: Fallowfield
B240: Farnworth
B241: Feniscowles
B242: Ferodo
B243: Flat Lane
B244: Frederick Rd
B245: Fusehill
B246: Gale
B247: Garstang
B248: Gatley
B249: Gidlow
B250: Gillsrow
B251: Glaxo
B252: Glossop
B253: Golborne
B254: Gowhole
B255: Grane Rd & Prinny Hill
B256: Grange
B257: Great Harwood
B258: Green Lane (Altrincham)
B259: Green Lane (Hazel Grove)
B260: Green St T11
B261: Green St T12 & T13
B262: Greenfield
B263: Greenhill
B264: Griffin
B265: Hadfield
B266: Hall Cross
B267: Handforth
B268: Hanging Bridge
B269: Hareholme
B270: Harpurhey
B271: Harwood
B272: Hattersley
B273: Haverthwaite
B274: Hawk Green
B275: Haydock
B276: HDA No1 & HDA No2
B277: Heady Hill
B278: Heap Bridge
B279: Heasandford
B280: Heaton Moor
B281: Heaton Norris
B282: Helwith Bridge
B283: Hensingham
B284: Heyrod
B285: Heyside
B286: Heywood
B287: Higher Mill
B288: Higher Walton
B289: Hill Top T11 & T12
B290: Hill Top T13
B291: Hindley Green
B292: Hollinwood
B293: Holme Rd
B294: Holt St
B295: Hurst
B296: Hutton End & Skelton C
B297: Hyde
B298: Hyndburn Rd
B299: India St
B300: Ingleton
B301: Irlam
B302: James St
B303: Kay St
B304: Kendal
B305: Keswick
B306: Kingsway
B307: Kinkry Hill
B308: Kirkby Lonsdale
B309: Kirkby Moor
B310: Kirkby Stephen
B311: Kirkby Thore
B312: Kirkhall Lane
B313: Kitt Green
B314: Knott Mill
B315: Lamberhead
B316: Lancaster
B317: Langley
B318: Langroyd Rd
B319: Leigh
B320: Levenshulme
B321: Leyland National
... 170 more rows

Sheet Multiple BSP charts
D2: Multiple Bulk Supply Points Forecast Charts
B4: These charts aggregate the forecasts for multiple bulk supply points (BSP). You can choose multiple BSPs to view by using the drop down boxes below. You can also choose whether to include a BSP in the charts by selecting "yes" or "no" in the box to the right of the BSP name. If you would like to understand more about which primary substations are located in the area you are interested in, head to our geographical information worksheet. The charts plot our DFES charts for minimum demand, maximum demand, installed distributed generation capacity, installed storage capacity, uptake of electric vehicles and uptake of heat pumps.
D7: Select BSP | E7: BSP Included
D8: Select a BSP | E8: No
B9: =IF(AND(COUNTIF(D8:D17,D9)>1,D9<>"Select a BSP"),"Duplicate BSP entered","") ->  | D9: Select a BSP | E9: No
B10: =IF(AND(COUNTIF(D8:D17,D10)>1,D10<>"Select a BSP"),"Duplicate BSP entered","") ->  | D10: Select a BSP | E10: No
B11: =IF(AND(COUNTIF(D8:D17,D11)>1,D11<>"Select a BSP"),"Duplicate BSP entered","") ->  | D11: Select a BSP | E11: No
B12: =IF(AND(COUNTIF(D8:D17,D12)>1,D12<>"Select a BSP"),"Duplicate BSP entered","") ->  | D12: Select a BSP | E12: No
B13: =IF(AND(COUNTIF(D8:D17,D13)>1,D13<>"Select a BSP"),"Duplicate BSP entered","") ->  | D13: Select a BSP | E13: No
B14: =IF(AND(COUNTIF(D8:D17,D14)>1,D14<>"Select a BSP"),"Duplicate BSP entered","") ->  | D14: Select a BSP | E14: No
B15: =IF(AND(COUNTIF(D8:D17,D15)>1,D15<>"Select a BSP"),"Duplicate BSP entered","") ->  | D15: Select a BSP | E15: No
B16: =IF(AND(COUNTIF(D8:D17,D16)>1,D16<>"Select a BSP"),"Duplicate BSP entered","") ->  | D16: Select a BSP | E16: No
B17: =IF(AND(COUNTIF(D8:D17,D17)>1,D17<>"Select a BSP"),"Duplicate BSP entered","") ->  | D17: Select a BSP | E17: No
AK133: Select a BSP
AK134: Adswood
AK135: Agecroft
AK136: Altrincham
AK137: Atherton
AK138: Barrow & Sandgate
AK139: Barton
AK140: Belfield
AK141: Bispham
AK142: Blackburn
AK143: Blackpool
AK144: Bloom St
AK145: Bolton
AK146: Burnley
AK147: Bury
AK148: Buxton
AK149: Carlisle
AK150: Carlisle North
AK151: Carrington BSP
AK152: Castleton
AK153: Chadderton
AK154: Droylsden
AK155: Egremont
AK156: Frederick Rd
AK157: Golborne
AK158: Greenhill
AK159: Hartshead-Heyrod
AK160: Hazel Grove
AK161: Huncoat
AK162: Hyde
AK163: Kendal (Parkside Rd)
AK164: Lancaster
AK165: Leyland
AK166: Longsight
AK167: Lower Darwen
AK168: Lytham
AK169: Moss Nook
AK170: Moss Nook Primary
AK171: Nelson
AK172: New Mills
AK173: Orrell
AK174: Padiham
AK175: Peel
AK176: Penrith & Shap
AK177: Preston East
AK178: Radcliffe
AK179: Red Bank
AK180: Ribble
AK181: Risley
AK182: Rochdale Central
AK183: Rossendale
AK184: Royton
AK185: Sale
AK186: Skelmersdale
AK187: Spadeadam 11/33kV
AK188: Spadeadam 132/11kV
AK189: Stainburn & Siddick
AK190: Stretford
AK191: Stuart St
AK192: Thornton
AK193: Trimpell
AK194: Ulverston
AK195: Vernon Park
AK196: West Didsbury
AK197: Westhoughton
AK198: Wigan
AK199: Wrightington

Sheet Multiple Primary charts
D2: Multiple Primary Substation Forecast Charts
B4: These charts aggregate the forecasts for multiple primary substations. You can choose multiple primary substations to view by using the drop down boxes below. You can also choose whether to include a primary substation in the charts by selecting "yes" or "no" in the box to the right of the primary name. If you would like to understand more about which primary substations are located in the area you are interested in, head to our geographical information worksheet. The charts plot our DFES charts for minimum demand, maximum demand, installed distributed generation capacity, installed storage capacity, uptake of electric vehicles and uptake of heat pumps.
D7: Select Primary Substation | E7: Primary Included | F7: #
D8: Select a Primary | E8: No
B9: =IF(AND(COUNTIF($D$8:$D$17,D9)>1,D9<>"Select a Primary"),"Duplicate primary entered","") ->  | D9: Select a Primary | E9: No
B10: =IF(AND(COUNTIF($D$8:$D$17,D10)>1,D10<>"Select a Primary"),"Duplicate primary entered","") ->  | D10: Select a Primary | E10: No
D11: Select a Primary | E11: No
D12: Select a Primary | E12: No
D13: Select a Primary | E13: No
D14: Select a Primary | E14: No
D15: Select a Primary | E15: No
D16: Select a Primary | E16: No
B17: =IF(AND(COUNTIF($D$8:$D$17,D17)>1,D17<>"Select a Primary"),"Duplicate primary entered","") ->  | D17: Select a Primary | E17: No
AK135: PRIMARY LIST - DO NOT MODIFY
AK136: Albion St
AK137: Alderley & Chelford
AK138: Alston
AK139: Ambleside
AK140: Ancoats North T11 & T12
AK141: Ancoats North T14
AK142: Annie Pit
AK143: Ansdell
AK144: Ardwick
AK145: Arnside
AK146: Ashton (Golborne)
AK147: Ashton (Ribble)
AK148: Ashton On Mersey
AK149: Ashton Under Lyne T11 & T12
AK150: Ashton Under Lyne T13
AK151: Ashwood Dale
AK152: Askam & Dalton
AK153: Askerton Castle
AK154: Aspatria
AK155: Atherton Town Centre
AK156: Athletic St
AK157: Avenham
AK158: Baguley
AK159: Bamber Bridge
AK160: Barbara St
AK161: Barrow
AK162: Barton Dock Rd
AK163: Bedford
AK164: Belgrave
AK165: Benchill
AK166: Bentham
AK167: Bispham
AK168: Blackbull
AK169: Blackburn
AK170: Blackburn Rd Clayton
AK171: Blackfriars
AK172: Blackley
AK173: Blackpool
AK174: Bollington
AK175: Bolton By Bowland
AK176: Bolton Le Sands
AK177: Botany Bay
AK178: Bow Lane
AK179: Bowaters
AK180: Bowdon
AK181: Bradford
AK182: Bradshawgate
AK183: Bramhall
AK184: Bridgewater
AK185: Brinksway
AK186: Broadheath
AK187: Broadway
AK188: Buckshaw
AK189: Burnley
AK190: Burnley Centre
AK191: Burnley North
AK192: Burrow Beck
AK193: Burscough Bridge
AK194: Bury Town Centre
AK195: Campbell St
AK196: Cannon St
AK197: Capontree
AK198: Carleton
AK199: Carlisle North
AK200: Carr St
AK201: Castleton
AK202: Catterall Waterworks
AK203: Cecil St
AK204: Central Manchester
AK205: Chadderton
AK206: Chamberhall
AK207: Chapel Wharf
AK208: Chassen Rd
AK209: Chatsworth St
AK210: Cheadle Heath
AK211: Cheadle Hulme
AK212: Cheetham Hill
AK213: Chester Rd T11 & T12
AK214: Chester Rd T13
AK215: Chorley South
AK216: Chorlton
AK217: Church
AK218: Circle Square
AK219: Clarendon Rd
AK220: Claughton
AK221: Cleveleys
AK222: Clifton Junction
AK223: Clover Hill
AK224: Cog Lane
AK225: Coniston
AK226: Copse Rd
AK227: Cox Green
AK228: Craggs Row & Bushell St
AK229: Crown Lane
AK230: Culcheth
AK231: Cutacre
AK232: Deansgate
AK233: Denton East
AK234: Denton West
AK235: Dickinson St
AK236: Didsbury
AK237: Dodgson Rd
AK238: Douglas St
AK239: Droylsden East
AK240: Dukinfield
AK241: Dumers Lane
AK242: Dumplington
AK243: Eastlands
AK244: Easton
AK245: Egremont
AK246: Embleton
AK247: Exchange St
AK248: Failsworth
AK249: Fallowfield
AK250: Farnworth
AK251: Feniscowles
AK252: Ferodo
AK253: Flat Lane
AK254: Frederick Rd
AK255: Fusehill
AK256: Gale
AK257: Garstang
AK258: Gatley
AK259: Gidlow
AK260: Gillsrow
AK261: Glaxo
AK262: Glossop
AK263: Golborne
AK264: Gowhole
AK265: Grane Rd & Prinny Hill
AK266: Grange
AK267: Great Harwood
AK268: Green Lane (Altrincham)
AK269: Green Lane (Hazel Grove)
AK270: Green St T11
AK271: Green St T12 & T13
AK272: Greenfield
AK273: Greenhill
AK274: Griffin
AK275: Hadfield
AK276: Hall Cross
AK277: Handforth
AK278: Hanging Bridge
AK279: Hareholme
AK280: Harpurhey
AK281: Harwood
AK282: Hattersley
AK283: Haverthwaite
AK284: Hawk Green
AK285: Haydock
AK286: HDA No1 & HDA No2
AK287: Heady Hill
AK288: Heap Bridge
AK289: Heasandford
AK290: Heaton Moor
AK291: Heaton Norris
AK292: Helwith Bridge
AK293: Hensingham
AK294: Heyrod
AK295: Heyside
AK296: Heywood
AK297: Higher Mill
AK298: Higher Walton
AK299: Hill Top T11 & T12
AK300: Hill Top T13
AK301: Hindley Green
AK302: Hollinwood
AK303: Holme Rd
AK304: Holt St
AK305: Hurst
AK306: Hutton End & Skelton C
AK307: Hyde
AK308: Hyndburn Rd
AK309: India St
AK310: Ingleton
AK311: Irlam
AK312: James St
AK313: Kay St
AK314: Kendal
AK315: Keswick
AK316: Kingsway
AK317: Kinkry Hill
AK318: Kirkby Lonsdale
AK319: Kirkby Moor
AK320: Kirkby Stephen
AK321: Kirkby Thore
... 180 more rows

Sheet Local Authority charts
B3: Local Authority Forecast Charts
B7: These charts show the forecasts for a single Local Authority. You can choose a Local Authority to view by using the drop down box below.
B11: Select Local Authority | D11: Select a LA
B125: Select a Primary
B126: Albion St
B127: Alderley & Chelford
B128: Alston
B129: Ambleside
B130: Ancoats North T11 & T12
B131: Ancoats North T14
B132: Annie Pit
B133: Ansdell
B134: Ardwick
B135: Arnside
B136: Ashton (Golborne)
B137: Ashton (Ribble)
B138: Ashton On Mersey
B139: Ashton Under Lyne T11 & T12
B140: Ashton Under Lyne T13
B141: Ashwood Dale
B142: Askam & Dalton
B143: Askerton Castle
B144: Aspatria
B145: Atherton Town Centre
B146: Athletic St
B147: Avenham
B148: Baguley
B149: Bamber Bridge
B150: Barbara St
B151: Barrow
B152: Barton Dock Rd
B153: Bedford
B154: Belgrave
B155: Benchill
B156: Bentham
B157: Bispham
B158: Blackbull
B159: Blackburn
B160: Blackburn Rd Clayton
B161: Blackfriars
B162: Blackley
B163: Blackpool
B164: Bollington
B165: Bolton By Bowland
B166: Bolton Le Sands
B167: Botany Bay
B168: Bow Lane
B169: Bowaters
B170: Bowdon
B171: Bradford
B172: Bradshawgate
B173: Bramhall
B174: Bridgewater
B175: Brinksway
B176: Broadheath
B177: Broadway
B178: Buckshaw
B179: Burnley
B180: Burnley Centre
B181: Burnley North
B182: Burrow Beck
B183: Burscough Bridge
B184: Bury Town Centre
B185: Campbell St
B186: Cannon St
B187: Capontree
B188: Carleton
B189: Carlisle North
B190: Carr St
B191: Castleton
B192: Catterall Waterworks
B193: Cecil St
B194: Central Manchester
B195: Chadderton
B196: Chamberhall
B197: Chapel Wharf
B198: Chassen Rd
B199: Chatsworth St
B200: Cheadle Heath
B201: Cheadle Hulme
B202: Cheetham Hill
B203: Chester Rd T11 & T12
B204: Chester Rd T13
B205: Chorley South
B206: Chorlton
B207: Church
B208: Circle Square
B209: Clarendon Rd
B210: Claughton
B211: Cleveleys
B212: Clifton Junction
B213: Clover Hill
B214: Cog Lane
B215: Coniston
B216: Copse Rd
B217: Cox Green
B218: Craggs Row & Bushell St
B219: Crown Lane
B220: Culcheth
B221: Cutacre
B222: Deansgate
B223: Denton East
B224: Denton West
B225: Dickinson St
B226: Didsbury
B227: Dodgson Rd
B228: Douglas St
B229: Droylsden East
B230: Dukinfield
B231: Dumers Lane
B232: Dumplington
B233: Eastlands
B234: Easton
B235: Egremont
B236: Embleton
B237: Exchange St
B238: Failsworth
B239: Fallowfield
B240: Farnworth
B241: Feniscowles
B242: Ferodo
B243: Flat Lane
B244: Frederick Rd
B245: Fusehill
B246: Gale
B247: Garstang
B248: Gatley
B249: Gidlow
B250: Gillsrow
B251: Glaxo
B252: Glossop
B253: Golborne
B254: Gowhole
B255: Grane Rd & Prinny Hill
B256: Grange
B257: Great Harwood
B258: Green Lane (Altrincham)
B259: Green Lane (Hazel Grove)
B260: Green St T11
B261: Green St T12 & T13
B262: Greenfield
B263: Greenhill
B264: Griffin
B265: Hadfield
B266: Hall Cross
B267: Handforth
B268: Hanging Bridge
B269: Hareholme
B270: Harpurhey
B271: Harwood
B272: Hattersley
B273: Haverthwaite
B274: Hawk Green
B275: Haydock
B276: HDA No1 & HDA No2
B277: Heady Hill
B278: Heap Bridge
B279: Heasandford
B280: Heaton Moor
B281: Heaton Norris
B282: Helwith Bridge
B283: Hensingham
B284: Heyrod
B285: Heyside
B286: Heywood
B287: Higher Mill
B288: Higher Walton
B289: Hill Top T11 & T12
B290: Hill Top T13
B291: Hindley Green
B292: Hollinwood
B293: Holme Rd
B294: Holt St
B295: Hurst
B296: Hutton End & Skelton C
B297: Hyde
B298: Hyndburn Rd
B299: India St
B300: Ingleton
B301: Irlam
B302: James St
B303: Kay St
B304: Kendal
B305: Keswick
B306: Kingsway
B307: Kinkry Hill
B308: Kirkby Lonsdale
B309: Kirkby Moor
B310: Kirkby Stephen
B311: Kirkby Thore
B312: Kirkhall Lane
B313: Kitt Green
B314: Knott Mill
B315: Lamberhead
B316: Lancaster
B317: Langley
B318: Langroyd Rd
B319: Leigh
B320: Levenshulme
B321: Leyland National
... 170 more rows

Sheet LA AND COUNTY DATASET >>> (hidden)
B3: LA and County Datasets
B11: CONTENTS
B13: Section | C13: Tab | D13: Short Description
B14: LOCAL AUTHORITY AND COUNTY DATA | C14: Heat Pump Uptake | D14: Data table containing the number of HPs per Local Authority and County
C15: Energy Demand | D15: Data table containing the total energy demand per Local Authority and County
C16: Wind Uptake | D16: Data table containing the total wind installed capacity per Local Authority and County
C17: PV Uptake | D17: Data table containing the total PV installed capacity per Local Authority and County
C18: PV Energy | D18: Data table containing the total PV energy generated per Local Authority and County
C19: Wind Energy | D19: Data table containing the total wind energy generated per Local Authority and County
C20: I&C Energy | D20: Data table containing the total energy demand from Industrial and Commercial customers per Local Authority and County
C21: Domestic Energy | D21: Data table containing the total energy demand from domestic customers per Local Authority and County
C22: HP Energy | D22: Data table containing the total energy demand from heat pumps per Local Authority and County
C23: EV Energy | D23: Data table containing the total energy demand from electric vehicles per Local Authority and County
C24: Battey Storage | D24: Data table containing the total battery storage installed capacity per Local Authority and County
C25: EV Uptake | D25: Data table containing the number of Evs uptake per Local Authority and County
C26: Generation Uptake | D26: Data table containing the total generation installed capacity per Local Authority and County
C27: Carbon Savings | D27: Data table containing the total carbon savings per Local Authority and County due to low carbon technologies and renewable generation

Sheet LA Energy Demand
B8: * includes energy consumption from all the demand types (i.e., domestic, I&C, all heat pumps types, all air conditioning types, all EV types, large industry and connections)
C10: Best View | AH10: Falling Short | BM10: System Transformation | CR10: Consumer Transformation | DW10: Leading the Way
A11: County | B11: Local Authority List | C11: (Years as financial years, ie 2051 is FY2050/51) | D11: 2022 | E11: 2023 | F11: 2024 | G11: 2025 | H11: 2026 | I11: 2027 | J11: 2028 | K11: 2029 | L11: 2030 | M11: 2031 | N11: 2032 | O11: 2033 | P11: 2034 | Q11: 2035 | R11: 2036 | S11: 2037 | T11: 2038 | U11: 2039 | V11: 2040 | W11: 2041 | X11: 2042 | Y11: 2043 | Z11: 2044 | AA11: 2045 | AB11: 2046 | AC11: 2047 | AD11: 2048 | AE11: 2049 | AF11: 2050 | AG11: 2051 | AH11: (Years as financial years, ie 2051 is FY2050/51) | AI11: 2022 | AJ11: 2023 | AK11: 2024 | AL11: 2025 | AM11: 2026 | AN11: 2027 | AO11: 2028 | AP11: 2029 | AQ11: 2030 | AR11: 2031 | AS11: 2032 | AT11: 2033 | AU11: 2034 | AV11: 2035 | AW11: 2036 | AX11: 2037 | AY11: 2038 | AZ11: 2039 | BA11: 2040 | BB11: 2041 | BC11: 2042 | BD11: 2043 | BE11: 2044 | BF11: 2045 | BG11: 2046 | BH11: 2047 | BI11: 2048 | BJ11: 2049 | BK11: 2050 | BL11: 2051 | BM11: (Years as financial years, ie 2051 is FY2050/51) | BN11: 2022 | BO11: 2023 | BP11: 2024 | BQ11: 2025 | BR11: 2026 | BS11: 2027 | BT11: 2028 | BU11: 2029 | BV11: 2030 | BW11: 2031 | BX11: 2032 | BY11: 2033 | BZ11: 2034 | CA11: 2035 | CB11: 2036 | CC11: 2037 | CD11: 2038 | CE11: 2039 | CF11: 2040 | CG11: 2041 | CH11: 2042 | CI11: 2043 | CJ11: 2044 | CK11: 2045 | CL11: 2046 | CM11: 2047 | CN11: 2048 | CO11: 2049 | CP11: 2050 | CQ11: 2051 | CR11: (Years as financial years, ie 2051 is FY2050/51) | CS11: 2022 | CT11: 2023 | CU11: 2024 | CV11: 2025 | CW11: 2026 | CX11: 2027 | CY11: 2028 | CZ11: 2029 | DA11: 2030 | DB11: 2031 | DC11: 2032 | DD11: 2033 | DE11: 2034 | DF11: 2035 | DG11: 2036 | DH11: 2037 | DI11: 2038 | DJ11: 2039 | DK11: 2040 | DL11: 2041 | DM11: 2042 | DN11: 2043 | DO11: 2044 | DP11: 2045 | DQ11: 2046 | DR11: 2047 | DS11: 2048 | DT11: 2049 | DU11: 2050 | DV11: 2051 | DW11: (Years as financial years, ie 2051 is FY2050/51) | DX11: 2022 | DY11: 2023 | DZ11: 2024 | EA11: 2025 | EB11: 2026 | EC11: 2027 | ED11: 2028 | EE11: 2029 | EF11: 2030 | EG11: 2031 | EH11: 2032 | EI11: 2033 | EJ11: 2034 | EK11: 2035 | EL11: 2036 | EM11: 2037 | EN11: 2038 | EO11: 2039 | EP11: 2040 | EQ11: 2041 | ER11: 2042 | ES11: 2043 | ET11: 2044 | EU11: 2045 | EV11: 2046 | EW11: 2047 | EX11: 2048 | EY11: 2049 | EZ11: 2050 | FA11: 2051
A12: Cumberland** | B12: Allerdale | D12: 698689.4854 | E12: 711311.0239 | F12: 724953.3822 | G12: 744177.7926 | H12: 763541.9152 | I12: 785082.2194 | J12: 818510.4738 | K12: 845492.7732 | L12: 868903.0525 | M12: 895156.7623 | N12: 916970.2646 | O12: 940557.9107 | P12: 959756.5659 | Q12: 981994.8993 | R12: 1012801.841 | S12: 1050469.593 | T12: 1065186.341 | U12: 1079147.167 | V12: 1093703.604 | W12: 1108852.254 | X12: 1115706.437 | Y12: 1128982.507 | Z12: 1133486.874 | AA12: 1137512.526 | AB12: 1143255.805 | AC12: 1144168.589 | AD12: 1144644.826 | AE12: 1145808.418 | AF12: 1146696.424 | AG12: 1147977.921 | AI12: 698921.8889 | AJ12: 702527.7098 | AK12: 709135.9304 | AL12: 716918.5384 | AM12: 724106.8069 | AN12: 731951.8868 | AO12: 742357.4306 | AP12: 754851.1888 | AQ12: 769361.1326 | AR12: 785761.4052 | AS12: 794695.2952 | AT12: 802771.6645 | AU12: 810446.8395 | AV12: 818129.011 | AW12: 826994.0586 | AX12: 835470.3146 | AY12: 842712.0895 | AZ12: 849157.1868 | BA12: 855552.9268 | BB12: 860947.1493 | BC12: 866183.3355 | BD12: 871098.4496 | BE12: 875532.6058 | BF12: 879900.5907 | BG12: 884139.9287 | BH12: 888034.0918 | BI12: 891636.2952 | BJ12: 894944.6402 | BK12: 897515.0238 | BL12: 898240.8918 | BN12: 698689.4854 | BO12: 711294.4117 | BP12: 724978.7675 | BQ12: 744191.4974 | BR12: 763541.4145 | BS12: 785134.8958 | BT12: 818687.4056 | BU12: 845682.2992 | BV12: 868957.895 | BW12: 893439.4666 | BX12: 913408.1679 | BY12: 935292.7483 | BZ12: 952829.096 | CA12: 973747.4703 | CB12: 1002546.03 | CC12: 1037935.286 | CD12: 1050749.8 | CE12: 1062679.939 | CF12: 1075002.113 | CG12: 1087762.148 | CH12: 1092704.643 | CI12: 1104501.061 | CJ12: 1107987.685 | CK12: 1111452.979 | CL12: 1117059.795 | CM12: 1117499.721 | CN12: 1117106.996 | CO12: 1116966.284 | CP12: 1116055.237 | CQ12: 1115007.389 | CS12: 698681.9023 | CT12: 711480.1183 | CU12: 725298.8306 | CV12: 744957.532 | CW12: 765458.8779 | CX12: 789485.3618 | CY12: 826453.5648 | CZ12: 857640.4428 | DA12: 884364.9354 | DB12: 917054.2018 | DC12: 939748.1735 | DD12: 963052.9913 | DE12: 1002099.251 | DF12: 1030576.169 | DG12: 1127947.101 | DH12: 1170591.177 | DI12: 1200068.618 | DJ12: 1226207.387 | DK12: 1249111.047 | DL12: 1273574.735 | DM12: 1291613.959 | DN12: 1307547.82 | DO12: 1321127.818 | DP12: 1334593.909 | DQ12: 1346482.433 | DR12: 1358396.214 | DS12: 1369940.243 | DT12: 1381714.254 | DU12: 1389511.214 | DV12: 1384962.055 | DX12: 698681.9023 | DY12: 709876.727 | DZ12: 727790.1922 | EA12: 748239.1376 | EB12: 769934.0577 | EC12: 811416.6392 | ED12: 870671.8571 | EE12: 911946.223 | EF12: 937026.3949 | EG12: 980106.9748 | EH12: 1056781.25 | EI12: 1088141.009 | EJ12: 1122459.441 | EK12: 1150919.154 | EL12: 1180551.81 | EM12: 1206847.297 | EN12: 1229917.663 | EO12: 1250884.335 | EP12: 1268750.251 | EQ12: 1284391.943 | ER12: 1297876.027 | ES12: 1309694.291 | ET12: 1319712.568 | EU12: 1328376.849 | EV12: 1324206.73 | EW12: 1319525.731 | EX12: 1314403.176 | EY12: 1309064.406 | EZ12: 1303305.729 | FA12: 1297441.965
A13: Westmorland and Furness** | B13: Barrow-in-Furness | D13: 534026.7754 | E13: 543673.7497 | F13: 554100.9635 | G13: 568794.6867 | H13: 583595.1955 | I13: 600059.0174 | J13: 625609.1126 | K13: 646232.3947 | L13: 664125.4877 | M13: 684191.8896 | N13: 700864.5239 | O13: 718893.183 | P13: 733567.2209 | Q13: 750564.5648 | R13: 774111.1213 | S13: 802901.5768 | T13: 814149.9745 | U13: 824820.602 | V13: 835946.4699 | W13: 847524.9821 | X13: 852763.8143 | Y13: 862911.0644 | Z13: 866353.8711 | AA13: 869430.7826 | AB13: 873820.5224 | AC13: 874518.1868 | AD13: 874882.1876 | AE13: 875771.5519 | AF13: 876450.2781 | AG13: 877429.7598 | AI13: 534204.4075 | AJ13: 536960.4314 | AK13: 542011.2684 | AL13: 547959.7207 | AM13: 553453.9036 | AN13: 559450.1049 | AO13: 567403.336 | AP13: 576952.6444 | AQ13: 588042.9767 | AR13: 600578.1369 | AS13: 607406.5443 | AT13: 613579.5262 | AU13: 619445.8645 | AV13: 625317.5505 | AW13: 632093.3399 | AX13: 638571.9656 | AY13: 644107.0449 | AZ13: 649033.2025 | BA13: 653921.635 | BB13: 658044.5814 | BC13: 662046.7364 | BD13: 665803.4875 | BE13: 669192.6299 | BF13: 672531.1958 | BG13: 675771.4335 | BH13: 678747.8449 | BI13: 681501.1039 | BJ13: 684029.759 | BK13: 685994.3709 | BL13: 686549.171 | BN13: 534026.7754 | BO13: 543661.0526 | BP13: 554120.3661 | BQ13: 568805.1616 | BR13: 583594.8128 | BS13: 600099.2793 | BT13: 625744.3462 | BU13: 646377.2544 | BV13: 664167.4053 | BW13: 682879.3153 | BX13: 698141.9195 | BY13: 714868.8807 | BZ13: 728272.3732 | CA13: 744260.8376 | CB13: 766272.335 | CC13: 793321.2756 | CD13: 803115.7459 | CE13: 812234.2653 | CF13: 821652.4278 | CG13: 831405.2585 | CH13: 835182.9374 | CI13: 844199.2505 | CJ13: 846864.169 | CK13: 849512.7845 | CL13: 853798.2219 | CM13: 854134.4685 | CN13: 853834.2991 | CO13: 853726.7491 | CP13: 853030.4119 | CQ13: 852229.514 | CS13: 534020.9794 | CT13: 543802.993 | CU13: 554364.9988 | CV13: 569390.662 | CW13: 585060.3806 | CX13: 603424.455 | CY13: 631680.2263 | CZ13: 655517.1785 | DA13: 675943.412 | DB13: 700928.6793 | DC13: 718274.2796 | DD13: 736086.7656 | DE13: 765930.8504 | DF13: 787696.5088 | DG13: 862119.6767 | DH13: 894713.6669 | DI13: 917244.0518 | DJ13: 937222.6013 | DK13: 954728.4715 | DL13: 973426.7124 | DM13: 987214.5665 | DN13: 999393.2363 | DO13: 1009772.786 | DP13: 1020065.274 | DQ13: 1029151.986 | DR13: 1038258.003 | DS13: 1047081.409 | DT13: 1056080.595 | DU13: 1062040.017 | DV13: 1058562.975 | DX13: 534020.9794 | DY13: 542577.4788 | DZ13: 556269.2121 | EA13: 571898.8796 | EB13: 588480.8784 | EC13: 620187.108 | ED13: 665477.4316 | EE13: 697024.5166 | EF13: 716193.9525 | EG13: 749121.5744 | EH13: 807725.742 | EI13: 831694.8324 | EJ13: 857925.3133 | EK13: 879677.8215 | EL13: 902326.8413 | EM13: 922425.174 | EN13: 940058.4624 | EO13: 956083.8423 | EP13: 969739.2328 | EQ13: 981694.5897 | ER13: 992000.83 | ES13: 1001033.841 | ET13: 1008691.074 | EU13: 1015313.412 | EV13: 1012126.08 | EW13: 1008548.269 | EX13: 1004632.966 | EY13: 1000552.403 | EZ13: 996150.8943 | FA13: 991669.0655
A14: Lancashire | B14: Blackburn with Darwen | D14: 715611.3143 | E14: 742708.3286 | F14: 789333.2008 | G14: 811355.4035 | H14: 832823.0417 | I14: 851071.089 | J14: 869880.9838 | K14: 889773.3793 | L14: 934328.781 | M14: 959015.3063 | N14: 983157.8349 | O14: 1004500.914 | P14: 1030896.995 | Q14: 1049675.989 | R14: 1071247.062 | S14: 1088910.873 | T14: 1105611.693 | U14: 1126718.12 | V14: 1139645.933 | W14: 1152034.208 | X14: 1161236.38 | Y14: 1169095.916 | Z14: 1182982.191 | AA14: 1188133.384 | AB14: 1190738.638 | AC14: 1193500.968 | AD14: 1196370.099 | AE14: 1199349.445 | AF14: 1202617.631 | AG14: 1206273.129 | AI14: 715833.246 | AJ14: 724027.173 | AK14: 758763.5208 | AL14: 767110.0194 | AM14: 774207.6954 | AN14: 781414.3989 | AO14: 791846.6463 | AP14: 805001.25 | AQ14: 832587.3324 | AR14: 850631.7202 | AS14: 861439.7238 | AT14: 871771.7688 | AU14: 881542.5087 | AV14: 890911.8856 | AW14: 900502.6383 | AX14: 909617.9872 | AY14: 917401.6239 | AZ14: 924316.3809 | BA14: 930812.277 | BB14: 936104.4135 | BC14: 941233.095 | BD14: 946000.0808 | BE14: 950298.7667 | BF14: 954436.1322 | BG14: 958451.0927 | BH14: 962015.5028 | BI14: 965190.4543 | BJ14: 967978.4115 | BK14: 970279.8484 | BL14: 971627.0415 | BN14: 715611.3143 | BO14: 742686.009 | BP14: 789367.6327 | BQ14: 811374.1668 | BR14: 832822.7275 | BS14: 851142.0477 | BT14: 870118.5398 | BU14: 890027.7282 | BV14: 934401.247 | BW14: 956828.1927 | BX14: 978633.0679 | BY14: 997821.824 | BZ14: 1022115.175 | CA14: 1039215.017 | CB14: 1058239.109 | CC14: 1072982.508 | CD14: 1087194.874 | CE14: 1105618.1 | CF14: 1115576.488 | CG14: 1124774.02 | CH14: 1131413.756 | CI14: 1137283.167 | CJ14: 1149789.712 | CK14: 1154166.11 | CL14: 1156559.372 | CM14: 1158655.462 | CN14: 1160325.023 | CO14: 1161518.199 | CP14: 1162337.392 | CQ14: 1162834.248 | CS14: 715604.0729 | CT14: 742267.9098 | CU14: 788517.6397 | CV14: 810449.2437 | CW14: 832186.5039 | CX14: 851645.3474 | CY14: 874184.0638 | CZ14: 900123.4671 | DA14: 949722.4045 | DB14: 977521.7924 | DC14: 1003160.421 | DD14: 1026096.962 | DE14: 1060852.338 | DF14: 1086503.686 | DG14: 1142229.238 | DH14: 1193362.709 | DI14: 1232391.849 | DJ14: 1268095.822 | DK14: 1301225.376 | DL14: 1333647.648 | DM14: 1361552.666 | DN14: 1386639.707 | DO14: 1409339.19 | DP14: 1431061.468 | DQ14: 1451198.472 | DR14: 1470798.979 | DS14: 1489566.462 | DT14: 1507652.247 | DU14: 1520588.214 | DV14: 1516369.36 | DX14: 715604.0729 | DY14: 740445.5017 | DZ14: 792801.064 | EA14: 815585.8406 | EB14: 837530.8893 | EC14: 865582.8109 | ED14: 899754.3909 | EE14: 932309.6106 | EF14: 983981.0352 | EG14: 1037426.207 | EH14: 1081489.587 | EI14: 1127332.816 | EJ14: 1168669.08 | EK14: 1207851.823 | EL14: 1247381.968 | EM14: 1283617.563 | EN14: 1316589.683 | EO14: 1346743.544 | EP14: 1373778.066 | EQ14: 1398700.72 | ER14: 1420398.383 | ES14: 1439763.645 | ET14: 1456872.607 | EU14: 1470479.499 | EV14: 1466331.676 | EW14: 1461731.104 | EX14: 1456504.919 | EY14: 1450833.318 | EZ14: 1444690.543 | FA14: 1438284.132
A15: Lancashire | B15: Blackpool | D15: 648211.1586 | E15: 665174.7922 | F15: 679894.8073 | G15: 700138.4856 | H15: 723210.5889 | I15: 746874.3965 | J15: 770483.5076 | K15: 794960.811 | L15: 820008.7072 | M15: 850019.7961 | N15: 877525.906 | O15: 914226.19 | P15: 938688.143 | Q15: 965411.6598 | R15: 987459.5941 | S15: 1008818.432 | T15: 1026338.703 | U15: 1041986.499 | V15: 1055845.672 | W15: 1076711.679 | X15: 1087086.444 | Y15: 1095915.908 | Z15: 1103110.701 | AA15: 1109504.5 | AB15: 1112570.6 | AC15: 1115496.228 | AD15: 1118498.764 | AE15: 1121649.157 | AF15: 1124896.624 | AG15: 1130010.127 | AI15: 648463.5264 | AJ15: 654011.7315 | AK15: 661917.6056 | AL15: 671187.9129 | AM15: 681197.2475 | AN15: 693617.1604 | AO15: 708990.2234 | AP15: 726563.1585 | AQ15: 746618.567 | AR15: 768822.353 | AS15: 782261.7704 | AT15: 795004.8604 | AU15: 807031.296 | AV15: 818552.6717 | AW15: 830347.4629 | AX15: 841527.6757 | AY15: 851104.3057 | AZ15: 859704.5161 | BA15: 867944.0669 | BB15: 874675.6321 | BC15: 881135.9878 | BD15: 887095.2982 | BE15: 892413.8446 | BF15: 897664.3458 | BG15: 902702.0479 | BH15: 907266.4084 | BI15: 911436.725 | BJ15: 915220.559 | BK15: 918478.3717 | BL15: 921330.031 | BN15: 648211.1586 | BO15: 665155.3555 | BP15: 679914.6083 | BQ15: 700143.8613 | BR15: 723199.0857 | BS15: 746930.42 | BT15: 770695.5376 | BU15: 795191.4835 | BV15: 820109.9991 | BW15: 847477.85 | BX15: 872296.0461 | BY15: 906571.981 | BZ15: 928710.6242 | CA15: 953650.1283 | CB15: 972904.9789 | CC15: 991188.5022 | CD15: 1006287.602 | CE15: 1019409.865 | CF15: 1030517.415 | CG15: 1048469.015 | CH15: 1056528.862 | CI15: 1063580.773 | CJ15: 1069579.672 | CK15: 1075354.843 | CL15: 1078334.915 | CM15: 1080760.236 | CN15: 1082774.152 | CO15: 1084399.922 | CP15: 1085508.097 | CQ15: 1087821.13 | CS15: 648202.924 | CT15: 664999.949 | CU15: 679615.7691 | CV15: 700089.9059 | CW15: 723728.7817 | CX15: 749471.82 | CY15: 778575.809 | CZ15: 811487.4774 | DA15: 848698.9095 | DB15: 904388.7269 | DC15: 933009.4944 | DD15: 972769.4434 | DE15: 1007770.708 | DF15: 1035891.712 | DG15: 1087445.041 | DH15: 1141422.988 | DI15: 1182392.264 | DJ15: 1220413.15 | DK15: 1255609.869 | DL15: 1291999.49 | DM15: 1321532.116 | DN15: 1347776.591 | DO15: 1371370.447 | DP15: 1394418.222 | DQ15: 1415762.722 | DR15: 1436601.808 | DS15: 1457008.688 | DT15: 1477219.01 | DU15: 1492048.751 | DV15: 1489911.515 | DX15: 648202.924 | DY15: 662873.6966 | DZ15: 684789.4496 | EA15: 706407.3244 | EB15: 730039.7708 | EC15: 753993.5158 | ED15: 782567.3028 | EE15: 816837.6863 | EF15: 849350.3064 | EG15: 911560.7988 | EH15: 983499.2089 | EI15: 1046890.217 | EJ15: 1091644.717 | EK15: 1133962.567 | EL15: 1178485.353 | EM15: 1217576.744 | EN15: 1252416.957 | EO15: 1284073.592 | EP15: 1312181.375 | EQ15: 1337269.131 | ER15: 1359813.322 | ES15: 1379925.851 | ET15: 1397625.985 | EU15: 1412954.213 | EV15: 1409206.705 | EW15: 1404619.881 | EX15: 1399492.982 | EY15: 1394030.89 | EZ15: 1388184.403 | FA15: 1383651.965
A16: Greater Manchester | B16: Bolton | D16: 1162315.848 | E16: 1210340.777 | F16: 1283382.738 | G16: 1319209.385 | H16: 1355589.356 | I16: 1400242.993 | J16: 1448959.161 | K16: 1489638.585 | L16: 1542039.205 | M16: 1593985.895 | N16: 1638537.485 | O16: 1680307.424 | P16: 1720211.672 | Q16: 1757095.935 | R16: 1794530.951 | S16: 1829122.882 | T16: 1858774.04 | U16: 1885578.895 | V16: 1910095.217 | W16: 1934711.155 | X16: 1953392.412 | Y16: 1969497.441 | Z16: 1982944.344 | AA16: 1994509.09 | AB16: 2001495.301 | AC16: 2008463.114 | AD16: 2015622.58 | AE16: 2022938.727 | AF16: 2030627.32 | AG16: 2038991.506 | AI16: 1162713.58 | AJ16: 1179590.422 | AK16: 1214905.795 | AL16: 1229849.776 | AM16: 1243259.852 | AN16: 1260556.722 | AO16: 1283327.844 | AP16: 1310616.98 | AQ16: 1347079.649 | AR16: 1382846.56 | AS16: 1405250.016 | AT16: 1426631.967 | AU16: 1446895.763 | AV16: 1466302.979 | AW16: 1485805.843 | AX16: 1504502.562 | AY16: 1520831.569 | AZ16: 1535594.625 | BA16: 1549607.792 | BB16: 1561171.367 | BC16: 1572429.231 | BD16: 1582923.826 | BE16: 1592375.589 | BF16: 1601797.2 | BG16: 1610925.243 | BH16: 1619226.945 | BI16: 1626825.354 | BJ16: 1633730.502 | BK16: 1639822.923 | BL16: 1644320.44 | BN16: 1162315.848 | BO16: 1210304.923 | BP16: 1283405.737 | BQ16: 1319204.737 | BR16: 1355553.217 | BS16: 1400338.675 | BT16: 1449357.133 | BU16: 1490076.284 | BV16: 1542276.777 | BW16: 1589900.426 | BX16: 1630016.571 | BY16: 1667741.735 | BZ16: 1703728.404 | CA16: 1737539.254 | CB16: 1770222.938 | CC16: 1799491.163 | CD16: 1824785.624 | CE16: 1846973.064 | CF16: 1866422.657 | CG16: 1885638.234 | CH16: 1900032.937 | CI16: 1912858.573 | CJ16: 1924105.466 | CK16: 1934539.582 | CL16: 1941386.285 | CM16: 1947394.095 | CN16: 1952634.37 | CO16: 1956979.053 | CP16: 1960504.091 | CQ16: 1963426.908 | CS16: 1162302.87 | CT16: 1209511.503 | CU16: 1281845.349 | CV16: 1317763.866 | CW16: 1354430.27 | CX16: 1401455.459 | CY16: 1458889.585 | CZ16: 1513392.834 | DA16: 1571348.855 | DB16: 1625199.199 | DC16: 1672562.719 | DD16: 1717034.272 | DE16: 1761435.288 | DF16: 1810193.176 | DG16: 1896928.451 | DH16: 1978305.227 | DI16: 2053039.205 | DJ16: 2122705.629 | DK16: 2187892.682 | DL16: 2250230.661 | DM16: 2305773.518 | DN16: 2355747.87 | DO16: 2401125.255 | DP16: 2445129.225 | DQ16: 2486184.865 | DR16: 2526107.315 | DS16: 2564747.227 | DT16: 2602509.345 | DU16: 2630257.034 | DV16: 2624287.236 | DX16: 1162302.87 | DY16: 1205948.575 | DZ16: 1290374.709 | EA16: 1327930.699 | EB16: 1364202.356 | EC16: 1414612.135 | ED16: 1473383.755 | EE16: 1522764.476 | EF16: 1583314.606 | EG16: 1674399.479 | EH16: 1761208.232 | EI16: 1844754.701 | EJ16: 1925399.303 | EK16: 2001861.951 | EL16: 2077751.008 | EM16: 2148001.674 | EN16: 2212712.205 | EO16: 2271996.127 | EP16: 2325713.793 | EQ16: 2374359.303 | ER16: 2418140.789 | ES16: 2457370.474 | ET16: 2492256.514 | EU16: 2520965.613 | EV16: 2514800.243 | EW16: 2507436.045 | EX16: 2499049.329 | EY16: 2489992.202 | EZ16: 2480190.083 | FA16: 2470365.593
A17: Lancashire | B17: Burnley | D17: 411254.9601 | E17: 415809.9271 | F17: 426111.998 | G17: 441972.0575 | H17: 459853.8671 | I17: 481464.5528 | J17: 495480.3134 | K17: 509475.5557 | L17: 530749.3656 | M17: 546424.5619 | N17: 561294.6034 | O17: 580103.2408 | P17: 593326.8218 | Q17: 605563.088 | R17: 619331.4709 | S17: 635085.5884 | T17: 644904.2868 | U17: 653896.5818 | V17: 663060.1227 | W17: 680652.3385 | X17: 686833.8568 | Y17: 692150.172 | Z17: 696539.4449 | AA17: 700446.0183 | AB17: 702577.3602 | AC17: 704758.9616 | AD17: 707018.4078 | AE17: 709360.79 | AF17: 711918.16 | AG17: 714729.8187 | AI17: 411401.7993 | AJ17: 410833.8162 | AK17: 415689.9862 | AL17: 423594.0033 | AM17: 431164.3037 | AN17: 443501.8571 | AO17: 452018.4207 | AP17: 461598.1803 | AQ17: 472069.6622 | AR17: 483990.7144 | AS17: 491183.953 | AT17: 498023.6876 | AU17: 504556.8945 | AV17: 510821.6825 | AW17: 517184.3778 | AX17: 523261.6004 | AY17: 528561.7887 | AZ17: 533359.8563 | BA17: 537882.0026 | BB17: 541636.8951 | BC17: 545267.3283 | BD17: 548664.8298 | BE17: 551750.9398 | BF17: 554802.9239 | BG17: 557759.6815 | BH17: 560428.704 | BI17: 562849.3281 | BJ17: 565021.7472 | BK17: 566879.6205 | BL17: 568129.803 | BN17: 411254.9601 | BO17: 415796.2301 | BP17: 426126.7827 | BQ17: 441976.7404 | BR17: 459846.6763 | BS17: 481504.5038 | BT17: 495629.3091 | BU17: 509637.3608 | BV17: 530817.6298 | BW17: 545092.8375 | BX17: 558505.958 | BY17: 575966.1281 | BZ17: 587868.3521 | CA17: 599044.8014 | CB17: 611205.7288 | CC17: 625119.9026 | CD17: 633371.6797 | CE17: 640677.0457 | CF17: 647976.6461 | CG17: 663569.2205 | CH17: 668153.6418 | CI17: 672239.4144 | CJ17: 675788.19 | CK17: 679240.3178 | CL17: 681276.1722 | CM17: 683063.2108 | CN17: 684578.4377 | CO17: 685792.5768 | CP17: 686788.8857 | CQ17: 687576.4649 | CS17: 411250.1688 | CT17: 415524.8531 | CU17: 425579.1954 | CV17: 441372.2994 | CW17: 459304.5651 | CX17: 481667.5282 | CY17: 497301.1271 | CZ17: 513375.8267 | DA17: 535931.6767 | DB17: 552937.5834 | DC17: 568473.505 | DD17: 586802.3951 | DE17: 605428.4705 | DF17: 622116.8074 | DG17: 665282.6148 | DH17: 694913.5429 | DI17: 720857.1318 | DJ17: 745349.2839 | DK17: 767979.0312 | DL17: 791412.6952 | DM17: 810654.2869 | DN17: 828055.0821 | DO17: 843866.2945 | DP17: 859217.4091 | DQ17: 873314.2861 | DR17: 886966.3231 | DS17: 900029.0813 | DT17: 912591.7808 | DU17: 921596.1023 | DV17: 918830.8875 | DX17: 411250.1688 | DY17: 414256.4845 | DZ17: 427804.9632 | EA17: 444050.8257 | EB17: 461817.2557 | EC17: 484756.6177 | ED17: 508034.2546 | EE17: 524167.6025 | EF17: 542499.972 | EG17: 573128.7279 | EH17: 603807.609 | EI17: 643468.449 | EJ17: 674849.0353 | EK17: 701472.0181 | EL17: 730790.6016 | EM17: 755195.6925 | EN17: 777453.9132 | EO17: 797959.5464 | EP17: 816605.7118 | EQ17: 833541.2106 | ER17: 848847.8273 | ES17: 862646.0407 | ET17: 874881.3248 | EU17: 884612.7685 | EV17: 882024.5509 | EW17: 879040.0477 | EX17: 875663.4592 | EY17: 872008.8046 | EZ17: 868051.0873 | FA17: 863922.694
A18: Greater Manchester | B18: Bury | D18: 769358.1183 | E18: 801093.5602 | F18: 849010.2706 | G18: 872742.5169 | H18: 896854.0947 | I18: 926234.1642 | J18: 958261.3116 | K18: 985077.0165 | L18: 1019816.306 | M18: 1054043.375 | N18: 1083420.504 | O18: 1111162.082 | P18: 1137452.446 | Q18: 1161742.49 | R18: 1186454.21 | S18: 1209397.568 | T18: 1228899.882 | U18: 1246523.463 | V18: 1262628.256 | W18: 1279223.482 | X18: 1291488.062 | Y18: 1302057.953 | Z18: 1310877.884 | AA18: 1318464.325 | AB18: 1323010.707 | AC18: 1327542.216 | AD18: 1332195.633 | AE18: 1336947.865 | AF18: 1341942.572 | AG18: 1347377.5 | AI18: 769622.4242 | AJ18: 780730.5507 | AK18: 803849.1893 | AL18: 813723.6313 | AM18: 822557.6357 | AN18: 833919.8901 | AO18: 848909.4454 | AP18: 866900.2318 | AQ18: 890918.3213 | AR18: 914534.2191 | AS18: 929271.2031 | AT18: 943327.4326 | AU18: 956642.7584 | AV18: 969391.327 | AW18: 982209.7519 | AX18: 994491.4713 | AY18: 1005218.333 | AZ18: 1014913.841 | BA18: 1024113.568 | BB18: 1031708.201 | BC18: 1039097.174 | BD18: 1045982.034 | BE18: 1052177.884 | BF18: 1058350.813 | BG18: 1064327.676 | BH18: 1069761.08 | BI18: 1074732.499 | BJ18: 1079248.582 | BK18: 1083226.341 | BL18: 1086143.416 | BN18: 769358.1183 | BO18: 801070.1405 | BP18: 849025.2077 | BQ18: 872739.3886 | BR18: 896830.3943 | BS18: 926296.6145 | BT18: 958521.3093 | BU18: 985362.9978 | BV18: 1019971.809 | BW18: 1051351.225 | BX18: 1077808.342 | BY18: 1102888.963 | BZ18: 1126603.669 | CA18: 1148875.608 | CB18: 1170464.628 | CC18: 1189913.133 | CD18: 1206562.074 | CE18: 1221164.409 | CF18: 1233955.389 | CG18: 1247019.977 | CH18: 1256482.612 | CI18: 1264909.173 | CJ18: 1272291.966 | CK18: 1279140.968 | CL18: 1283598.258 | CM18: 1287504.966 | CN18: 1290907.187 | CO18: 1293721.049 | CP18: 1295998.525 | CQ18: 1297881.221 | CS18: 769349.4942 | CT18: 800546.8573 | CU18: 847991.5531 | CV18: 871774.1882 | CW18: 896073.5713 | CX18: 927013.6016 | CY18: 964758.6215 | CZ18: 1000626.719 | DA18: 1039004.272 | DB18: 1074483.562 | DC18: 1105663.834 | DD18: 1135075.799 | DE18: 1164446.192 | DF18: 1196519.715 | DG18: 1254237.559 | DH18: 1307902.13 | DI18: 1357161.65 | DJ18: 1403089.456 | DK18: 1446051.35 | DL18: 1487224.671 | DM18: 1523828.312 | DN18: 1556758.564 | DO18: 1586660.397 | DP18: 1615665.772 | DQ18: 1642720.344 | DR18: 1669036.782 | DS18: 1694512.961 | DT18: 1719414.874 | DU18: 1737705.439 | DV18: 1733696.932 | DX18: 769349.4942 | DY18: 798182.6206 | DZ18: 853565.859 | EA18: 878416.0469 | EB18: 902453.9428 | EC18: 935572.2748 | ED18: 974441.2387 | EE18: 1006914.303 | EF18: 1046781.219 | EG18: 1106856.844 | EH18: 1164148.537 | EI18: 1219707.641 | EJ18: 1273031.702 | EK18: 1323448.36 | EL18: 1373615.314 | EM18: 1419912.509 | EN18: 1462552.437 | EO18: 1501620.032 | EP18: 1537020.465 | EQ18: 1569068.967 | ER18: 1597922.443 | ES18: 1623784.115 | ET18: 1646785.312 | EU18: 1665711.347 | EV18: 1661569.445 | EW18: 1656641.712 | EX18: 1651043.947 | EY18: 1645007.386 | EZ18: 1638481.426 | FA18: 1631939.375
A19: Cumberland** | B19: Carlisle | D19: 754694.8428 | E19: 768328.0951 | F19: 783063.9937 | G19: 803829.3891 | H19: 824745.6956 | I19: 848012.6216 | J19: 884120.4087 | K19: 913265.5478 | L19: 938552.3416 | M19: 966910.489 | N19: 990472.512 | O19: 1015950.89 | P19: 1036688.466 | Q19: 1060709.373 | R19: 1093985.729 | S19: 1134672.843 | T19: 1150569.251 | U19: 1165649.146 | V19: 1181372.393 | W19: 1197735.325 | X19: 1205138.923 | Y19: 1219479.172 | Z19: 1224344.6 | AA19: 1228692.938 | AB19: 1234896.586 | AC19: 1235882.536 | AD19: 1236396.948 | AE19: 1237653.811 | AF19: 1238612.997 | AG19: 1239997.216 | AI19: 754945.8753 | AJ19: 758840.7305 | AK19: 765978.651 | AL19: 774385.0952 | AM19: 782149.5588 | AN19: 790623.4826 | AO19: 801863.111 | AP19: 815358.3404 | AQ19: 831031.3682 | AR19: 848746.2493 | AS19: 858396.2596 | AT19: 867120.0123 | AU19: 875410.4118 | AV19: 883708.3687 | AW19: 893284.0183 | AX19: 902439.7117 | AY19: 910261.9707 | AZ19: 917223.6924 | BA19: 924132.1003 | BB19: 929958.7114 | BC19: 935614.6184 | BD19: 940923.7168 | BE19: 945713.3049 | BF19: 950431.4175 | BG19: 955010.5711 | BH19: 959216.8815 | BI19: 963107.8294 | BJ19: 966681.3637 | BK19: 969457.7834 | BL19: 970241.8354 | BN19: 754694.8428 | BO19: 768310.1513 | BP19: 783091.4138 | BQ19: 803844.1924 | BR19: 824745.1548 | BS19: 848069.5204 | BT19: 884311.5229 | BU19: 913470.2657 | BV19: 938611.5802 | BW19: 965055.5388 | BX19: 986624.8857 | BY19: 1010263.684 | BZ19: 1029205.706 | CA19: 1051800.849 | CB19: 1082907.835 | CC19: 1121133.814 | CD19: 1134975.51 | CE19: 1147861.941 | CF19: 1161171.833 | CG19: 1174954.684 | CH19: 1180293.357 | CI19: 1193035.35 | CJ19: 1196801.453 | CK19: 1200544.517 | CL19: 1206600.763 | CM19: 1207075.952 | CN19: 1206651.748 | CO19: 1206499.757 | CP19: 1205515.682 | CQ19: 1204383.841 | CS19: 754686.6518 | CT19: 768510.7437 | CU19: 783437.1325 | CV19: 804671.6307 | CW19: 826816.3177 | CX19: 852768.7098 | CY19: 892700.1998 | CZ19: 926386.9469 | DA19: 955253.6138 | DB19: 990563.1774 | DC19: 1015076.246 | DD19: 1040249.125 | DE19: 1082425.244 | DF19: 1113184.807 | DG19: 1218360.771 | DH19: 1264423.099 | DI19: 1296263.385 | DJ19: 1324497.378 | DK19: 1349236.943 | DL19: 1375661.584 | DM19: 1395146.791 | DN19: 1412357.874 | DO19: 1427026.414 | DP19: 1441571.916 | DQ19: 1454413.397 | DR19: 1467282.16 | DS19: 1479751.532 | DT19: 1492469.321 | DU19: 1500891.267 | DV19: 1495977.458 | DX19: 754686.6518 | DY19: 766778.8282 | DZ19: 786128.196 | EA19: 808216.2823 | EB19: 831650.2177 | EC19: 876457.9485 | ED19: 940462.9296 | EE19: 985045.7546 | EF19: 1012136.296 | EG19: 1058670.117 | EH19: 1141490.427 | EI19: 1175363.914 | EJ19: 1212433.232 | EK19: 1243174.211 | EL19: 1275182.154 | EM19: 1303585.426 | EN19: 1328505.06 | EO19: 1351152.374 | EP19: 1370450.381 | EQ19: 1387345.875 | ER19: 1401910.812 | ES19: 1414676.402 | ET19: 1425497.721 | EU19: 1434856.511 | EV19: 1430352.125 | EW19: 1425295.907 | EX19: 1419762.74 | EY19: 1413996.027 | EZ19: 1407775.747 | FA19: 1401441.958
A20: Cheshire | B20: Cheshire East | D20: 640328.1973 | E20: 651958.2154 | F20: 679514.7456 | G20: 703557.1336 | H20: 728127.421 | I20: 751797.3601 | J20: 774855.8903 | K20: 799500.9528 | L20: 826529.077 | M20: 853615.6045 | N20: 877986.6387 | O20: 900371.1028 | P20: 921842.0015 | Q20: 946973.0524 | R20: 966737.9479 | S20: 1014521.24 | T20: 1054861.917 | U20: 1068114.396 | V20: 1079066.38 | W20: 1091081.178 | X20: 1100932.434 | Y20: 1107923.613 | Z20: 1113631.652 | AA20: 1118508.598 | AB20: 1121524.615 | AC20: 1123487.964 | AD20: 1125367.146 | AE20: 1127236.004 | AF20: 1128947.574 | AG20: 1130779.626 | AI20: 640497.0316 | AJ20: 643555.1145 | AK20: 660158.9944 | AL20: 673969.6247 | AM20: 685647.9266 | AN20: 699168.4993 | AO20: 715451.4066 | AP20: 733250.0994 | AQ20: 752294.8233 | AR20: 772127.0498 | AS20: 784061.8832 | AT20: 795252.1749 | AU20: 805673.8167 | AV20: 815581.8286 | AW20: 825814.5533 | AX20: 835554.493 | AY20: 843731.3368 | AZ20: 851090.3421 | BA20: 858245.2321 | BB20: 864020.5544 | BC20: 869562.4724 | BD20: 874613.9912 | BE20: 879055.3867 | BF20: 883361.4155 | BG20: 887430.7254 | BH20: 891125.7337 | BI20: 894521.6838 | BJ20: 897635.7088 | BK20: 900310.9482 | BL20: 901912.3281 | BN20: 640328.1973 | BO20: 651947.5461 | BP20: 679528.9346 | BQ20: 703563.6587 | BR20: 728124.7691 | BS20: 751829.9926 | BT20: 774970.6008 | BU20: 799624.5869 | BV20: 826572.232 | BW20: 851403.6235 | BX20: 873555.4929 | BY20: 894008.6732 | BZ20: 913686.7798 | CA20: 937526.159 | CB20: 955173.5555 | CC20: 1000745.171 | CD20: 1039550.484 | CE20: 1051289.612 | CF20: 1060634.19 | CG20: 1070986.817 | CH20: 1079525.446 | CI20: 1085507.662 | CJ20: 1090548.114 | CK20: 1095098.642 | CL20: 1098098.528 | CM20: 1099845.93 | CN20: 1101267.577 | CO20: 1102413.664 | CP20: 1103084.325 | CQ20: 1103528.46 | CS20: 640322.6884 | CT20: 651689.6165 | CU20: 679058.7384 | CV20: 703395.0059 | CW20: 728356.5151 | CX20: 753345.9364 | CY20: 780377.8897 | CZ20: 810956.4496 | DA20: 840241.6375 | DB20: 868134.7483 | DC20: 894374.347 | DD20: 916720.6198 | DE20: 970465.8163 | DF20: 995491.7468 | DG20: 1206248.571 | DH20: 1273111.86 | DI20: 1305739.144 | DJ20: 1335553.316 | DK20: 1363110.872 | DL20: 1388110.103 | DM20: 1411396.184 | DN20: 1432087.479 | DO20: 1450730.814 | DP20: 1468877.637 | DQ20: 1485755.256 | DR20: 1502104.671 | DS20: 1518125.888 | DT20: 1534033.74 | DU20: 1545617.581 | DV20: 1542198.952 | DX20: 640322.6884 | DY20: 649921.9876 | DZ20: 684544.1076 | EA20: 709414.7516 | EB20: 733057.9931 | EC20: 759417.5146 | ED20: 786460.0166 | EE20: 814538.193 | EF20: 846774.499 | EG20: 924360.6179 | EH20: 976542.7972 | EI20: 1068998.649 | EJ20: 1105689.958 | EK20: 1139211.392 | EL20: 1196699.689 | EM20: 1227093.702 | EN20: 1254289.192 | EO20: 1279198.209 | EP20: 1301276.443 | EQ20: 1320872.085 | ER20: 1338718.897 | ES20: 1355245.193 | ET20: 1369370.955 | EU20: 1381177.04 | EV20: 1377448.271 | EW20: 1373048.915 | EX20: 1368293.58 | EY20: 1363437.114 | EZ20: 1358240.639 | FA20: 1352947.017
A21: Lancashire | B21: Chorley | D21: 409091.1522 | E21: 420097.6814 | F21: 430010.6003 | G21: 442786.4017 | H21: 457287.1243 | I21: 472257.6427 | J21: 487247.329 | K21: 502653.7672 | L21: 518560.3366 | M21: 537479.0931 | N21: 554773.7105 | O21: 577653.1134 | P21: 593033.7498 | Q21: 609761.1349 | R21: 623639.133 | S21: 637060.1369 | T21: 648081.996 | U21: 657927.4387 | V21: 666653.6629 | W21: 679670.5374 | X21: 686204.8009 | Y21: 691767.2074 | Z21: 696302.4432 | AA21: 700327.5094 | AB21: 702267.4207 | AC21: 704121.1086 | AD21: 706023.4897 | AE21: 708017.3622 | AF21: 710073.8751 | AG21: 713277.2988 | AI21: 409250.0205 | AJ21: 412876.716 | AK21: 418148.7451 | AL21: 423979.6278 | AM21: 430239.1177 | AN21: 438015.3329 | AO21: 447657.6288 | AP21: 458694.925 | AQ21: 471362.9646 | AR21: 485327.1294 | AS21: 493778.9329 | AT21: 501793.0123 | AU21: 509355.9467 | AV21: 516600.1628 | AW21: 524012.3123 | AX21: 531039.3346 | AY21: 537062.2332 | AZ21: 542471.7546 | BA21: 547652.7011 | BB21: 551887.1205 | BC21: 555952.2633 | BD21: 559702.8856 | BE21: 563050.2988 | BF21: 566355.425 | BG21: 569527.1332 | BH21: 572400.8206 | BI21: 575026.3646 | BJ21: 577408.4892 | BK21: 579460.1833 | BL21: 581245.3881 | BN21: 409091.1522 | BO21: 420085.4606 | BP21: 430022.732 | BQ21: 442789.4392 | BR21: 457279.5409 | BS21: 472292.687 | BT21: 487380.8031 | BU21: 502799.0883 | BV21: 518625.2164 | BW21: 535881.4505 | BX21: 551485.3221 | BY21: 572839.6383 | BZ21: 586758.5791 | CA21: 602363.3423 | CB21: 614483.7091 | CC21: 625969.4345 | CD21: 635467.3779 | CE21: 643723.1361 | CF21: 650717.3548 | CG21: 661899.7764 | CH21: 666977.277 | CI21: 671421.4967 | CJ21: 675204.9761 | CK21: 678841.9316 | CL21: 680729.2549 | CM21: 682268.8481 | CN21: 683548.9864 | CO21: 684582.3945 | CP21: 685290.6811 | CQ21: 686728.8046 | CS21: 409085.9684 | CT21: 419981.5086 | CU21: 429821.5746 | CV21: 442737.29 | CW21: 457586.8244 | CX21: 473852.4814 | CY21: 492302.5948 | CZ21: 513029.8086 | DA21: 536427.8051 | DB21: 571047.6037 | DC21: 589047.4981 | DD21: 613817.8527 | DE21: 635683.2754 | DF21: 653385.7604 | DG21: 685832.3191 | DH21: 719696.1113 | DI21: 745536.2784 | DJ21: 769519.1243 | DK21: 791727.2645 | DL21: 814637.0955 | DM21: 833278.6898 | DN21: 849849.922 | DO21: 864751.8544 | DP21: 879305.6745 | DQ21: 892787.0456 | DR21: 905948.6795 | DS21: 918833.4878 | DT21: 931589.8553 | DU21: 940949.5771 | DV21: 939567.9114 | DX21: 409085.9684 | DY21: 418642.0749 | DZ21: 433076.0335 | EA21: 446707.6153 | EB21: 461548.8672 | EC21: 476770.3007 | ED21: 494912.9035 | EE21: 516402.1947 | EF21: 536949.0365 | EG21: 575959.8516 | EH21: 620859.3262 | EI21: 660499.4736 | EJ21: 688721.2007 | EK21: 715407.1051 | EL21: 743437.0751 | EM21: 768080.9956 | EN21: 790066.3496 | EO21: 810047.2489 | EP21: 827798.604 | EQ21: 843647.7476 | ER21: 857890.0586 | ES21: 870598.0076 | ET21: 881785.5285 | EU21: 891457.1863 | EV21: 889085.8403 | EW21: 886189.4797 | EX21: 882953.0088 | EY21: 879505.3847 | EZ21: 875815.4816 | FA21: 872929.7305
A22: Cumberland** | B22: Copeland | D22: 519175.2587 | E22: 528553.9465 | F22: 538691.1749 | G22: 552976.2593 | H22: 567365.1596 | I22: 583371.1154 | J22: 608210.6514 | K22: 628260.3911 | L22: 645655.8693 | M22: 665164.2158 | N22: 681373.177 | O22: 698900.4513 | P22: 713166.3978 | Q22: 729691.0381 | R22: 752582.7547 | S22: 780572.5351 | T22: 791508.11 | U22: 801881.9827 | V22: 812698.4354 | W22: 823954.9442 | X22: 829048.0822 | Y22: 838913.1328 | Z22: 842260.1935 | AA22: 845251.5348 | AB22: 849519.194 | AC22: 850197.4561 | AD22: 850551.3339 | AE22: 851415.9646 | AF22: 852075.8151 | AG22: 853028.0569 | AI22: 519347.9509 | AJ22: 522027.3285 | AK22: 526937.6996 | AL22: 532720.7228 | AM22: 538062.1101 | AN22: 543891.5544 | AO22: 551623.6027 | AP22: 560907.3407 | AQ22: 571689.246 | AR22: 583875.798 | AS22: 590514.3044 | AT22: 596515.613 | AU22: 602218.8059 | AV22: 607927.1978 | AW22: 614514.5495 | AX22: 620813.0018 | AY22: 626194.1481 | AZ22: 630983.3072 | BA22: 635735.7903 | BB22: 639744.0756 | BC22: 643634.929 | BD22: 647287.2033 | BE22: 650582.0921 | BF22: 653827.8111 | BG22: 656977.9363 | BH22: 659871.5725 | BI22: 662548.2621 | BJ22: 665006.5942 | BK22: 666916.5694 | BL22: 667455.9403 | BN22: 519175.2587 | BO22: 528541.6025 | BP22: 538710.0379 | BQ22: 552986.4429 | BR22: 567364.7875 | BS22: 583410.2576 | BT22: 608342.1241 | BU22: 628401.2221 | BV22: 645696.6212 | BW22: 663888.1448 | BX22: 678726.2894 | BY22: 694988.0666 | BZ22: 708018.8021 | CA22: 723562.6203 | CB22: 744961.9685 | CC22: 771258.6663 | CD22: 780780.748 | CE22: 789645.6775 | CF22: 798801.9168 | CG22: 808283.5171 | CH22: 811956.137 | CI22: 820721.7026 | CJ22: 823312.5085 | CK22: 825887.4649 | CL22: 830053.7224 | CM22: 830380.6178 | CN22: 830088.7963 | CO22: 829984.2373 | CP22: 829307.2655 | CQ22: 828528.6409 | CS22: 519169.6239 | CT22: 528679.5955 | CU22: 538947.8673 | CV22: 553555.6603 | CW22: 568789.5973 | CX22: 586642.9588 | CY22: 614112.9248 | CZ22: 637286.961 | DA22: 657145.132 | DB22: 681435.5482 | DC22: 698298.7598 | DD22: 715615.8728 | DE22: 744629.9807 | DF22: 765790.3267 | DG22: 838143.7539 | DH22: 869831.2911 | DI22: 891735.0962 | DJ22: 911158.0336 | DK22: 928177.058 | DL22: 946355.2926 | DM22: 959759.7004 | DN22: 971599.6762 | DO22: 981690.5666 | DP22: 991696.816 | DQ22: 1000530.822 | DR22: 1009383.597 | DS22: 1017961.62 | DT22: 1026710.535 | DU22: 1032504.222 | DV22: 1029123.879 | DX22: 519169.6239 | DY22: 527488.1634 | DZ22: 540799.1236 | EA22: 555994.1233 | EB22: 572114.9695 | EC22: 602939.4351 | ED22: 646970.2151 | EE22: 677639.9619 | EF22: 696276.2875 | EG22: 728288.1779 | EH22: 785262.5382 | EI22: 808565.0378 | EJ22: 834066.0376 | EK22: 855213.5991 | EL22: 877232.7398 | EM22: 896772.1292 | EN22: 913915.0281 | EO22: 929494.7353 | EP22: 942770.3634 | EQ22: 954393.2366 | ER22: 964412.856 | ES22: 973194.6548 | ET22: 980638.9369 | EU22: 987077.1044 | EV22: 983978.4143 | EW22: 980500.1034 | EX22: 976693.6864 | EY22: 972726.606 | EZ22: 968447.5051 | FA22: 964090.318
A23: North Yorkshire | B23: Craven | D23: 97845.40654 | E23: 99746.51571 | F23: 101661.5386 | G23: 104249.8635 | H23: 107259.1229 | I23: 110119.9217 | J23: 113873.3305 | K23: 117263.907 | L23: 122176.0669 | M23: 125799.8618 | N23: 129048.1843 | O23: 133575.1485 | P23: 136397.4446 | Q23: 139326.1814 | R23: 143296.6945 | S23: 148353.718 | T23: 150416.7904 | U23: 152337.045 | V23: 154187.2875 | W23: 158709.2888 | X23: 159785.5661 | Y23: 161241.4825 | Z23: 161959.492 | AA23: 162618.9292 | AB23: 163167.4245 | AC23: 163369.0894 | AD23: 163545.8122 | AE23: 163779.6668 | AF23: 164015.4279 | AG23: 164305.4954 | AI23: 97880.06486 | AJ23: 98341.29498 | AK23: 99218.7519 | AL23: 100254.2647 | AM23: 101215.6312 | AN23: 102361.4012 | AO23: 103912.7236 | AP23: 105813.8733 | AQ23: 108042.4828 | AR23: 110569.6112 | AS23: 111968.2121 | AT23: 113257.4275 | AU23: 114477.1185 | AV23: 115662.6197 | AW23: 116949.0497 | AX23: 118168.8573 | AY23: 119215.2976 | AZ23: 120150.9787 | BA23: 121058.9866 | BB23: 121818.5377 | BC23: 122549.9478 | BD23: 123232.0862 | BE23: 123844.3131 | BF23: 124443.883 | BG23: 125022.9989 | BH23: 125547.9469 | BI23: 126027.541 | BJ23: 126461.6297 | BK23: 126806.649 | BL23: 126942.0511 | BN23: 97845.40654 | BO23: 99744.159 | BP23: 101663.3232 | BQ23: 104249.8518 | BR23: 107257.0485 | BS23: 110126.3656 | BT23: 113899.3512 | BU23: 117292.4312 | BV23: 122190.6592 | BW23: 125530.8163 | BX23: 128485.7628 | BY23: 132743.8395 | BZ23: 135304.9409 | CA23: 138028.4836 | CB23: 141682.6784 | CC23: 146386.1056 | CD23: 148161.3793 | CE23: 149777.7778 | CF23: 151295.5486 | CG23: 155464.041 | CH23: 156260.0285 | CI23: 157501.6915 | CJ23: 158076.2286 | CK23: 158662.2566 | CL23: 159202.1362 | CM23: 159342.2023 | CN23: 159395.243 | CO23: 159437.3252 | CP23: 159403.9276 | CQ23: 159341.8551 | CS23: 97844.27566 | CT23: 99740.96517 | CU23: 101650.1057 | CV23: 104269.7609 | CW23: 107385.1551 | CX23: 110522.9255 | CY23: 114718.9373 | CZ23: 118653.3583 | DA23: 123911.2644 | DB23: 128178.5026 | DC23: 131481.5135 | DD23: 135660.9618 | DE23: 141149.3485 | DF23: 144965.2827 | DG23: 158581.4945 | DH23: 164865.2982 | DI23: 169740.2328 | DJ23: 174246.4876 | DK23: 178268.9455 | DL23: 182855.488 | DM23: 186139.1098 | DN23: 189074.1282 | DO23: 191668.414 | DP23: 194233.6292 | DQ23: 196524.8058 | DR23: 198790.7219 | DS23: 200976.2171 | DT23: 203131.5978 | DU23: 204613.3843 | DV23: 203889.4178 | DX23: 97844.27566 | DY23: 99476.56978 | DZ23: 102075.173 | EA23: 104793.002 | EB23: 107965.7642 | EC23: 112310.2058 | ED23: 119853.0933 | EE23: 124374.0006 | EF23: 128426.5152 | EG23: 134901.5101 | EH23: 143896.286 | EI23: 152076.0636 | EJ23: 158445.2426 | EK23: 163353.7977 | EL23: 169173.0723 | EM23: 173644.0538 | EN23: 177608.3502 | EO23: 181238.3767 | EP23: 184446.664 | EQ23: 187291.39 | ER23: 189829.3459 | ES23: 192096.9058 | ET23: 194066.226 | EU23: 195672.5627 | EV23: 194969.9305 | EW23: 194194.6291 | EX23: 193353.773 | EY23: 192476.1896 | EZ23: 191541.6182 | FA23: 190587.6049
A24: Derbyshire | B24: Derbyshire Dales | D24: 62.45190803 | E24: 63.38820219 | F24: 65.7733813 | G24: 69.3261642 | H24: 73.47621866 | I24: 77.36934609 | J24: 81.36514871 | K24: 83.47880125 | L24: 85.69787189 | M24: 88.95377249 | N24: 92.42768456 | O24: 94.32659569 | P24: 96.13052322 | Q24: 97.78849548 | R24: 100.6699405 | S24: 102.1883297 | T24: 103.6870243 | U24: 104.8311737 | V24: 105.8529001 | W24: 106.9410509 | X24: 107.6994561 | Y24: 108.3414271 | Z24: 108.8584231 | AA24: 109.3033311 | AB24: 109.5346611 | AC24: 109.7544614 | AD24: 109.9519971 | AE24: 110.1614192 | AF24: 110.3772463 | AG24: 110.6162589 | AI24: 62.47416933 | AJ24: 62.4581087 | AK24: 64.03594515 | AL24: 66.49425823 | AM24: 69.34823289 | AN24: 72.2074876 | AO24: 75.34841339 | AP24: 76.81451918 | AQ24: 78.50750077 | AR24: 80.20519909 | AS24: 81.17948747 | AT24: 82.09663168 | AU24: 82.95891599 | AV24: 83.77799 | AW24: 84.604165 | AX24: 85.39004038 | AY24: 86.06288539 | AZ24: 86.66200106 | BA24: 87.22529162 | BB24: 87.68129055 | BC24: 88.11841879 | BD24: 88.51584144 | BE24: 88.86249938 | BF24: 89.20390796 | BG24: 89.52756746 | BH24: 89.81482889 | BI24: 90.0716087 | BJ24: 90.29852418 | BK24: 90.48841552 | BL24: 90.60283674 | BN24: 62.45190803 | BO24: 63.38677824 | BP24: 65.77504673 | BQ24: 69.32678928 | BR24: 73.4756128 | BS24: 77.37357209 | BT24: 81.38057343 | BU24: 83.49550698 | BV24: 85.70448722 | BW24: 88.76706951 | BX24: 92.04458798 | BY24: 93.76655269 | BZ24: 95.40114184 | CA24: 96.92930705 | CB24: 99.60744192 | CC24: 100.9019799 | CD24: 102.2245446 | CE24: 103.1849411 | CF24: 104.006371 | CG24: 104.8822677 | CH24: 105.4717409 | CI24: 105.9836146 | CJ24: 106.4126003 | CK24: 106.8112928 | CL24: 107.0349803 | CM24: 107.217494 | CN24: 107.3427474 | CO24: 107.4414504 | CP24: 107.5024332 | CQ24: 107.5391159 | CS24: 62.45118166 | CT24: 63.34869349 | CU24: 65.69758961 | CV24: 69.23893762 | CW24: 73.40024495 | CX24: 77.5297843 | CY24: 81.89100388 | CZ24: 84.29312177 | DA24: 86.69802055 | DB24: 89.65317282 | DC24: 92.82638621 | DD24: 94.65304121 | DE24: 96.46111181 | DF24: 99.47622127 | DG24: 104.1485418 | DH24: 107.8156091 | DI24: 111.1963463 | DJ24: 114.3645524 | DK24: 117.2992289 | DL24: 120.1711965 | DM24: 122.6631669 | DN24: 124.9007012 | DO24: 126.9254695 | DP24: 128.8980238 | DQ24: 130.7312704 | DR24: 132.5265475 | DS24: 134.2767427 | DT24: 136.0059111 | DU24: 137.2529283 | DV24: 136.87655 | DX24: 62.45118166 | DY24: 63.16998985 | DZ24: 66.00434586 | EA24: 69.61854354 | EB24: 73.81308518 | EC24: 77.77200215 | ED24: 82.06754644 | EE24: 85.27604662 | EF24: 87.73808155 | EG24: 92.45217511 | EH24: 97.52419865 | EI24: 102.1570214 | EJ24: 105.8330643 | EK24: 109.3084945 | EL24: 112.9876293 | EM24: 116.144454 | EN24: 119.0115138 | EO24: 121.6451361 | EP24: 124.0312786 | EQ24: 126.1971133 | ER24: 128.1529605 | ES24: 129.9077615 | ET24: 131.4678944 | EU24: 132.7776259 | EV24: 132.3871476 | EW24: 131.9458659 | EX24: 131.4578915 | EY24: 130.940524 | EZ24: 130.389796 | FA24: 129.820661
A25: Westmorland and Furness** | B25: Eden | D25: 383269.6921 | E25: 390193.3017 | F25: 397676.8871 | G25: 408222.5358 | H25: 418844.8243 | I25: 430660.8684 | J25: 448998.1084 | K25: 463799.3868 | L25: 476641.2153 | M25: 491042.8221 | N25: 503008.7304 | O25: 515947.8544 | P25: 526479.3749 | Q25: 538678.3265 | R25: 555577.6317 | S25: 576240.4702 | T25: 584313.4174 | U25: 591971.7002 | V25: 599956.708 | W25: 608266.5776 | X25: 612026.4744 | Y25: 619309.1307 | Z25: 621780.0244 | AA25: 623988.3162 | AB25: 627138.8216 | AC25: 627639.5336 | AD25: 627900.7761 | AE25: 628539.0706 | AF25: 629026.1907 | AG25: 629729.1623 | AI25: 383397.1783 | AJ25: 385375.1698 | AK25: 389000.143 | AL25: 393269.3324 | AM25: 397212.4939 | AN25: 401515.9527 | AO25: 407223.9669 | AP25: 414077.4819 | AQ25: 422036.9858 | AR25: 431033.4393 | AS25: 435934.1703 | AT25: 440364.5041 | AU25: 444574.7605 | AV25: 448788.855 | AW25: 453651.8223 | AX25: 458301.5159 | AY25: 462274.0285 | AZ25: 465809.5197 | BA25: 469317.9355 | BB25: 472276.9639 | BC25: 475149.3006 | BD25: 477845.5116 | BE25: 480277.8907 | BF25: 482673.9712 | BG25: 484999.4817 | BH25: 487135.6448 | BI25: 489111.6519 | BJ25: 490926.4615 | BK25: 492336.4585 | BL25: 492734.6372 | BN25: 383269.6921 | BO25: 390184.189 | BP25: 397690.8123 | BQ25: 408230.0536 | BR25: 418844.5497 | BS25: 430689.7643 | BT25: 449095.1653 | BU25: 463903.3523 | BV25: 476671.2994 | BW25: 490100.7908 | BX25: 501054.7241 | BY25: 513059.6226 | BZ25: 522679.2759 | CA25: 534154.1571 | CB25: 549951.7543 | CC25: 569364.7118 | CD25: 576394.1788 | CE25: 582938.5176 | CF25: 589697.9095 | CG25: 596697.4919 | CH25: 599408.7226 | CI25: 605879.7082 | CJ25: 607792.3136 | CK25: 609693.2184 | CL25: 612768.8662 | CM25: 613010.1895 | CN25: 612794.7587 | CO25: 612717.5703 | CP25: 612217.8108 | CQ25: 611643.0084 | CS25: 383265.5324 | CT25: 390286.0593 | CU25: 397866.3846 | CV25: 408650.2659 | CW25: 419896.3841 | CX25: 433076.2347 | CY25: 453355.3316 | CZ25: 470463.0531 | DA25: 485122.9103 | DB25: 503054.7746 | DC25: 515503.6689 | DD25: 528287.6459 | DE25: 549706.6716 | DF25: 565327.8306 | DG25: 618741.1536 | DH25: 642133.7796 | DI25: 658303.7809 | DJ25: 672642.3364 | DK25: 685206.256 | DL25: 698625.9371 | DM25: 708521.4457 | DN25: 717262.0469 | DO25: 724711.4243 | DP25: 732098.3174 | DQ25: 738619.8279 | DR25: 745155.1937 | DS25: 751487.7299 | DT25: 757946.4239 | DU25: 762223.4858 | DV25: 759728.0216 | DX25: 383265.5324 | DY25: 389406.5108 | DZ25: 399233.0338 | EA25: 410450.4074 | EB25: 422351.2668 | EC25: 445106.7492 | ED25: 477611.5021 | EE25: 500252.7667 | EF25: 514010.6233 | EG25: 537642.6959 | EH25: 579702.7616 | EI25: 596905.3184 | EJ25: 615730.8694 | EK25: 631342.5906 | EL25: 647597.736 | EM25: 662022.2595 | EN25: 674677.6268 | EO25: 686179.0023 | EP25: 695979.4421 | EQ25: 704559.7721 | ER25: 711956.5352 | ES25: 718439.5047 | ET25: 723935.0819 | EU25: 728687.9172 | EV25: 726400.3775 | EW25: 723832.5911 | EX25: 721022.5877 | EY25: 718093.9779 | EZ25: 714935.0261 | FA25: 711718.4287
A26: Lancashire | B26: Fylde | D26: 336882.8393 | E26: 345907.3406 | F26: 354328.5816 | G26: 364841.0733 | H26: 376729.5988 | I26: 388821.6878 | J26: 400899.7846 | K26: 413436.6268 | L26: 426890.9548 | M26: 442268.8913 | N26: 456404.2229 | O26: 474987.3736 | P26: 487686.6951 | Q26: 501300.5878 | R26: 512688.1373 | S26: 523636.0153 | T26: 532673.9564 | U26: 540907.2344 | V26: 548048.946 | W26: 558619.9711 | X26: 563953.6999 | Y26: 568493.6659 | Z26: 572388.002 | AA26: 575661.6006 | AB26: 577234.6492 | AC26: 578742.7407 | AD26: 580291.3673 | AE26: 581915.5166 | AF26: 583594.7991 | AG26: 586201.3507 | AI26: 337012.5344 | AJ26: 339945.8746 | AK26: 344723.1874 | AL26: 349492.6144 | AM26: 354593.5982 | AN26: 360881.0451 | AO26: 368702.296 | AP26: 377674.2653 | AQ26: 388238.9572 | AR26: 399611.6886 | AS26: 406492.3999 | AT26: 413018.7928 | AU26: 419178.6798 | AV26: 425080.1506 | AW26: 431121.7763 | AX26: 436849.1977 | AY26: 441754.3741 | AZ26: 446157.4407 | BA26: 450372.5597 | BB26: 453815.7905 | BC26: 457121.5501 | BD26: 460171.8397 | BE26: 462895.3036 | BF26: 465581.1368 | BG26: 468159.2773 | BH26: 470493.2677 | BI26: 472623.6363 | BJ26: 474554.1616 | BK26: 476213.71 | BL26: 477649.3475 | BN26: 336882.8393 | BO26: 345897.2151 | BP26: 354339.2127 | BQ26: 364844.2137 | BR26: 376723.9544 | BS26: 388851.0521 | BT26: 401010.0818 | BU26: 413556.5113 | BV26: 426942.5389 | BW26: 440963.7128 | BX26: 453718.3154 | BY26: 471054.934 | BZ26: 482558.6859 | CA26: 495252.8566 | CB26: 505202.6081 | CC26: 514564.3808 | CD26: 522348.6716 | CE26: 529271.9857 | CF26: 534985.2637 | CG26: 544042.1606 | CH26: 548172.4723 | CI26: 551787.7708 | CJ26: 555058.9311 | CK26: 558008.5465 | CL26: 559533.7771 | CM26: 560778.8259 | CN26: 561810.7765 | CO26: 562639.8142 | CP26: 563204.938 | CQ26: 564354.2293 | CS26: 336878.6075 | CT26: 345810.2198 | CU26: 354170.7695 | CV26: 364794.2316 | CW26: 376968.3361 | CX26: 390113.3463 | CY26: 404986.6177 | CZ26: 421822.0598 | DA26: 441385.8419 | DB26: 469469.0246 | DC26: 484190.5556 | DD26: 504318.9025 | DE26: 522415.5554 | DF26: 536891.4161 | DG26: 563655.0668 | DH26: 591494.6139 | DI26: 612625.8703 | DJ26: 632222.8349 | DK26: 650365.9742 | DL26: 669077.858 | DM26: 684303.8277 | DN26: 697841.8927 | DO26: 710016.3118 | DP26: 721897.278 | DQ26: 732900.6552 | DR26: 743641.9443 | DS26: 754149.4792 | DT26: 764542.9098 | DU26: 772160.6111 | DV26: 771002.5929 | DX26: 336878.6075 | DY26: 344718.7778 | DZ26: 356822.78 | EA26: 368030.1989 | EB26: 380206.7139 | EC26: 392694.3927 | ED26: 407608.875 | EE26: 425287.0262 | EF26: 442594.5245 | EG26: 474537.8062 | EH26: 511020.973 | EI26: 543348.4652 | EJ26: 566398.0425 | EK26: 588195.5454 | EL26: 611085.8785 | EM26: 631222.7845 | EN26: 649186.7434 | EO26: 665514.1305 | EP26: 680017.5859 | EQ26: 692983.2179 | ER26: 704616.1006 | ES26: 714994.376 | ET26: 724129.4349 | EU26: 732009.4263 | EV26: 730061.7861 | EW26: 727690.1269 | EX26: 725036.9917 | EY26: 722207.6751 | EZ26: 719177.3526 | FA26: 716786.1561
A27: Derbyshire | B27: High Peak | D27: 410064.6573 | E27: 416249.6455 | F27: 431949.3476 | G27: 455261.8946 | H27: 482488.8289 | I27: 508029.8444 | J27: 534229.6205 | K27: 548124.0061 | L27: 562697.2808 | M27: 584067.7203 | N27: 606852.6624 | O27: 619315.7962 | P27: 631171.9696 | Q27: 642070.0813 | R27: 660980.7437 | S27: 670954.7025 | T27: 680786.8663 | U27: 688305.0613 | V27: 695010.0608 | W27: 702148.9153 | X27: 707125.5647 | Y27: 711338.1203 | Z27: 714730.356 | AA27: 717649.1805 | AB27: 719178.463 | AC27: 720619.159 | AD27: 721913.9969 | AE27: 723288.3331 | AF27: 724702.3004 | AG27: 726268.2146 | AI27: 410210.7403 | AJ27: 410131.9559 | AK27: 420510.265 | AL27: 436635.0058 | AM27: 455343.661 | AN27: 474088.078 | AO27: 494681.2149 | AP27: 504307.2302 | AQ27: 515426.6673 | AR27: 526577.3422 | AS27: 532973.7007 | AT27: 538994.8259 | AU27: 544655.6473 | AV27: 550032.7224 | AW27: 555456.3573 | AX27: 560615.3396 | AY27: 565032.3578 | AZ27: 568965.4055 | BA27: 572663.2283 | BB27: 575656.7568 | BC27: 578526.3399 | BD27: 581135.2674 | BE27: 583410.814 | BF27: 585651.6526 | BG27: 587775.8957 | BH27: 589661.2437 | BI27: 591346.5516 | BJ27: 592835.8865 | BK27: 594082.2599 | BL27: 594833.3203 | BN27: 410064.6573 | BO27: 416240.3022 | BP27: 431960.3217 | BQ27: 455266.046 | BR27: 482484.9047 | BS27: 508057.5996 | BT27: 534330.8065 | BU27: 548233.5792 | BV27: 562740.5136 | BW27: 582841.68 | BX27: 604337.282 | BY27: 615638.859 | BZ27: 626383.5163 | CA27: 636429.7209 | CB27: 654005.9724 | CC27: 662510.8322 | CD27: 671187.3373 | CE27: 677499.9517 | CF27: 682890.8663 | CG27: 688637.2175 | CH27: 692505.5348 | CI27: 695864.4804 | CJ27: 698679.1849 | CK27: 701294.6451 | CL27: 702773.5911 | CM27: 703969.6074 | CN27: 704790.3221 | CO27: 705438.526 | CP27: 705837.029 | CQ27: 706076.1043 | CS27: 410059.8908 | CT27: 415990.0489 | CU27: 431451.2934 | CV27: 454688.7152 | CW27: 481988.7213 | CX27: 509077.627 | CY27: 537672.456 | CZ27: 553473.7089 | DA27: 569265.8097 | DB27: 588670.0049 | DC27: 609486.8882 | DD27: 621477.0914 | DE27: 633392.107 | DF27: 653162.1038 | DG27: 683860.2206 | DH27: 707940.0963 | DI27: 730131.6388 | DJ27: 750928.0112 | DK27: 770190.7637 | DL27: 789038.7149 | DM27: 805395.5162 | DN27: 820082.223 | DO27: 833372.426 | DP27: 846319.6552 | DQ27: 858352.7046 | DR27: 870135.9645 | DS27: 881623.3026 | DT27: 892973.3641 | DU27: 901157.5279 | DV27: 898685.8983 | DX27: 410059.8908 | DY27: 414816.7063 | DZ27: 433466.1334 | EA27: 457181.2252 | EB27: 484685.8259 | EC27: 510714.6302 | ED27: 538905.8962 | EE27: 559959.4958 | EF27: 576124.4654 | EG27: 607109.7212 | EH27: 640405.2175 | EI27: 670792.9889 | EJ27: 694920.0312 | EK27: 717730.5209 | EL27: 741874.9495 | EM27: 762594.8015 | EN27: 781414.6883 | EO27: 798702.5845 | EP27: 814364.9687 | EQ27: 828582.205 | ER27: 841420.0976 | ES27: 852938.8536 | ET27: 863179.6142 | EU27: 871775.5409 | EV27: 869210.626 | EW27: 866311.8917 | EX27: 863106.7505 | EY27: 859708.8431 | EZ27: 856091.9295 | FA27: 852354.4136
A28: Lancashire | B28: Hyndburn | D28: 393873.8554 | E28: 402738.5041 | F28: 412182.7935 | G28: 422339.1435 | H28: 435603.6577 | I28: 446337.0948 | J28: 457274.1519 | K28: 469108.5169 | L28: 495871.8518 | M28: 510138.2375 | N28: 523965.7661 | O28: 546453.9608 | P28: 558653.647 | Q28: 569527.9491 | R28: 583753.2342 | S28: 602234.0084 | T28: 610628.619 | U28: 618597.6492 | V28: 625259.9152 | W28: 651958.0484 | X28: 656818.7504 | Y28: 660922.0545 | Z28: 664621.2863 | AA28: 667670.4866 | AB28: 668782.3526 | AC28: 669953.4504 | AD28: 671183.2001 | AE28: 672470.6812 | AF28: 673941.3853 | AG28: 675626.3662 | AI28: 394020.0922 | AJ28: 395950.6061 | AK28: 400804.1812 | AL28: 404792.6592 | AM28: 408483.1424 | AN28: 413217.5519 | AO28: 419784.8293 | AP28: 427997.9971 | AQ28: 438351.4462 | AR28: 449414.0925 | AS28: 455658.161 | AT28: 461521.6202 | AU28: 467049.4125 | AV28: 472291.5085 | AW28: 477654.8618 | AX28: 482702.1748 | AY28: 487046.6213 | AZ28: 490945.5081 | BA28: 494638.9064 | BB28: 497696.3834 | BC28: 500618.7547 | BD28: 503325.5706 | BE28: 505743.0292 | BF28: 508092.248 | BG28: 510350.7682 | BH28: 512365.3511 | BI28: 514176.7188 | BJ28: 515784.9131 | BK28: 517100.2846 | BL28: 517796.5393 | BN28: 393873.8554 | BO28: 402728.6391 | BP28: 412184.1014 | BQ28: 422332.4597 | BR28: 435588.1781 | BS28: 446360.5768 | BT28: 457386.1927 | BU28: 469233.4694 | BV28: 495956.0421 | BW28: 508930.3742 | BX28: 521428.1395 | BY28: 542703.8635 | BZ28: 553729.7617 | CA28: 563688.4482 | CB28: 576489.6469 | CC28: 593393.3978 | CD28: 600525.3977 | CE28: 607170.9591 | CF28: 612390.2631 | CG28: 637559.6388 | CH28: 641216.3823 | CI28: 644407.895 | CJ28: 647509.004 | CK28: 650270.5225 | CL28: 651381.4615 | CM28: 652311.8705 | CN28: 653020.9911 | CO28: 653481.2328 | CP28: 653776.391 | CQ28: 653912.2606 | CS28: 393869.0839 | CT28: 402579.1152 | CU28: 411860.7525 | CV28: 422008.8454 | CW28: 435462.6937 | CX28: 446984.1465 | CY28: 459514.0433 | CZ28: 473463.1695 | DA28: 501279.6571 | DB28: 517028.5298 | DC28: 530858.6157 | DD28: 550932.8389 | DE28: 572849.2857 | DF28: 587367.363 | DG28: 639833.9181 | DH28: 666618.7127 | DI28: 689382.4271 | DJ28: 711023.2927 | DK28: 730644.9465 | DL28: 753669.1946 | DM28: 770096.7254 | DN28: 784894.1843 | DO28: 798282.186 | DP28: 811461.3136 | DQ28: 823347.7208 | DR28: 835001.167 | DS28: 846204.0601 | DT28: 857013.2026 | DU28: 864636.0366 | DV28: 861432.0054 | DX28: 393869.0839 | DY28: 401362.0912 | DZ28: 413934.5128 | EA28: 424434.1133 | EB28: 437670.3175 | EC28: 449117.0131 | ED28: 475382.1658 | EE28: 488538.1508 | EF28: 508176.1494 | EG28: 536234.8944 | EH28: 564350.4372 | EI28: 611656.4765 | EJ28: 643243.1292 | EK28: 666838.3362 | EL28: 696752.4579 | EM28: 718064.2653 | EN28: 737139.7609 | EO28: 754693.45 | EP28: 770598.7729 | EQ28: 784863.7416 | ER28: 797823.4244 | ES28: 809529.4893 | ET28: 819847.9938 | EU28: 827970.5257 | EV28: 824720.1546 | EW28: 821178.5755 | EX28: 817350.8442 | EY28: 813340.4327 | EZ28: 809105.0836 | FA28: 804765.9763
A29: Lancashire | B29: Lancaster | D29: 594284.5977 | E29: 612138.1858 | F29: 624623.0427 | G29: 641463.3438 | H29: 673281.4108 | I29: 691117.0933 | J29: 727757.8225 | K29: 747607.4778 | L29: 767858.8589 | M29: 811810.2196 | N29: 834717.7949 | O29: 855744.7259 | P29: 875937.7911 | Q29: 895025.5891 | R29: 914634.3904 | S29: 933880.6274 | T29: 1290122.013 | U29: 1309470.529 | V29: 1313607.51 | W29: 1314042.113 | X29: 1319529.16 | Y29: 1330486.861 | Z29: 1332261.329 | AA29: 1340413.974 | AB29: 1341073.343 | AC29: 1338398.318 | AD29: 1340759.398 | AE29: 1335432.31 | AF29: 1328443.803 | AG29: 1328602.902 | AI29: 594552.3619 | AJ29: 600057.6819 | AK29: 605964.33 | AL29: 613263.2519 | AM29: 620598.4504 | AN29: 629821.166 | AO29: 650955.942 | AP29: 665718.985 | AQ29: 682769.9502 | AR29: 701941.3272 | AS29: 713151.2416 | AT29: 723726.7347 | AU29: 733664.0925 | AV29: 743302.5493 | AW29: 753601.4556 | AX29: 763455.4855 | AY29: 771787.3636 | AZ29: 779151.096 | BA29: 786294.0679 | BB29: 792277.7082 | BC29: 798129.7584 | BD29: 803623.4999 | BE29: 808643.4331 | BF29: 813563.79 | BG29: 818397.6077 | BH29: 822806.091 | BI29: 826840.6511 | BJ29: 830501.7867 | BK29: 833585.5515 | BL29: 835430.8412 | BN29: 594284.5977 | BO29: 612115.1862 | BP29: 624663.7842 | BQ29: 641488.3425 | BR29: 673286.888 | BS29: 691193.1946 | BT29: 727999.952 | BU29: 747864.8358 | BV29: 767913.807 | BW29: 809853.7219 | BX29: 830652.1386 | BY29: 849706.6504 | BZ29: 867951.4414 | CA29: 885448.8058 | CB29: 902688.4576 | CC29: 919161.2097 | CD29: 1272951.016 | CE29: 1289619.93 | CF29: 1290774.422 | CG29: 1287987.379 | CH29: 1290877.003 | CI29: 1299809.582 | CJ29: 1300165.112 | CK29: 1307498.841 | CL29: 1307898.998 | CM29: 1304507.144 | CN29: 1305614.572 | CO29: 1298443.048 | CP29: 1288945.949 | CQ29: 1285886.777 | CS29: 594275.8608 | CT29: 612036.3935 | CU29: 624453.1819 | CV29: 641462.9148 | CW29: 673320.3648 | CX29: 693081.9048 | CY29: 733209.2454 | CZ29: 767259.7417 | DA29: 790524.7486 | DB29: 835949.5036 | DC29: 859399.7001 | DD29: 881526.6692 | DE29: 907680.1354 | DF29: 932800.5031 | DG29: 986037.4442 | DH29: 1040053.02 | DI29: 1078171.45 | DJ29: 1113718.035 | DK29: 1469108.341 | DL29: 1488709.606 | DM29: 1511727.367 | DN29: 1534345.391 | DO29: 1551115.329 | DP29: 1574312.482 | DQ29: 1591318.015 | DR29: 1604988.519 | DS29: 1622920.595 | DT29: 1632709.119 | DU29: 1635750.748 | DV29: 1627171.546 | DX29: 594275.8608 | DY29: 610094.0043 | DZ29: 627551.1244 | EA29: 645173.6285 | EB29: 663714.8265 | EC29: 713869.7688 | ED29: 778149.2014 | EE29: 808895.2145 | EF29: 831235.791 | EG29: 873834.7421 | EH29: 919204.6811 | EI29: 960520.6 | EJ29: 1001440.23 | EK29: 1390123.47 | EL29: 1423852.066 | EM29: 1456147.281 | EN29: 1484344.582 | EO29: 1510582.67 | EP29: 1528735.535 | EQ29: 1543390.966 | ER29: 1560603.569 | ES29: 1578017.641 | ET29: 1589789.904 | EU29: 1606283.953 | EV29: 1600485.065 | EW29: 1591044.595 | EX29: 1585820.953 | EY29: 1572420.488 | EZ29: 1556689.372 | FA29: 1546206.932
A30: Greater Manchester | B30: Manchester | D30: 2517896.142 | E30: 2591704.521 | F30: 2711423.94 | G30: 2812746.135 | H30: 2913629.878 | I30: 3006513.224 | J30: 3097165.24 | K30: 3179872.948 | L30: 3276295.24 | M30: 3366492.262 | N30: 3452796.973 | O30: 3526259.581 | P30: 3599583.811 | Q30: 3688691.045 | R30: 3761714.39 | S30: 3835959.977 | T30: 3899570.536 | U30: 3944566.919 | V30: 3981349.819 | W30: 4029905.965 | X30: 4066347.996 | Y30: 4090449.318 | Z30: 4110121.244 | AA30: 4126978.41 | AB30: 4139097.698 | AC30: 4147291.969 | AD30: 4155344.348 | AE30: 4163824.357 | AF30: 4172007.296 | AG30: 4180925.824 | AI30: 2518619.278 | AJ30: 2539129.99 | AK30: 2608426.141 | AL30: 2669178.093 | AM30: 2719101.508 | AN30: 2772465.515 | AO30: 2835971.431 | AP30: 2893581.085 | AQ30: 2955198.353 | AR30: 3017793.227 | AS30: 3053634.555 | AT30: 3087565.287 | AU30: 3119459.432 | AV30: 3149863.525 | AW30: 3180695.132 | AX30: 3210142 | AY30: 3235415.084 | AZ30: 3257963.688 | BA30: 3279196.723 | BB30: 3296408.272 | BC30: 3312972.379 | BD30: 3328153.762 | BE30: 3341520.838 | BF30: 3354749.553 | BG30: 3367349.261 | BH30: 3378617.441 | BI30: 3388753.731 | BJ30: 3397789.626 | BK30: 3405491.934 | BL30: 3410522.86 | BN30: 2517896.142 | BO30: 2591650.454 | BP30: 2711505.031 | BQ30: 2812789.093 | BR30: 2913626.565 | BS30: 3006683.799 | BT30: 3097741.868 | BU30: 3180491.169 | BV30: 3276479.468 | BW30: 3359808.31 | BX30: 3439155.037 | BY30: 3506348.467 | BZ30: 3573669.329 | CA30: 3658151.979 | CB30: 3723968.135 | CC30: 3790201.692 | CD30: 3847391.281 | CE30: 3885626.01 | CF30: 3914999.675 | CG30: 3955665.751 | CH30: 3985792.753 | CI30: 4004997.286 | CJ30: 4021306.254 | CK30: 4036324.582 | CL30: 4048015.516 | CM30: 4054702.753 | CN30: 4059973.733 | CO30: 4064270.896 | CP30: 4066666.62 | CQ30: 4068072.604 | CS30: 2517872.547 | CT30: 2589826.261 | CU30: 2707814.875 | CV30: 2808814.221 | CW30: 2911436.64 | CX30: 3011449.169 | CY30: 3118520.765 | CZ30: 3225488.195 | DA30: 3329290.48 | DB30: 3421427.972 | DC30: 3508351.915 | DD30: 3583333.85 | DE30: 3682766.068 | DF30: 3776274.993 | DG30: 3983264.553 | DH30: 4147465.018 | DI30: 4270354.923 | DJ30: 4380629.74 | DK30: 4482576.93 | DL30: 4579141.183 | DM30: 4666733.183 | DN30: 4745204.322 | DO30: 4816258.75 | DP30: 4885268.518 | DQ30: 4949497.016 | DR30: 5010853.124 | DS30: 5070506.016 | DT30: 5129480.685 | DU30: 5171973.659 | DV30: 5158119.892 | DX30: 2517872.547 | DY30: 2583436.435 | DZ30: 2720345.289 | EA30: 2823002.496 | EB30: 2924423.721 | EC30: 3035232.19 | ED30: 3151148.535 | EE30: 3258748.149 | EF30: 3373156.582 | EG30: 3570338.989 | EH30: 3768545.446 | EI30: 3915250.414 | EJ30: 4046808.068 | EK30: 4167050.388 | EL30: 4287646.576 | EM30: 4398157.739 | EN30: 4500109.197 | EO30: 4593635.83 | EP30: 4677654.129 | EQ30: 4753955.31 | ER30: 4823211.573 | ES30: 4885200.937 | ET30: 4940163.244 | EU30: 4986264.591 | EV30: 4973702.092 | EW30: 4958221.363 | EX30: 4941031.972 | EY30: 4922805.023 | EZ30: 4903218.96 | FA30: 4883026.976
A31: Northumberland | B31: Northumberland | D31: 31.90197194 | E31: 32.47826795 | F31: 33.10117432 | G31: 33.97895568 | H31: 34.86311625 | I31: 35.84664068 | J31: 37.37296569 | K31: 38.60497014 | L31: 39.67387713 | M31: 40.87261438 | N31: 41.86861296 | O31: 42.94561847 | P31: 43.82222385 | Q31: 44.83762011 | R31: 46.24425667 | S31: 47.96415601 | T31: 48.6361187 | U31: 49.27356625 | V31: 49.93820919 | W31: 50.62989243 | X31: 50.94285254 | Y31: 51.5490343 | Z31: 51.75470249 | AA31: 51.93851265 | AB31: 52.20074923 | AC31: 52.24242667 | AD31: 52.26417154 | AE31: 52.31730085 | AF31: 52.35784695 | AG31: 52.41635974 | AI31: 31.91258342 | AJ31: 32.07722422 | AK31: 32.37895377 | AL31: 32.73430554 | AM31: 33.06251992 | AN31: 33.42072414 | AO31: 33.89583844 | AP31: 34.46630004 | AQ31: 35.12882013 | AR31: 35.87765212 | AS31: 36.28557111 | AT31: 36.65433594 | AU31: 37.00478234 | AV31: 37.3555482 | AW31: 37.76032386 | AX31: 38.14734741 | AY31: 38.47800488 | AZ31: 38.77228627 | BA31: 39.06431402 | BB31: 39.31061275 | BC31: 39.54969559 | BD31: 39.77411836 | BE31: 39.97658073 | BF31: 40.17602173 | BG31: 40.36958875 | BH31: 40.54739518 | BI31: 40.71187081 | BJ31: 40.86292894 | BK31: 40.98029196 | BL31: 41.0134349 | BN31: 31.90197194 | BO31: 32.47750945 | BP31: 33.10233341 | BQ31: 33.97958143 | BR31: 34.86309339 | BS31: 35.84904587 | BT31: 37.38104435 | BU31: 38.61362385 | BV31: 39.67638122 | BW31: 40.79420313 | BX31: 41.7059686 | BY31: 42.70521259 | BZ31: 43.50591746 | CA31: 44.46104474 | CB31: 45.77597913 | CC31: 47.39184295 | CD31: 47.97695016 | CE31: 48.52167706 | CF31: 49.0843042 | CG31: 49.66692392 | CH31: 49.89259688 | CI31: 50.43121813 | CJ31: 50.59041643 | CK31: 50.74864082 | CL31: 51.00464653 | CM31: 51.0247334 | CN31: 51.00680173 | CO31: 51.00037685 | CP31: 50.95877869 | CQ31: 50.91093423 | CS31: 31.90162569 | CT31: 32.48598876 | CU31: 33.1169474 | CV31: 34.01455837 | CW31: 34.95064424 | CX31: 36.04768696 | CY31: 37.73564507 | CZ31: 39.15962943 | DA31: 40.3798625 | DB31: 41.87244552 | DC31: 42.90864609 | DD31: 43.97273774 | DE31: 45.75557935 | DF31: 47.05582768 | DG31: 51.50175796 | DH31: 53.44887487 | DI31: 54.79480683 | DJ31: 55.98829591 | DK31: 57.03407078 | DL31: 58.15107611 | DM31: 58.97474218 | DN31: 59.70227795 | DO31: 60.32233697 | DP31: 60.93719502 | DQ31: 61.48002178 | DR31: 62.0240018 | DS31: 62.55109903 | DT31: 63.08869717 | DU31: 63.44470422 | DV31: 63.23699088 | DX31: 31.90162569 | DY31: 32.41277835 | DZ31: 33.2307023 | EA31: 34.16439558 | EB31: 35.15497973 | EC31: 37.04906313 | ED31: 39.75464027 | EE31: 41.63921659 | EF31: 42.78437042 | EG31: 44.75141799 | EH31: 48.25234453 | EI31: 49.68422264 | EJ31: 51.25119288 | EK31: 52.55065564 | EL31: 53.90367467 | EM31: 55.10431943 | EN31: 56.15770607 | EO31: 57.11503863 | EP31: 57.93079152 | EQ31: 58.6449869 | ER31: 59.2606665 | ES31: 59.80028524 | ET31: 60.25771706 | EU31: 60.65332574 | EV31: 60.46291927 | EW31: 60.2491861 | EX31: 60.01529166 | EY31: 59.77152486 | EZ31: 59.50858522 | FA31: 59.24084738
A32: Greater Manchester | B32: Oldham | D32: 901649.0749 | E32: 918761.0674 | F32: 945774.4633 | G32: 978663.833 | H32: 1012460.303 | I32: 1042637.103 | J32: 1073263.37 | K32: 1101937.159 | L32: 1131893.004 | M32: 1168274.22 | N32: 1202746.184 | O32: 1232436.642 | P32: 1260762.471 | Q32: 1286975.578 | R32: 1315210.764 | S32: 1339792.284 | T32: 1361273.991 | U32: 1380306.927 | V32: 1397700.493 | W32: 1413177.316 | X32: 1426558.854 | Y32: 1438155.527 | Z32: 1447818.932 | AA32: 1456196.749 | AB32: 1461176.738 | AC32: 1465961.493 | AD32: 1470681.229 | AE32: 1475402.581 | AF32: 1480304.433 | AG32: 1485516.258 | AI32: 901952.6632 | AJ32: 903805.2379 | AK32: 916141.4569 | AL32: 931287.8407 | AM32: 945807.9029 | AN32: 960737.6971 | AO32: 980048.7822 | AP32: 999610.1002 | AQ32: 1022690.931 | AR32: 1048603.301 | AS32: 1064435.295 | AT32: 1079458.523 | AU32: 1093704.316 | AV32: 1107419.803 | AW32: 1121504.603 | AX32: 1134986.14 | AY32: 1146717.782 | AZ32: 1157266.939 | BA32: 1167178.476 | BB32: 1175382.544 | BC32: 1183241.903 | BD32: 1190490.718 | BE32: 1196948.722 | BF32: 1203360.295 | BG32: 1209467.625 | BH32: 1214995.103 | BI32: 1220028.104 | BJ32: 1224580.169 | BK32: 1228498.254 | BL32: 1231117.816 | BN32: 901649.0749 | BO32: 918735.4046 | BP32: 945835.4453 | BQ32: 978708.4393 | BR32: 1012483.536 | BS32: 1042730.809 | BT32: 1073525.675 | BU32: 1102210.33 | BV32: 1131896.107 | BW32: 1165339.481 | BX32: 1196823.813 | BY32: 1223810.8 | BZ32: 1249543.342 | CA32: 1273746.758 | CB32: 1298884.115 | CC32: 1319979.067 | CD32: 1338609.187 | CE32: 1354610.42 | CF32: 1368664.592 | CG32: 1380566.603 | CH32: 1391054.97 | CI32: 1400374.439 | CJ32: 1408426.715 | CK32: 1415856.111 | CL32: 1420502.26 | CM32: 1424508.303 | CN32: 1427919.198 | CO32: 1430746.814 | CP32: 1433083.462 | CQ32: 1435007.584 | CS32: 901639.1691 | CT32: 918116.7627 | CU32: 944598.9808 | CV32: 977440.0607 | CW32: 1011408.006 | CX32: 1043521.065 | CY32: 1078228.302 | CZ32: 1111682.487 | DA32: 1145213.904 | DB32: 1182927.086 | DC32: 1218348.811 | DD32: 1249195.656 | DE32: 1278190.298 | DF32: 1314106.668 | DG32: 1377281.558 | DH32: 1435943.499 | DI32: 1490900.231 | DJ32: 1542329.494 | DK32: 1590581.27 | DL32: 1635976.236 | DM32: 1677660.247 | DN32: 1715262.94 | DO32: 1749587.056 | DP32: 1783039.959 | DQ32: 1814334.672 | DR32: 1844863.291 | DS32: 1874546.692 | DT32: 1903716.542 | DU32: 1925259.622 | DV32: 1920755.624 | DX32: 901639.1691 | DY32: 915182.3335 | DZ32: 948567.8769 | EA32: 982305.9268 | EB32: 1016163.763 | EC32: 1046395.595 | ED32: 1079873.741 | EE32: 1112986.323 | EF32: 1148749.396 | EG32: 1215506.661 | EH32: 1281590.344 | EI32: 1344651.091 | EJ32: 1403843.854 | EK32: 1459963.123 | EL32: 1514889.804 | EM32: 1566280.073 | EN32: 1614098.173 | EO32: 1658176.227 | EP32: 1698421.237 | EQ32: 1735109.019 | ER32: 1768600.723 | ES32: 1798916.506 | ET32: 1826136.629 | EU32: 1848960.945 | EV32: 1844894.567 | EW32: 1839940.207 | EX32: 1834200.581 | EY32: 1827904.514 | EZ32: 1820999.518 | FA32: 1813719.685
A33: Lancashire | B33: Pendle | D33: 341532.3375 | E33: 348400.1156 | F33: 355247.2211 | G33: 364239.3199 | H33: 376134.6346 | I33: 386207.3682 | J33: 395927.741 | K33: 406379.6129 | L33: 429317.2588 | M33: 441805.5724 | N33: 453873.2332 | O33: 473975.5691 | P33: 484386.1996 | Q33: 493923.6309 | R33: 506386.3476 | S33: 522920.1266 | T33: 530202.83 | U33: 536842.3117 | V33: 542729.8999 | W33: 566880.8125 | X33: 571153.9821 | Y33: 574763.6679 | Z33: 577665.1266 | AA33: 580377.144 | AB33: 581380.0356 | AC33: 582431.0049 | AD33: 583533.9174 | AE33: 584688.1055 | AF33: 586004.6919 | AG33: 587509.2079 | AI33: 341660.8309 | AJ33: 342948.3596 | AK33: 345921.0248 | AL33: 349579.284 | AM33: 353010.6634 | AN33: 357679.3493 | AO33: 363558.5952 | AP33: 370833.7422 | AQ33: 379373.5789 | AR33: 389091.0341 | AS33: 394578.1126 | AT33: 399727.8158 | AU33: 404586.9482 | AV33: 409194.6836 | AW33: 413905.4016 | AX33: 418340.3849 | AY33: 422165.5647 | AZ33: 425604.6382 | BA33: 428863.5134 | BB33: 431566.1253 | BC33: 434148.8317 | BD33: 436542.5944 | BE33: 438681.9583 | BF33: 440766.5137 | BG33: 442770.3384 | BH33: 444560.7382 | BI33: 446173.4317 | BJ33: 447608.3573 | BK33: 448786.6492 | BL33: 449422.6707 | BN33: 341532.3375 | BO33: 348391.5433 | BP33: 355247.7206 | BQ33: 364232.8261 | BR33: 376120.4809 | BS33: 386227.4124 | BT33: 396025.4236 | BU33: 406488.7668 | BV33: 429392.8061 | BW33: 440752.8679 | BX33: 451658.8799 | BY33: 470701.8027 | BZ33: 480086.5895 | CA33: 488823.7405 | CB33: 500041.3805 | CC33: 515197.1561 | CD33: 521377.523 | CE33: 526862.1423 | CF33: 531491.0477 | CG33: 554308.9152 | CH33: 557533.135 | CI33: 560349.3799 | CJ33: 562731.6725 | CK33: 565195.9392 | CL33: 566201.7528 | CM33: 567045.3461 | CN33: 567695.4538 | CO33: 568128.0729 | CP33: 568417.836 | CQ33: 568568.1565 | CS33: 341528.1449 | CT33: 348260.9304 | CU33: 354965.3614 | CV33: 363949.973 | CW33: 376002.9367 | CX33: 386764.7287 | CY33: 397826.3939 | CZ33: 410003.9233 | DA33: 433718.9138 | DB33: 447455.9543 | DC33: 459500.3988 | DD33: 477366.514 | DE33: 496312.7318 | DF33: 509041.0217 | DG33: 555602.6961 | DH33: 578821.2931 | DI33: 598820.1868 | DJ33: 617887.0575 | DK33: 635168.2796 | DL33: 655536.7645 | DM33: 670017.1087 | DN33: 683067.3988 | DO33: 694879.1711 | DP33: 706521.7404 | DQ33: 717013.9529 | DR33: 727295.8873 | DS33: 737180.0107 | DT33: 746715.432 | DU33: 753441.705 | DV33: 750627.5395 | DX33: 341528.1449 | DY33: 347187.2118 | DZ33: 356744.4446 | EA33: 366029.6664 | EB33: 377869.362 | EC33: 388196.043 | ED33: 411329.614 | EE33: 422491.1602 | EF33: 438611.6966 | EG33: 462917.3944 | EH33: 487721.6585 | EI33: 529966.8804 | EJ33: 558005.9167 | EK33: 578777.6856 | EL33: 605286.7373 | EM33: 624032.5513 | EN33: 640814.3876 | EO33: 656267.7055 | EP33: 670287.9919 | EQ33: 682844.3781 | ER33: 694291.3491 | ES33: 704640.1295 | ET33: 713765.4184 | EU33: 720949.4985 | EV33: 718102.5508 | EW33: 714993.1167 | EX33: 711634.3251 | EY33: 708116.692 | EZ33: 704402.4376 | FA33: 700597.9226
A34: Lancashire | B34: Preston | D34: 702528.465 | E34: 728954.1836 | F34: 774671.4875 | G34: 796287.9487 | H34: 817344.068 | I34: 835028.9005 | J34: 853211.6179 | K34: 872626.1645 | L34: 916627.6214 | M34: 940693.356 | N34: 964331.7234 | O34: 985177.3337 | P34: 1011154.922 | Q34: 1029517.045 | R34: 1050671.229 | S34: 1067931.109 | T34: 1084312.177 | U34: 1105167.403 | V34: 1117830.941 | W34: 1129896.769 | X34: 1138896.037 | Y34: 1146581.341 | Z34: 1160366.66 | AA34: 1165391.963 | AB34: 1167926.051 | AC34: 1170618.53 | AD34: 1173416.166 | AE34: 1176323.1 | AF34: 1179515.994 | AG34: 1183089.562 | AI34: 702745.4893 | AJ34: 710683.7519 | AK34: 745057.8462 | AL34: 753234.4383 | AM34: 760184.5379 | AN34: 767186.3827 | AO34: 777350.9184 | AP34: 790186.0628 | AQ34: 817390.2946 | AR34: 835014.8645 | AS34: 845569.52 | AT34: 855661.7403 | AU34: 865206.8397 | AV34: 874361.6298 | AW34: 883737.7686 | AX34: 892648.5255 | AY34: 900251.9322 | AZ34: 907003.4843 | BA34: 913344.5217 | BB34: 918507.8288 | BC34: 923511.5116 | BD34: 928162.4207 | BE34: 932357.6853 | BF34: 936391.7052 | BG34: 940307.0895 | BH34: 943780.9153 | BI34: 946872.7441 | BJ34: 949584.9232 | BK34: 951819.7427 | BL34: 953119.1969 | BN34: 702528.465 | BO34: 728932.1885 | BP34: 774706.0831 | BQ34: 796307.1543 | BR34: 817344.4908 | BS34: 835099.2039 | BT34: 853445.3838 | BU34: 872876.217 | BV34: 916696.5434 | BW34: 938552.1596 | BX34: 959903.1218 | BY34: 978639.6444 | BZ34: 1002557.864 | CA34: 1019274.054 | CB34: 1037933.782 | CC34: 1052330.459 | CD34: 1066267.38 | CE34: 1084485.212 | CF34: 1094228.97 | CG34: 1103156.343 | CH34: 1109634.074 | CI34: 1115359.966 | CJ34: 1127785.263 | CK34: 1132044.572 | CL34: 1134365.419 | CM34: 1136398.828 | CN34: 1138013.88 | CO34: 1139162.371 | CP34: 1139946.238 | CQ34: 1140414.283 | CS34: 702521.3837 | CT34: 728523.3307 | CU34: 773875.2668 | CV34: 795401.7521 | CW34: 816725.542 | CX34: 835595.4179 | CY34: 857395.1717 | CZ34: 882676.1101 | DA34: 931674.1619 | DB34: 958855.2059 | DC34: 983967.9337 | DD34: 1006394.63 | DE34: 1040703.935 | DF34: 1065817.84 | DG34: 1120563.563 | DH34: 1170826.697 | DI34: 1209016.318 | DJ34: 1243934.049 | DK34: 1276328.563 | DL34: 1308038.82 | DM34: 1335318.473 | DN34: 1359844.493 | DO34: 1382034.782 | DP34: 1403260.787 | DQ34: 1422935.048 | DR34: 1442083.959 | DS34: 1460411.989 | DT34: 1478065.663 | DU34: 1490683.873 | DV34: 1486542.828 | DX34: 702521.3837 | DY34: 726743.7117 | DZ34: 778061.5628 | EA34: 800423.9841 | EB34: 821962.8257 | EC34: 849415.318 | ED34: 882867.5676 | EE34: 914892.6726 | EF34: 965967.9034 | EG34: 1018405.563 | EH34: 1061475.286 | EI34: 1106340.69 | EJ34: 1146744.995 | EK34: 1185059.735 | EL34: 1223714.465 | EM34: 1259158.888 | EN34: 1291402.489 | EO34: 1320889.384 | EP34: 1347319.357 | EQ34: 1371700.599 | ER34: 1392907.147 | ES34: 1411831.661 | ET34: 1428548.237 | EU34: 1441831.004 | EV34: 1437768.822 | EW34: 1433267.259 | EX34: 1428149.779 | EY34: 1422592.653 | EZ34: 1416571.407 | FA34: 1410283.612
A35: Lancashire | B35: Ribble Valley | D35: 253784.0506 | E35: 260616.8203 | F35: 269751.3349 | G35: 276665.1339 | H35: 284936.9251 | I35: 291698.6139 | J35: 298605.7269 | K35: 306052.0669 | L35: 322902.0082 | M35: 331948.4613 | N35: 340749.6808 | O35: 353204.7902 | P35: 361510.8465 | Q35: 368408.2942 | R35: 377128.5072 | S35: 387377.7243 | T35: 392935.326 | U35: 398771.4164 | V35: 403146.5305 | W35: 416593.9006 | X35: 419760.5917 | Y35: 422443.1733 | Z35: 425585.7632 | AA35: 427506.7919 | AB35: 428281.3834 | AC35: 429099.7101 | AD35: 429955.8853 | AE35: 430849.9265 | AF35: 431857.7098 | AG35: 433003.3974 | AI35: 253873.6483 | AJ35: 255592.2589 | AK35: 261435.6314 | AL35: 264117.7447 | AM35: 266534.4524 | AN35: 269432.6049 | AO35: 273500.4799 | AP35: 278600.8542 | AQ35: 286194.6664 | AR35: 293100.0939 | AS35: 297061.8033 | AT35: 300801.1338 | AU35: 304329.633 | AV35: 307686.6465 | AW35: 311122.325 | AX35: 314364.7536 | AY35: 317148.635 | AZ35: 319639.3952 | BA35: 321993.1067 | BB35: 323932.4843 | BC35: 325793.4017 | BD35: 327518.7785 | BE35: 329064.1001 | BF35: 330561.278 | BG35: 332004.5723 | BH35: 333290.0082 | BI35: 334442.4438 | BJ35: 335462.1459 | BK35: 336297.9192 | BL35: 336752.6179 | BN35: 253784.0506 | BO35: 260609.9993 | BP35: 269755.585 | BQ35: 276664.1148 | BR35: 284929.9118 | BS35: 291716.7455 | BT35: 298681.501 | BU35: 306135.4482 | BV35: 322947.674 | BW35: 331171.5943 | BX35: 339124.9249 | BY35: 350804.4576 | BZ35: 358357.8258 | CA35: 364663.964 | CB35: 372471.4137 | CC35: 381699.1911 | CD35: 386422.968 | CE35: 391377.0756 | CF35: 394785.9002 | CG35: 407204.767 | CH35: 409556.2023 | CI35: 411616.1103 | CJ35: 414342.3481 | CK35: 416051.3084 | CL35: 416802.9561 | CM35: 417441.9334 | CN35: 417935.8299 | CO35: 418266.9742 | CP35: 418484.3392 | CQ35: 418595.7213 | CS35: 253781.1271 | CT35: 260498.6427 | CU35: 269520.4079 | CV35: 276420.9395 | CW35: 284807.3275 | CX35: 292053.4701 | CY35: 300068.8498 | CZ35: 309098.9903 | DA35: 326956.8278 | DB35: 337008.2437 | DC35: 345966.3421 | DD35: 357487.7823 | DE35: 371104.1538 | DF35: 380376.0672 | DG35: 410080.1717 | DH35: 427601.2182 | DI35: 442013.7176 | DJ35: 455568.6959 | DK35: 467936.525 | DL35: 481783.505 | DM35: 492154.7692 | DN35: 501491.9782 | DO35: 509939.8576 | DP35: 518190.659 | DQ35: 525688.157 | DR35: 533023.9519 | DS35: 540067.6201 | DT35: 546860.5359 | DU35: 551668.8352 | DV35: 549770.6012 | DX35: 253781.1271 | DY35: 259755.7865 | DZ35: 270908.0726 | EA35: 278057.1609 | EB35: 286367.0263 | EC35: 294485.5256 | ED35: 309994.1786 | EE35: 319374.9622 | EF35: 333723.1846 | EG35: 352054.7509 | EH35: 369422.8315 | EI35: 395730.4942 | EJ35: 414399.7262 | EK35: 429204.5604 | EL35: 446926.4202 | EM35: 460386.9899 | EN35: 472489.8589 | EO35: 483607.7119 | EP35: 493651.1367 | EQ35: 502730.2654 | ER35: 510878.9556 | ES35: 518215.0426 | ET35: 524685.2808 | EU35: 529791.6045 | EV35: 527880.5706 | EW35: 525790.3553 | EX35: 523504.6193 | EY35: 521089.1572 | EZ35: 518522.1171 | FA35: 515879.617
A36: North Yorkshire | B36: Richmondshire | D36: 350.6762227 | E36: 357.0110446 | F36: 363.8582217 | G36: 373.5070625 | H36: 383.2260257 | I36: 394.0372268 | J36: 410.8150576 | K36: 424.357627 | L36: 436.1073791 | M36: 449.2842653 | N36: 460.232586 | O36: 472.0713596 | P36: 481.7072738 | Q36: 492.8688196 | R36: 508.3309985 | S36: 527.2366576 | T36: 534.6230768 | U36: 541.630095 | V36: 548.9360533 | W36: 556.5392468 | X36: 559.9794 | Y36: 566.642735 | Z36: 568.9035026 | AA36: 570.924 | AB36: 573.8065846 | AC36: 574.2647158 | AD36: 574.5037421 | AE36: 575.0877557 | AF36: 575.5334508 | AG36: 576.1766413 | AI36: 350.7928673 | AJ36: 352.6026493 | AK36: 355.9193528 | AL36: 359.825488 | AM36: 363.4333207 | AN36: 367.370811 | AO36: 372.5934125 | AP36: 378.8641007 | AQ36: 386.146724 | AR36: 394.378114 | AS36: 398.8620841 | AT36: 402.9156598 | AU36: 406.7678737 | AV36: 410.6235992 | AW36: 415.073017 | AX36: 419.3272981 | AY36: 422.961986 | AZ36: 426.196817 | BA36: 429.4068752 | BB36: 432.1142661 | BC36: 434.7423377 | BD36: 437.2092614 | BE36: 439.4347896 | BF36: 441.6271061 | BG36: 443.7548539 | BH36: 445.7093565 | BI36: 447.5173229 | BJ36: 449.1778 | BK36: 450.4678901 | BL36: 450.8322074 | BN36: 350.6762227 | BO36: 357.0027068 | BP36: 363.8709627 | BQ36: 373.513941 | BR36: 383.2257744 | BS36: 394.0636653 | BT36: 410.9038607 | BU36: 424.4527511 | BV36: 436.1349049 | BW36: 448.4223448 | BX36: 458.4447494 | BY36: 469.4287447 | BZ36: 478.2303373 | CA36: 488.7293882 | CB36: 503.1835488 | CC36: 520.9456176 | CD36: 527.3772947 | CE36: 533.3650993 | CF36: 539.5496687 | CG36: 545.9540027 | CH36: 548.4346689 | CI36: 554.3553582 | CJ36: 556.1053145 | CK36: 557.8445653 | CL36: 560.6586583 | CM36: 560.8794594 | CN36: 560.6823489 | CO36: 560.6117247 | CP36: 560.154465 | CQ36: 559.6285441 | CS36: 350.6724166 | CT36: 357.095914 | CU36: 364.0316042 | CV36: 373.8984182 | CW36: 384.1881602 | CX36: 396.2471889 | CY36: 414.8017401 | CZ36: 430.4546114 | DA36: 443.867786 | DB36: 460.2747146 | DC36: 471.6649479 | DD36: 483.3617684 | DE36: 502.9593081 | DF36: 517.252035 | DG36: 566.1230591 | DH36: 587.526363 | DI36: 602.3212583 | DJ36: 615.440455 | DK36: 626.9359319 | DL36: 639.2143957 | DM36: 648.2683848 | DN36: 656.2656803 | DO36: 663.0815585 | DP36: 669.8402661 | DQ36: 675.8071837 | DR36: 681.7867783 | DS36: 687.5807921 | DT36: 693.4902351 | DU36: 697.4035733 | DV36: 695.1203248 | DX36: 350.6724166 | DY36: 356.2911628 | DZ36: 365.2820328 | EA36: 375.5454747 | EB36: 386.4342783 | EC36: 407.2546217 | ED36: 436.9951522 | EE36: 457.710991 | EF36: 470.2988718 | EG36: 491.9212596 | EH36: 530.4045138 | EI36: 546.1441555 | EJ36: 563.3687711 | EK36: 577.6528628 | EL36: 592.5256615 | EM36: 605.7235154 | EN36: 617.3026632 | EO36: 627.8259552 | EP36: 636.7929602 | EQ36: 644.6436141 | ER36: 651.4113524 | ES36: 657.3430064 | ET36: 662.3712367 | EU36: 666.7198882 | EV36: 664.6268822 | EW36: 662.2774618 | EX36: 659.7064226 | EY36: 657.0268635 | EZ36: 654.1365507 | FA36: 651.1934945
A37: Greater Manchester | B37: Rochdale | D37: 876410.3483 | E37: 882935.3604 | F37: 908689.3414 | G37: 948290.0579 | H37: 989121.5461 | I37: 1043393.316 | J37: 1075553.053 | K37: 1106807.745 | L37: 1139683.545 | M37: 1174094.108 | N37: 1206150.595 | O37: 1236322.936 | P37: 1265386.506 | Q37: 1292443.575 | R37: 1319208.968 | S37: 1344940.849 | T37: 1367294.534 | U37: 1387761.807 | V37: 1409610.766 | W37: 1426160.461 | X37: 1440799.33 | Y37: 1453524.306 | Z37: 1464189.617 | AA37: 1473417.109 | AB37: 1479348.883 | AC37: 1485308.237 | AD37: 1491410.877 | AE37: 1497673.448 | AF37: 1504358.271 | AG37: 1511567.696 | AI37: 876707.776 | AJ37: 873461.9714 | AK37: 885708.3023 | AL37: 906136.4589 | AM37: 925579.4945 | AN37: 957408.5787 | AO37: 976790.0847 | AP37: 997955.7597 | AQ37: 1020550.371 | AR37: 1046264.572 | AS37: 1062478.451 | AT37: 1078004.038 | AU37: 1092911.472 | AV37: 1107309.09 | AW37: 1121921.508 | AX37: 1135993.438 | AY37: 1148336.055 | AZ37: 1159535.093 | BA37: 1170054.549 | BB37: 1178793.416 | BC37: 1187276.341 | BD37: 1195231.666 | BE37: 1202489.83 | BF37: 1209726.423 | BG37: 1216740.052 | BH37: 1223107.836 | BI37: 1228908.462 | BJ37: 1234145.801 | BK37: 1238714.658 | BL37: 1242051.57 | BN37: 876410.3483 | BO37: 882902.3688 | BP37: 908747.6288 | BQ37: 948325.7513 | BR37: 989129.2331 | BS37: 1043502.391 | BT37: 1075900.452 | BU37: 1107177.049 | BV37: 1139762.942 | BW37: 1171155.428 | BX37: 1200066.285 | BY37: 1227314.905 | BZ37: 1253505.81 | CA37: 1278237.088 | CB37: 1301516.304 | CC37: 1323191.665 | CD37: 1341997.502 | CE37: 1358600.027 | CF37: 1376151.677 | CG37: 1388063.683 | CH37: 1398962.817 | CI37: 1408770.029 | CJ37: 1417390.659 | CK37: 1425438.51 | CL37: 1430997.475 | CM37: 1435930.011 | CN37: 1440238.12 | CO37: 1443861.032 | CP37: 1446954.78 | CQ37: 1449555.738 | CS37: 876400.6435 | CT37: 882160.413 | CU37: 907284.9368 | CV37: 946690.8266 | CW37: 987453.7817 | CX37: 1043238.184 | CY37: 1078951.45 | CZ37: 1114755.555 | DA37: 1151045.451 | DB37: 1187883.907 | DC37: 1222376.507 | DD37: 1255133.694 | DE37: 1286543.9 | DF37: 1323576.115 | DG37: 1390658.277 | DH37: 1454878.097 | DI37: 1512498.674 | DJ37: 1566479.429 | DK37: 1617095.006 | DL37: 1664330.19 | DM37: 1707887.424 | DN37: 1747333.777 | DO37: 1783296.398 | DP37: 1817954.055 | DQ37: 1850246.694 | DR37: 1881368.974 | DS37: 1911178.873 | DT37: 1939937.942 | DU37: 1960890.369 | DV37: 1956233.787 | DX37: 876400.6435 | DY37: 879445.5291 | DZ37: 911939.4652 | EA37: 952410.1187 | EB37: 992980.6252 | EC37: 1050835.876 | ED37: 1089332.749 | EE37: 1126481.597 | EF37: 1163157.289 | EG37: 1230184.818 | EH37: 1296174.58 | EI37: 1359820.814 | EJ37: 1421479.346 | EK37: 1480124.556 | EL37: 1537007.706 | EM37: 1591254.835 | EN37: 1641497.993 | EO37: 1687804.896 | EP37: 1730009.365 | EQ37: 1768668.129 | ER37: 1803530.778 | ES37: 1834942.86 | ET37: 1862965.553 | EU37: 1885645.042 | EV37: 1881689.552 | EW37: 1876770.162 | EX37: 1870902.924 | EY37: 1864332.503 | EZ37: 1857034.281 | FA37: 1849286.584
A38: Lancashire | B38: Rossendale | D38: 327950.0884 | E38: 334286.391 | F38: 341272.2859 | G38: 350435.2759 | H38: 362201.7065 | I38: 372871.7396 | J38: 382498.8631 | K38: 392693.6389 | L38: 413992.9559 | M38: 426081.6216 | N38: 437712.2659 | O38: 456373.1301 | P38: 466450.8541 | Q38: 475696.0317 | R38: 487516.5785 | S38: 502892.1478 | T38: 510003.4253 | U38: 516489.5055 | V38: 522363.0341 | W38: 544189.4615 | X38: 548407.3954 | Y38: 551980.8005 | Z38: 554866.3442 | AA38: 557539.9232 | AB38: 558605.0474 | AC38: 559714.8753 | AD38: 560876.0404 | AE38: 562088.3376 | AF38: 563457.6508 | AG38: 565010.1539 | AI38: 328072.6024 | AJ38: 329152.6957 | AK38: 332237.7762 | AL38: 336112.6916 | AM38: 339759.2441 | AN38: 344924.1531 | AO38: 350722.6197 | AP38: 357798.2795 | AQ38: 366044.9587 | AR38: 375406.4742 | AS38: 380744.1492 | AT38: 385763.3881 | AU38: 390507.3218 | AV38: 395013.1615 | AW38: 399614.311 | AX38: 403955.6759 | AY38: 407706.8304 | AZ38: 411082.8363 | BA38: 414279.4398 | BB38: 416930.8353 | BC38: 419469.4192 | BD38: 421825.6631 | BE38: 423936.4981 | BF38: 425998.3513 | BG38: 427982.787 | BH38: 429758.9718 | BI38: 431360.852 | BJ38: 432788.4282 | BK38: 433969.2535 | BL38: 434634.6955 | BN38: 327950.0884 | BO38: 334277.8127 | BP38: 341274.2047 | BQ38: 350430.3055 | BR38: 362189.108 | BS38: 372892.6015 | BT38: 382595.894 | BU38: 392801.5889 | BV38: 414063.234 | BW38: 425062.9534 | BX38: 435570.9998 | BY38: 453206.1771 | BZ38: 462289.2188 | CA38: 470755.5841 | CB38: 481368.5326 | CC38: 495401.4986 | CD38: 501429.2777 | CE38: 506775.6829 | CF38: 511404.5195 | CG38: 531910.1359 | CH38: 535086.3419 | CI38: 537869.4741 | CJ38: 540234.3328 | CK38: 542654.0159 | CL38: 543711.8888 | CM38: 544607.786 | CN38: 545313.749 | CO38: 545806.518 | CP38: 546156.4218 | CQ38: 546368.0193 | CS38: 327946.0909 | CT38: 334139.6223 | CU38: 340979.6894 | CV38: 350129.448 | CW38: 362032.0932 | CX38: 373355.4803 | CY38: 384286.8772 | CZ38: 396170.2434 | DA38: 418260.4311 | DB38: 431519.9676 | DC38: 443206.245 | DD38: 459976.7002 | DE38: 477671.0047 | DF38: 490041.5396 | DG38: 533190.3545 | DH38: 555654.0146 | DI38: 575059.6014 | DJ38: 593530.6607 | DK38: 610322.0623 | DL38: 629738.528 | DM38: 643839.2175 | DN38: 656552.6342 | DO38: 668066.0831 | DP38: 679388.6627 | DQ38: 689623.6398 | DR38: 699636.4294 | DS38: 709256.8379 | DT38: 718535.8451 | DU38: 725099.0776 | DV38: 722469.6752 | DX38: 327946.0909 | DY38: 333111.3015 | DZ38: 342704.3422 | EA38: 352153.6643 | EB38: 363861.9043 | EC38: 374899.0826 | ED38: 396588.0012 | EE38: 407616.5848 | EF38: 423007.7314 | EG38: 446507.1557 | EH38: 470406.8619 | EI38: 509621.0379 | EJ38: 536244.1291 | EK38: 556364.043 | EL38: 581498.3914 | EM38: 599697.4262 | EN38: 616036.9029 | EO38: 631082.5827 | EP38: 644736.6633 | EQ38: 656989.9967 | ER38: 668145.1962 | ES38: 678224.9997 | ET38: 687120.9803 | EU38: 694138.4659 | EV38: 691498.0395 | EW38: 688596.7811 | EX38: 685446.6086 | EY38: 682135.0449 | EZ38: 678628.0029 | FA38: 675029.5025
A39: Greater Manchester | B39: Salford | D39: 1104046.059 | E39: 1131890.778 | F39: 1175230.524 | G39: 1203732.879 | H39: 1233846.926 | I39: 1267928.03 | J39: 1304038.925 | K39: 1337618.878 | L39: 1380069.1 | M39: 1421912.694 | N39: 1465150.519 | O39: 1508410.312 | P39: 1556360.684 | Q39: 1587763.429 | R39: 1625110.413 | S39: 1659210.517 | T39: 1714734.446 | U39: 1738190.127 | V39: 1759722.46 | W39: 1781945.912 | X39: 1798830.451 | Y39: 1813463.453 | Z39: 1825738.966 | AA39: 1836395.593 | AB39: 1843432.651 | AC39: 1850350.848 | AD39: 1857565.501 | AE39: 1865065.632 | AF39: 1873039.208 | AG39: 1881744.264 | AI39: 1104366.7 | AJ39: 1112876.4 | AK39: 1134048.908 | AL39: 1146254.251 | AM39: 1157886.775 | AN39: 1172652.5 | AO39: 1191881.207 | AP39: 1214841.435 | AQ39: 1243840.865 | AR39: 1273487.038 | AS39: 1292937.876 | AT39: 1311696.507 | AU39: 1329661.442 | AV39: 1347019.42 | AW39: 1364480.964 | AX39: 1381363.853 | AY39: 1396132.321 | AZ39: 1409585.823 | BA39: 1422412.125 | BB39: 1433017.425 | BC39: 1443447.231 | BD39: 1453303.441 | BE39: 1462381.398 | BF39: 1471500.588 | BG39: 1480446.035 | BH39: 1488645.215 | BI39: 1496187.262 | BJ39: 1503075.91 | BK39: 1509259.253 | BL39: 1514162.414 | BN39: 1104046.059 | BO39: 1131853.169 | BP39: 1175258.474 | BQ39: 1203732.122 | BR39: 1233813.237 | BS39: 1268030.563 | BT39: 1304454.433 | BU39: 1338074.547 | BV39: 1380303.951 | BW39: 1418533.438 | BX39: 1457995.461 | BY39: 1497738.762 | BZ39: 1542220.15 | CA39: 1570803.201 | CB39: 1603900.713 | CC39: 1633085.201 | CD39: 1684331.293 | CE39: 1703143.31 | CF39: 1719526.096 | CG39: 1736208.446 | CH39: 1748674.982 | CI39: 1759917.21 | CJ39: 1769889.431 | CK39: 1779318.125 | CL39: 1786129.531 | CM39: 1791954.004 | CN39: 1797065.222 | CO39: 1801353.7 | CP39: 1804874.546 | CQ39: 1807801.513 | CS39: 1104035.596 | CT39: 1131203.322 | CU39: 1174059.457 | CV39: 1202842.303 | CW39: 1237014.628 | CX39: 1279505.324 | CY39: 1321791.092 | CZ39: 1364431.93 | DA39: 1411848.84 | DB39: 1456702.589 | DC39: 1503053.982 | DD39: 1549443.969 | DE39: 1601207.228 | DF39: 1644217.47 | DG39: 1761656.321 | DH39: 1839675.552 | DI39: 1903882.434 | DJ39: 1964049.281 | DK39: 2020212.857 | DL39: 2075163.545 | DM39: 2123436.293 | DN39: 2166998.926 | DO39: 2206585.076 | DP39: 2244823.098 | DQ39: 2280482.768 | DR39: 2314665.541 | DS39: 2347535.483 | DT39: 2379462.76 | DU39: 2402961.275 | DV39: 2398543.947 | DX39: 1104035.596 | DY39: 1128452.52 | DZ39: 1181844.836 | EA39: 1212061.896 | EB39: 1251609.754 | EC39: 1301742.747 | ED39: 1357895.272 | EE39: 1396841.208 | EF39: 1448084.89 | EG39: 1532414.61 | EH39: 1607386.731 | EI39: 1691443.753 | EJ39: 1760372.819 | EK39: 1826049.65 | EL39: 1892672.541 | EM39: 1953985.924 | EN39: 2009879.084 | EO39: 2061334.579 | EP39: 2108113.186 | EQ39: 2150650.087 | ER39: 2188967.448 | ES39: 2223196.321 | ET39: 2253550.597 | EU39: 2278545.725 | EV39: 2274655.633 | EW39: 2269700.027 | EX39: 2263717.176 | EY39: 2257198.129 | EZ39: 2249767.071 | FA39: 2242081.631
A40: Merseyside | B40: Sefton | D40: 10.79754838 | E40: 11.12608746 | F40: 11.39662606 | G40: 11.83350878 | H40: 12.24617965 | I40: 12.65825611 | J40: 13.04848741 | K40: 13.43079515 | L40: 13.95298433 | M40: 14.41940982 | N40: 15.26058665 | O40: 15.61573548 | P40: 15.95865317 | Q40: 16.68535333 | R40: 17.00169576 | S40: 17.3068128 | T40: 17.57473916 | U40: 17.82026712 | V40: 18.04149436 | W40: 18.31927249 | X40: 18.49835926 | Y40: 18.65272989 | Z40: 18.78165953 | AA40: 18.88890087 | AB40: 18.94915672 | AC40: 19.00084053 | AD40: 19.05797681 | AE40: 19.12085913 | AF40: 19.19276628 | AG40: 19.27885629 | AI40: 10.80126127 | AJ40: 10.8635577 | AK40: 10.95356449 | AL40: 11.10596212 | AM40: 11.22916026 | AN40: 11.35403791 | AO40: 11.53147376 | AP40: 11.74545156 | AQ40: 12.06272517 | AR40: 12.35919756 | AS40: 12.53825386 | AT40: 12.71006402 | AU40: 12.87417474 | AV40: 13.03404805 | AW40: 13.20142463 | AX40: 13.3612181 | AY40: 13.4975542 | AZ40: 13.62013362 | BA40: 13.73783115 | BB40: 13.83361402 | BC40: 13.92805547 | BD40: 14.0181079 | BE40: 14.10333587 | BF40: 14.18681882 | BG40: 14.27006371 | BH40: 14.34471438 | BI40: 14.41162155 | BJ40: 14.47063698 | BK40: 14.51932932 | BL40: 14.54789542 | BN40: 10.79754838 | BO40: 11.12561963 | BP40: 11.39665764 | BQ40: 11.83315902 | BR40: 12.24541193 | BS40: 12.6593525 | BT40: 13.05381623 | BU40: 13.43674831 | BV40: 13.95709114 | BW40: 14.38513422 | BX40: 15.18501581 | BY40: 15.50065034 | BZ40: 15.80369805 | CA40: 16.49683301 | CB40: 16.76359214 | CC40: 17.01014264 | CD40: 17.22493765 | CE40: 17.41204587 | CF40: 17.56822964 | CG40: 17.77578906 | CH40: 17.89921088 | CI40: 18.0113102 | CJ40: 18.11199541 | CK40: 18.2048186 | CL40: 18.263574 | CM40: 18.30179186 | CN40: 18.33165193 | CO40: 18.35212451 | CP40: 18.36483122 | CQ40: 18.37384589 | CS40: 10.79742723 | CT40: 11.11740741 | CU40: 11.38185471 | CV40: 11.81927135 | CW40: 12.23530254 | CX40: 12.67291515 | CY40: 13.11846166 | CZ40: 13.56970902 | DA40: 14.15228594 | DB40: 14.66401245 | DC40: 15.53860378 | DD40: 15.93564756 | DE40: 16.32645054 | DF40: 17.17957653 | DG40: 18.0310305 | DH40: 19.13254983 | DI40: 19.81685947 | DJ40: 20.45436063 | DK40: 21.04145733 | DL40: 21.58641277 | DM40: 22.09655517 | DN40: 22.55271888 | DO40: 22.9655706 | DP40: 23.36000869 | DQ40: 23.72543478 | DR40: 24.0606107 | DS40: 24.37983256 | DT40: 24.68576222 | DU40: 24.90103662 | DV40: 24.82092536 | DX40: 10.79742723 | DY40: 11.08970203 | DZ40: 11.45837912 | EA40: 11.91827079 | EB40: 12.34089954 | EC40: 12.77594926 | ED40: 13.22531675 | EE40: 13.67163577 | EF40: 14.30394025 | EG40: 16.16897191 | EH40: 16.91923332 | EI40: 17.6489359 | EJ40: 18.37013982 | EK40: 19.0616851 | EL40: 19.73991104 | EM40: 20.3837918 | EN40: 20.98036692 | EO40: 21.52419924 | EP40: 22.00817756 | EQ40: 22.44367022 | ER40: 22.84039893 | ES40: 23.19121479 | ET40: 23.49941308 | EU40: 23.7493999 | EV40: 23.6919943 | EW40: 23.6089892 | EX40: 23.51367769 | EY40: 23.40961418 | EZ40: 23.29694503 | FA40: 23.17947934
A41: Westmorland and Furness** | B41: South Lakeland | D41: 842774.0591 | E41: 857998.59 | F41: 874454.356 | G41: 897643.3221 | H41: 921000.8962 | I41: 946983.3822 | J41: 987305.02 | K41: 1019851.624 | L41: 1048089.702 | M41: 1079757.66 | N41: 1106069.795 | O41: 1134522.175 | P41: 1157680.207 | Q41: 1184504.746 | R41: 1221664.527 | S41: 1267099.745 | T41: 1284851.518 | U41: 1301691.447 | V41: 1319249.74 | W41: 1337522.576 | X41: 1345790.361 | Y41: 1361804.129 | Z41: 1367237.487 | AA41: 1372093.396 | AB41: 1379020.991 | AC41: 1380122.074 | AD41: 1380696.602 | AE41: 1382100.216 | AF41: 1383171.423 | AG41: 1384717.314 | AI41: 843054.3903 | AJ41: 847403.8765 | AK41: 855374.9075 | AL41: 864762.5181 | AM41: 873433.2639 | AN41: 882896.3259 | AO41: 895447.8915 | AP41: 910518.3138 | AQ41: 928020.721 | AR41: 947803.2951 | AS41: 958579.703 | AT41: 968321.7546 | AU41: 977579.8661 | AV41: 986846.4011 | AW41: 997539.7207 | AX41: 1007764.064 | AY41: 1016499.335 | AZ41: 1024273.63 | BA41: 1031988.379 | BB41: 1038495.058 | BC41: 1044811.107 | BD41: 1050739.865 | BE41: 1056088.476 | BF41: 1061357.269 | BG41: 1066470.883 | BH41: 1071168.134 | BI41: 1075513.214 | BJ41: 1079503.832 | BK41: 1082604.311 | BL41: 1083479.936 | BN41: 842774.0591 | BO41: 857978.552 | BP41: 874484.9761 | BQ41: 897659.8529 | BR41: 921000.2919 | BS41: 947046.9218 | BT41: 987518.4404 | BU41: 1020080.236 | BV41: 1048155.856 | BW41: 1077686.192 | BX41: 1101773.058 | BY41: 1128171.138 | BZ41: 1149324.036 | CA41: 1174556.394 | CB41: 1209293.594 | CC41: 1251980.411 | CD41: 1267437.649 | CE41: 1281828.099 | CF41: 1296691.357 | CG41: 1312082.972 | CH41: 1318044.822 | CI41: 1332273.79 | CJ41: 1336479.516 | CK41: 1340659.507 | CL41: 1347422.499 | CM41: 1347953.209 | CN41: 1347479.571 | CO41: 1347309.896 | CP41: 1346211.032 | CQ41: 1344947.198 | CS41: 842764.9121 | CT41: 858202.545 | CU41: 874871.0245 | CV41: 898583.8363 | CW41: 923313.138 | CX41: 952294.4995 | CY41: 996886.1673 | CZ41: 1034504.564 | DA41: 1066740.6 | DB41: 1106171.877 | DC41: 1133546.062 | DD41: 1161657.393 | DE41: 1208755.78 | DF41: 1243105.295 | DG41: 1360554.967 | DH41: 1411993.604 | DI41: 1447550.343 | DJ41: 1479079.909 | DK41: 1506707.223 | DL41: 1536216.269 | DM41: 1557975.962 | DN41: 1577196.08 | DO41: 1593576.904 | DP41: 1609820.318 | DQ41: 1624160.828 | DR41: 1638531.789 | DS41: 1652456.744 | DT41: 1666659.095 | DU41: 1676064.189 | DV41: 1670576.963 | DX41: 842764.9121 | DY41: 856268.4805 | DZ41: 877876.2469 | EA41: 902542.2805 | EB41: 928711.2619 | EC41: 978747.9776 | ED41: 1050222.054 | EE41: 1100007.943 | EF41: 1130260.466 | EG41: 1182225.867 | EH41: 1274712.027 | EI41: 1312539.903 | EJ41: 1353935.924 | EK41: 1388265.129 | EL41: 1424009.198 | EM41: 1455727.829 | EN41: 1483556.212 | EO41: 1508847.037 | EP41: 1530397.643 | EQ41: 1549265.313 | ER41: 1565530.413 | ES41: 1579786.139 | ET41: 1591870.66 | EU41: 1602321.925 | EV41: 1597291.844 | EW41: 1591645.516 | EX41: 1585466.57 | EY41: 1579026.817 | EZ41: 1572080.562 | FA41: 1565007.595
A42: Lancashire | B42: South Ribble | D42: 510832.033 | E42: 527672.7061 | F42: 552126.1738 | G42: 567939.7714 | H42: 584416.6009 | I42: 599626.9493 | J42: 615034.7982 | K42: 631252.4542 | L42: 658270.288 | M42: 678267.5367 | N42: 697278.5385 | O42: 718026.0242 | P42: 737072.9392 | Q42: 753554.9965 | R42: 769746.399 | S42: 784035.5543 | T42: 796716.7105 | U42: 810730.7121 | V42: 820634.7993 | W42: 832523.2389 | X42: 839729.8051 | Y42: 845874.3934 | Z42: 854130.0411 | AA42: 858346.4298 | AB42: 860422.0197 | AC42: 862521.0526 | AD42: 864690.1102 | AE42: 866953.6865 | AF42: 869371.8187 | AG42: 872551.5468 | AI42: 511006.5202 | AJ42: 516210.2119 | AK42: 533584.4519 | AL42: 540082.2846 | AM42: 546286.9894 | AN42: 553285.521 | AO42: 562594.9491 | AP42: 573761.6948 | AQ42: 591928.0509 | AR42: 606645.1103 | AS42: 615504.1633 | AT42: 623940.6665 | AU42: 631911.5439 | AV42: 639552.2317 | AW42: 647376.0101 | AX42: 654802.1292 | AY42: 661150.4741 | AZ42: 666818.4625 | BA42: 672193.7495 | BB42: 676577.832 | BC42: 680806.1848 | BD42: 684721.842 | BE42: 688235.6644 | BF42: 691658.0781 | BG42: 694961.1561 | BH42: 697922.0642 | BI42: 700591.9016 | BJ42: 702974.1019 | BK42: 704981.8123 | BL42: 706455.611 | BN42: 510832.033 | BO42: 527656.9872 | BP42: 552147.4506 | BQ42: 567949.7855 | BR42: 584413.102 | BS42: 599675.2387 | BT42: 615203.6053 | BU42: 631434.2608 | BV42: 658332.4686 | BW42: 676529.3622 | BX42: 693692.3355 | BY42: 712753.1482 | BZ42: 730167.1972 | CA42: 745367.5225 | CB42: 759587.8255 | CC42: 771656.3174 | CD42: 782507.1261 | CE42: 794573.9288 | CF42: 802336.5146 | CG42: 811936.9235 | CH42: 817313.7275 | CI42: 822043.2789 | CJ42: 829328.8831 | CK42: 833016.5007 | CL42: 834972.473 | CM42: 836626.7757 | CN42: 837968.7507 | CO42: 838985.0243 | CP42: 839678.188 | CQ42: 840620.5708 | CS42: 510826.3396 | CT42: 527430.6906 | CU42: 551693.032 | CV42: 567541.5305 | CW42: 584315.3402 | CX42: 600702.8723 | CY42: 619431.2758 | CZ42: 640881.597 | DA42: 673949.9683 | DB42: 703510.7447 | DC42: 723515.1666 | DD42: 745924.6404 | DE42: 771942.5087 | DF42: 791787.4948 | DG42: 831927.9091 | DH42: 870908.5456 | DI42: 900512.0839 | DJ42: 927759.0937 | DK42: 953012.6353 | DL42: 978352.4652 | DM42: 999584.4792 | DN42: 1018575.03 | DO42: 1035708.619 | DP42: 1052251.025 | DQ42: 1067578.214 | DR42: 1082516.783 | DS42: 1096962.542 | DT42: 1111054.181 | DU42: 1121249.315 | DV42: 1118777.053 | DX42: 510826.3396 | DY42: 525981.6976 | DZ42: 555156.6186 | EA42: 571732.1479 | EB42: 588596.7675 | EC42: 608117.9554 | ED42: 631708.6651 | EE42: 656506.2177 | EF42: 688967.7866 | EG42: 731522.2093 | EH42: 773144.5215 | EI42: 812806.7671 | EJ42: 844578.1139 | EK42: 874667.2814 | EL42: 905608.9369 | EM42: 933425.9966 | EN42: 958500.2721 | EO42: 981365.2253 | EP42: 1001774.308 | EQ42: 1020332.142 | ER42: 1036704.979 | ES42: 1051314.118 | ET42: 1064197.723 | EU42: 1074839.373 | EV42: 1071885.816 | EW42: 1068473.902 | EX42: 1064623.167 | EY42: 1060475.301 | EZ42: 1056003.988 | FA42: 1051838.117
A43: Merseyside | B43: St. Helens | D43: 396569.6522 | E43: 399173.6053 | F43: 404421.3484 | G43: 414551.9375 | H43: 428218.9581 | I43: 441854.4439 | J43: 453858.953 | K43: 462569.9748 | L43: 472087.8059 | M43: 482139.6729 | N43: 493086.9517 | O43: 501570.3694 | P43: 509847.8634 | Q43: 519516.845 | R43: 527337.7192 | S43: 535009.0487 | T43: 541833.1178 | U43: 548227.4542 | V43: 554228.4996 | W43: 560003.8317 | X43: 564846.939 | Y43: 569067.3632 | Z43: 572632.1567 | AA43: 575758.3389 | AB43: 577925.977 | AC43: 580187.5034 | AD43: 582666.3017 | AE43: 585382.6826 | AF43: 588437.3637 | AG43: 591863.8188 | AI43: 396632.8404 | AJ43: 395581.0648 | AK43: 397114.5048 | AL43: 400610.701 | AM43: 405384.2877 | AN43: 410412.7923 | AO43: 415846.4429 | AP43: 420519.8288 | AQ43: 426393.7871 | AR43: 432720.8591 | AS43: 437042.7878 | AT43: 441283.6771 | AU43: 445408.4943 | AV43: 449439.0464 | AW43: 453478.1161 | AX43: 457392.8781 | AY43: 460836.2189 | AZ43: 463996.1237 | BA43: 467028.5704 | BB43: 469558.248 | BC43: 472122.2397 | BD43: 474627.3935 | BE43: 477040.602 | BF43: 479501.1105 | BG43: 481996.8156 | BH43: 484271.4749 | BI43: 486337.9242 | BJ43: 488187.8897 | BK43: 489820.5992 | BL43: 491130.0671 | BN43: 396569.6522 | BO43: 399160.4591 | BP43: 404408.6906 | BQ43: 414527.5259 | BR43: 428182.4465 | BS43: 441877.5796 | BT43: 454015.552 | BU43: 462749.463 | BV43: 472253.9985 | BW43: 481459.9839 | BX43: 491454.605 | BY43: 498987.0663 | BZ43: 506270.9935 | CA43: 515057.8569 | CB43: 521610.6195 | CC43: 527734.2544 | CD43: 533066.2676 | CE43: 537789.2727 | CF43: 541917.3214 | CG43: 545659.9812 | CH43: 548903.4087 | CI43: 551925.9779 | CJ43: 554708.3859 | CK43: 557460.3519 | CL43: 559636.6776 | CM43: 561521.4207 | CN43: 563182.73 | CO43: 564599.5089 | CP43: 565825.7893 | CQ43: 566862.8734 | CS43: 396567.5905 | CT43: 398878.7925 | CU43: 403917.9042 | CV43: 413983.0163 | CW43: 427614.4239 | CX43: 441796.5455 | CY43: 454950.0524 | CZ43: 465150.4818 | DA43: 476106.7051 | DB43: 487379.9604 | DC43: 499663.0657 | DD43: 509724.517 | DE43: 519733.5797 | DF43: 533137.2041 | DG43: 551826.1203 | DH43: 571151.6881 | DI43: 587569.6578 | DJ43: 602911.9593 | DK43: 617237.5479 | DL43: 630529.3732 | DM43: 642796.4922 | DN43: 653879.0852 | DO43: 663876.6838 | DP43: 673431.1741 | DQ43: 682263.5692 | DR43: 690600.394 | DS43: 698479.599 | DT43: 705946.5369 | DU43: 711315.6913 | DV43: 710337.3526 | DX43: 396567.5905 | DY43: 398372.4265 | DZ43: 405854.9172 | EA43: 416529.5963 | EB43: 430308.4655 | EC43: 444457.9408 | ED43: 457998.6734 | EE43: 468461.655 | EF43: 480968.4383 | EG43: 504641.8355 | EH43: 522746.0906 | EI43: 540489.9009 | EJ43: 557924.0527 | EK43: 574719.9669 | EL43: 591170.6048 | EM43: 606913.4821 | EN43: 621325.1189 | EO43: 634466.5206 | EP43: 646311.2381 | EQ43: 657044.9512 | ER43: 666646.8117 | ES43: 675092.2069 | ET43: 682426.4053 | EU43: 688336.6769 | EV43: 687691.486 | EW43: 686585.1057 | EX43: 685138.9072 | EY43: 683442.194 | EZ43: 681510.0081 | FA43: 679441.5032
A44: Staffordshire | B44: Staffordshire Moorlands | D44: 29.27690876 | E44: 29.26892757 | F44: 30.10190909 | G44: 31.09165697 | H44: 32.20054847 | I44: 33.33946088 | J44: 34.49840682 | K44: 35.74101966 | L44: 37.02653992 | M44: 38.55791025 | N44: 39.95859163 | O44: 41.25380537 | P44: 42.4744141 | Q44: 43.58419725 | R44: 44.66719056 | S44: 48.20843735 | T44: 51.43925391 | U44: 52.14715523 | V44: 52.77467331 | W44: 53.28331769 | X44: 53.74691031 | Y44: 54.14325084 | Z44: 54.46914259 | AA44: 54.7484106 | AB44: 54.87081706 | AC44: 54.97982114 | AD44: 55.0824765 | AE44: 55.17649017 | AF44: 55.2679057 | AG44: 55.36419071 | AI44: 29.28462229 | AJ44: 29.21126825 | AK44: 29.73040596 | AL44: 30.2413192 | AM44: 30.79123117 | AN44: 31.46335386 | AO44: 32.27715304 | AP44: 33.21096931 | AQ44: 34.25062495 | AR44: 35.37109556 | AS44: 36.08496922 | AT44: 36.75166244 | AU44: 37.37138963 | AV44: 37.96135981 | AW44: 38.57786854 | AX44: 39.16417794 | AY44: 39.65281071 | AZ44: 40.09650554 | BA44: 40.53588047 | BB44: 40.89228132 | BC44: 41.23439809 | BD44: 41.5468712 | BE44: 41.82366975 | BF44: 42.09001482 | BG44: 42.34184713 | BH44: 42.57347126 | BI44: 42.78961892 | BJ44: 42.99143397 | BK44: 43.16642824 | BL44: 43.26957839 | BN44: 29.27690876 | BO44: 29.26849611 | BP44: 30.10225416 | BQ44: 31.0916746 | BR44: 32.20018906 | BS44: 33.34065091 | BT44: 34.50316159 | BU44: 35.74622556 | BV44: 37.02914276 | BW44: 38.42734819 | BX44: 39.69853585 | BY44: 40.88280771 | BZ44: 42.00193215 | CA44: 43.0411494 | CB44: 44.00515968 | CC44: 47.42653558 | CD44: 50.58185124 | CE44: 51.21928889 | CF44: 51.77409218 | CG44: 52.20968948 | CH44: 52.616569 | CI44: 52.9699399 | CJ44: 53.26882328 | CK44: 53.53709846 | CL44: 53.66285436 | CM44: 53.76727006 | CN44: 53.85551521 | CO44: 53.92436991 | CP44: 53.97709216 | CQ44: 54.01971647 | CS44: 29.27665707 | CT44: 29.26870879 | CU44: 30.10780071 | CV44: 31.13063759 | CW44: 32.27934306 | CX44: 33.50564468 | CY44: 34.8145703 | CZ44: 36.23390294 | DA44: 37.654899 | DB44: 39.21705635 | DC44: 40.77102932 | DD44: 42.04536046 | DE44: 45.79311436 | DF44: 47.07121082 | DG44: 64.47567763 | DH44: 68.7251375 | DI44: 70.39682932 | DJ44: 71.98434777 | DK44: 73.4591927 | DL44: 74.77522288 | DM44: 76.00613625 | DN44: 77.09595824 | DO44: 78.07647498 | DP44: 79.03300212 | DQ44: 79.92308976 | DR44: 80.80276916 | DS44: 81.66881896 | DT44: 82.5271206 | DU44: 83.16388995 | DV44: 83.01965708 | DX44: 29.27665707 | DY44: 29.17668469 | DZ44: 30.4712397 | EA44: 31.53091011 | EB44: 32.64258748 | EC44: 33.75577987 | ED44: 34.96428313 | EE44: 36.2188703 | EF44: 37.75668178 | EG44: 42.51849352 | EH44: 44.86464382 | EI44: 52.04348014 | EJ44: 54.01265125 | EK44: 55.84584751 | EL44: 59.95270639 | EM44: 61.59915543 | EN44: 63.03011878 | EO44: 64.34202471 | EP44: 65.50210777 | EQ44: 66.51181647 | ER44: 67.43460229 | ES44: 68.31441781 | ET44: 69.04773169 | EU44: 69.65828029 | EV44: 69.46610201 | EW44: 69.25206892 | EX44: 69.02329784 | EY44: 68.79676716 | EZ44: 68.55248367 | FA44: 68.3050416
A45: Greater Manchester | B45: Stockport | D45: 1413400.816 | E45: 1469336.392 | F45: 1558521.419 | G45: 1622723.623 | H45: 1691597.992 | I45: 1755625.609 | J45: 1808697.522 | K45: 1869420.141 | L45: 1923052.922 | M45: 1985400.716 | N45: 2037296.823 | O45: 2075012.431 | P45: 2124119.655 | Q45: 2174508.263 | R45: 2227077.297 | S45: 2266383.083 | T45: 2292210.145 | U45: 2322320.36 | V45: 2341621.725 | W45: 2362139.626 | X45: 2377563.217 | Y45: 2389497.822 | Z45: 2398920.1 | AA45: 2406685.795 | AB45: 2420510.945 | AC45: 2423203.506 | AD45: 2425735.022 | AE45: 2429700.274 | AF45: 2431761.088 | AG45: 2434074.784 | AI45: 1413812.204 | AJ45: 1437635.623 | AK45: 1489839.069 | AL45: 1528630.294 | AM45: 1561653.179 | AN45: 1596063.627 | AO45: 1636071.883 | AP45: 1668923.806 | AQ45: 1709037.554 | AR45: 1749396.44 | AS45: 1770122.531 | AT45: 1789584.433 | AU45: 1807749.236 | AV45: 1824940.738 | AW45: 1842245.113 | AX45: 1858635.566 | AY45: 1872683.247 | AZ45: 1885212.977 | BA45: 1896960.45 | BB45: 1906483.945 | BC45: 1915563.485 | BD45: 1923813.854 | BE45: 1930899.764 | BF45: 1937678.843 | BG45: 1944022.353 | BH45: 1949644.708 | BI45: 1954680.582 | BJ45: 1959156.195 | BK45: 1962938.74 | BL45: 1965263.283 | BN45: 1413400.816 | BO45: 1469310.435 | BP45: 1558591.167 | BQ45: 1622777.426 | BR45: 1691630.389 | BS45: 1755724.959 | BT45: 1808958.759 | BU45: 1869689.187 | BV45: 1923025.818 | BW45: 1981193.738 | BX45: 2028950.177 | BY45: 2063029.738 | BZ45: 2108739.471 | CA45: 2156631.55 | CB45: 2205197.917 | CC45: 2240202.005 | CD45: 2262848.815 | CE45: 2289717.861 | CF45: 2305513.703 | CG45: 2322341.109 | CH45: 2334787.158 | CI45: 2344373.513 | CJ45: 2352147.757 | CK45: 2358965.818 | CL45: 2372485.883 | CM45: 2374474.957 | CN45: 2375817.6 | CO45: 2378057.778 | CP45: 2377755.852 | CQ45: 2377013.165 | CS45: 1413387.392 | CT45: 1468255.535 | CU45: 1556397.641 | CV45: 1620309.647 | CW45: 1688721.738 | CX45: 1753938.461 | CY45: 1812218.025 | CZ45: 1891567.58 | DA45: 1948220.316 | DB45: 2012101.205 | DC45: 2063649.931 | DD45: 2101365.16 | DE45: 2179870.667 | DF45: 2222872.629 | DG45: 2344994.726 | DH45: 2431127.003 | DI45: 2500055.309 | DJ45: 2563813.768 | DK45: 2622226.474 | DL45: 2676382.056 | DM45: 2725992.914 | DN45: 2770476.113 | DO45: 2810751.596 | DP45: 2849766.093 | DQ45: 2886179.21 | DR45: 2921184.356 | DS45: 2955282.811 | DT45: 2989591.592 | DU45: 3013391.627 | DV45: 3004714.442 | DX45: 1413387.392 | DY45: 1464361.803 | DZ45: 1563864.515 | EA45: 1628709.239 | EB45: 1686217.697 | EC45: 1798006.314 | ED45: 1877836.046 | EE45: 1937911.139 | EF45: 1995134.281 | EG45: 2128966.842 | EH45: 2237930.55 | EI45: 2311274.959 | EJ45: 2383603.862 | EK45: 2451419.462 | EL45: 2520033.223 | EM45: 2582126.977 | EN45: 2640248.032 | EO45: 2693866.845 | EP45: 2741525.327 | EQ45: 2785531.649 | ER45: 2824570.616 | ES45: 2859965.32 | ET45: 2891263.201 | EU45: 2916594.426 | EV45: 2907252.568 | EW45: 2896438.56 | EX45: 2884747.678 | EY45: 2872598.969 | EZ45: 2859746.777 | FA45: 2846710.632
A46: Greater Manchester | B46: Tameside | D46: 1080136.394 | E46: 1096363.875 | F46: 1137646.972 | G46: 1199073.074 | H46: 1270819.667 | I46: 1338123.562 | J46: 1407189.455 | K46: 1443759.203 | L46: 1482140.561 | M46: 1538441.488 | N46: 1598496.166 | O46: 1631335.131 | P46: 1662545.824 | Q46: 1691232.401 | R46: 1741054.86 | S46: 1767320.806 | T46: 1793234.107 | U46: 1813028.658 | V46: 1830697.771 | W46: 1849512.531 | X46: 1862627.841 | Y46: 1873729.69 | Z46: 1882670.222 | AA46: 1890363.787 | AB46: 1894374.429 | AC46: 1898174.459 | AD46: 1901589.807 | AE46: 1905211.927 | AF46: 1908942.755 | AG46: 1913074.323 | AI46: 1080521.331 | AJ46: 1080267.593 | AK46: 1107568.396 | AL46: 1150063.057 | AM46: 1199386.037 | AN46: 1248801.426 | AO46: 1303087.929 | AP46: 1328443.788 | AQ46: 1357726.921 | AR46: 1387093.021 | AS46: 1403943.771 | AT46: 1419806.174 | AU46: 1434719.677 | AV46: 1448885.855 | AW46: 1463174.902 | AX46: 1476766.903 | AY46: 1488404.115 | AZ46: 1498766.217 | BA46: 1508508.66 | BB46: 1516395.542 | BC46: 1523955.983 | BD46: 1530829.728 | BE46: 1536825.399 | BF46: 1542730.085 | BG46: 1548327.724 | BH46: 1553295.904 | BI46: 1557736.957 | BJ46: 1561661.574 | BK46: 1564945.922 | BL46: 1566925.09 | BN46: 1080136.394 | BO46: 1096339.251 | BP46: 1137675.826 | BQ46: 1199083.941 | BR46: 1270809.248 | BS46: 1338196.672 | BT46: 1407456.168 | BU46: 1444048.048 | BV46: 1482254.761 | BW46: 1535212.154 | BX46: 1591870.215 | BY46: 1621648.993 | BZ46: 1649931.159 | CA46: 1676372.966 | CB46: 1722679.478 | CC46: 1745074.332 | CD46: 1767941.969 | CE46: 1784559.096 | CF46: 1798764.732 | CG46: 1813909.26 | CH46: 1824103.393 | CI46: 1832955.516 | CJ46: 1840374.029 | CK46: 1847268.236 | CL46: 1851146.47 | CM46: 1854301.636 | CN46: 1856467.14 | CO46: 1858174.941 | CP46: 1859228.615 | CQ46: 1859862.092 | CS46: 1080123.833 | CT46: 1095680.366 | CU46: 1136335.737 | CV46: 1197564.078 | CW46: 1269504.591 | CX46: 1340892.896 | CY46: 1416274.614 | CZ46: 1457844.869 | DA46: 1499439.428 | DB46: 1550548.519 | DC46: 1605410.2 | DD46: 1637001.69 | DE46: 1668311.775 | DF46: 1720432.523 | DG46: 1801257.53 | DH46: 1864685.036 | DI46: 1923153.322 | DJ46: 1977945.872 | DK46: 2028699.282 | DL46: 2078364.644 | DM46: 2121461.939 | DN46: 2160158.947 | DO46: 2195176.443 | DP46: 2229290.708 | DQ46: 2260995.973 | DR46: 2292044.031 | DS46: 2322312.372 | DT46: 2352217.64 | DU46: 2373783.544 | DV46: 2367274.028 | DX46: 1080123.833 | DY46: 1092589.487 | DZ46: 1141641.61 | EA46: 1204129.278 | EB46: 1276632.513 | EC46: 1345122.37 | ED46: 1419392.115 | EE46: 1474867.278 | EF46: 1517448.633 | EG46: 1599008.537 | EH46: 1686721.863 | EI46: 1766819.631 | EJ46: 1830392.321 | EK46: 1890495.838 | EL46: 1954117.668 | EM46: 2008711.869 | EN46: 2058297.007 | EO46: 2103845.252 | EP46: 2145112.636 | EQ46: 2182570.757 | ER46: 2216396.497 | ES46: 2246745.756 | ET46: 2273728.2 | EU46: 2296378.914 | EV46: 2289625.189 | EW46: 2281992.52 | EX46: 2273552.391 | EY46: 2264604.038 | EZ46: 2255078.683 | FA46: 2245235.148
A47: Greater Manchester | B47: Trafford | D47: 1517466.808 | E47: 1548908.039 | F47: 1585218.737 | G47: 1618654.992 | H47: 1652333.35 | I47: 1684937.505 | J47: 1717344.887 | K47: 1752141.198 | L47: 1799907.326 | M47: 1838747.987 | N47: 1892932.906 | O47: 1952410.128 | P47: 2029428.889 | Q47: 2065702.074 | R47: 2113257.893 | S47: 2158537.957 | T47: 2277838.671 | U47: 2299996.83 | V47: 2319249.234 | W47: 2345753.692 | X47: 2363617.022 | Y47: 2377268.494 | Z47: 2388592.67 | AA47: 2398303.547 | AB47: 2404863.823 | AC47: 2410565.94 | AD47: 2416699.157 | AE47: 2423279.573 | AF47: 2430346.674 | AG47: 2438269.517 | AI47: 1517832.643 | AJ47: 1527227.12 | AK47: 1546750.871 | AL47: 1563574.835 | AM47: 1577198.402 | AN47: 1593711.823 | AO47: 1614802.38 | AP47: 1639711.475 | AQ47: 1668100.46 | AR47: 1697540.663 | AS47: 1715941.702 | AT47: 1733734.783 | AU47: 1750780.943 | AV47: 1767279.942 | AW47: 1783916.381 | AX47: 1800005.426 | AY47: 1814170.168 | AZ47: 1827151.978 | BA47: 1839540.552 | BB47: 1849887.095 | BC47: 1860172.226 | BD47: 1870034.658 | BE47: 1879283.457 | BF47: 1888611.442 | BG47: 1897867.471 | BH47: 1906366.625 | BI47: 1914182.234 | BJ47: 1921308.595 | BK47: 1927685.324 | BL47: 1932765.286 | BN47: 1517466.808 | BO47: 1548869.281 | BP47: 1585210.67 | BQ47: 1618614.514 | BR47: 1652257.966 | BS47: 1685022.283 | BT47: 1717791.767 | BU47: 1752644.017 | BV47: 1800287.618 | BW47: 1835727.823 | BX47: 1886305.88 | BY47: 1942368.602 | BZ47: 2015964.766 | CA47: 2049382.466 | CB47: 2092680.898 | CC47: 2132965.31 | CD47: 2247781.14 | CE47: 2265022.285 | CF47: 2278804.346 | CG47: 2299408.51 | CH47: 2312604.866 | CI47: 2322723.348 | CJ47: 2331704.19 | CK47: 2340245.015 | CL47: 2346731.351 | CM47: 2351336.864 | CN47: 2355194.766 | CO47: 2358208.766 | CP47: 2360277.121 | CQ47: 2361675.936 | CS47: 1517454.871 | CT47: 1548101.883 | CU47: 1583706.05 | CV47: 1617285.208 | CW47: 1663116.311 | CX47: 1717664.61 | CY47: 1756410.85 | CZ47: 1799723.778 | DA47: 1852443.025 | DB47: 1895353.289 | DC47: 1952223.516 | DD47: 2014177.118 | DE47: 2098243.712 | DF47: 2142358.936 | DG47: 2361359.247 | DH47: 2461427.226 | DI47: 2522708.948 | DJ47: 2579407.936 | DK47: 2631606.953 | DL47: 2686122.985 | DM47: 2731556.73 | DN47: 2772375.789 | DO47: 2809351.154 | DP47: 2844812.119 | DQ47: 2877766.38 | DR47: 2908319.911 | DS47: 2937527.684 | DT47: 2965844.864 | DU47: 2986393.928 | DV47: 2980080.209 | DX47: 1517454.871 | DY47: 1545625.717 | DZ47: 1592410.176 | EA47: 1627049.603 | EB47: 1690301.51 | EC47: 1765681.613 | ED47: 1846280.834 | EE47: 1885471.028 | EF47: 1944749.215 | EG47: 2051386.96 | EH47: 2136875.919 | EI47: 2245812.292 | EJ47: 2311905.842 | EK47: 2374063.157 | EL47: 2441030.921 | EM47: 2500390.803 | EN47: 2552940.548 | EO47: 2601626.214 | EP47: 2645710.967 | EQ47: 2685521.201 | ER47: 2721393.208 | ES47: 2753144.864 | ET47: 2781044.919 | EU47: 2804058.48 | EV47: 2799120.194 | EW47: 2793054.328 | EX47: 2785926.889 | EY47: 2778617.665 | EZ47: 2770000.634 | FA47: 2760979.706
A48: Cheshire | B48: Warrington | D48: 153256.3455 | E48: 155840.015 | F48: 158984.0974 | G48: 163112.5616 | H48: 168153.7588 | I48: 173227.3615 | J48: 177993.2917 | K48: 182159.6437 | L48: 186484.5175 | M48: 191394.8497 | N48: 195904.3665 | O48: 200231.711 | P48: 204453.9932 | Q48: 208431.6762 | R48: 212404.6315 | S48: 216288.6158 | T48: 219745.9141 | U48: 223437.4986 | V48: 226501.8281 | W48: 229282.0731 | X48: 231743.0375 | Y48: 233890.3745 | Z48: 235705.4598 | AA48: 237289.7986 | AB48: 238394.2357 | AC48: 239577.1609 | AD48: 240876.2285 | AE48: 242300.644 | AF48: 243900.74 | AG48: 245688.3479 | AI48: 153333.6204 | AJ48: 153419.8166 | AK48: 154464.2352 | AL48: 155815.7783 | AM48: 157353.0227 | AN48: 159190.4409 | AO48: 161489.9458 | AP48: 163930.4742 | AQ48: 166887.1899 | AR48: 170241.1523 | AS48: 172414.6916 | AT48: 174547.667 | AU48: 176621.7662 | AV48: 178630.4978 | AW48: 180613.2771 | AX48: 182532.3274 | AY48: 184236.5933 | AZ48: 185806.2493 | BA48: 187308.1212 | BB48: 188572.2766 | BC48: 189855.1553 | BD48: 191114.3021 | BE48: 192328.697 | BF48: 193567.3563 | BG48: 194827.3702 | BH48: 195974.9057 | BI48: 197016.7313 | BJ48: 197947.8096 | BK48: 198772.4753 | BL48: 199448.0826 | BN48: 153256.3455 | BO48: 155833.6073 | BP48: 158973.6367 | BQ48: 163096.0429 | BR48: 168131.23 | BS48: 173236.2072 | BT48: 178071.7938 | BU48: 182250.9959 | BV48: 186581.6134 | BW48: 191054.8523 | BX48: 195074.0498 | BY48: 198913.6592 | BZ48: 202626.7622 | CA48: 206153.7773 | CB48: 209474.262 | CC48: 212568.1033 | CD48: 215270.8742 | CE48: 218120.53 | CF48: 220243.4251 | CG48: 222004.2699 | CH48: 223668.208 | CI48: 225224.6197 | CJ48: 226661.8122 | CK48: 228077.3883 | CL48: 229209.0571 | CM48: 230217.7548 | CN48: 231112.8422 | CO48: 231882.2172 | CP48: 232552.0585 | CQ48: 233117.4842 | CS48: 153253.8241 | CT48: 155765.9142 | CU48: 158816.619 | CV48: 162925.6283 | CW48: 167973.2299 | CX48: 173313.9301 | CY48: 178633.1149 | CZ48: 183523.6022 | DA48: 188544.4219 | DB48: 194014.3801 | DC48: 199202.926 | DD48: 204342.9371 | DE48: 209469.4462 | DF48: 215228.1069 | DG48: 224692.511 | DH48: 233815.4539 | DI48: 242321.6894 | DJ48: 250675.282 | DK48: 258171.2793 | DL48: 265156.8185 | DM48: 271601.8503 | DN48: 277481.5598 | DO48: 282831.9592 | DP48: 287940.6475 | DQ48: 292704.3068 | DR48: 297235.3872 | DS48: 301526.3082 | DT48: 305602.3933 | DU48: 308747.7397 | DV48: 308347.437 | DX48: 153253.8241 | DY48: 155556.0466 | DZ48: 160042.6613 | EA48: 164448.5296 | EB48: 169534.9227 | EC48: 174846.5179 | ED48: 180880.5397 | EE48: 185841.9921 | EF48: 191476.8922 | EG48: 201106.3484 | EH48: 210539.9714 | EI48: 219786.2462 | EJ48: 228878.9096 | EK48: 237637.5973 | EL48: 246226.3701 | EM48: 254434.7855 | EN48: 261981.7355 | EO48: 268903.1108 | EP48: 275195.801 | EQ48: 280926.8073 | ER48: 286069.9625 | ES48: 290644.0009 | ET48: 294668.4875 | EU48: 298028.8026 | EV48: 297717.5165 | EW48: 297199.3922 | EX48: 296515.7342 | EY48: 295712.1799 | EZ48: 294794.8203 | FA48: 293817.231
A49: Lancashire | B49: West Lancashire | D49: 407106.5191 | E49: 418955.6681 | F49: 428859.3911 | G49: 444164.966 | H49: 459392.3891 | I49: 474719.7039 | J49: 489468.3664 | K49: 504180.2558 | L49: 522640.396 | M49: 540618.1653 | N49: 567851.4212 | O49: 584239.9095 | P49: 597924.6367 | Q49: 622028.8569 | R49: 634552.0186 | S49: 646648.9794 | T49: 657030.665 | U49: 666464.9548 | V49: 674918.7339 | W49: 686208.7903 | X49: 692887.6354 | Y49: 698622.6015 | Z49: 703377.4203 | AA49: 707412.1815 | AB49: 709576.5834 | AC49: 711490.7225 | AD49: 713561.6226 | AE49: 715810.7467 | AF49: 718313.4469 | AG49: 721548.6768 | AI49: 407252.2536 | AJ49: 409953.5743 | AK49: 413834.9888 | AL49: 419604.5935 | AM49: 424759.0563 | AN49: 430427.1063 | AO49: 438037.3953 | AP49: 447026.6451 | AQ49: 459185.5947 | AR49: 471222.503 | AS49: 478497.9796 | AT49: 485449.309 | AU49: 492060.7428 | AV49: 498463.5443 | AW49: 505114.7361 | AX49: 511448.9554 | AY49: 516860.6632 | AZ49: 521724.3439 | BA49: 526390.7848 | BB49: 530193.4618 | BC49: 533908.3911 | BD49: 537411.529 | BE49: 540664.3167 | BF49: 543858.4678 | BG49: 547004.9461 | BH49: 549835.6951 | BI49: 552388.2924 | BJ49: 554660.3578 | BK49: 556561.4728 | BL49: 557860.115 | BN49: 407106.5191 | BO49: 418939.715 | BP49: 428864.0721 | BQ49: 444156.92 | BR49: 459370.1853 | BS49: 474759.1322 | BT49: 489648.2527 | BU49: 504380.0096 | BV49: 522766.9219 | BW49: 539231.4474 | BX49: 564867.0144 | BY49: 579755.4992 | BZ49: 591950.6714 | CA49: 614834.3962 | CB49: 625523.8718 | CC49: 635498.5577 | CD49: 644026.8057 | CE49: 651449.812 | CF49: 657676.0113 | CG49: 666572.1956 | CH49: 671352.4409 | CI49: 675641.8056 | CJ49: 679429.1208 | CK49: 682968.4042 | CL49: 685077.0232 | CM49: 686543.5079 | CN49: 687712.4846 | CO49: 688561.7145 | CP49: 689108.126 | CQ49: 689793.4172 | CS49: 407101.7639 | CT49: 418695.8966 | CU49: 428420.9295 | CV49: 443785.3124 | CW49: 459210.5928 | CX49: 475607.1918 | CY49: 492865.2624 | CZ49: 511013.829 | DA49: 533415.2564 | DB49: 557576.7013 | DC49: 585896.0501 | DD49: 603970.2891 | DE49: 620954.604 | DF49: 648618.4143 | DG49: 680806.6526 | DH49: 719969.428 | DI49: 745748.5345 | DJ49: 769735.8274 | DK49: 791862.0239 | DL49: 813125.0613 | DM49: 832146.2305 | DN49: 849122.9218 | DO49: 864456.7576 | DP49: 879205.3724 | DQ49: 892867.6175 | DR49: 905644.8107 | DS49: 917922.9323 | DT49: 929817.1301 | DU49: 938305.3336 | DV49: 935805.7493 | DX49: 407101.7639 | DY49: 417561.0444 | DZ49: 431419.178 | EA49: 447590.8885 | EB49: 463186.4571 | EC49: 479167.614 | ED49: 496421.675 | EE49: 514706.9693 | EF49: 537485.3621 | EG49: 598104.8672 | EH49: 631635.8969 | EI49: 662966.15 | EJ49: 690442.4273 | EK49: 716672.5574 | EL49: 742986.2055 | EM49: 767348.0569 | EN49: 789651.2018 | EO49: 809962.3882 | EP49: 828025.5131 | EQ49: 844239.2511 | ER49: 858949.255 | ES49: 871991.4627 | ET49: 883455.3098 | EU49: 892943.2368 | EV49: 890720.1096 | EW49: 887667.7603 | EX49: 884190.153 | EY49: 880419.6449 | EZ49: 876350.4498 | FA49: 872412.7019
A50: Greater Manchester | B50: Wigan | D50: 1519532.026 | E50: 1565370.517 | F50: 1622041.854 | G50: 1672467.881 | H50: 1725144.399 | I50: 1782073.134 | J50: 1838581.371 | K50: 1887753.962 | L50: 1950663.731 | M50: 2011404.357 | N50: 2087654.788 | O50: 2137336.514 | P50: 2183645.607 | Q50: 2249257.335 | R50: 2292339.143 | S50: 2333206.868 | T50: 2368643.611 | U50: 2400973.115 | V50: 2430401.611 | W50: 2463656.095 | X50: 2486782.218 | Y50: 2506726.206 | Z50: 2523376.561 | AA50: 2537568.581 | AB50: 2545943.885 | AC50: 2553936.468 | AD50: 2562479.796 | AE50: 2571595.966 | AF50: 2581625.629 | AG50: 2593245.575 | AI50: 1519999.812 | AJ50: 1531932.855 | AK50: 1556490.7 | AL50: 1575465.524 | AM50: 1593319.125 | AN50: 1613657.67 | AO50: 1639992.672 | AP50: 1669973.095 | AQ50: 1711069.267 | AR50: 1751303.726 | AS50: 1776242.406 | AT50: 1800151.543 | AU50: 1822931.602 | AV50: 1844932.392 | AW50: 1867396.621 | AX50: 1888895.836 | AY50: 1907514.441 | AZ50: 1924338.495 | BA50: 1940407.286 | BB50: 1953622.75 | BC50: 1966614.509 | BD50: 1978907.67 | BE50: 1990296.679 | BF50: 2001607.197 | BG50: 2012764.654 | BH50: 2022854.337 | BI50: 2032000.13 | BJ50: 2040193.237 | BK50: 2047226.939 | BL50: 2052154.319 | BN50: 1519532.026 | BO50: 1565317.28 | BP50: 1622042.072 | BQ50: 1672424.446 | BR50: 1725053.315 | BS50: 1782195.984 | BT50: 1839189.47 | BU50: 1888434.44 | BV50: 1951143.721 | BW50: 2006841.019 | BX50: 2077758.339 | BY50: 2122424.444 | BZ50: 2163742.791 | CA50: 2225252.078 | CB50: 2262170.645 | CC50: 2295899.876 | CD50: 2325083.998 | CE50: 2350623.016 | CF50: 2372529.581 | CG50: 2397700.648 | CH50: 2414431.633 | CI50: 2429525.64 | CJ50: 2442954.571 | CK50: 2455532.347 | CL50: 2463791.083 | CM50: 2470308.787 | CN50: 2475806.263 | CO50: 2480155.404 | CP50: 2483498.648 | CQ50: 2486385.234 | CS50: 1519516.762 | CT50: 1564266.27 | CU50: 1620080.455 | CV50: 1670516.369 | CW50: 1723532.517 | CX50: 1783584.303 | CY50: 1848844.978 | CZ50: 1910709.687 | DA50: 1982137.199 | DB50: 2050452.018 | DC50: 2130860.074 | DD50: 2185518.457 | DE50: 2239192.661 | DF50: 2319916.723 | DG50: 2426330.051 | DH50: 2543549.259 | DI50: 2632388.568 | DJ50: 2715171.108 | DK50: 2792065.089 | DL50: 2864872.01 | DM50: 2930841.102 | DN50: 2990019.643 | DO50: 3043589.296 | DP50: 3095149.65 | DQ50: 3143031.447 | DR50: 3188400.981 | DS50: 3231944.635 | DT50: 3274056.659 | DU50: 3304401.921 | DV50: 3296250.113 | DX50: 1519516.762 | DY50: 1560453.711 | DZ50: 1630284.701 | EA50: 1683275.627 | EB50: 1736560.882 | EC50: 1798029.032 | ED50: 1864398.9 | EE50: 1923788.957 | EF50: 1999429.197 | EG50: 2164568.498 | EH50: 2268201.178 | EI50: 2367758.796 | EJ50: 2462689.784 | EK50: 2553265.538 | EL50: 2642976.109 | EM50: 2726852.211 | EN50: 2804026.635 | EO50: 2874489.96 | EP50: 2937739.358 | EQ50: 2994785.232 | ER50: 3046299.894 | ES50: 3092078.779 | ET50: 3132423.897 | EU50: 3165429.887 | EV50: 3158314.96 | EW50: 3148862.865 | EX50: 3137970.678 | EY50: 3126084.658 | EZ50: 3113178.314 | FA50: 3100116.192
A51: Lancashire | B51: Wyre | D51: 476779.303 | E51: 489475.0749 | F51: 501102.386 | G51: 515982.2652 | H51: 532855.0517 | I51: 550043.3224 | J51: 567220.9671 | K51: 585031.2221 | L51: 603906.2943 | M51: 625766.1911 | N51: 645830.1685 | O51: 672305.506 | P51: 690282.184 | Q51: 709648.8209 | R51: 725791.1755 | S51: 741341.8427 | T51: 754432.0358 | U51: 766050.4808 | V51: 776174.0286 | W51: 791223.0438 | X51: 798790.5533 | Y51: 805236.3234 | Z51: 810685.7256 | AA51: 815339.2881 | AB51: 817571.4257 | AC51: 819706.2392 | AD51: 821902.2237 | AE51: 824199.2762 | AF51: 826571.2044 | AG51: 830275.9229 | AI51: 476963.4382 | AJ51: 481096.5685 | AK51: 487605.0696 | AL51: 494372.4638 | AM51: 501628.4214 | AN51: 510588.3469 | AO51: 521726.813 | AP51: 534484.3296 | AQ51: 549382.1133 | AR51: 565539.7687 | AS51: 575316.2945 | AT51: 584588.5228 | AU51: 593339.8064 | AV51: 601723.9366 | AW51: 610307.4434 | AX51: 618444.3927 | AY51: 625413.3813 | AZ51: 631669.6669 | BA51: 637660.2208 | BB51: 642554.044 | BC51: 647252.0867 | BD51: 651586.7866 | BE51: 655456.6933 | BF51: 659274.1658 | BG51: 662938.2147 | BH51: 666256.0283 | BI51: 669285.207 | BJ51: 672031.1503 | BK51: 674392.6159 | BL51: 676441.3852 | BN51: 476779.303 | BO51: 489460.7492 | BP51: 501117.3217 | BQ51: 515986.5951 | BR51: 532846.9499 | BS51: 550084.8076 | BT51: 567377.0693 | BU51: 585200.9298 | BV51: 603979.6701 | BW51: 623913.2824 | BX51: 642017.2935 | BY51: 666723.5582 | BZ51: 683003.8202 | CA51: 701066.0084 | CB51: 715168.4072 | CC51: 728469.7188 | CD51: 739783.6882 | CE51: 749546.8863 | CF51: 757647.8069 | CG51: 770553.2527 | CH51: 776417.3197 | CI51: 781554.4212 | CJ51: 786122.2146 | CK51: 790317.9787 | CL51: 792483.4685 | CM51: 794246.9353 | CN51: 795712.4806 | CO51: 796884.8975 | CP51: 797680.4124 | CQ51: 799322.8495 | CS51: 476773.2949 | CT51: 489340.0076 | CU51: 500883.8952 | CV51: 515924.0986 | CW51: 533204.0259 | CX51: 551892.8865 | CY51: 573048.1182 | CZ51: 596979.4035 | DA51: 624574.7331 | DB51: 664640.2293 | DC51: 685530.8678 | DD51: 714208.7855 | DE51: 739850.91 | DF51: 760389.9867 | DG51: 798281.5934 | DH51: 837766.6932 | DI51: 867734.7847 | DJ51: 895532.3013 | DK51: 921526.2356 | DL51: 948073.5457 | DM51: 969665.8428 | DN51: 988863.4392 | DO51: 1006123.104 | DP51: 1022976.634 | DQ51: 1038581.538 | DR51: 1053812.963 | DS51: 1068720.741 | DT51: 1083465.109 | DU51: 1094271.772 | DV51: 1092645.444 | DX51: 476773.2949 | DY51: 487790.1809 | DZ51: 504649.8761 | EA51: 520520.1412 | EB51: 537790.5593 | EC51: 555471.3652 | ED51: 576584.4303 | EE51: 601652.9076 | EF51: 625987.6295 | EG51: 671331.5641 | EH51: 723288.8418 | EI51: 769261.5607 | EJ51: 801962.4275 | EK51: 833167.4086 | EL51: 865652.1095 | EM51: 894216.6091 | EN51: 919691.8658 | EO51: 942844.8814 | EP51: 963404.9302 | EQ51: 981775.9738 | ER51: 998268.8008 | ES51: 1012984.487 | ET51: 1025933.929 | EU51: 1037121.023 | EV51: 1034362.704 | EW51: 1030997.371 | EX51: 1027237.755 | EY51: 1023223.206 | EZ51: 1018923.053 | FA51: 1015547.245
B52: County | C52: (Years as financial years, ie 2051 is FY2050/51) | D52: 2022 | E52: 2023 | F52: 2024 | G52: 2025 | H52: 2026 | I52: 2027 | J52: 2028 | K52: 2029 | L52: 2030 | M52: 2031 | N52: 2032 | O52: 2033 | P52: 2034 | Q52: 2035 | R52: 2036 | S52: 2037 | T52: 2038 | U52: 2039 | V52: 2040 | W52: 2041 | X52: 2042 | Y52: 2043 | Z52: 2044 | AA52: 2045 | AB52: 2046 | AC52: 2047 | AD52: 2048 | AE52: 2049 | AF52: 2050 | AG52: 2051 | AH52: (Years as financial years, ie 2051 is FY2050/51) | AI52: 2022 | AJ52: 2023 | AK52: 2024 | AL52: 2025 | AM52: 2026 | AN52: 2027 | AO52: 2028 | AP52: 2029 | AQ52: 2030 | AR52: 2031 | AS52: 2032 | AT52: 2033 | AU52: 2034 | AV52: 2035 | AW52: 2036 | AX52: 2037 | AY52: 2038 | AZ52: 2039 | BA52: 2040 | BB52: 2041 | BC52: 2042 | BD52: 2043 | BE52: 2044 | BF52: 2045 | BG52: 2046 | BH52: 2047 | BI52: 2048 | BJ52: 2049 | BK52: 2050 | BL52: 2051 | BM52: (Years as financial years, ie 2051 is FY2050/51) | BN52: 2022 | BO52: 2023 | BP52: 2024 | BQ52: 2025 | BR52: 2026 | BS52: 2027 | BT52: 2028 | BU52: 2029 | BV52: 2030 | BW52: 2031 | BX52: 2032 | BY52: 2033 | BZ52: 2034 | CA52: 2035 | CB52: 2036 | CC52: 2037 | CD52: 2038 | CE52: 2039 | CF52: 2040 | CG52: 2041 | CH52: 2042 | CI52: 2043 | CJ52: 2044 | CK52: 2045 | CL52: 2046 | CM52: 2047 | CN52: 2048 | CO52: 2049 | CP52: 2050 | CQ52: 2051 | CR52: (Years as financial years, ie 2051 is FY2050/51) | CS52: 2022 | CT52: 2023 | CU52: 2024 | CV52: 2025 | CW52: 2026 | CX52: 2027 | CY52: 2028 | CZ52: 2029 | DA52: 2030 | DB52: 2031 | DC52: 2032 | DD52: 2033 | DE52: 2034 | DF52: 2035 | DG52: 2036 | DH52: 2037 | DI52: 2038 | DJ52: 2039 | DK52: 2040 | DL52: 2041 | DM52: 2042 | DN52: 2043 | DO52: 2044 | DP52: 2045 | DQ52: 2046 | DR52: 2047 | DS52: 2048 | DT52: 2049 | DU52: 2050 | DV52: 2051 | DW52: (Years as financial years, ie 2051 is FY2050/51) | DX52: 2022 | DY52: 2023 | DZ52: 2024 | EA52: 2025 | EB52: 2026 | EC52: 2027 | ED52: 2028 | EE52: 2029 | EF52: 2030 | EG52: 2031 | EH52: 2032 | EI52: 2033 | EJ52: 2034 | EK52: 2035 | EL52: 2036 | EM52: 2037 | EN52: 2038 | EO52: 2039 | EP52: 2040 | EQ52: 2041 | ER52: 2042 | ES52: 2043 | ET52: 2044 | EU52: 2045 | EV52: 2046 | EW52: 2047 | EX52: 2048 | EY52: 2049 | EZ52: 2050 | FA52: 2051
B54: Cumberland** | D54: 1972559.587 | E54: 2008193.066 | F54: 2046708.551 | G54: 2100983.441 | H54: 2155652.77 | I54: 2216465.956 | J54: 2310841.534 | K54: 2387018.712 | L54: 2453111.263 | M54: 2527231.467 | N54: 2588815.954 | O54: 2655409.252 | P54: 2709611.429 | Q54: 2772395.311 | R54: 2859370.324 | S54: 2965714.971 | T54: 3007263.702 | U54: 3046678.296 | V54: 3087774.433 | W54: 3130542.523 | X54: 3149893.441 | Y54: 3187374.812 | Z54: 3200091.667 | AA54: 3211456.999 | AB54: 3227671.585 | AC54: 3230248.581 | AD54: 3231593.108 | AE54: 3234878.194 | AF54: 3237385.236 | AG54: 3241003.194 | AI54: 1973215.715 | AJ54: 1983395.769 | AK54: 2002052.281 | AL54: 2024024.356 | AM54: 2044318.476 | AN54: 2066466.924 | AO54: 2095844.144 | AP54: 2131116.87 | AQ54: 2172081.747 | AR54: 2218383.453 | AS54: 2243605.859 | AT54: 2266407.29 | AU54: 2288076.057 | AV54: 2309764.577 | AW54: 2334792.626 | AX54: 2358723.028 | AY54: 2379168.208 | AZ54: 2397364.186 | BA54: 2415420.817 | BB54: 2430649.936 | BC54: 2445432.883 | BD54: 2459309.37 | BE54: 2471828.003 | BF54: 2484159.819 | BG54: 2496128.436 | BH54: 2507122.546 | BI54: 2517292.387 | BJ54: 2526632.598 | BK54: 2533889.377 | BL54: 2535938.667 | BN54: 1972559.587 | BO54: 2008146.166 | BP54: 2046780.219 | BQ54: 2101022.133 | BR54: 2155651.357 | BS54: 2216614.674 | BT54: 2311341.053 | BU54: 2387553.787 | BV54: 2453266.096 | BW54: 2522383.15 | BX54: 2578759.343 | BY54: 2640544.499 | BZ54: 2690053.604 | CA54: 2749110.94 | CB54: 2830415.834 | CC54: 2930327.766 | CD54: 2966506.057 | CE54: 3000187.558 | CF54: 3034975.863 | CG54: 3071000.348 | CH54: 3084954.137 | CI54: 3118258.113 | CJ54: 3128101.647 | CK54: 3137884.961 | CL54: 3153714.281 | CM54: 3154956.291 | CN54: 3153847.541 | CO54: 3153450.279 | CP54: 3150878.185 | CQ54: 3147919.871 | CS54: 1972538.178 | CT54: 2008670.458 | CU54: 2047683.83 | CV54: 2103184.823 | CW54: 2161064.793 | CX54: 2228897.03 | CY54: 2333266.689 | CZ54: 2421314.351 | DA54: 2496763.681 | DB54: 2589052.927 | DC54: 2653123.18 | DD54: 2718917.989 | DE54: 2829154.476 | DF54: 2909551.303 | DG54: 3184451.626 | DH54: 3304845.567 | DI54: 3388067.099 | DJ54: 3461862.799 | DK54: 3526525.048 | DL54: 3595591.611 | DM54: 3646520.45 | DN54: 3691505.371 | DO54: 3729844.799 | DP54: 3767862.641 | DQ54: 3801426.652 | DR54: 3835061.971 | DS54: 3867653.395 | DT54: 3900894.11 | DU54: 3922906.703 | DV54: 3910063.392 | DX54: 1972538.178 | DY54: 2004143.719 | DZ54: 2054717.512 | EA54: 2112449.543 | EB54: 2173699.245 | EC54: 2290814.023 | ED54: 2458105.002 | EE54: 2574631.94 | EF54: 2645438.978 | EG54: 2767065.27 | EH54: 2983534.215 | EI54: 3072069.961 | EJ54: 3168958.711 | EK54: 3249306.964 | EL54: 3332966.704 | EM54: 3407204.852 | EN54: 3472337.751 | EO54: 3531531.444 | EP54: 3581970.996 | EQ54: 3626131.055 | ER54: 3664199.695 | ES54: 3697565.348 | ET54: 3725849.227 | EU54: 3750310.464 | EV54: 3738537.27 | EW54: 3725321.741 | EX54: 3710859.603 | EY54: 3695787.039 | EZ54: 3679528.981 | FA54: 3662974.241
B55: Westmorland and Furness** | D55: 1760070.527 | E55: 1791865.641 | F55: 1826232.207 | G55: 1874660.545 | H55: 1923440.916 | I55: 1977703.268 | J55: 2061912.241 | K55: 2129883.405 | L55: 2188856.405 | M55: 2254992.371 | N55: 2309943.049 | O55: 2369363.213 | P55: 2417726.803 | Q55: 2473747.637 | R55: 2551353.281 | S55: 2646241.792 | T55: 2683314.91 | U55: 2718483.749 | V55: 2755152.918 | W55: 2793314.135 | X55: 2810580.65 | Y55: 2844024.324 | Z55: 2855371.382 | AA55: 2865512.495 | AB55: 2879980.335 | AC55: 2882279.794 | AD55: 2883479.565 | AE55: 2886410.839 | AF55: 2888647.892 | AG55: 2891876.236 | AI55: 1760655.976 | AJ55: 1769739.478 | AK55: 1786386.319 | AL55: 1805991.571 | AM55: 1824099.661 | AN55: 1843862.383 | AO55: 1870075.194 | AP55: 1901548.44 | AQ55: 1938100.683 | AR55: 1979414.871 | AS55: 2001920.418 | AT55: 2022265.785 | AU55: 2041600.491 | AV55: 2060952.807 | AW55: 2083284.883 | AX55: 2104637.545 | AY55: 2122880.408 | AZ55: 2139116.352 | BA55: 2155227.949 | BB55: 2168816.603 | BC55: 2182007.144 | BD55: 2194388.864 | BE55: 2205558.996 | BF55: 2216562.436 | BG55: 2227241.798 | BH55: 2237051.624 | BI55: 2246125.97 | BJ55: 2254460.053 | BK55: 2260935.14 | BL55: 2262763.744 | BN55: 1760070.527 | BO55: 1791823.794 | BP55: 1826296.154 | BQ55: 1874695.068 | BR55: 1923439.654 | BS55: 1977835.965 | BT55: 2062357.952 | BU55: 2130360.842 | BV55: 2188994.561 | BW55: 2250666.298 | BX55: 2300969.702 | BY55: 2356099.642 | BZ55: 2400275.685 | CA55: 2452971.389 | CB55: 2525517.683 | CC55: 2614666.399 | CD55: 2646947.574 | CE55: 2677000.882 | CF55: 2708041.695 | CG55: 2740185.723 | CH55: 2752636.482 | CI55: 2782352.749 | CJ55: 2791135.999 | CK55: 2799865.51 | CL55: 2813989.587 | CM55: 2815097.867 | CN55: 2814108.629 | CO55: 2813754.215 | CP55: 2811459.255 | CQ55: 2808819.72 | CS55: 1760051.424 | CT55: 1792291.597 | CU55: 1827102.408 | CV55: 1876624.764 | CW55: 1928269.903 | CX55: 1988795.189 | CY55: 2081921.725 | CZ55: 2160484.796 | DA55: 2227806.923 | DB55: 2310155.331 | DC55: 2367324.011 | DD55: 2426031.804 | DE55: 2524393.302 | DF55: 2596129.634 | DG55: 2841415.797 | DH55: 2948841.05 | DI55: 3023098.176 | DJ55: 3088944.847 | DK55: 3146641.951 | DL55: 3208268.918 | DM55: 3253711.974 | DN55: 3293851.363 | DO55: 3328061.115 | DP55: 3361983.909 | DQ55: 3391932.643 | DR55: 3421944.986 | DS55: 3451025.882 | DT55: 3480686.114 | DU55: 3500327.692 | DV55: 3488867.959 | DX55: 1760051.424 | DY55: 1788252.47 | DZ55: 1833378.493 | EA55: 1884891.568 | EB55: 1939543.407 | EC55: 2044041.835 | ED55: 2193310.987 | EE55: 2297285.226 | EF55: 2360465.042 | EG55: 2468990.137 | EH55: 2662140.53 | EI55: 2741140.054 | EJ55: 2827592.107 | EK55: 2899285.541 | EL55: 2973933.776 | EM55: 3040175.263 | EN55: 3098292.301 | EO55: 3151109.882 | EP55: 3196116.318 | EQ55: 3235519.675 | ER55: 3269487.779 | ES55: 3299259.485 | ET55: 3324496.816 | EU55: 3346323.254 | EV55: 3335818.302 | EW55: 3324026.376 | EX55: 3311122.124 | EY55: 3297673.198 | EZ55: 3283166.483 | FA55: 3268395.089
B56: Lancashire | D56: 6529722.674 | E56: 6712935.719 | F56: 6939515.304 | G56: 7140610.59 | H56: 7376070.665 | I56: 7588140.155 | J56: 7810991.973 | K56: 8025231.55 | L56: 8361925.679 | M56: 8642337.01 | N56: 8899466.87 | O56: 9196971.781 | P56: 9427006.425 | Q56: 9649043.674 | R56: 9864545.277 | S56: 10082773.17 | T56: 10583994.44 | U56: 10750020.84 | V56: 10869919.73 | W56: 11081204.91 | X56: 11171289.09 | Y56: 11254334.09 | Z56: 11334882.48 | AA56: 11394071.19 | AB56: 11419006.91 | AC56: 11440553.91 | AD56: 11468080.69 | AE56: 11489108.44 | AF56: 11510578.79 | AG56: 11547709.46 | AI56: 6532108.363 | AJ56: 6583341.02 | AK56: 6725688.345 | AL56: 6810523.589 | AM56: 6892646.92 | AN56: 6993991.977 | AO56: 7127447.757 | AP56: 7275940.369 | AQ56: 7481498.137 | AR56: 7675758.874 | AS56: 7791238.205 | AT56: 7900793.053 | AU56: 8004321.667 | AV56: 8103556.445 | AW56: 8205602.881 | AX56: 8302458.273 | AY56: 8385415.791 | AZ56: 8459649.38 | BA56: 8530321.918 | BB56: 8588356.555 | BC56: 8644348.564 | BD56: 8696353.619 | BE56: 8743192.532 | BF56: 8789004.562 | BG56: 8833316.713 | BH56: 8873180.567 | BI56: 8909258.751 | BJ56: 8941579.533 | BK56: 8968807.035 | BL56: 8987895.284 | BN56: 6529722.674 | BO56: 6712733.091 | BP56: 6939731.292 | BQ56: 7140676.925 | BR56: 7375961.28 | BS56: 7588729.624 | BT56: 7813197.546 | BU56: 8027627.699 | BV56: 8362945.798 | BW56: 8620241.807 | BX56: 8853553.558 | BY56: 9129249.307 | BZ56: 9338105.806 | CA56: 9543448.669 | CB56: 9733309.451 | CC56: 9922632.235 | CD56: 10399961.39 | CE56: 10540561.76 | CF56: 10632508.62 | CG56: 10813943.74 | CH56: 10880232.64 | CI56: 10944964.53 | CJ56: 11013069.43 | CK56: 11065629.83 | CL56: 11089328.93 | CM56: 11105256.71 | CN56: 11122025.57 | CO56: 11126652.76 | CP56: 11125323.9 | CQ56: 11132796.93 | CS56: 6529644.831 | CT56: 6710089.07 | CU56: 6934357.465 | CV56: 7136067.785 | CW56: 7374855.928 | CX56: 7602788.622 | CY56: 7864995.45 | CZ56: 8147385.648 | DA56: 8546521.336 | DB56: 8928909.811 | DC56: 9195722.794 | DD56: 9501594.405 | DE56: 9831219.616 | DF56: 10101029.61 | DG56: 10700768.58 | DH56: 11209109.59 | DI56: 11600262.5 | DJ56: 11964289.23 | DK56: 12622817.13 | DL56: 12957802.28 | DM56: 13235871.8 | DN56: 13486920.67 | DO56: 13709949.99 | DP56: 13933468.73 | DQ56: 14134917.08 | DR56: 14327962.2 | DS56: 14519234.53 | DT56: 14697832.02 | DU56: 14822449.95 | DV56: 14780924.71 | DX56: 6529644.831 | DY56: 6690523.565 | DZ56: 6976424.022 | EA56: 7186897.2 | EB56: 7412163.543 | EC56: 7686537.323 | ED56: 8051903.226 | EE56: 8349678.96 | EF56: 8708538.109 | EG56: 9263526.533 | EH56: 9801327.721 | EI56: 10380410.08 | EJ56: 10827343.17 | EK56: 11577764.14 | EL56: 12003458.67 | EM56: 12368171.84 | EN56: 12695784.97 | EO56: 12995634.06 | EP56: 13258915.55 | EQ56: 13495009.34 | ER56: 13710138.37 | ES56: 13904676.95 | ET56: 14072639.66 | EU56: 14217381.78 | EV56: 14174134.39 | EW56: 14121280.36 | EX56: 14067609.56 | EY56: 14002398.69 | EZ56: 13931114.78 | FA56: 13868136.3
B57: Greater Manchester | D57: 12862211.63 | E57: 13216704.89 | F57: 13776940.26 | G57: 14248304.38 | H57: 14741397.51 | I57: 15247708.64 | J57: 15729054.29 | K57: 16154026.84 | L57: 16645560.94 | M57: 17152797.1 | N57: 17665182.94 | O57: 18090993.18 | P57: 18539497.57 | Q57: 18955412.13 | R57: 19375958.89 | S57: 19743872.79 | T57: 20162473.96 | U57: 20419247.1 | V57: 20643077.35 | W57: 20886186.24 | X57: 21068007.4 | Y57: 21214370.21 | Z57: 21335250.54 | AA57: 21438882.99 | AB57: 21513255.06 | AC57: 21570798.25 | AD57: 21629323.95 | AE57: 21691640.35 | AF57: 21754955.25 | AG57: 21824787.25 | AI57: 12866148.41 | AJ57: 12966657.76 | AK57: 13263728.83 | AL57: 13514163.76 | AM57: 13745749.91 | AN57: 14009975.45 | AO57: 14310883.66 | AP57: 14590557.75 | AQ57: 14926212.69 | AR57: 15268862.77 | AS57: 15474257.81 | AT57: 15669960.69 | AU57: 15855456.64 | AV57: 16033345.07 | AW57: 16213350.82 | AX57: 16385783.2 | AY57: 16535423.11 | AZ57: 16670329.68 | BA57: 16797980.18 | BB57: 16902870.56 | BC57: 17004770.46 | BD57: 17099671.35 | BE57: 17185199.56 | BF57: 17270112.44 | BG57: 17352238.1 | BH57: 17426515.19 | BI57: 17494035.31 | BJ57: 17554890.19 | BK57: 17607810.29 | BL57: 17645426.49 | BN57: 12862211.63 | BO57: 13216352.71 | BP57: 13777297.26 | BQ57: 14248399.86 | BR57: 14741187.1 | BS57: 15248722.75 | BT57: 15732897.04 | BU57: 16158208.07 | BV57: 16647402.97 | BW57: 17115063.04 | BX57: 17586750.12 | BY57: 17975315.41 | BZ57: 18387648.89 | CA57: 18774992.95 | CB57: 19151685.77 | CC57: 19470003.44 | CD57: 19847332.88 | CE57: 20060039.5 | CF57: 20235332.45 | CG57: 20426522.22 | CH57: 20566928.12 | CI57: 20681404.73 | CJ57: 20780591.04 | CK57: 20872629.29 | CL57: 20944784.11 | CM57: 20992416.38 | CN57: 21032023.6 | CO57: 21065529.43 | CP57: 21088842.26 | CQ57: 21106682 | CS57: 12862083.18 | CT57: 13207669.17 | CU57: 13760115.03 | CV57: 14231000.77 | CW57: 14742692.05 | CX57: 15302263.07 | CY57: 15854888.28 | CZ57: 16390223.63 | DA57: 16929991.77 | DB57: 17457079.34 | DC57: 17982501.49 | DD57: 18427279.67 | DE57: 18960207.79 | DF57: 19470468.95 | DG57: 20597968.27 | DH57: 21464958.05 | DI57: 22166143.26 | DJ57: 22815621.71 | DK57: 23419007.89 | DL57: 23997808.18 | DM57: 24515171.66 | DN57: 24980336.89 | DO57: 25402381.42 | DP57: 25810899.2 | DQ57: 26191439.37 | DR57: 26556844.31 | DS57: 26910094.75 | DT57: 27256232.9 | DU57: 27507018.42 | DV57: 27439956.21 | DX57: 12862083.18 | DY57: 13173678.73 | DZ57: 13834839.04 | EA57: 14319290.93 | EB57: 14841546.76 | EC57: 15491230.15 | ED57: 16133983.19 | EE57: 16646774.46 | EF57: 17220005.31 | EG57: 18273632.24 | EH57: 19208783.38 | EI57: 20067294.09 | EJ57: 20819526.9 | EK57: 21527742.02 | EL57: 22241740.87 | EM57: 22895674.61 | EN57: 23496361.31 | EO57: 24048395.96 | EP57: 24547020.46 | EQ57: 25000219.66 | ER57: 25409033.97 | ES57: 25775345.93 | ET57: 26100318.06 | EU57: 26368554.97 | EV57: 26305624.44 | EW57: 26229057.79 | EX57: 26142143.56 | EY57: 26049145.09 | EZ57: 25947695.75 | FA57: 25843461.52
B58: Other* | D58: 1698520.087 | E58: 1723432.001 | F58: 1777005.207 | G58: 1841222.037 | H58: 1914751.901 | I58: 1985548.843 | J58: 2055353.688 | K58: 2110178.357 | L58: 2170550.18 | M58: 2237611.239 | N58: 2303488.593 | O58: 2355689.087 | P58: 2404350.891 | Q58: 2456970.017 | R58: 2511429.984 | S58: 2585822.021 | T58: 2648349.127 | U58: 2681135.01 | V58: 2709716.825 | W58: 2741957.716 | X58: 2765170.661 | Y58: 2784206.139 | Z58: 2799407.415 | AA58: 2812575.9 | AB58: 2820945.206 | AC58: 2827996.139 | AD58: 2835125.264 | AE58: 2842744.017 | AF58: 2850760.867 | AG58: 2859663.991 | AI58: 1699010.278 | AJ58: 1701487.248 | AK58: 1731930.039 | AL58: 1767755.535 | AM58: 1805421.602 | AN58: 1845705.565 | AO58: 1891875.103 | AP58: 1928323.396 | AQ58: 1969556.796 | AR58: 2012758.835 | AS58: 2038990.141 | AT58: 2063870.149 | AU58: 2087376.449 | AV58: 2109891.506 | AW58: 2132861.992 | AX58: 2154820.121 | AY58: 2173612.805 | AZ58: 2190574.351 | BA58: 2206873.573 | BB58: 2220199.313 | BC58: 2233192.494 | BD58: 2245302.558 | BE58: 2256262.19 | BF58: 2267110.612 | BG58: 2277641.728 | BH58: 2287171.721 | BI58: 2295843.144 | BJ58: 2303663.734 | BK58: 2310389.388 | BL58: 2314862.846 | BN58: 1698520.087 | BO58: 1723390.066 | BP58: 1777009.052 | BQ58: 1841191.779 | BR58: 1914684.209 | BS58: 1985647.69 | BT58: 2055830.824 | BU58: 2110711.055 | BV58: 2170914.489 | BW58: 2232883.325 | BX58: 2293514.573 | BY58: 2340913.498 | BZ58: 2384905.934 | CA58: 2433842.614 | CB58: 2482612.418 | CC58: 2550630.716 | CD58: 2607931.146 | CE58: 2635179.628 | CF58: 2657691.56 | CG58: 2683470.606 | CH58: 2701584.324 | CI58: 2716753.213 | CJ58: 2729404.946 | CK58: 2741326.893 | CL58: 2749656.952 | CM58: 2755634.339 | CN58: 2760486.078 | CO58: 2764508.647 | CP58: 2767440.11 | CQ58: 2769663.229 | CS58: 1698504.092 | CT58: 1722529.385 | CU58: 1775368.889 | CV58: 1839751.098 | CW58: 1913822.82 | CX58: 1988579.462 | CY58: 2066899.997 | CZ58: 2132325.078 | DA58: 2198654.937 | DB58: 2266984.061 | DC58: 2334831.679 | DD58: 2388564.05 | DE58: 2474871.8 | DF58: 2542665.408 | DG58: 2825948.722 | DH58: 2951652.32 | DI58: 3036290.492 | DJ58: 3115121.304 | DK58: 3187801.719 | DL58: 3256529.621 | DM58: 3318181.155 | DN58: 3373467.896 | DO58: 3423353.592 | DP58: 3471685.779 | DQ58: 3516492.386 | DR58: 3559767.537 | DS58: 3601640.104 | DT58: 3642604.903 | DU58: 3672374.926 | DV58: 3664379.112 | DX58: 1698504.092 | DY58: 1718606.7 | DZ58: 1786458.968 | EA58: 1852858.351 | EB58: 1926060.715 | EC58: 2002281.661 | ED58: 2084670.262 | EE58: 2153773.634 | EF58: 2224385.935 | EG58: 2372765.327 | EH58: 2494823.463 | EI58: 2652859.483 | EJ58: 2746597.017 | EK58: 2833411.848 | EL58: 2945923.842 | EM58: 3025478.181 | EN58: 3097432.537 | EO58: 3163336.912 | EP58: 3222435.878 | EQ58: 3275569.368 | ER58: 3323546.78 | ES58: 3366887.403 | ET58: 3404589.284 | EU58: 3435874.524 | EV58: 3427918.999 | EW58: 3418218.015 | EX58: 3407283.438 | EY58: 3395647.669 | EZ58: 3383046.347 | FA58: 3370011.204
B59: * includes Cheshire, North Yorkshire, Derbyshire, Northumberland, Merseyside, Straffordshire
B60: ** Originated from the split of Cumbria

Sheet LA Heat Pump Uptake
C9: Best View | BL9: Falling Short | DU9: System Transformation | GD9: Consumer Transformation | IM9: Leading the Way
A10: County | B10: Local Authority | C10: (Years as financial years, ie 2051 is FY2050/51) | D10: 2022 | F10: 2023 | H10: 2024 | J10: 2025 | L10: 2026 | N10: 2027 | P10: 2028 | R10: 2029 | T10: 2030 | V10: 2031 | X10: 2032 | Z10: 2033 | AB10: 2034 | AD10: 2035 | AF10: 2036 | AH10: 2037 | AJ10: 2038 | AL10: 2039 | AN10: 2040 | AP10: 2041 | AR10: 2042 | AT10: 2043 | AV10: 2044 | AX10: 2045 | AZ10: 2046 | BB10: 2047 | BD10: 2048 | BF10: 2049 | BH10: 2050 | BJ10: 2051 | BL10: (Years as financial years, ie 2051 is FY2050/51) | BM10: 2022 | BO10: 2023 | BQ10: 2024 | BS10: 2025 | BU10: 2026 | BW10: 2027 | BY10: 2028 | CA10: 2029 | CC10: 2030 | CE10: 2031 | CG10: 2032 | CI10: 2033 | CK10: 2034 | CM10: 2035 | CO10: 2036 | CQ10: 2037 | CS10: 2038 | CU10: 2039 | CW10: 2040 | CY10: 2041 | DA10: 2042 | DC10: 2043 | DE10: 2044 | DG10: 2045 | DI10: 2046 | DK10: 2047 | DM10: 2048 | DO10: 2049 | DQ10: 2050 | DS10: 2051 | DU10: (Years as financial years, ie 2051 is FY2050/51) | DV10: 2022 | DX10: 2023 | DZ10: 2024 | EB10: 2025 | ED10: 2026 | EF10: 2027 | EH10: 2028 | EJ10: 2029 | EL10: 2030 | EN10: 2031 | EP10: 2032 | ER10: 2033 | ET10: 2034 | EV10: 2035 | EX10: 2036 | EZ10: 2037 | FB10: 2038 | FD10: 2039 | FF10: 2040 | FH10: 2041 | FJ10: =FH10+1 -> 2042 | FL10: =FJ10+1 -> 2043 | FN10: =FL10+1 -> 2044 | FP10: =FN10+1 -> 2045 | FR10: =FP10+1 -> 2046 | FT10: =FR10+1 -> 2047 | FV10: =FT10+1 -> 2048 | FX10: =FV10+1 -> 2049 | FZ10: =FX10+1 -> 2050 | GB10: =FZ10+1 -> 2051 | GD10: (Years as financial years, ie 2051 is FY2050/51) | GE10: 2022 | GG10: =GE10+1 -> 2023 | GI10: =GG10+1 -> 2024 | GK10: =GI10+1 -> 2025 | GM10: =GK10+1 -> 2026 | GO10: =GM10+1 -> 2027 | GQ10: =GO10+1 -> 2028 | GS10: =GQ10+1 -> 2029 | GU10: =GS10+1 -> 2030 | GW10: =GU10+1 -> 2031 | GY10: =GW10+1 -> 2032 | HA10: =GY10+1 -> 2033 | HC10: =HA10+1 -> 2034 | HE10: =HC10+1 -> 2035 | HG10: =HE10+1 -> 2036 | HI10: =HG10+1 -> 2037 | HK10: =HI10+1 -> 2038 | HM10: =HK10+1 -> 2039 | HO10: =HM10+1 -> 2040 | HQ10: =HO10+1 -> 2041 | HS10: =HQ10+1 -> 2042 | HU10: =HS10+1 -> 2043 | HW10: =HU10+1 -> 2044 | HY10: =HW10+1 -> 2045 | IA10: =HY10+1 -> 2046 | IC10: =IA10+1 -> 2047 | IE10: =IC10+1 -> 2048 | IG10: =IE10+1 -> 2049 | II10: =IG10+1 -> 2050 | IK10: =II10+1 -> 2051 | IM10: (Years as financial years, ie 2051 is FY2050/51) | IN10: 2022 | IP10: =IN10+1 -> 2023 | IR10: =IP10+1 -> 2024 | IT10: =IR10+1 -> 2025 | IV10: =IT10+1 -> 2026 | IX10: =IV10+1 -> 2027 | IZ10: =IX10+1 -> 2028 | JB10: =IZ10+1 -> 2029 | JD10: =JB10+1 -> 2030 | JF10: =JD10+1 -> 2031 | JH10: =JF10+1 -> 2032 | JJ10: =JH10+1 -> 2033 | JL10: =JJ10+1 -> 2034 | JN10: =JL10+1 -> 2035 | JP10: =JN10+1 -> 2036 | JR10: =JP10+1 -> 2037 | JT10: =JR10+1 -> 2038 | JV10: =JT10+1 -> 2039 | JX10: =JV10+1 -> 2040 | JZ10: =JX10+1 -> 2041 | KB10: =JZ10+1 -> 2042 | KD10: =KB10+1 -> 2043 | KF10: =KD10+1 -> 2044 | KH10: =KF10+1 -> 2045 | KJ10: =KH10+1 -> 2046 | KL10: =KJ10+1 -> 2047 | KN10: =KL10+1 -> 2048 | KP10: =KN10+1 -> 2049 | KR10: =KP10+1 -> 2050 | KT10: =KR10+1 -> 2051
D11: dom | E11: non-dom | F11: dom | G11: non-dom | H11: dom | I11: non-dom | J11: dom | K11: non-dom | L11: dom | M11: non-dom | N11: dom | O11: non-dom | P11: dom | Q11: non-dom | R11: dom | S11: non-dom | T11: dom | U11: non-dom | V11: dom | W11: non-dom | X11: dom | Y11: non-dom | Z11: dom | AA11: non-dom | AB11: dom | AC11: non-dom | AD11: dom | AE11: non-dom | AF11: dom | AG11: non-dom | AH11: dom | AI11: non-dom | AJ11: dom | AK11: non-dom | AL11: dom | AM11: non-dom | AN11: dom | AO11: non-dom | AP11: dom | AQ11: non-dom | AR11: dom | AS11: non-dom | AT11: dom | AU11: non-dom | AV11: dom | AW11: non-dom | AX11: dom | AY11: non-dom | AZ11: dom | BA11: non-dom | BB11: dom | BC11: non-dom | BD11: dom | BE11: non-dom | BF11: dom | BG11: non-dom | BH11: dom | BI11: non-dom | BJ11: dom | BK11: non-dom | BM11: dom | BN11: non-dom | BO11: dom | BP11: non-dom | BQ11: dom | BR11: non-dom | BS11: dom | BT11: non-dom | BU11: dom | BV11: non-dom | BW11: dom | BX11: non-dom | BY11: dom | BZ11: non-dom | CA11: dom | CB11: non-dom | CC11: dom | CD11: non-dom | CE11: dom | CF11: non-dom | CG11: dom | CH11: non-dom | CI11: dom | CJ11: non-dom | CK11: dom | CL11: non-dom | CM11: dom | CN11: non-dom | CO11: dom | CP11: non-dom | CQ11: dom | CR11: non-dom | CS11: dom | CT11: non-dom | CU11: dom | CV11: non-dom | CW11: dom | CX11: non-dom | CY11: dom | CZ11: non-dom | DA11: dom | DB11: non-dom | DC11: dom | DD11: non-dom | DE11: dom | DF11: non-dom | DG11: dom | DH11: non-dom | DI11: dom | DJ11: non-dom | DK11: dom | DL11: non-dom | DM11: dom | DN11: non-dom | DO11: dom | DP11: non-dom | DQ11: dom | DR11: non-dom | DS11: dom | DT11: non-dom | DV11: dom | DW11: non-dom | DX11: dom | DY11: non-dom | DZ11: dom | EA11: non-dom | EB11: dom | EC11: non-dom | ED11: dom | EE11: non-dom | EF11: dom | EG11: non-dom | EH11: dom | EI11: non-dom | EJ11: dom | EK11: non-dom | EL11: dom | EM11: non-dom | EN11: dom | EO11: non-dom | EP11: dom | EQ11: non-dom | ER11: dom | ES11: non-dom | ET11: dom | EU11: non-dom | EV11: dom | EW11: non-dom | EX11: dom | EY11: non-dom | EZ11: dom | FA11: non-dom | FB11: dom | FC11: non-dom | FD11: dom | FE11: non-dom | FF11: dom | FG11: non-dom | FH11: dom | FI11: non-dom | FJ11: dom | FK11: non-dom | FL11: dom | FM11: non-dom | FN11: dom | FO11: non-dom | FP11: dom | FQ11: non-dom | FR11: dom | FS11: non-dom | FT11: dom | FU11: non-dom | FV11: dom | FW11: non-dom | FX11: dom | FY11: non-dom | FZ11: dom | GA11: non-dom | GB11: dom | GC11: non-dom | GE11: dom | GF11: non-dom | GG11: dom | GH11: non-dom | GI11: dom | GJ11: non-dom | GK11: dom | GL11: non-dom | GM11: dom | GN11: non-dom | GO11: dom | GP11: non-dom | GQ11: dom | GR11: non-dom | GS11: dom | GT11: non-dom | GU11: dom | GV11: non-dom | GW11: dom | GX11: non-dom | GY11: dom | GZ11: non-dom | HA11: dom | HB11: non-dom | HC11: dom | HD11: non-dom | HE11: dom | HF11: non-dom | HG11: dom | HH11: non-dom | HI11: dom | HJ11: non-dom | HK11: dom | HL11: non-dom | HM11: dom | HN11: non-dom | HO11: dom | HP11: non-dom | HQ11: dom | HR11: non-dom | HS11: dom | HT11: non-dom | HU11: dom | HV11: non-dom | HW11: dom | HX11: non-dom | HY11: dom | HZ11: non-dom | IA11: dom | IB11: non-dom | IC11: dom | ID11: non-dom | IE11: dom | IF11: non-dom | IG11: dom | IH11: non-dom | II11: dom | IJ11: non-dom | IK11: dom | IL11: non-dom | IN11: dom | IO11: non-dom | IP11: dom | IQ11: non-dom | IR11: dom | IS11: non-dom | IT11: dom | IU11: non-dom | IV11: dom | IW11: non-dom | IX11: dom | IY11: non-dom | IZ11: dom | JA11: non-dom | JB11: dom | JC11: non-dom | JD11: dom | JE11: non-dom | JF11: dom | JG11: non-dom | JH11: dom | JI11: non-dom | JJ11: dom | JK11: non-dom | JL11: dom | JM11: non-dom | JN11: dom | JO11: non-dom | JP11: dom | JQ11: non-dom | JR11: dom | JS11: non-dom | JT11: dom | JU11: non-dom | JV11: dom | JW11: non-dom | JX11: dom | JY11: non-dom | JZ11: dom | KA11: non-dom | KB11: dom | KC11: non-dom | KD11: dom | KE11: non-dom | KF11: dom | KG11: non-dom | KH11: dom | KI11: non-dom | KJ11: dom | KK11: non-dom | KL11: dom | KM11: non-dom | KN11: dom | KO11: non-dom | KP11: dom | KQ11: non-dom | KR11: dom | KS11: non-dom | KT11: dom | KU11: non-dom
A12: Cumberland** | B12: Allerdale | D12: 320.2492276 | E12: 123.0776374 | F12: 760.6668486 | G12: 145.6115311 | H12: 1255.257767 | I12: 164.3209987 | J12: 1834.089235 | K12: 182.0433684 | L12: 2512.853814 | M12: 196.6415806 | N12: 3173.185142 | O12: 217.0378323 | P12: 3852.702109 | Q12: 237.9709576 | R12: 4546.071505 | S12: 259.1666428 | T12: 5219.469773 | U12: 280.8268501 | V12: 6613.920608 | W12: 304.4826123 | X12: 8000.16244 | Y12: 324.2394491 | Z12: 9374.021493 | AA12: 343.8295725 | AB12: 10722.24029 | AC12: 363.241721 | AD12: 12083.34993 | AE12: 382.4678403 | AF12: 13503.95896 | AG12: 401.5421629 | AH12: 14944.94425 | AI12: 420.4323154 | AJ12: 16071.70684 | AK12: 439.1564763 | AL12: 17145.30687 | AM12: 457.7243317 | AN12: 18086.5088 | AO12: 476.0937475 | AP12: 18899.14434 | AQ12: 494.2783144 | AR12: 19728.31458 | AS12: 512.2843107 | AT12: 20620.44421 | AU12: 530.1629787 | AV12: 21273.23479 | AW12: 547.9060619 | AX12: 21927.5264 | AY12: 565.4751063 | AZ12: 22052.04917 | BA12: 582.9102846 | BB12: 22185.32466 | BC12: 600.2070307 | BD12: 22323.30164 | BE12: 617.3673936 | BF12: 22468.69271 | BG12: 634.3952594 | BH12: 22634.94287 | BI12: 651.2944734 | BJ12: 22799.62028 | BK12: 668.0669961 | BM12: 320.2492276 | BN12: 123.0776374 | BO12: 704.4161874 | BP12: 141.601212 | BQ12: 1130.033926 | BR12: 158.1551922 | BS12: 1290.495745 | BT12: 173.2247499 | BU12: 1641.442485 | BV12: 184.1865147 | BW12: 2016.736353 | BX12: 202.23369 | BY12: 2413.728279 | BZ12: 220.7774263 | CA12: 2823.640735 | CB12: 239.554631 | CC12: 3249.424171 | CD12: 258.7641943 | CE12: 3689.827419 | CF12: 280.3165051 | CG12: 4136.650998 | CH12: 294.6676909 | CI12: 4584.244476 | CJ12: 308.8524566 | CK12: 5017.574809 | CL12: 322.8659748 | CM12: 5580.090058 | CN12: 336.7052601 | CO12: 6528.06694 | CP12: 350.395392 | CQ12: 7508.019211 | CR12: 363.9135748 | CS12: 8221.344305 | CT12: 377.2781749 | CU12: 8904.678875 | CV12: 390.4940019 | CW12: 9735.245489 | CX12: 403.53303 | CY12: 10391.66276 | CZ12: 416.4041616 | DA12: 11051.68055 | DB12: 429.116905 | DC12: 11686.37925 | DD12: 441.7145719 | DE12: 12328.47648 | DF12: 454.188777 | DG12: 12991.42133 | DH12: 466.5148618 | DI12: 13659.37297 | DJ12: 478.7211601 | DK12: 14324.94658 | DL12: 490.806065 | DM12: 15070.10935 | DN12: 502.7731053 | DO12: 15553.55947 | DP12: 514.6276093 | DQ12: 15907.02643 | DR12: 526.3711624 | DS12: 16149.94662 | DT12: 538.0089948 | DV12: 320.2492276 | DW12: 123.0776374 | DX12: 760.6668486 | DY12: 145.6115311 | DZ12: 1255.257767 | EA12: 164.3209987 | EB12: 1834.089235 | EC12: 182.0433684 | ED12: 2512.853814 | EE12: 196.6415806 | EF12: 3173.185142 | EG12: 217.0378323 | EH12: 3852.702109 | EI12: 237.9709576 | EJ12: 4546.071505 | EK12: 259.1666428 | EL12: 5219.469773 | EM12: 280.8268501 | EN12: 6613.920608 | EO12: 304.4826123 | EP12: 8000.16244 | EQ12: 324.2394491 | ER12: 9374.021493 | ES12: 343.8295725 | ET12: 10722.24029 | EU12: 363.241721 | EV12: 12083.34993 | EW12: 382.4678403 | EX12: 13503.95896 | EY12: 401.5421629 | EZ12: 14944.94425 | FA12: 420.4323154 | FB12: 16071.70684 | FC12: 439.1564763 | FD12: 17145.30687 | FE12: 457.7243317 | FF12: 18086.5088 | FG12: 476.0937475 | FH12: 18899.14434 | FI12: 494.2783144 | FJ12: 19728.31458 | FK12: 512.2843107 | FL12: 20620.44421 | FM12: 530.1629787 | FN12: 21273.23479 | FO12: 547.9060619 | FP12: 21927.5264 | FQ12: 565.4751063 | FR12: 22052.04917 | FS12: 582.9102846 | FT12: 22185.32466 | FU12: 600.2070307 | FV12: 22323.30164 | FW12: 617.3673936 | FX12: 22468.69271 | FY12: 634.3952594 | FZ12: 22634.94287 | GA12: 651.2944734 | GB12: 22799.62028 | GC12: 668.0669961 | GE12: 320.2492276 | GF12: 123.0776374 | GG12: 925.0476082 | GH12: 171.9040639 | GI12: 1666.659983 | GJ12: 203.1776826 | GK12: 2474.969677 | GL12: 234.9667219 | GM12: 3442.394059 | GN12: 267.1141769 | GO12: 4564.969548 | GP12: 299.618546 | GQ12: 5941.315636 | GR12: 332.5328278 | GS12: 7427.822564 | GT12: 365.87399 | GU12: 8771.935188 | GV12: 399.6174758 | GW12: 10201.54097 | GX12: 432.515202 | GY12: 11429.03458 | GZ12: 459.7619913 | HA12: 12506.16202 | HB12: 486.6793036 | HC12: 13422.94122 | HD12: 513.2605765 | HE12: 14877.10649 | HF12: 539.4982895 | HG12: 18076.31475 | HH12: 781.9946743 | HI12: 21261.62697 | HJ12: 1023.410314 | HK12: 23964.39557 | HL12: 1263.769159 | HM12: 26438.56223 | HN12: 1503.092898 | HO12: 28798.83977 | HP12: 1741.231431 | HQ12: 31061.64734 | HR12: 1978.180801 | HS12: 33226.8607 | HT12: 2213.93627 | HU12: 35179.03354 | HV12: 2448.703144 | HW12: 37029.02037 | HX12: 2682.441722 | HY12: 39060.13783 | HZ12: 2914.965041 | IA12: 41025.20753 | IB12: 3146.445715 | IC12: 43195.91252 | ID12: 3376.849691 | IE12: 45511.63115 | IF12: 3606.18133 | IG12: 47928.10442 | IH12: 3834.450991 | II12: 49546.12286 | IJ12: 4061.661958 | IK12: 49792.44738 | IL12: 4077.322261 | IN12: 320.2492276 | IO12: 123.0776374 | IP12: 925.0476082 | IQ12: 171.9040639 | IR12: 1713.243579 | IS12: 203.1776826 | IT12: 2764.693786 | IU12: 234.9667219 | IV12: 4011.526521 | IW12: 267.1141769 | IX12: 5341.690116 | IY12: 299.618546 | IZ12: 6772.341544 | JA12: 332.5328278 | JB12: 8273.828092 | JC12: 365.87399 | JD12: 9701.165846 | JE12: 399.6174758 | JF12: 12837.74356 | JG12: 650.9398009 | JH12: 15981.41174 | JI12: 895.8404916 | JJ12: 19124.84598 | JK12: 1139.677582 | JL12: 22247.31768 | JM12: 1382.443928 | JN12: 25389.84762 | JO12: 1624.102288 | JP12: 28588.87447 | JQ12: 1864.772597 | JR12: 31774.01451 | JS12: 2104.319622 | JT12: 34362.26701 | JU12: 2342.802135 | JV12: 36759.12871 | JW12: 2580.2555 | JX12: 38894.21057 | JY12: 2816.428558 | JZ12: 40948.94121 | KA12: 3051.34476 | KB12: 42951.44776 | KC12: 3285.015488 | KD12: 44850.53221 | KE12: 3517.746776 | KF12: 46670.81066 | KG12: 3749.466435 | KH12: 48310.22831 | KI12: 3979.913253 | KJ12: 48580.68429 | KK12: 3996.751718 | KL12: 48847.64605 | KM12: 4013.33684 | KN12: 49110.71634 | KO12: 4029.676241 | KP12: 49373.98071 | KQ12: 4045.782865 | KR12: 49648.14324 | KS12: 4061.661958 | KT12: 49917.78058 | KU12: 4077.322261
A13: Westmorland and Furness** | B13: Barrow-in-Furness | D13: 188.5333279 | E13: 58.40930511 | F13: 335.2895078 | G13: 68.94368511 | H13: 496.8859565 | I13: 77.72520126 | J13: 669.6499512 | K13: 86.07026867 | L13: 861.3520891 | M13: 92.86527829 | N13: 1037.050294 | O13: 102.3660374 | P13: 1212.870003 | Q13: 112.1042639 | R13: 1391.702692 | S13: 121.9434563 | T13: 1579.926256 | U13: 132.0079746 | V13: 1977.406658 | W13: 143.0135779 | X13: 2372.303879 | Y13: 152.1391073 | Z13: 2764.37371 | AA13: 161.1882811 | AB13: 3151.201489 | AC13: 170.1352758 | AD13: 3542.995204 | AE13: 178.9849317 | AF13: 3952.022792 | AG13: 187.7363083 | AH13: 4367.566227 | AI13: 196.3973201 | AJ13: 4708.517447 | AK13: 204.9953257 | AL13: 5041.84257 | AM13: 213.5169213 | AN13: 5351.444157 | AO13: 221.9544763 | AP13: 5618.652598 | AQ13: 230.3104576 | AR13: 5887.882943 | AS13: 238.5914104 | AT13: 6151.721584 | AU13: 246.7889661 | AV13: 6387.544643 | AW13: 254.9099156 | AX13: 6618.204303 | AY13: 262.8817414 | AZ13: 6666.570493 | BA13: 270.7904852 | BB13: 6720.561495 | BC13: 278.6110636 | BD13: 6776.848605 | BE13: 286.3442097 | BF13: 6836.527631 | BG13: 293.9915477 | BH13: 6905.801888 | BI13: 301.5547161 | BJ13: 6974.748639 | BK13: 309.03451 | BM13: 188.5333279 | BN13: 58.40930511 | BO13: 320.1800353 | BP13: 66.91821252 | BQ13: 464.7739564 | BR13: 74.48440496 | BS13: 511.5666626 | BT13: 81.34932028 | BU13: 607.2824534 | BV13: 86.21023376 | BW13: 709.61153 | BX13: 94.34839344 | BY13: 817.872174 | BZ13: 102.7210864 | CA13: 929.6600371 | CB13: 111.2065877 | CC13: 1045.601535 | CD13: 119.9303134 | CE13: 1165.44351 | CF13: 129.7784788 | CG13: 1286.929328 | CH13: 136.2513971 | CI13: 1408.529101 | CJ13: 142.654359 | CK13: 1526.108917 | CL13: 148.9667947 | CM13: 1672.670831 | CN13: 155.1949793 | CO13: 1905.79147 | CP13: 161.3358637 | CQ13: 2147.635173 | CR13: 167.3989243 | CS13: 2324.771233 | CT13: 173.4083716 | CU13: 2495.873624 | CV13: 179.3508544 | CW13: 2698.290887 | CX13: 185.2233873 | CY13: 2852.118137 | CZ13: 191.0265255 | DA13: 3006.877031 | DB13: 196.7673847 | DC13: 3154.696101 | DD13: 202.4391338 | DE13: 3302.150382 | DF13: 208.0467558 | DG13: 3454.994809 | DH13: 213.5346145 | DI13: 3609.025861 | DJ13: 218.9707234 | DK13: 3761.944854 | DL13: 224.3356907 | DM13: 3912.061983 | DN13: 229.631015 | DO13: 4029.735651 | DP13: 234.8590358 | DQ13: 4133.957361 | DR13: 240.0204009 | DS13: 4195.676051 | DT13: 245.1174374 | DV13: 188.5333279 | DW13: 58.40930511 | DX13: 335.2895078 | DY13: 68.94368511 | DZ13: 496.8859565 | EA13: 77.72520126 | EB13: 669.6499512 | EC13: 86.07026867 | ED13: 861.3520891 | EE13: 92.86527829 | EF13: 1037.050294 | EG13: 102.3660374 | EH13: 1212.870003 | EI13: 112.1042639 | EJ13: 1391.702692 | EK13: 121.9434563 | EL13: 1579.926256 | EM13: 132.0079746 | EN13: 1977.406658 | EO13: 143.0135779 | EP13: 2372.303879 | EQ13: 152.1391073 | ER13: 2764.37371 | ES13: 161.1882811 | ET13: 3151.201489 | EU13: 170.1352758 | EV13: 3542.995204 | EW13: 178.9849317 | EX13: 3952.022792 | EY13: 187.7363083 | EZ13: 4367.566227 | FA13: 196.3973201 | FB13: 4708.517447 | FC13: 204.9953257 | FD13: 5041.84257 | FE13: 213.5169213 | FF13: 5351.444157 | FG13: 221.9544763 | FH13: 5618.652598 | FI13: 230.3104576 | FJ13: 5887.882943 | FK13: 238.5914104 | FL13: 6151.721584 | FM13: 246.7889661 | FN13: 6387.544643 | FO13: 254.9099156 | FP13: 6618.204303 | FQ13: 262.8817414 | FR13: 6666.570493 | FS13: 270.7904852 | FT13: 6720.561495 | FU13: 278.6110636 | FV13: 6776.848605 | FW13: 286.3442097 | FX13: 6836.527631 | FY13: 293.9915477 | FZ13: 6905.801888 | GA13: 301.5547161 | GB13: 6974.748639 | GC13: 309.03451 | GE13: 188.5333279 | GF13: 58.40930511 | GG13: 385.811773 | GH13: 81.39259002 | GI13: 625.0351018 | GJ13: 96.1047365 | GK13: 887.5033012 | GL13: 111.0924779 | GM13: 1199.746878 | GN13: 126.1464249 | GO13: 1565.449526 | GP13: 141.3152858 | GQ13: 2022.278626 | GR13: 156.6508294 | GS13: 2529.945771 | GT13: 172.1515486 | GU13: 2982.808302 | GV13: 187.8477559 | GW13: 3473.63141 | GX13: 203.1496842 | GY13: 3881.215525 | GZ13: 215.7287743 | HA13: 4218.413751 | HB13: 228.1566411 | HC13: 4463.159585 | HD13: 240.4011562 | HE13: 5183.164141 | HF13: 252.471069 | HG13: 7425.329085 | HH13: 365.6123985 | HI13: 9642.209181 | HJ13: 478.0675406 | HK13: 11731.33496 | HL13: 589.9190476 | HM13: 13773.54009 | HN13: 701.1551401 | HO13: 15788.93636 | HP13: 811.7605249 | HQ13: 17766.58914 | HR13: 921.7392553 | HS13: 19702.58355 | HT13: 1031.119178 | HU13: 21540.88637 | HV13: 1139.862536 | HW13: 23330.34745 | HX13: 1247.989465 | HY13: 25184.23628 | HZ13: 1355.127888 | IA13: 27004.84866 | IB13: 1461.678725 | IC13: 28909.40573 | ID13: 1567.505271 | IE13: 30882.03429 | IF13: 1672.600713 | IG13: 32934.23575 | IH13: 1776.961862 | II13: 34097.57055 | IJ13: 1880.583006 | IK13: 34155.34152 | IL13: 1886.088213 | IN13: 188.5333279 | IO13: 58.40930511 | IP13: 385.811773 | IQ13: 81.39259002 | IR13: 636.8763775 | IS13: 96.1047365 | IT13: 958.0145384 | IU13: 111.0924779 | IV13: 1344.570611 | IW13: 126.1464249 | IX13: 1767.746773 | IY13: 141.3152858 | IZ13: 2240.816626 | JA13: 156.6508294 | JB13: 2758.853693 | JC13: 172.1515486 | JD13: 3476.613767 | JE13: 187.8477559 | JF13: 5714.082811 | JG13: 305.7423517 | JH13: 7953.421859 | JI13: 420.3448194 | JJ13: 10191.99318 | JK13: 534.2840905 | JL13: 12422.05981 | JM13: 647.5095382 | JN13: 14655.20138 | JO13: 760.0373324 | JP13: 16897.13373 | JQ13: 871.8524615 | JR13: 19113.79165 | JS13: 982.994692 | JT13: 21212.73156 | JU13: 1093.604472 | JV13: 23259.21505 | JW13: 1203.624479 | JX13: 25219.01142 | JY13: 1313.016457 | JZ13: 27113.08196 | KA13: 1421.783209 | KB13: 28982.65703 | KC13: 1529.963854 | KD13: 30803.29342 | KE13: 1637.498515 | KF13: 32577.94934 | KG13: 1744.41613 | KH13: 33799.60661 | KI13: 1850.207932 | KJ13: 33864.53912 | KK13: 1856.687668 | KL13: 33929.07802 | KM13: 1862.95726 | KN13: 33992.93838 | KO13: 1869.023973 | KP13: 34056.6092 | KQ13: 1874.897312 | KR13: 34122.22907 | KS13: 1880.583006 | KT13: 34185.76902 | KU13: 1886.088213
A14: Lancashire | B14: Blackburn with Darwen | D14: 473.4682714 | E14: 106.7841301 | F14: 814.6832276 | G14: 126.0828254 | H14: 1158.167722 | I14: 141.9190679 | J14: 1466.752532 | K14: 156.8178148 | L14: 1916.046458 | M14: 169.0198849 | N14: 2349.790741 | O14: 186.1954517 | P14: 2792.370388 | Q14: 203.8018543 | R14: 3246.068369 | S14: 221.6293126 | T14: 3735.825307 | U14: 239.8798943 | V14: 4554.823168 | W14: 259.8683267 | X14: 5371.888213 | Y14: 276.4971778 | Z14: 6185.175049 | AA14: 293.0040358 | AB14: 6985.941506 | AC14: 309.3982798 | AD14: 7806.024417 | AE14: 325.6765113 | AF14: 8686.611742 | AG14: 341.8278814 | AH14: 9593.128451 | AI14: 357.8619814 | AJ14: 10297.35415 | AK14: 373.8150775 | AL14: 11009.70581 | AM14: 389.7115939 | AN14: 11720.68267 | AO14: 405.5150162 | AP14: 12268.88817 | AQ14: 421.2337991 | AR14: 12819.37938 | AS14: 436.8710224 | AT14: 13353.83325 | AU14: 452.4233372 | AV14: 13896.63362 | AW14: 467.9016675 | AX14: 14431.77528 | AY14: 483.1920019 | AZ14: 14626.39986 | BA14: 498.4299358 | BB14: 14829.23362 | BC14: 513.5775509 | BD14: 15034.06493 | BE14: 528.6365878 | BF14: 15245.37743 | BG14: 543.6103388 | BH14: 15481.3838 | BI14: 558.5020459 | BJ14: 15711.87667 | BK14: 573.3133202 | BM14: 473.4682714 | BN14: 106.7841301 | BO14: 793.449027 | BP14: 122.6995464 | BQ14: 1135.980623 | BR14: 136.8230017 | BS14: 1274.685635 | BT14: 149.6122149 | BU14: 1587.312434 | BV14: 158.8643206 | BW14: 1921.29748 | BX14: 174.2339683 | BY14: 2274.962083 | BZ14: 189.9960656 | CA14: 2639.824286 | CB14: 205.9417143 | CC14: 3017.829854 | CD14: 222.2637749 | CE14: 3408.241834 | CF14: 240.6049386 | CG14: 3803.686489 | CH14: 252.7382001 | CI14: 4199.796748 | CJ14: 264.7506167 | CK14: 4584.418854 | CL14: 276.6535174 | CM14: 5016.621486 | CN14: 288.4457255 | CO14: 5591.560172 | CP14: 300.1121837 | CQ14: 6195.600064 | CR14: 311.6654047 | CS14: 6612.044618 | CT14: 323.1381044 | CU14: 7016.004533 | CV14: 334.5471002 | CW14: 7494.555447 | CX14: 345.8665619 | CY14: 7809.959746 | CZ14: 357.1003999 | DA14: 8128.540644 | DB14: 368.2539651 | DC14: 8424.358944 | DD14: 379.3242469 | DE14: 8717.44676 | DF14: 390.3189873 | DG14: 9028.29437 | DH14: 401.1493418 | DI14: 9343.078007 | DJ14: 411.9240865 | DK14: 9654.451707 | DL14: 422.6133833 | DM14: 9969.970585 | DN14: 433.2201985 | DO14: 10304.65426 | DP14: 443.749043 | DQ14: 10612.06316 | DR14: 454.2011969 | DS14: 10812.54938 | DT14: 464.5810791 | DV14: 473.4682714 | DW14: 106.7841301 | DX14: 814.6832276 | DY14: 126.0828254 | DZ14: 1158.167722 | EA14: 141.9190679 | EB14: 1466.752532 | EC14: 156.8178148 | ED14: 1916.046458 | EE14: 169.0198849 | EF14: 2349.790741 | EG14: 186.1954517 | EH14: 2792.370388 | EI14: 203.8018543 | EJ14: 3246.068369 | EK14: 221.6293126 | EL14: 3735.825307 | EM14: 239.8798943 | EN14: 4554.823168 | EO14: 259.8683267 | EP14: 5371.888213 | EQ14: 276.4971778 | ER14: 6185.175049 | ES14: 293.0040358 | ET14: 6985.941506 | EU14: 309.3982798 | EV14: 7806.024417 | EW14: 325.6765113 | EX14: 8686.611742 | EY14: 341.8278814 | EZ14: 9593.128451 | FA14: 357.8619814 | FB14: 10297.35415 | FC14: 373.8150775 | FD14: 11009.70581 | FE14: 389.7115939 | FF14: 11720.68267 | FG14: 405.5150162 | FH14: 12268.88817 | FI14: 421.2337991 | FJ14: 12819.37938 | FK14: 436.8710224 | FL14: 13353.83325 | FM14: 452.4233372 | FN14: 13896.63362 | FO14: 467.9016675 | FP14: 14431.77528 | FQ14: 483.1920019 | FR14: 14626.39986 | FS14: 498.4299358 | FT14: 14829.23362 | FU14: 513.5775509 | FV14: 15034.06493 | FW14: 528.6365878 | FX14: 15245.37743 | FY14: 543.6103388 | FZ14: 15481.3838 | GA14: 558.5020459 | GB14: 15711.87667 | GC14: 573.3133202 | GE14: 473.4682714 | GF14: 106.7841301 | GG14: 887.325845 | GH14: 148.8491325 | GI14: 1367.859998 | GJ14: 175.4784086 | GK14: 1877.841747 | GL14: 202.4076363 | GM14: 2498.63442 | GN14: 229.5933917 | GO14: 3211.320965 | GP14: 257.0409496 | GQ14: 4079.264354 | GR14: 284.7860411 | GS14: 5039.559885 | GT14: 312.8813185 | GU14: 5921.847484 | GV14: 341.3498311 | GW14: 6870.449477 | GX14: 369.1409536 | GY14: 7694.60528 | GZ14: 392.0648563 | HA14: 8412.906538 | HB14: 414.7374499 | HC14: 8968.67284 | HD14: 437.1797905 | HE14: 10383.29757 | HF14: 459.3900512 | HG14: 14561.80939 | HH14: 665.7024032 | HI14: 18680.6347 | HJ14: 871.1025042 | HK14: 22565.36441 | HL14: 1075.734941 | HM14: 26395.28898 | HN14: 1279.750034 | HO14: 30180.98838 | HP14: 1483.101796 | HQ14: 33882.52348 | HR14: 1685.844978 | HS14: 37522.96074 | HT14: 1888.02308 | HU14: 40983.03741 | HV14: 2089.641286 | HW14: 44357.85663 | HX14: 2290.755737 | HY14: 47842.34419 | HZ14: 2490.804242 | IA14: 51276.53087 | IB14: 2690.435865 | IC14: 54837.41287 | ID14: 2889.459978 | IE14: 58497.98032 | IF14: 3087.884804 | IG14: 62310.75298 | IH14: 3285.723169 | II14: 64745.1231 | IJ14: 3482.981364 | IK14: 64952.17081 | IL14: 3499.025062 | IN14: 473.4682714 | IO14: 106.7841301 | IP14: 887.325845 | IQ14: 148.8491325 | IR14: 1395.224981 | IS14: 175.4784086 | IT14: 2020.483266 | IU14: 202.4076363 | IV14: 2747.59169 | IW14: 229.5933917 | IX14: 3545.295297 | IY14: 257.0409496 | IZ14: 4440.608107 | JA14: 284.7860411 | JB14: 5424.296414 | JC14: 312.8813185 | JD14: 6830.271871 | JE14: 341.3498311 | JF14: 10976.26275 | JG14: 555.560909 | JH14: 15128.16806 | JI14: 763.9334705 | JJ14: 19278.7905 | JK14: 971.2082899 | JL14: 23406.78369 | JM14: 1177.523805 | JN14: 27547.41869 | JO14: 1382.944947 | JP14: 31725.31422 | JQ14: 1587.457868 | JR14: 35843.55199 | JS14: 1791.146784 | JT14: 39775.89009 | JU14: 1994.220303 | JV14: 43616.51554 | JW14: 2196.858271 | JX14: 47283.04907 | JY14: 2398.905843 | JZ14: 50838.70817 | KA14: 2600.416624 | KB14: 54363.40052 | KC14: 2801.428903 | KD14: 57794.04184 | KE14: 3001.927332 | KF14: 61145.45969 | KG14: 3201.975153 | KH14: 63679.79944 | KI14: 3400.790292 | KJ14: 63907.14113 | KK14: 3417.508242 | KL14: 64133.80747 | KM14: 3434.081241 | KN14: 64358.74561 | KO14: 3450.51313 | KP14: 64583.03049 | KQ14: 3466.812467 | KR14: 64812.29208 | KS14: 3482.981364 | KT14: 65035.1302 | KU14: 3499.025062
A15: Lancashire | B15: Blackpool | D15: 356.7541237 | E15: 165.0616707 | F15: 850.1528569 | G15: 194.5780577 | H15: 1366.158662 | I15: 218.4906217 | J15: 1737.241929 | K15: 240.8286877 | L15: 2138.798013 | M15: 259.1418923 | N15: 2472.809208 | O15: 285.130965 | P15: 2786.274566 | Q15: 311.7939295 | R15: 3099.53123 | S15: 338.7860728 | T15: 3432.282951 | U15: 366.4348227 | V15: 4039.15654 | W15: 396.743934 | X15: 4647.217708 | Y15: 421.9404339 | Z15: 5254.938522 | AA15: 446.9565604 | AB15: 5856.028307 | AC15: 471.8319792 | AD15: 6471.733927 | AE15: 496.5297857 | AF15: 7126.800335 | AG15: 521.0643051 | AH15: 7799.211384 | AI15: 545.433782 | AJ15: 8342.974638 | AK15: 569.6849474 | AL15: 8889.540136 | AM15: 593.8189273 | AN15: 9422.916305 | AO15: 617.7900747 | AP15: 9853.257177 | AQ15: 641.5770473 | AR15: 10282.28403 | AS15: 665.2013665 | AT15: 10635.80866 | AU15: 688.6583459 | AV15: 11023.14819 | AW15: 711.9675887 | AX15: 11426.03973 | AY15: 735.1766707 | AZ15: 11563.46816 | BA15: 758.2339994 | BB15: 11705.35601 | BC15: 781.1651287 | BD15: 11848.28237 | BE15: 803.973372 | BF15: 12005.52117 | BG15: 826.664336 | BH15: 12216.96647 | BI15: 849.2434886 | BJ15: 12428.80677 | BK15: 871.7137632 | BM15: 356.7541237 | BN15: 165.0616707 | BO15: 826.5510126 | BP15: 189.5696034 | BQ15: 1327.808214 | BR15: 211.19219 | BS15: 1434.667451 | BT15: 230.6977218 | BU15: 1628.46759 | BV15: 244.8877461 | BW15: 1835.757807 | BX15: 268.5845853 | BY15: 2054.994734 | BZ15: 292.8782153 | CA15: 2281.57645 | CB15: 317.4105842 | CC15: 2516.673611 | CD15: 342.4843092 | CE15: 2759.774895 | CF15: 370.6166752 | CG15: 3006.262001 | CH15: 389.2045215 | CI15: 3252.990551 | CJ15: 407.6130974 | CK15: 3491.330974 | CL15: 425.8815363 | CM15: 3769.966751 | CN15: 443.9780026 | CO15: 4168.322181 | CP15: 461.9061381 | CQ15: 4584.37586 | CR15: 479.6696756 | CS15: 4886.709319 | CT15: 497.3109112 | CU15: 5182.797893 | CV15: 514.8241117 | CW15: 5515.934568 | CX15: 532.1785052 | CY15: 5751.03785 | CZ15: 549.3509287 | DA15: 5988.071042 | DB15: 566.3646061 | DC15: 6211.330979 | DD15: 583.215606 | DE15: 6433.507561 | DF15: 599.9186926 | DG15: 6666.504207 | DH15: 616.5229075 | DI15: 6901.937766 | DJ15: 632.9779404 | DK15: 7134.291937 | DL15: 649.3078985 | DM15: 7298.433727 | DN15: 665.51776 | DO15: 7503.611388 | DP15: 681.6148379 | DQ15: 7753.883251 | DR15: 697.6014479 | DS15: 7875.049467 | DT15: 713.4846941 | DV15: 356.7541237 | DW15: 165.0616707 | DX15: 850.1528569 | DY15: 194.5780577 | DZ15: 1366.158662 | EA15: 218.4906217 | EB15: 1737.241929 | EC15: 240.8286877 | ED15: 2138.798013 | EE15: 259.1418923 | EF15: 2472.809208 | EG15: 285.130965 | EH15: 2786.274566 | EI15: 311.7939295 | EJ15: 3099.53123 | EK15: 338.7860728 | EL15: 3432.282951 | EM15: 366.4348227 | EN15: 4039.15654 | EO15: 396.743934 | EP15: 4647.217708 | EQ15: 421.9404339 | ER15: 5254.938522 | ES15: 446.9565604 | ET15: 5856.028307 | EU15: 471.8319792 | EV15: 6471.733927 | EW15: 496.5297857 | EX15: 7126.800335 | EY15: 521.0643051 | EZ15: 7799.211384 | FA15: 545.433782 | FB15: 8342.974638 | FC15: 569.6849474 | FD15: 8889.540136 | FE15: 593.8189273 | FF15: 9422.916305 | FG15: 617.7900747 | FH15: 9853.257177 | FI15: 641.5770473 | FJ15: 10282.28403 | FK15: 665.2013665 | FL15: 10635.80866 | FM15: 688.6583459 | FN15: 11023.14819 | FO15: 711.9675887 | FP15: 11426.03973 | FQ15: 735.1766707 | FR15: 11563.46816 | FS15: 758.2339994 | FT15: 11705.35601 | FU15: 781.1651287 | FV15: 11848.28237 | FW15: 803.973372 | FX15: 12005.52117 | FY15: 826.664336 | FZ15: 12216.96647 | GA15: 849.2434886 | GB15: 12428.80677 | GC15: 871.7137632 | GE15: 356.7541237 | GF15: 165.0616707 | GG15: 953.7182522 | GH15: 229.7122942 | GI15: 1632.961763 | GJ15: 270.1566967 | GK15: 2199.781342 | GL15: 310.8420142 | GM15: 2865.969872 | GN15: 352.0134097 | GO15: 3639.274769 | GP15: 393.6204314 | GQ15: 4598.108992 | GR15: 435.6906326 | GS15: 5657.428503 | GT15: 478.2753324 | GU15: 6640.974027 | GV15: 521.4378855 | GW15: 7698.53435 | GX15: 563.571698 | GY15: 8606.535106 | GZ15: 598.2991108 | HA15: 9356.284278 | HB15: 632.6521189 | HC15: 9841.524327 | HD15: 666.6986188 | HE15: 11209.52158 | HF15: 700.3908351 | HG15: 15483.31102 | HH15: 1014.76146 | HI15: 19723.1665 | HJ15: 1327.687092 | HK15: 23586.18227 | HL15: 1639.393486 | HM15: 27404.78615 | HN15: 1950.005605 | HO15: 31136.17856 | HP15: 2259.461507 | HQ15: 34782.57035 | HR15: 2567.693868 | HS15: 38403.82271 | HT15: 2874.797064 | HU15: 41868.52094 | HV15: 3180.757474 | HW15: 45243.36658 | HX15: 3485.65511 | HY15: 48718.80046 | HZ15: 3789.75886 | IA15: 52135.19465 | IB15: 4092.811847 | IC15: 55707.77085 | ID15: 4394.945558 | IE15: 59438.93298 | IF15: 4696.188677 | IG15: 63441.96053 | IH15: 4996.575612 | II15: 67221.69022 | IJ15: 5296.129649 | IK15: 67459.92189 | IL15: 5320.211824 | IN15: 356.7541237 | IO15: 165.0616707 | IP15: 953.7182522 | IQ15: 229.7122942 | IR15: 1647.097977 | IS15: 270.1566967 | IT15: 2303.444164 | IU15: 310.8420142 | IV15: 3099.039186 | IW15: 352.0134097 | IX15: 3973.039869 | IY15: 393.6204314 | IZ15: 4949.278242 | JA15: 435.6906326 | JB15: 6022.69506 | JC15: 478.2753324 | JD15: 7359.601545 | JE15: 521.4378855 | JF15: 11593.80363 | JG15: 848.1811671 | JH15: 15834.73652 | JI15: 1165.778337 | JJ15: 20078.21506 | JK15: 1481.50832 | JL15: 24311.75332 | JM15: 1795.72229 | JN15: 28558.41643 | JO15: 2108.452205 | JP15: 32831.50977 | JQ15: 2419.836637 | JR15: 37070.69969 | JS15: 2729.968578 | JT15: 40958.46194 | JU15: 3039.142499 | JV15: 44758.25428 | JW15: 3347.439599 | JX15: 48402.1621 | JY15: 3654.661753 | JZ15: 51910.02234 | KA15: 3960.668927 | KB15: 55426.98549 | KC15: 4265.593823 | KD15: 58872.54884 | KE15: 4569.398041 | KF15: 62236.33508 | KG15: 4872.182955 | KH15: 65893.03901 | KI15: 5174.302711 | KJ15: 66211.19738 | KK15: 5198.866996 | KL15: 66527.99699 | KM15: 5223.328998 | KN15: 66839.24617 | KO15: 5247.689511 | KP15: 67147.20251 | KQ15: 5271.956806 | KR15: 67471.11598 | KS15: 5296.129649 | KT15: 67768.43838 | KU15: 5320.211824
A16: Greater Manchester | B16: Bolton | D16: 1331.156088 | E16: 188.263124 | F16: 2113.333327 | G16: 222.6345648 | H16: 2917.884358 | I16: 250.8324314 | J16: 3591.251467 | K16: 277.3741897 | L16: 4496.362258 | M16: 299.2346836 | N16: 5349.497512 | O16: 329.9771564 | P16: 6210.544365 | Q16: 361.5622177 | R16: 7091.878569 | S16: 393.5580688 | T16: 8020.80143 | U16: 426.2795752 | V16: 9679.623633 | W16: 462.1227662 | X16: 11332.18096 | Y16: 492.0325265 | Z16: 12975.4249 | AA16: 521.7661328 | AB16: 14593.87461 | AC16: 551.3141058 | AD16: 16244.94223 | AE16: 580.660777 | AF16: 18002.55143 | AG16: 609.8154529 | AH16: 19804.78166 | AI16: 638.8147377 | AJ16: 21249.68513 | AK16: 667.7225548 | AL16: 22700.08368 | AM16: 696.5707718 | AN16: 24111.74012 | AO16: 725.2944273 | AP16: 25218.42571 | AQ16: 753.9049141 | AR16: 26319.67968 | AS16: 782.4158098 | AT16: 27317.79995 | AU16: 810.8499848 | AV16: 28383.24373 | AW16: 839.1991621 | AX16: 29473.85102 | AY16: 867.2309673 | AZ16: 29796.6916 | BA16: 895.2300923 | BB16: 30135.79312 | BC16: 923.1150379 | BD16: 30481.20963 | BE16: 950.8887443 | BF16: 30847.57314 | BG16: 978.5569213 | BH16: 31288.522 | BI16: 1006.125176 | BJ16: 31724.51506 | BK16: 1033.596167 | BM16: 1331.156088 | BN16: 188.263124 | BO16: 2071.148571 | BP16: 216.7788667 | BQ16: 2859.79582 | BR16: 242.1308153 | BS16: 3119.573834 | BT16: 265.152101 | BU16: 3679.944881 | BV16: 281.9930342 | BW16: 4278.731559 | BX16: 309.7732835 | BY16: 4912.660181 | BZ16: 338.3099767 | CA16: 5566.870485 | CB16: 367.1677501 | CC16: 6244.828501 | CD16: 396.6430512 | CE16: 6945.157136 | CF16: 429.7186314 | CG16: 7654.605062 | CH16: 451.7407459 | CI16: 8365.136535 | CJ16: 473.5754783 | CK16: 9054.505034 | CL16: 495.2192564 | CM16: 9833.98943 | CN16: 516.6618449 | CO16: 10883.35411 | CP16: 537.9020967 | CQ16: 11984.79483 | CR16: 558.9793073 | CS16: 12758.30518 | CT16: 579.9509488 | CU16: 13512.22189 | CV16: 600.8366194 | CW16: 14385.57607 | CX16: 621.590022 | CY16: 14968.18805 | CZ16: 642.2148574 | DA16: 15556.50043 | DB16: 662.7275052 | DC16: 16104.24401 | DD16: 683.1466959 | DE16: 16647.73609 | DF16: 703.4624913 | DG16: 17223.01749 | DH16: 723.4913515 | DI16: 17805.41106 | DJ16: 743.4640074 | DK16: 18380.59566 | DL16: 763.315255 | DM16: 18883.88992 | DN16: 783.0501971 | DO16: 19476.60488 | DP16: 802.6767294 | DQ16: 20102.17667 | DR16: 822.1969087 | DS16: 20458.82809 | DT16: 841.6184703 | DV16: 1331.156088 | DW16: 188.263124 | DX16: 2113.333327 | DY16: 222.6345648 | DZ16: 2917.884358 | EA16: 250.8324314 | EB16: 3591.251467 | EC16: 277.3741897 | ED16: 4496.362258 | EE16: 299.2346836 | EF16: 5349.497512 | EG16: 329.9771564 | EH16: 6210.544365 | EI16: 361.5622177 | EJ16: 7091.878569 | EK16: 393.5580688 | EL16: 8020.80143 | EM16: 426.2795752 | EN16: 9679.623633 | EO16: 462.1227662 | EP16: 11332.18096 | EQ16: 492.0325265 | ER16: 12975.4249 | ES16: 521.7661328 | ET16: 14593.87461 | EU16: 551.3141058 | EV16: 16244.94223 | EW16: 580.660777 | EX16: 18002.55143 | EY16: 609.8154529 | EZ16: 19804.78166 | FA16: 638.8147377 | FB16: 21249.68513 | FC16: 667.7225548 | FD16: 22700.08368 | FE16: 696.5707718 | FF16: 24111.74012 | FG16: 725.2944273 | FH16: 25218.42571 | FI16: 753.9049141 | FJ16: 26319.67968 | FK16: 782.4158098 | FL16: 27317.79995 | FM16: 810.8499848 | FN16: 28383.24373 | FO16: 839.1991621 | FP16: 29473.85102 | FQ16: 867.2309673 | FR16: 29796.6916 | FS16: 895.2300923 | FT16: 30135.79312 | FU16: 923.1150379 | FV16: 30481.20963 | FW16: 950.8887443 | FX16: 30847.57314 | FY16: 978.5569213 | FZ16: 31288.522 | GA16: 1006.125176 | GB16: 31724.51506 | GC16: 1033.596167 | GE16: 1331.156088 | GF16: 188.263124 | GG16: 2287.776966 | GH16: 262.8348606 | GI16: 3399.009678 | GJ16: 310.1463146 | GK16: 4468.786523 | GL16: 358.0119654 | GM16: 5761.281755 | GN16: 406.4746936 | GO16: 7268.892948 | GP16: 455.5301478 | GQ16: 9159.934006 | GR16: 505.2352097 | GS16: 11267.78942 | GT16: 555.5987429 | GU16: 13180.94567 | GV16: 606.5971533 | GW16: 15243.52909 | GX16: 656.4418248 | GY16: 16993.04991 | GZ16: 697.6876342 | HA16: 18473.54224 | HB16: 738.5425758 | HC16: 19544.58252 | HD16: 779.0068691 | HE16: 22308.29677 | HF16: 819.0636256 | HG16: 30635.3474 | HH16: 1187.602401 | HI16: 38760.39193 | HJ16: 1554.993675 | HK16: 46484.80891 | HL16: 1921.518221 | HM16: 54108.94745 | HN16: 2287.426093 | HO16: 61579.77739 | HP16: 2652.640285 | HQ16: 68871.07378 | HR16: 3017.247941 | HS16: 76052.0828 | HT16: 3381.362075 | HU16: 82852.5273 | HV16: 3745.133077 | HW16: 89453.55049 | HX16: 4108.556196 | HY16: 96310.63855 | HZ16: 4470.48495 | IA16: 103049.5572 | IB16: 4832.292314 | IC16: 110110.2465 | ID16: 5193.575835 | IE16: 117429.366 | IF16: 5554.354298 | IG16: 125134.9708 | IH16: 5914.654154 | II16: 130669.7544 | IJ16: 6274.489527 | IK16: 131125.6425 | IL16: 6308.206638 | IN16: 1331.156088 | IO16: 188.263124 | IP16: 2287.776966 | IQ16: 262.8348606 | IR16: 3451.57791 | IS16: 310.1463146 | IT16: 4768.943707 | IU16: 358.0119654 | IV16: 6334.964307 | IW16: 406.4746936 | IX16: 8060.946464 | IY16: 455.5301478 | IZ16: 10014.90666 | JA16: 505.2352097 | JB16: 12172.01904 | JC16: 555.5987429 | JD16: 14937.75579 | JE16: 606.5971533 | JF16: 23246.23863 | JG16: 987.9516576 | JH16: 31567.89624 | JI16: 1359.435632 | JJ16: 39886.90775 | JK16: 1729.476497 | JL16: 48155.26216 | JM16: 2098.219434 | JN16: 56439.71733 | JO16: 2465.704034 | JP16: 64765.23702 | JQ16: 2831.999353 | JR16: 72888.82281 | JS16: 3197.352673 | JT16: 80679.46528 | JU16: 3562.151331 | JV16: 88271.40323 | JW16: 3926.665988 | JX16: 95492.79566 | JY16: 4290.625426 | JZ16: 102469.7967 | KA16: 4654.106284 | KB16: 109404.3669 | KC16: 5017.22969 | KD16: 116138.3839 | KE16: 5380.166165 | KF16: 122692.6834 | KG16: 5742.862342 | KH16: 128249.0731 | KI16: 6103.724075 | KJ16: 128791.0975 | KK16: 6138.187135 | KL16: 129331.333 | KM16: 6172.48949 | KN16: 129865.1232 | KO16: 6206.634526 | KP16: 130395.6267 | KQ16: 6240.634315 | KR16: 130944.7159 | KS16: 6274.489527 | KT16: 131465.5753 | KU16: 6308.206638
A17: Lancashire | B17: Burnley | D17: 282.922217 | E17: 72.82668804 | F17: 504.1580563 | G17: 86.30709067 | H17: 723.7766607 | I17: 97.51172497 | J17: 913.3600121 | K17: 108.147339 | L17: 1205.339185 | M17: 116.947992 | N17: 1491.59254 | O17: 129.2305018 | P17: 1785.613361 | Q17: 141.8589842 | R17: 2087.313593 | S17: 154.6776202 | T17: 2414.649637 | U17: 167.8232702 | V17: 2937.8041 | W17: 182.2399567 | X17: 3460.160921 | Y17: 194.3523177 | Z17: 3980.483894 | AA17: 206.389614 | AB17: 4492.818958 | AC17: 218.3698361 | AD17: 5019.068969 | AE17: 230.3077069 | AF17: 5587.744169 | AG17: 242.1536725 | AH17: 6174.965473 | AI17: 253.9478559 | AJ17: 6624.926989 | AK17: 265.7041421 | AL17: 7083.384352 | AM17: 277.4368617 | AN17: 7548.071583 | AO17: 289.1184323 | AP17: 7898.605276 | AQ17: 300.7532869 | AR17: 8250.673958 | AS17: 312.3284479 | AT17: 8584.64718 | AU17: 323.8567577 | AV17: 8930.074983 | AW17: 335.3363979 | AX17: 9272.270248 | AY17: 346.7705157 | AZ17: 9412.031952 | BA17: 358.1594407 | BB17: 9557.528053 | BC17: 369.5059578 | BD17: 9703.948719 | BE17: 380.8108505 | BF17: 9854.384522 | BG17: 392.0760437 | BH17: 10021.31943 | BI17: 403.3034509 | BJ17: 10183.87714 | BK17: 414.4938316 | BM17: 282.922217 | BN17: 72.82668804 | BO17: 491.0064573 | BP17: 83.94642924 | BQ17: 713.4415332 | BR17: 93.89487674 | BS17: 807.122579 | BT17: 102.9803792 | BU17: 1023.093537 | BV17: 109.6420399 | BW17: 1253.801737 | BX17: 120.5521999 | BY17: 1498.144392 | BZ17: 131.7796735 | CA17: 1750.202026 | CB17: 143.1735443 | CC17: 2011.301937 | CD17: 154.8667829 | CE17: 2280.94281 | CF17: 168.0291138 | CG17: 2554.028381 | CH17: 176.8982084 | CI17: 2827.592026 | CJ17: 185.6834936 | CK17: 3093.345665 | CL17: 194.4043072 | CM17: 3390.366435 | CN17: 203.0756071 | CO17: 3781.28515 | CP17: 211.6503681 | CQ17: 4192.360448 | CR17: 220.1672748 | CS17: 4475.041581 | CT17: 228.6394011 | CU17: 4749.544667 | CV17: 237.0763761 | CW17: 5074.575731 | CX17: 245.4588608 | CY17: 5286.189124 | CZ17: 253.7885619 | DA17: 5499.998761 | DB17: 262.0568059 | DC17: 5698.063887 | DD17: 270.2745778 | DE17: 5893.915323 | DF17: 278.4395458 | DG17: 6102.018893 | DH17: 286.5586826 | DI17: 6312.826398 | DJ17: 294.6291913 | DK17: 6521.172485 | DL17: 302.6546768 | DM17: 6727.035884 | DN17: 310.6368909 | DO17: 6954.249785 | DP17: 318.5787138 | DQ17: 7159.62493 | DR17: 326.4807278 | DS17: 7298.010663 | DT17: 334.345786 | DV17: 282.922217 | DW17: 72.82668804 | DX17: 504.1580563 | DY17: 86.30709067 | DZ17: 723.7766607 | EA17: 97.51172497 | EB17: 913.3600121 | EC17: 108.147339 | ED17: 1205.339185 | EE17: 116.947992 | EF17: 1491.59254 | EG17: 129.2305018 | EH17: 1785.613361 | EI17: 141.8589842 | EJ17: 2087.313593 | EK17: 154.6776202 | EL17: 2414.649637 | EM17: 167.8232702 | EN17: 2937.8041 | EO17: 182.2399567 | EP17: 3460.160921 | EQ17: 194.3523177 | ER17: 3980.483894 | ES17: 206.389614 | ET17: 4492.818958 | EU17: 218.3698361 | EV17: 5019.068969 | EW17: 230.3077069 | EX17: 5587.744169 | EY17: 242.1536725 | EZ17: 6174.965473 | FA17: 253.9478559 | FB17: 6624.926989 | FC17: 265.7041421 | FD17: 7083.384352 | FE17: 277.4368617 | FF17: 7548.071583 | FG17: 289.1184323 | FH17: 7898.605276 | FI17: 300.7532869 | FJ17: 8250.673958 | FK17: 312.3284479 | FL17: 8584.64718 | FM17: 323.8567577 | FN17: 8930.074983 | FO17: 335.3363979 | FP17: 9272.270248 | FQ17: 346.7705157 | FR17: 9412.031952 | FS17: 358.1594407 | FT17: 9557.528053 | FU17: 369.5059578 | FV17: 9703.948719 | FW17: 380.8108505 | FX17: 9854.384522 | FY17: 392.0760437 | FZ17: 10021.31943 | GA17: 403.3034509 | GB17: 10183.87714 | GC17: 414.4938316 | GE17: 282.922217 | GF17: 72.82668804 | GG17: 548.4262616 | GH17: 101.8912412 | GI17: 855.7696412 | GJ17: 120.570143 | GK17: 1181.229941 | GL17: 139.5877584 | GM17: 1579.909798 | GN17: 158.8599244 | GO17: 2038.628959 | GP17: 178.4014089 | GQ17: 2599.746876 | GR17: 198.2291017 | GS17: 3219.677185 | GT17: 218.3634339 | GU17: 3791.86428 | GV17: 238.8130323 | GW17: 4407.907265 | GX17: 258.8704528 | GY17: 4946.180698 | GZ17: 275.5858636 | HA17: 5418.394554 | HB17: 292.1376218 | HC17: 5792.100223 | HD17: 308.5565932 | HE17: 6751.897184 | HF17: 324.8655203 | HG17: 9582.608197 | HH17: 471.589038 | HI17: 12381.73559 | HJ17: 618.1562298 | HK17: 15023.86449 | HL17: 764.6219929 | HM17: 17634.84988 | HN17: 911.0579176 | HO17: 20214.02345 | HP17: 1057.401204 | HQ17: 22737.60024 | HR17: 1203.662715 | HS17: 25222.90489 | HT17: 1349.788125 | HU17: 27590.54453 | HV17: 1495.821272 | HW17: 29904.22808 | HX17: 1641.74191 | HY17: 32287.39112 | HZ17: 1787.565747 | IA17: 34637.8215 | IB17: 1933.28076 | IC17: 37067.41872 | ID17: 2078.892808 | IE17: 39559.03332 | IF17: 2224.401538 | IG17: 42142.31231 | IH17: 2369.810228 | II17: 43856.83478 | IJ17: 2515.11774 | IK17: 43999.297 | IL17: 2529.72372 | IN17: 282.922217 | IO17: 72.82668804 | IP17: 548.4262616 | IQ17: 101.8912412 | IR17: 873.7442971 | IS17: 120.570143 | IT17: 1273.756338 | IU17: 139.5877584 | IV17: 1741.551001 | IW17: 158.8599244 | IX17: 2255.097049 | IY17: 178.4014089 | IZ17: 2831.198144 | JA17: 198.2291017 | JB17: 3463.937181 | JC17: 218.3634339 | JD17: 4414.865054 | JE17: 238.8130323 | JF17: 7218.310555 | JG17: 389.602678 | JH17: 10025.78682 | JI17: 536.9756094 | JJ17: 12832.66121 | JK17: 684.1110688 | JL17: 15625.22782 | JM17: 831.083096 | JN17: 18427.41583 | JO17: 977.9731375 | JP17: 21257.89308 | JQ17: 1124.568163 | JR17: 24056.79723 | JS17: 1271.042774 | JT17: 26730.81068 | JU17: 1417.472507 | JV17: 29346.9285 | JW17: 1563.950043 | JX17: 31849.84478 | JY17: 1710.338382 | JZ17: 34279.53226 | KA17: 1856.65027 | KB17: 36690.86855 | KC17: 2002.801505 | KD17: 39042.15567 | KE17: 2148.860089 | KF17: 41342.88945 | KG17: 2294.79587 | KH17: 43123.50459 | KI17: 2440.631879 | KJ17: 43279.62403 | KK17: 2455.737012 | KL17: 43435.22577 | KM17: 2470.733925 | KN17: 43589.71789 | KO17: 2485.625987 | KP17: 43743.74084 | KQ17: 2500.419913 | KR17: 43900.91845 | KS17: 2515.11774 | KT17: 44053.75612 | KU17: 2529.72372
A18: Greater Manchester | B18: Bury | D18: 666.5876977 | E18: 119.91815 | F18: 1214.371795 | G18: 142.1514754 | H18: 1767.616461 | I18: 160.6396389 | J18: 2198.408788 | K18: 178.189097 | L18: 2798.752222 | M18: 192.7632713 | N18: 3360.343166 | O18: 213.108036 | P18: 3923.074279 | Q18: 234.0595392 | R18: 4497.492774 | S18: 255.3981432 | T18: 5110.806448 | U18: 277.3282079 | V18: 6122.469437 | W18: 301.3573931 | X18: 7134.376383 | Y18: 321.6102524 | Z18: 8143.557707 | AA18: 341.8046379 | AB18: 9138.080918 | AC18: 361.9862666 | AD18: 10158.54113 | AE18: 382.1222289 | AF18: 11256.67747 | AG18: 402.1804239 | AH18: 12388.68597 | AI18: 422.2487857 | AJ18: 13274.32205 | AK18: 442.3084928 | AL18: 14173.49466 | AM18: 462.3642077 | AN18: 15072.09833 | AO18: 482.3839213 | AP18: 15757.69419 | AQ18: 502.3597341 | AR18: 16442.26126 | AS18: 522.2974617 | AT18: 17065.27596 | AU18: 542.2026715 | AV18: 17739.79952 | AW18: 562.073796 | AX18: 18425.76532 | AY18: 581.9002434 | AZ18: 18683.25765 | BA18: 601.7015566 | BB18: 18947.75906 | BC18: 621.4756661 | BD18: 19213.48664 | BE18: 641.2234793 | BF18: 19492.87957 | BG18: 660.947825 | BH18: 19824.85794 | BI18: 680.6515227 | BJ18: 20151.47278 | BK18: 700.33545 | BM18: 666.5876977 | BN18: 119.91815 | BO18: 1188.420404 | BP18: 138.3052598 | BQ18: 1742.463902 | BR18: 154.7893664 | BS18: 1925.294298 | BT18: 169.8609205 | BU18: 2319.18025 | BV18: 180.9824421 | BW18: 2740.048503 | BX18: 199.1496015 | BY18: 3185.620614 | BZ18: 217.869279 | CA18: 3645.42785 | CB18: 236.9238207 | CC18: 4121.893095 | CD18: 256.5104005 | CE18: 4614.058506 | CF18: 278.5165115 | CG18: 5112.606954 | CH18: 293.4351029 | CI18: 5611.927232 | CJ18: 308.2687349 | CK18: 6096.425949 | CL18: 323.0624909 | CM18: 6637.051587 | CN18: 337.7892055 | CO18: 7345.798934 | CP18: 352.4147105 | CQ18: 8091.169823 | CR18: 367.0209944 | CS18: 8608.256933 | CT18: 381.5925209 | CU18: 9112.198374 | CV18: 396.1286606 | CW18: 9697.145624 | CX18: 410.6090229 | CY18: 10077.73381 | CZ18: 425.0233734 | DA18: 10462.34298 | DB18: 439.3803754 | DC18: 10818.44233 | DD18: 453.6848273 | DE18: 11171.36035 | DF18: 467.9339641 | DG18: 11546.62737 | DH18: 482.1262607 | DI18: 11926.89409 | DJ18: 496.2727676 | DK18: 12302.31228 | DL18: 510.3738839 | DM18: 12640.80607 | DN18: 524.4321765 | DO18: 13050.14134 | DP18: 538.4521308 | DQ18: 13468.49082 | DR18: 552.4343638 | DS18: 13719.26373 | DT18: 566.3833424 | DV18: 666.5876977 | DW18: 119.91815 | DX18: 1214.371795 | DY18: 142.1514754 | DZ18: 1767.616461 | EA18: 160.6396389 | EB18: 2198.408788 | EC18: 178.189097 | ED18: 2798.752222 | EE18: 192.7632713 | EF18: 3360.343166 | EG18: 213.108036 | EH18: 3923.074279 | EI18: 234.0595392 | EJ18: 4497.492774 | EK18: 255.3981432 | EL18: 5110.806448 | EM18: 277.3282079 | EN18: 6122.469437 | EO18: 301.3573931 | EP18: 7134.376383 | EQ18: 321.6102524 | ER18: 8143.557707 | ES18: 341.8046379 | ET18: 9138.080918 | EU18: 361.9862666 | EV18: 10158.54113 | EW18: 382.1222289 | EX18: 11256.67747 | EY18: 402.1804239 | EZ18: 12388.68597 | FA18: 422.2487857 | FB18: 13274.32205 | FC18: 442.3084928 | FD18: 14173.49466 | FE18: 462.3642077 | FF18: 15072.09833 | FG18: 482.3839213 | FH18: 15757.69419 | FI18: 502.3597341 | FJ18: 16442.26126 | FK18: 522.2974617 | FL18: 17065.27596 | FM18: 542.2026715 | FN18: 17739.79952 | FO18: 562.073796 | FP18: 18425.76532 | FQ18: 581.9002434 | FR18: 18683.25765 | FS18: 601.7015566 | FT18: 18947.75906 | FU18: 621.4756661 | FV18: 19213.48664 | FW18: 641.2234793 | FX18: 19492.87957 | FY18: 660.947825 | FZ18: 19824.85794 | GA18: 680.6515227 | GB18: 20151.47278 | GC18: 700.33545 | GE18: 666.5876977 | GF18: 119.91815 | GG18: 1317.939076 | GH18: 167.8192389 | GI18: 2061.498247 | GJ18: 198.6257986 | GK18: 2755.913941 | GL18: 229.991943 | GM18: 3595.628837 | GN18: 261.8459554 | GO18: 4562.906735 | GP18: 294.1935017 | GQ18: 5752.036033 | GR18: 327.0671398 | GS18: 7067.522561 | GT18: 360.5538764 | GU18: 8283.299717 | GV18: 394.6388971 | GW18: 9587.405816 | GX18: 428.0758524 | GY18: 10722.14534 | GZ18: 456.0338677 | HA18: 11703.26938 | HB18: 483.8130762 | HC18: 12426.554 | HD18: 511.4866193 | HE18: 14279.44999 | HF18: 539.0107797 | HG18: 19810.06612 | HH18: 783.237674 | HI18: 25258.00849 | HJ18: 1027.83194 | HK18: 30356.04355 | HL18: 1272.839778 | HM18: 35401.80725 | HN18: 1518.329502 | HO18: 40363.30617 | HP18: 1764.236666 | HQ18: 45209.42575 | HR18: 2010.523934 | HS18: 50001.27869 | HT18: 2257.21005 | HU18: 54566.65922 | HV18: 2504.311768 | HW18: 59018.24488 | HX18: 2751.804198 | HY18: 63612.53366 | HZ18: 2999.634905 | IA18: 68141.49196 | IB18: 3247.877648 | IC18: 72845.68851 | ID18: 3496.510044 | IE18: 77697.9211 | IF18: 3745.530074 | IG18: 82799.45961 | IH18: 3994.941647 | II18: 86743.3574 | IJ18: 4244.741065 | IK18: 87070.63537 | IL18: 4274.261919 | IN18: 666.5876977 | IO18: 119.91815 | IP18: 1317.939076 | IQ18: 167.8192389 | IR18: 2093.660008 | IS18: 198.6257986 | IT18: 2935.987525 | IU18: 229.991943 | IV18: 3927.06516 | IW18: 261.8459554 | IX18: 5015.866328 | IY18: 294.1935017 | IZ18: 6239.180926 | JA18: 327.0671398 | JB18: 7585.232516 | JC18: 360.5538764 | JD18: 9418.059116 | JE18: 394.6388971 | JF18: 14901.18473 | JG18: 644.2585343 | JH18: 20393.5084 | JI18: 888.5762894 | JJ18: 25885.94088 | JK18: 1132.965616 | JL18: 31351.269 | JM18: 1377.665856 | JN18: 36834.52583 | JO18: 1622.634692 | JP18: 42364.2669 | JQ18: 1867.736698 | JR18: 47811.37532 | JS18: 2113.411298 | JT18: 52967.13277 | JU18: 2359.617442 | JV18: 58005.4227 | JW18: 2606.411124 | JX18: 62814.94908 | JY18: 2853.639349 | JZ18: 67470.37373 | KA18: 3101.234057 | KB18: 72113.17083 | KC18: 3349.224669 | KD18: 76642.01965 | KE18: 3597.632759 | KF18: 81064.86715 | KG18: 3846.419995 | KH18: 85003.79525 | KI18: 4095.516257 | KJ18: 85393.75135 | KK18: 4125.594957 | KL18: 85782.52241 | KM18: 4155.551432 | KN18: 86166.64408 | KO18: 4185.389521 | KP18: 86548.34527 | KQ18: 4215.118801 | KR18: 86943.47521 | KS18: 4244.741065 | KT18: 87318.06135 | KU18: 4274.261919
A19: Cumberland** | B19: Carlisle | D19: 503.6059064 | E19: 119.9337429 | F19: 1018.094498 | G19: 141.7634192 | H19: 1543.980292 | I19: 159.8275927 | J19: 2018.521933 | K19: 176.9618289 | L19: 2667.178459 | M19: 191.0493958 | N19: 3294.79942 | O19: 210.7738743 | P19: 3936.475589 | Q19: 230.9943433 | R19: 4591.839547 | S19: 251.4518004 | T19: 5306.470111 | U19: 272.3579529 | V19: 6514.10888 | W19: 295.1835868 | X19: 7723.481154 | Y19: 314.1640441 | Z19: 8929.166382 | AA19: 332.9712969 | AB19: 10114.56607 | AC19: 351.5422242 | AD19: 11327.81035 | AE19: 369.889579 | AF19: 12628.62999 | AG19: 388.0465129 | AH19: 13966.30177 | AI19: 406.0089061 | AJ19: 14957.82501 | AK19: 423.8104935 | AL19: 15944.05499 | AM19: 441.4345432 | AN19: 16914.3403 | AO19: 458.8760654 | AP19: 17694.61426 | AQ19: 476.1506307 | AR19: 18496.84842 | AS19: 493.2682536 | AT19: 19338.1264 | AU19: 510.2369456 | AV19: 20022.39397 | AW19: 527.0589356 | AX19: 20658.22294 | AY19: 543.6610102 | AZ19: 20942.09742 | BA19: 560.134546 | BB19: 21228.63508 | BC19: 576.4565784 | BD19: 21514.24698 | BE19: 592.6292495 | BF19: 21806.52639 | BG19: 608.6564647 | BH19: 22128.66916 | BI19: 624.5420871 | BJ19: 22442.40696 | BK19: 640.2881689 | BM19: 503.6059064 | BN19: 119.9337429 | BO19: 972.2288479 | BP19: 137.8444564 | BQ19: 1480.468203 | BR19: 153.7927956 | BS19: 1681.331447 | BT19: 168.3251681 | BU19: 2133.356366 | BV19: 178.858158 | BW19: 2616.500338 | BX19: 196.2754823 | BY19: 3127.865375 | BZ19: 214.1536544 | CA19: 3655.613217 | CB19: 232.2451871 | CC19: 4203.244606 | CD19: 250.7582067 | CE19: 4769.336027 | CF19: 271.5313552 | CG19: 5343.306383 | CH19: 285.2711588 | CI19: 5918.507585 | CJ19: 298.8432196 | CK19: 6476.678785 | CL19: 312.1962857 | CM19: 7149.347296 | CN19: 325.3467057 | CO19: 8163.98667 | CP19: 338.319243 | CQ19: 9220.360472 | CR19: 351.1158013 | CS19: 9967.734611 | CT19: 363.7678087 | CU19: 10686.8676 | CV19: 376.2572451 | CW19: 11554.07496 | CX19: 388.5873688 | CY19: 12192.07868 | CZ19: 400.768352 | DA19: 12834.82104 | DB19: 412.8122188 | DC19: 13444.89088 | DD19: 424.7257927 | DE19: 14060.25234 | DF19: 436.5095762 | DG19: 14702.28552 | DH19: 448.1100093 | DI19: 15350.63298 | DJ19: 459.5980141 | DK19: 15995.32212 | DL19: 470.956678 | DM19: 16708.41885 | DN19: 482.1895475 | DO19: 17265.05032 | DP19: 493.301889 | DQ19: 17717.1091 | DR19: 504.2953751 | DS19: 18023.19459 | DT19: 515.1751676 | DV19: 503.6059064 | DW19: 119.9337429 | DX19: 1018.094498 | DY19: 141.7634192 | DZ19: 1543.980292 | EA19: 159.8275927 | EB19: 2018.521933 | EC19: 176.9618289 | ED19: 2667.178459 | EE19: 191.0493958 | EF19: 3294.79942 | EG19: 210.7738743 | EH19: 3936.475589 | EI19: 230.9943433 | EJ19: 4591.839547 | EK19: 251.4518004 | EL19: 5306.470111 | EM19: 272.3579529 | EN19: 6514.10888 | EO19: 295.1835868 | EP19: 7723.481154 | EQ19: 314.1640441 | ER19: 8929.166382 | ES19: 332.9712969 | ET19: 10114.56607 | EU19: 351.5422242 | EV19: 11327.81035 | EW19: 369.889579 | EX19: 12628.62999 | EY19: 388.0465129 | EZ19: 13966.30177 | FA19: 406.0089061 | FB19: 14957.82501 | FC19: 423.8104935 | FD19: 15944.05499 | FE19: 441.4345432 | FF19: 16914.3403 | FG19: 458.8760654 | FH19: 17694.61426 | FI19: 476.1506307 | FJ19: 18496.84842 | FK19: 493.2682536 | FL19: 19338.1264 | FM19: 510.2369456 | FN19: 20022.39397 | FO19: 527.0589356 | FP19: 20658.22294 | FQ19: 543.6610102 | FR19: 20942.09742 | FS19: 560.134546 | FT19: 21228.63508 | FU19: 576.4565784 | FV19: 21514.24698 | FW19: 592.6292495 | FX19: 21806.52639 | FY19: 608.6564647 | FZ19: 22128.66916 | GA19: 624.5420871 | GB19: 22442.40696 | GC19: 640.2881689 | GE19: 503.6059064 | GF19: 119.9337429 | GG19: 1150.821709 | GH19: 167.3611128 | GI19: 1912.018502 | GJ19: 197.6217292 | GK19: 2699.377824 | GL19: 228.4078855 | GM19: 3649.040901 | GN19: 259.5178596 | GO19: 4729.739091 | GP19: 290.971215 | GQ19: 6026.21482 | GR19: 322.7839353 | GS19: 7418.409953 | GT19: 354.9826957 | GU19: 8726.418872 | GV19: 387.5662089 | GW19: 10107.46154 | GX19: 419.3060081 | GY19: 11348.85874 | GZ19: 445.4753637 | HA19: 12472.56161 | HB19: 471.3097763 | HC19: 13431.72025 | HD19: 496.7291868 | HE19: 14994.53744 | HF19: 521.7557507 | HG19: 18535.6318 | HH19: 755.7121879 | HI19: 22034.58293 | HJ19: 988.301058 | HK19: 25088.70691 | HL19: 1219.607725 | HM19: 27970.53881 | HN19: 1449.599859 | HO19: 30752.63459 | HP19: 1678.260705 | HQ19: 33434.22353 | HR19: 1905.630914 | HS19: 36054.6134 | HT19: 2131.754682 | HU19: 38487.39582 | HV19: 2356.669295 | HW19: 40835.8728 | HX19: 2580.378238 | HY19: 43317.75574 | HZ19: 2802.515657 | IA19: 45751.95294 | IB19: 3023.506341 | IC19: 48330.43117 | ID19: 3243.226285 | IE19: 51019.8211 | IF19: 3461.680285 | IG19: 53845.35973 | IH19: 3678.878979 | II19: 56265.61482 | IJ19: 3894.826288 | IK19: 56601.65148 | IL19: 3907.783531 | IN19: 503.6059064 | IO19: 119.9337429 | IP19: 1150.821709 | IQ19: 167.3611128 | IR19: 1947.291879 | IS19: 197.6217292 | IT19: 2915.553594 | IU19: 228.4078855 | IV19: 4054.314308 | IW19: 259.5178596 | IX19: 5275.372135 | IY19: 290.971215 | IZ19: 6600.839756 | JA19: 322.7839353 | JB19: 8009.926046 | JC19: 354.9826957 | JD19: 9547.159287 | JE19: 387.5662089 | JF19: 13014.8763 | JG19: 631.0598289 | JH19: 16491.97233 | JI19: 868.0031762 | JJ19: 19968.96412 | JK19: 1103.686108 | JL19: 23418.28157 | JM19: 1337.917385 | JN19: 26891.5266 | JO19: 1570.69026 | JP19: 30432.26223 | JQ19: 1802.098435 | JR19: 33930.87164 | JS19: 2032.128542 | JT19: 36913.70345 | JU19: 2260.934729 | JV19: 39740.66194 | JW19: 2488.427705 | JX19: 42351.59278 | JY19: 2714.573888 | JZ19: 44886.6259 | KA19: 2939.436527 | KB19: 47392.92482 | KC19: 3163.075306 | KD19: 49797.72435 | KE19: 3385.533209 | KF19: 52128.91333 | KG19: 3606.804023 | KH19: 54551.37505 | KI19: 3826.381807 | KJ19: 54925.98123 | KK19: 3840.588798 | KL19: 55297.51475 | KM19: 3854.527361 | KN19: 55664.34098 | KO19: 3868.205596 | KP19: 56030.67432 | KQ19: 3881.63666 | KR19: 56410.36877 | KS19: 3894.826288 | KT19: 56779.92729 | KU19: 3907.783531
A20: Cheshire | B20: Cheshire East | D20: 444.6829464 | E20: 120.7633905 | F20: 1155.025254 | G20: 143.5679647 | H20: 1857.88613 | I20: 162.8591285 | J20: 2409.428141 | K20: 181.4193137 | L20: 3276.773386 | M20: 196.947781 | N20: 4133.650169 | O20: 218.4191781 | P20: 5014.557263 | Q20: 240.6177578 | R20: 5916.436957 | S20: 263.2839001 | T20: 6858.020175 | U20: 286.6734038 | V20: 8265.65361 | W20: 312.2510922 | X20: 9677.718831 | Y20: 333.9377054 | Z20: 11086.63282 | AA20: 355.6047044 | AB20: 12469.32314 | AC20: 377.2613512 | AD20: 13893.1063 | AE20: 398.8412843 | AF20: 15444.46848 | AG20: 420.3124466 | AH20: 17051.41803 | AI20: 441.7396933 | AJ20: 18223.502 | AK20: 463.1143749 | AL20: 19410.66925 | AM20: 484.5172349 | AN20: 20601.35895 | AO20: 505.8704147 | AP20: 21468.89262 | AQ20: 527.1529345 | AR20: 22348.26248 | AS20: 548.3887026 | AT20: 23228.3187 | AU20: 569.5952877 | AV20: 24065.86922 | AW20: 590.7887288 | AX20: 24910.79862 | AY20: 611.9278015 | AZ20: 25321.55273 | BA20: 633.0402621 | BB20: 25733.32058 | BC20: 654.1238176 | BD20: 26141.55209 | BE20: 675.1786738 | BF20: 26562.03403 | BG20: 696.2071246 | BH20: 27040.62434 | BI20: 717.2115152 | BJ20: 27506.08678 | BK20: 738.1922004 | BM20: 444.6829464 | BN20: 120.7633905 | BO20: 1116.010343 | BP20: 139.4820424 | BQ20: 1830.245448 | BR20: 156.4077191 | BS20: 2112.853496 | BT20: 172.0471942 | BU20: 2761.041759 | BV20: 183.6485177 | BW20: 3453.617359 | BX20: 202.4077164 | BY20: 4186.960705 | BZ20: 221.8425698 | CA20: 4943.591013 | CB20: 241.7136566 | CC20: 5727.990361 | CD20: 262.2756114 | CE20: 6538.362079 | CF20: 285.3834024 | CG20: 7359.441251 | CH20: 301.2406304 | CI20: 8182.197772 | CJ20: 317.035467 | CK20: 8981.542787 | CL20: 332.7820294 | CM20: 9883.97782 | CN20: 348.4265137 | CO20: 11095.00763 | CP20: 363.9373831 | CQ20: 12366.41432 | CR20: 379.3780543 | CS20: 13237.46329 | CT20: 394.7439693 | CU20: 14079.99718 | CV20: 410.1002151 | CW20: 15085.26611 | CX20: 425.3884857 | CY20: 15756.14181 | CZ20: 440.5882728 | DA20: 16433.77282 | DB20: 455.7241004 | DC20: 17064.42309 | DD20: 470.8110285 | DE20: 17695.52414 | DF20: 485.8609062 | DG20: 18364.21445 | DH20: 500.847459 | DI20: 19041.56553 | DJ20: 515.7882928 | DK20: 19712.83093 | DL20: 530.6838602 | DM20: 20436.74714 | DN20: 545.5363304 | DO20: 21147.88772 | DP20: 560.3499075 | DQ20: 21760.70905 | DR20: 575.1248079 | DS20: 22187.15259 | DT20: 589.8652864 | DV20: 444.6829464 | DW20: 120.7633905 | DX20: 1155.025254 | DY20: 143.5679647 | DZ20: 1857.88613 | EA20: 162.8591285 | EB20: 2409.428141 | EC20: 181.4193137 | ED20: 3276.773386 | EE20: 196.947781 | EF20: 4133.650169 | EG20: 218.4191781 | EH20: 5014.557263 | EI20: 240.6177578 | EJ20: 5916.436957 | EK20: 263.2839001 | EL20: 6858.020175 | EM20: 286.6734038 | EN20: 8265.65361 | EO20: 312.2510922 | EP20: 9677.718831 | EQ20: 333.9377054 | ER20: 11086.63282 | ES20: 355.6047044 | ET20: 12469.32314 | EU20: 377.2613512 | EV20: 13893.1063 | EW20: 398.8412843 | EX20: 15444.46848 | EY20: 420.3124466 | EZ20: 17051.41803 | FA20: 441.7396933 | FB20: 18223.502 | FC20: 463.1143749 | FD20: 19410.66925 | FE20: 484.5172349 | FF20: 20601.35895 | FG20: 505.8704147 | FH20: 21468.89262 | FI20: 527.1529345 | FJ20: 22348.26248 | FK20: 548.3887026 | FL20: 23228.3187 | FM20: 569.5952877 | FN20: 24065.86922 | FO20: 590.7887288 | FP20: 24910.79862 | FQ20: 611.9278015 | FR20: 25321.55273 | FS20: 633.0402621 | FT20: 25733.32058 | FU20: 654.1238176 | FV20: 26141.55209 | FW20: 675.1786738 | FX20: 26562.03403 | FY20: 696.2071246 | FZ20: 27040.62434 | GA20: 717.2115152 | GB20: 27506.08678 | GC20: 738.1922004 | GE20: 444.6829464 | GF20: 120.7633905 | GG20: 1275.424157 | GH20: 169.4914984 | GI20: 2217.970405 | GJ20: 201.3701267 | GK20: 3112.581899 | GL20: 234.161243 | GM20: 4210.853032 | GN20: 267.5301138 | GO20: 5451.188915 | GP20: 301.5254801 | GQ20: 6918.788963 | GR20: 336.2313797 | GS20: 8495.979609 | GT20: 371.6864563 | GU20: 9999.861169 | GV20: 407.9371397 | GW20: 11588.43747 | GX20: 443.5502679 | GY20: 13042.40826 | GZ20: 473.5138332 | HA20: 14377.36033 | HB20: 503.3466105 | HC20: 15516.67314 | HD20: 533.0703149 | HE20: 17428.54676 | HF20: 562.5942053 | HG20: 21841.89951 | HH20: 818.5493957 | HI20: 26252.8542 | HJ20: 1075.276428 | HK20: 30064.67221 | HL20: 1332.713271 | HM20: 33756.3534 | HN20: 1591.076472 | HO20: 37339.6969 | HP20: 1850.134497 | HQ20: 40782.84945 | HR20: 2109.750284 | HS20: 44190.90559 | HT20: 2369.968421 | HU20: 47390.68472 | HV20: 2630.832081 | HW20: 50499.80757 | HX20: 2892.386935 | HY20: 53753.24119 | HZ20: 3154.423828 | IA20: 56960.62198 | IB20: 3417.038389 | IC20: 60310.55825 | ID20: 3680.193164 | IE20: 63773.46911 | IF20: 3943.869976 | IG20: 67405.89798 | IH20: 4208.058082 | II20: 71123.55777 | IJ20: 4472.739822 | IK20: 71648.46236 | IL20: 4505.307864 | IN20: 444.6829464 | IO20: 120.7633905 | IP20: 1275.424157 | IQ20: 169.4914984 | IR20: 2268.240294 | IS20: 201.3701267 | IT20: 3387.816261 | IU20: 234.161243 | IV20: 4671.387284 | IW20: 267.5301138 | IX20: 6053.241361 | IY20: 301.5254801 | IZ20: 7554.251167 | JA20: 336.2313797 | JB20: 9151.644222 | JC20: 371.6864563 | JD20: 10998.58602 | JE20: 407.9371397 | JF20: 15263.86547 | JG20: 667.5476879 | JH20: 19543.0485 | JI20: 922.6357836 | JJ20: 23825.44662 | JK20: 1178.708122 | JL20: 28080.1542 | JM20: 1435.800554 | JN20: 32377.21888 | JO20: 1693.630089 | JP20: 36790.12923 | JQ20: 1951.942298 | JR20: 41200.66225 | JS20: 2210.965881 | JT20: 45000.81846 | JU20: 2470.612195 | JV20: 48636.62031 | JW20: 2731.290809 | JX20: 51989.96055 | JY20: 2992.578437 | JZ20: 55249.29449 | KA20: 3254.290745 | KB20: 58517.51669 | KC20: 3516.534362 | KD20: 61685.36951 | KE20: 3779.388731 | KF20: 64773.78468 | KG20: 4042.923892 | KH20: 68391.47872 | KI20: 4306.855492 | KJ20: 68992.79952 | KK20: 4340.470261 | KL20: 69591.09983 | KM20: 4373.856154 | KN20: 70182.52582 | KO20: 4407.021635 | KP20: 70771.64004 | KQ20: 4439.980932 | KR20: 71380.3648 | KS20: 4472.739822 | KT20: 71965.51968 | KU20: 4505.307864
A21: Lancashire | B21: Chorley | D21: 321.0576381 | E21: 76.66910416 | F21: 863.663267 | G21: 91.11679883 | H21: 1403.276971 | I21: 103.0965423 | J21: 1921.621425 | K21: 114.4698313 | L21: 2770.79282 | M21: 123.9939474 | N21: 3635.371919 | O21: 137.2698497 | P21: 4537.582168 | Q21: 150.9612567 | R21: 5464.441468 | S21: 164.8816276 | T21: 6369.734394 | U21: 179.1777742 | V21: 7730.463745 | W21: 194.8087145 | X21: 9090.431959 | Y21: 207.9702212 | Z21: 10442.76002 | AA21: 221.075574 | AB21: 11766.06155 | AC21: 234.1143637 | AD21: 13123.69314 | AE21: 247.0855277 | AF21: 14599.53853 | AG21: 259.9899396 | AH21: 16125.50199 | AI21: 272.8570683 | AJ21: 17252.29722 | AK21: 285.7091292 | AL21: 18384.60075 | AM21: 298.5003946 | AN21: 19482.5169 | AO21: 311.2421178 | AP21: 20247.11313 | AQ21: 323.931898 | AR21: 21011.48523 | AS21: 336.584393 | AT21: 21788.14606 | AU21: 349.2076689 | AV21: 22566.99056 | AW21: 361.8001318 | AX21: 23409.24442 | AY21: 374.3926844 | AZ21: 23749.68933 | BA21: 386.9531885 | BB21: 24092.85802 | BC21: 399.4955828 | BD21: 24434.38173 | BE21: 412.0208951 | BF21: 24783.41596 | BG21: 424.5313504 | BH21: 25167.51568 | BI21: 437.0291319 | BJ21: 25537.91344 | BK21: 449.5151442 | BM21: 321.0576381 | BN21: 76.66910416 | BO21: 831.90288 | BP21: 88.77137875 | BQ21: 1375.826012 | BR21: 99.65314576 | BS21: 1637.978 | BT21: 109.6560918 | BU21: 2260.889144 | BV21: 117.1772869 | BW21: 2926.235768 | BX21: 129.310546 | BY21: 3630.954055 | BZ21: 141.8129986 | CA21: 4357.781314 | CB21: 154.4927787 | CC21: 5110.698063 | CD21: 167.4851097 | CE21: 5888.155985 | CF21: 182.002741 | CG21: 6675.47466 | CH21: 191.8620418 | CI21: 7464.220456 | CJ21: 201.6465833 | CK21: 8231.010486 | CL21: 211.3501996 | CM21: 9074.21408 | CN21: 220.9745363 | CO21: 10147.32182 | CP21: 230.5170628 | CQ21: 11278.73919 | CR21: 240.0073898 | CS21: 12037.27098 | CT21: 249.4660529 | CU21: 12771.01824 | CV21: 258.8502043 | CW21: 13654.04133 | CX21: 268.1747999 | CY21: 14210.59527 | CZ21: 277.435578 | DA21: 14773.53003 | DB21: 286.6476117 | DC21: 15291.00644 | DD21: 295.8178267 | DE21: 15803.91915 | DF21: 304.9438235 | DG21: 16352.45745 | DH21: 314.0563951 | DI21: 16908.95761 | DJ21: 323.1247005 | DK21: 17459.65027 | DL21: 332.1618465 | DM21: 18078.12102 | DN21: 341.1697912 | DO21: 18732.31222 | DP21: 350.1517183 | DQ21: 19271.36432 | DR21: 359.1082748 | DS21: 19673.40481 | DT21: 368.0425928 | DV21: 321.0576381 | DW21: 76.66910416 | DX21: 863.663267 | DY21: 91.11679883 | DZ21: 1403.276971 | EA21: 103.0965423 | EB21: 1921.621425 | EC21: 114.4698313 | ED21: 2770.79282 | EE21: 123.9939474 | EF21: 3635.371919 | EG21: 137.2698497 | EH21: 4537.582168 | EI21: 150.9612567 | EJ21: 5464.441468 | EK21: 164.8816276 | EL21: 6369.734394 | EM21: 179.1777742 | EN21: 7730.463745 | EO21: 194.8087145 | EP21: 9090.431959 | EQ21: 207.9702212 | ER21: 10442.76002 | ES21: 221.075574 | ET21: 11766.06155 | EU21: 234.1143637 | EV21: 13123.69314 | EW21: 247.0855277 | EX21: 14599.53853 | EY21: 259.9899396 | EZ21: 16125.50199 | FA21: 272.8570683 | FB21: 17252.29722 | FC21: 285.7091292 | FD21: 18384.60075 | FE21: 298.5003946 | FF21: 19482.5169 | FG21: 311.2421178 | FH21: 20247.11313 | FI21: 323.931898 | FJ21: 21011.48523 | FK21: 336.584393 | FL21: 21788.14606 | FM21: 349.2076689 | FN21: 22566.99056 | FO21: 361.8001318 | FP21: 23409.24442 | FQ21: 374.3926844 | FR21: 23749.68933 | FS21: 386.9531885 | FT21: 24092.85802 | FU21: 399.4955828 | FV21: 24434.38173 | FW21: 412.0208951 | FX21: 24783.41596 | FY21: 424.5313504 | FZ21: 25167.51568 | GA21: 437.0291319 | GB21: 25537.91344 | GC21: 449.5151442 | GE21: 321.0576381 | GF21: 76.66910416 | GG21: 959.3763995 | GH21: 107.5694205 | GI21: 1693.24255 | GJ21: 127.4755918 | GK21: 2486.828581 | GL21: 147.7483155 | GM21: 3471.399404 | GN21: 168.4310159 | GO21: 4584.129558 | GP21: 189.4996479 | GQ21: 5889.840262 | GR21: 210.9483194 | GS21: 7300.762835 | GT21: 232.7687635 | GU21: 8616.837695 | GV21: 254.9705266 | GW21: 10015.61099 | GX21: 276.7242762 | GY21: 11263.38764 | GZ21: 294.8956497 | HA21: 12392.14311 | HB21: 312.9251088 | HC21: 13362.51233 | HD21: 330.8036118 | HE21: 14944.48058 | HF21: 348.5318385 | HG21: 18499.17668 | HH21: 506.3247823 | HI21: 22063.84973 | HJ21: 664.1847635 | HK21: 25118.60134 | HL21: 822.1907347 | HM21: 28077.15828 | HN21: 980.2271632 | HO21: 30953.89585 | HP21: 1138.314798 | HQ21: 33688.65316 | HR21: 1296.427221 | HS21: 36350.81779 | HT21: 1454.614908 | HU21: 38796.82608 | HV21: 1612.911409 | HW21: 41151.78116 | HX21: 1771.303214 | HY21: 43665.70888 | HZ21: 1929.955138 | IA21: 46130.51575 | IB21: 2088.704272 | IC21: 48750.78202 | ID21: 2247.618682 | IE21: 51482.25525 | IF21: 2406.706403 | IG21: 54336.37218 | IH21: 2565.978596 | II21: 56524.22212 | IJ21: 2725.440906 | IK21: 56947.72548 | IL21: 2743.464525 | IN21: 321.0576381 | IO21: 76.66910416 | IP21: 959.3763995 | IQ21: 107.5694205 | IR21: 1753.770583 | IS21: 127.4755918 | IT21: 2783.41553 | IU21: 147.7483155 | IV21: 3930.42301 | IW21: 168.4310159 | IX21: 5169.828988 | IY21: 189.4996479 | IZ21: 6518.748909 | JA21: 210.9483194 | JB21: 7948.470709 | JC21: 232.7687635 | JD21: 9477.006299 | JE21: 254.9705266 | JF21: 12895.60927 | JG21: 416.4728648 | JH21: 16325.11699 | JI21: 574.6004863 | JJ21: 19755.67566 | JK21: 732.7900092 | JL21: 23159.06906 | JM21: 891.0044248 | JN21: 26600.89749 | JO21: 1049.218074 | JP21: 30155.25754 | JQ21: 1207.400267 | JR21: 33719.61083 | JS21: 1365.685895 | JT21: 36801.27204 | JU21: 1524.194664 | JV21: 39722.13817 | JW21: 1682.688098 | JX21: 42345.83282 | JY21: 1841.215503 | JZ21: 44885.42719 | KA21: 1999.739561 | KB21: 47398.46271 | KC21: 2158.342391 | KD21: 49803.33554 | KE21: 2317.068903 | KF21: 52136.5846 | KG21: 2475.894217 | KH21: 54373.16653 | KI21: 2635.04156 | KJ21: 54823.63396 | KK21: 2653.162694 | KL21: 55272.71559 | KM21: 2671.262177 | KN21: 55719.05938 | KO21: 2689.339976 | KP21: 56164.7508 | KQ21: 2707.399902 | KR21: 56618.21387 | KS21: 2725.440906 | KT21: 57063.66024 | KU21: 2743.464525
A22: Cumberland** | B22: Copeland | D22: 260.5876574 | E22: 62.81138338 | F22: 494.3634817 | G22: 74.01897352 | H22: 765.255127 | I22: 83.25997587 | J22: 1095.877322 | K22: 92.00834637 | L22: 1472.370339 | M22: 99.08379421 | N22: 1837.634595 | O22: 109.032825 | P22: 2213.327433 | Q22: 119.2081312 | R22: 2597.145936 | S22: 129.4837592 | T22: 2944.711536 | U22: 139.9414289 | V22: 3713.004637 | W22: 151.3559997 | X22: 4474.607728 | Y22: 160.7550111 | Z22: 5227.978828 | AA22: 170.022704 | AB22: 5967.407083 | AC22: 179.1748622 | AD22: 6710.921191 | AE22: 188.1802619 | AF22: 7480.785543 | AG22: 197.0577641 | AH22: 8258.724448 | AI22: 205.8389977 | AJ22: 8896.786293 | AK22: 214.5246326 | AL22: 9502.607194 | AM22: 223.1006345 | AN22: 10015.82102 | AO22: 231.5649315 | AP22: 10454.07617 | AQ22: 239.9344738 | AR22: 10892.03242 | AS22: 248.2112623 | AT22: 11319.13855 | AU22: 256.3941185 | AV22: 11670.42454 | AW22: 264.4761886 | AX22: 12060.51233 | AY22: 272.3680285 | AZ22: 12095.55627 | BA22: 280.1867375 | BB22: 12137.31298 | BC22: 287.8971078 | BD22: 12183.17028 | BE22: 295.5003309 | BF22: 12234.87574 | BG22: 302.9984935 | BH22: 12301.40563 | BI22: 310.3936711 | BJ22: 12368.62307 | BK22: 317.6870482 | BM22: 260.5876574 | BN22: 62.81138338 | BO22: 466.6216062 | BP22: 71.90409316 | BQ22: 693.8178412 | BR22: 79.940614 | BS22: 771.9344398 | BT22: 87.21944604 | BU22: 938.897791 | BV22: 92.34314841 | BW22: 1117.415627 | BX22: 100.9736768 | BY22: 1306.26918 | BZ22: 109.8245544 | CA22: 1501.267864 | CB22: 118.7796619 | CC22: 1703.631359 | CD22: 127.9236835 | CE22: 1912.830918 | CF22: 138.2140726 | CG22: 2124.93972 | CH22: 144.8889701 | CI22: 2337.24779 | CJ22: 151.4487766 | CK22: 2542.611712 | CL22: 157.9100456 | CM22: 2806.659797 | CN22: 164.2470773 | CO22: 3246.078459 | CP22: 170.4741251 | CQ22: 3700.738693 | CR22: 176.6210628 | CS22: 4036.784311 | CT22: 182.6890509 | CU22: 4360.672962 | CV22: 188.6640783 | CW22: 4746.192607 | CX22: 194.5480245 | CY22: 5047.45192 | CZ22: 200.3534471 | DA22: 5350.353752 | DB22: 206.0835999 | DC22: 5641.165731 | DD22: 211.7374333 | DE22: 5933.069204 | DF22: 217.3085652 | DG22: 6234.564096 | DH22: 222.7272889 | DI22: 6538.251889 | DJ22: 228.0874675 | DK22: 6840.108189 | DL22: 233.3612861 | DM22: 7138.756217 | DN22: 238.5506448 | DO22: 7353.178521 | DP22: 243.6582969 | DQ22: 7527.791631 | DR22: 248.6852199 | DS22: 7637.972818 | DT22: 253.634116 | DV22: 260.5876574 | DW22: 62.81138338 | DX22: 494.3634817 | DY22: 74.01897352 | DZ22: 765.255127 | EA22: 83.25997587 | EB22: 1095.877322 | EC22: 92.00834637 | ED22: 1472.370339 | EE22: 99.08379421 | EF22: 1837.634595 | EG22: 109.032825 | EH22: 2213.327433 | EI22: 119.2081312 | EJ22: 2597.145936 | EK22: 129.4837592 | EL22: 2944.711536 | EM22: 139.9414289 | EN22: 3713.004637 | EO22: 151.3559997 | EP22: 4474.607728 | EQ22: 160.7550111 | ER22: 5227.978828 | ES22: 170.022704 | ET22: 5967.407083 | EU22: 179.1748622 | EV22: 6710.921191 | EW22: 188.1802619 | EX22: 7480.785543 | EY22: 197.0577641 | EZ22: 8258.724448 | FA22: 205.8389977 | FB22: 8896.786293 | FC22: 214.5246326 | FD22: 9502.607194 | FE22: 223.1006345 | FF22: 10015.82102 | FG22: 231.5649315 | FH22: 10454.07617 | FI22: 239.9344738 | FJ22: 10892.03242 | FK22: 248.2112623 | FL22: 11319.13855 | FM22: 256.3941185 | FN22: 11670.42454 | FO22: 264.4761886 | FP22: 12060.51233 | FQ22: 272.3680285 | FR22: 12095.55627 | FS22: 280.1867375 | FT22: 12137.31298 | FU22: 287.8971078 | FV22: 12183.17028 | FW22: 295.5003309 | FX22: 12234.87574 | FY22: 302.9984935 | FZ22: 12301.40563 | GA22: 310.3936711 | GB22: 12368.62307 | GC22: 317.6870482 | GE22: 260.5876574 | GF22: 62.81138338 | GG22: 587.8078869 | GH22: 87.3843044 | GI22: 993.4252664 | GJ22: 102.9483091 | GK22: 1430.64419 | GL22: 118.756864 | GM22: 1954.017694 | GN22: 134.5935384 | GO22: 2575.298276 | GP22: 150.518719 | GQ22: 3365.404011 | GR22: 166.5775411 | GS22: 4233.849906 | GT22: 182.7964398 | GU22: 4996.981476 | GV22: 199.1370859 | GW22: 5818.466918 | GX22: 215.00003 | GY22: 6491.989823 | GZ22: 227.9458721 | HA22: 7054.298665 | HB22: 240.6614724 | HC22: 7495.711108 | HD22: 253.1740925 | HE22: 8351.000579 | HF22: 265.441741 | HG22: 10561.19016 | HH22: 383.765732 | HI22: 12742.35181 | HJ22: 501.0503371 | HK22: 14699.74857 | HL22: 617.34172 | HM22: 16555.60796 | HN22: 732.6265089 | HO22: 18328.46225 | HP22: 846.9091209 | HQ22: 20037.89211 | HR22: 960.2561063 | HS22: 21680.10739 | HT22: 1072.693239 | HU22: 23178.20262 | HV22: 1184.226567 | HW22: 24601.92164 | HX22: 1294.824081 | HY22: 26149.19162 | HZ22: 1404.028705 | IA22: 27646.953 | IB22: 1512.398019 | IC22: 29294.81194 | ID22: 1619.749869 | IE22: 31050.90187 | IF22: 1726.083669 | IG22: 32887.72878 | IH22: 1831.4022 | II22: 33877.4624 | IJ22: 1935.705303 | IK22: 33992.55742 | IL22: 1938.89607 | IN22: 260.5876574 | IO22: 62.81138338 | IP22: 587.8078869 | IQ22: 87.3843044 | IR22: 1022.218784 | IS22: 102.9483091 | IT22: 1604.1743 | IU22: 118.756864 | IV22: 2304.86934 | IW22: 134.5935384 | IX22: 3061.172558 | IY22: 150.518719 | IZ22: 3888.727244 | JA22: 166.5775411 | JB22: 4769.063355 | JC22: 182.7964398 | JD22: 5617.379124 | JE22: 199.1370859 | JF22: 7811.021968 | JG22: 323.5772432 | JH22: 10008.04458 | JI22: 444.1496818 | JJ22: 12204.26842 | JK22: 563.5671848 | JL22: 14387.54571 | JM22: 681.9128589 | JN22: 16577.87065 | JO22: 799.0841629 | JP22: 18787.87993 | JQ22: 915.1415527 | JR22: 20968.87024 | JS22: 1030.251544 | JT22: 22879.86158 | JU22: 1144.441206 | JV22: 24683.41253 | JW22: 1257.649199 | JX22: 26321.12331 | JY22: 1369.869043 | JZ22: 27888.22222 | KA22: 1481.195468 | KB22: 29419.33456 | KC22: 1591.651011 | KD22: 30880.10943 | KE22: 1701.230791 | KF22: 32280.70555 | KG22: 1809.880673 | KH22: 33293.99268 | KI22: 1916.974088 | KJ22: 33421.72052 | KK22: 1921.113513 | KL22: 33548.43628 | KM22: 1925.049208 | KN22: 33673.57307 | KO22: 1928.787744 | KP22: 33798.54812 | KQ22: 1932.338073 | KR22: 33928.07587 | KS22: 1935.705303 | KT22: 34054.9113 | KU22: 1938.89607
A23: North Yorkshire | B23: Craven | D23: 33.44595853 | E23: 29.14833773 | F23: 127.7271251 | G23: 34.55389159 | H23: 234.5181955 | I23: 39.06736705 | J23: 349.4452282 | K23: 43.37268257 | L23: 460.8510442 | M23: 46.93016997 | N23: 562.46631 | O23: 51.91673781 | P23: 664.2528712 | Q23: 57.05085221 | R23: 766.9411944 | S23: 62.28436313 | T23: 885.7030731 | U23: 67.64754637 | V23: 1163.409243 | W23: 73.53241682 | X23: 1440.274651 | Y23: 78.48140118 | Z23: 1715.444627 | AA23: 83.41724076 | AB23: 1986.46449 | AC23: 88.33175692 | AD23: 2259.781806 | AE23: 93.21707154 | AF23: 2542.136692 | AG23: 98.06516276 | AH23: 2827.345785 | AI23: 102.8953949 | AJ23: 3046.089659 | AK23: 107.6942212 | AL23: 3252.344278 | AM23: 112.4848252 | AN23: 3437.900433 | AO23: 117.24869 | AP23: 3620.810637 | AQ23: 121.9841033 | AR23: 3813.174926 | AS23: 126.6955962 | AT23: 4027.833581 | AU23: 131.3830903 | AV23: 4150.416791 | AW23: 136.048881 | AX23: 4246.039531 | AY23: 140.7134543 | AZ23: 4269.784208 | BA23: 145.3529976 | BB23: 4294.861221 | BC23: 149.9763736 | BD23: 4320.638964 | BE23: 154.5838862 | BF23: 4347.47514 | BG23: 159.1763029 | BH23: 4377.470056 | BI23: 163.7543871 | BJ23: 4407.617162 | BK23: 168.3184342 | BM23: 33.44595853 | BN23: 29.14833773 | BO23: 112.3851142 | BP23: 33.60854765 | BQ23: 201.8170526 | BR23: 37.61771578 | BS23: 227.9723538 | BT23: 41.29946711 | BU23: 280.5085357 | BV23: 43.99696445 | BW23: 336.7796907 | BX23: 48.42847513 | BY23: 396.1981185 | BZ23: 52.9949911 | CA23: 457.6439007 | CB23: 57.64928564 | CC23: 521.7441353 | CD23: 62.42188517 | CE23: 588.2091818 | CF23: 67.79508167 | CG23: 655.8338835 | CH23: 71.42966757 | CI23: 723.6133917 | CJ23: 75.04456509 | CK23: 788.9176478 | CL23: 78.63355337 | CM23: 892.8094121 | CN23: 82.19065531 | CO23: 1111.576474 | CP23: 85.70779662 | CQ23: 1334.957189 | CR23: 89.20345914 | CS23: 1505.120814 | CT23: 92.66647666 | CU23: 1667.206623 | CV23: 96.11596795 | CW23: 1866.023551 | CX23: 99.53788954 | CY23: 2040.822947 | CZ23: 102.9301072 | DA23: 2216.182298 | DB23: 106.2974837 | DC23: 2387.825451 | DD23: 109.6400748 | DE23: 2563.016174 | DF23: 112.9595306 | DG23: 2741.550047 | DH23: 116.2745902 | DI23: 2920.974632 | DJ23: 119.5642254 | DK23: 3100.268396 | DL23: 122.8363213 | DM23: 3301.718915 | DN23: 126.091577 | DO23: 3399.786462 | DP23: 129.3311496 | DQ23: 3460.192216 | DR23: 132.5552644 | DS23: 3500.718582 | DT23: 135.7650688 | DV23: 33.44595853 | DW23: 29.14833773 | DX23: 127.7271251 | DY23: 34.55389159 | DZ23: 234.5181955 | EA23: 39.06736705 | EB23: 349.4452282 | EC23: 43.37268257 | ED23: 460.8510442 | EE23: 46.93016997 | EF23: 562.46631 | EG23: 51.91673781 | EH23: 664.2528712 | EI23: 57.05085221 | EJ23: 766.9411944 | EK23: 62.28436313 | EL23: 885.7030731 | EM23: 67.64754637 | EN23: 1163.409243 | EO23: 73.53241682 | EP23: 1440.274651 | EQ23: 78.48140118 | ER23: 1715.444627 | ES23: 83.41724076 | ET23: 1986.46449 | EU23: 88.33175692 | EV23: 2259.781806 | EW23: 93.21707154 | EX23: 2542.136692 | EY23: 98.06516276 | EZ23: 2827.345785 | FA23: 102.8953949 | FB23: 3046.089659 | FC23: 107.6942212 | FD23: 3252.344278 | FE23: 112.4848252 | FF23: 3437.900433 | FG23: 117.24869 | FH23: 3620.810637 | FI23: 121.9841033 | FJ23: 3813.174926 | FK23: 126.6955962 | FL23: 4027.833581 | FM23: 131.3830903 | FN23: 4150.416791 | FO23: 136.048881 | FP23: 4246.039531 | FQ23: 140.7134543 | FR23: 4269.784208 | FS23: 145.3529976 | FT23: 4294.861221 | FU23: 149.9763736 | FV23: 4320.638964 | FW23: 154.5838862 | FX23: 4347.47514 | FY23: 159.1763029 | FZ23: 4377.470056 | GA23: 163.7543871 | GB23: 4407.617162 | GC23: 168.3184342 | GE23: 33.44595853 | GF23: 29.14833773 | GG23: 169.0333505 | GH23: 40.79315933 | GI23: 336.3137591 | GJ23: 48.30555539 | GK23: 511.7824823 | GL23: 55.98191865 | GM23: 716.0851639 | GN23: 63.74904884 | GO23: 952.0020451 | GP23: 71.67053472 | GQ23: 1241.789211 | GR23: 79.7209937 | GS23: 1547.094018 | GT23: 87.92886387 | GU23: 1830.324729 | GV23: 96.26266761 | GW23: 2126.477712 | GX23: 104.4522309 | GY23: 2390.998009 | GZ23: 111.2843159 | HA23: 2631.45582 | HB23: 118.0743249 | HC23: 2847.438057 | HD23: 124.8127785 | HE23: 3142.178518 | HF23: 131.4893576 | HG23: 3688.273783 | HH23: 190.9797827 | HI23: 4237.382102 | HJ23: 250.4664949 | HK23: 4666.42194 | HL23: 309.9137611 | HM23: 5027.63138 | HN23: 369.3820278 | HO23: 5359.493315 | HP23: 428.8170248 | HQ23: 5679.973778 | HR23: 488.1998747 | HS23: 5986.370501 | HT23: 547.5396571 | HU23: 6261.548397 | HV23: 606.8288417 | HW23: 6522.651921 | HX23: 666.0689122 | HY23: 6812.335039 | HZ23: 725.3631428 | IA23: 7092.472528 | IB23: 784.5895473 | IC23: 7405.039469 | ID23: 843.7883011 | IE23: 7741.095959 | IF23: 902.9591294 | IG23: 8085.780275 | IH23: 962.1032363 | II23: 8381.920701 | IJ23: 1021.220034 | IK23: 8425.902016 | IL23: 1027.274963 | IN23: 33.44595853 | IO23: 29.14833773 | IP23: 169.0333505 | IQ23: 40.79315933 | IR23: 341.4045296 | IS23: 48.30555539 | IT23: 558.6334687 | IU23: 55.98191865 | IV23: 828.1403494 | IW23: 63.74904884 | IX23: 1110.828331 | IY23: 71.67053472 | IZ23: 1408.492884 | JA23: 79.7209937 | JB23: 1716.280062 | JC23: 87.92886387 | JD23: 2004.257391 | JE23: 96.26266761 | JF23: 2537.302832 | JG23: 157.2016754 | JH23: 3071.701064 | JI23: 216.8360982 | JJ23: 3606.345163 | JK23: 276.4996582 | JL23: 4138.245581 | JM23: 336.1775204 | JN23: 4674.094745 | JO23: 395.8347427 | JP23: 5220.171449 | JQ23: 455.4172515 | JR23: 5769.262329 | JS23: 515.0051282 | JT23: 6146.08479 | JU23: 574.5247193 | JV23: 6482.986881 | JW23: 634.0925503 | JX23: 6783.061298 | JY23: 693.6082665 | JZ23: 7074.272693 | KA23: 753.0485227 | KB23: 7357.277852 | KC23: 812.4336178 | KD23: 7624.838988 | KE23: 871.7554052 | KF23: 7878.69872 | KG23: 931.01856 | KH23: 8160.709564 | KI23: 990.3660403 | KJ23: 8212.298954 | KK23: 996.6196482 | KL23: 8262.82409 | KM23: 1002.830147 | KN23: 8312.091517 | KO23: 1008.998888 | KP23: 8361.441852 | KQ23: 1015.12858 | KR23: 8414.335387 | KS23: 1021.220034 | KT23: 8465.715169 | KU23: 1027.274963
A24: Derbyshire | B24: Derbyshire Dales | D24: 0.01826424496 | E24: 0.01283883852 | F24: 0.0651114023 | G24: 0.01522161824 | H24: 0.1159212808 | I24: 0.01721069443 | J24: 0.1661402419 | K24: 0.01910863949 | L24: 0.2256806821 | M24: 0.0206901663 | N24: 0.2820003455 | O24: 0.02289397444 | P24: 0.3390106067 | Q24: 0.0251688755 | R24: 0.3969440724 | S24: 0.02748689105 | T24: 0.4578074426 | U24: 0.02986717832 | V24: 0.5815236454 | W24: 0.03247737687 | X24: 0.7047740748 | Y24: 0.03468119875 | Z24: 0.8272219153 | AA24: 0.03687775323 | AB24: 0.947712601 | AC24: 0.0390685194 | AD24: 1.069795836 | AE24: 0.04124730423 | AF24: 1.197721368 | AG24: 0.0434131073 | AH24: 1.327848711 | AI24: 0.04556802951 | AJ24: 1.429939436 | AK24: 0.04771503538 | AL24: 1.528680819 | AM24: 0.04985736008 | AN24: 1.619181471 | AO24: 0.05199191355 | AP24: 1.697681769 | AQ24: 0.05411872853 | AR24: 1.777901527 | AS24: 0.05623777165 | AT24: 1.856932188 | AU24: 0.05835163623 | AV24: 1.916939373 | AW24: 0.06045886665 | AX24: 1.974566299 | AY24: 0.0625599747 | AZ24: 1.989853034 | BA24: 0.06465546244 | BB24: 2.006056366 | BC24: 0.06674563785 | BD24: 2.022577156 | BE24: 0.06883061001 | BF24: 2.039971624 | BG24: 0.0709106953 | BH24: 2.060463151 | BI24: 0.07298620934 | BJ24: 2.080745051 | BK24: 0.07505725998 | BM24: 0.01826424496 | BN24: 0.01283883852 | BO24: 0.06038584485 | BP24: 0.01480461896 | BQ24: 0.1064743115 | BR24: 0.01657062531 | BS24: 0.1216832764 | BT24: 0.01819277259 | BU24: 0.1540406171 | BV24: 0.01939350185 | BW24: 0.1886446078 | BX24: 0.02135101546 | BY24: 0.2252523805 | BZ24: 0.02337366412 | CA24: 0.2630594654 | CB24: 0.02543437401 | CC24: 0.3023245686 | CD24: 0.02755201452 | CE24: 0.3429407013 | CF24: 0.02993447583 | CG24: 0.3841473717 | CH24: 0.03155547739 | CI24: 0.4254285344 | CJ24: 0.0331661011 | CK24: 0.4653925878 | CL24: 0.03476823229 | CM24: 0.5178929583 | CN24: 0.0363567909 | CO24: 0.6077893775 | CP24: 0.03793045319 | CQ24: 0.7006276365 | CR24: 0.03949175664 | CS24: 0.7695453701 | CT24: 0.04104356021 | CU24: 0.8359052791 | CV24: 0.04258823614 | CW24: 0.9148862486 | CX24: 0.04412395121 | CY24: 0.9778038321 | CZ24: 0.04565038909 | DA24: 1.041050257 | DB24: 0.04716794534 | DC24: 1.101964789 | DD24: 0.04867882345 | DE24: 1.163375542 | DF24: 0.05018165734 | DG24: 1.22668377 | DH24: 0.0516776628 | DI24: 1.290439427 | DJ24: 0.05316669842 | DK24: 1.353861546 | DL24: 0.05464925342 | DM24: 1.417600039 | DN24: 0.05612561658 | DO24: 1.46071551 | DP24: 0.05759628179 | DQ24: 1.493306465 | DR24: 0.05906132876 | DS24: 1.515328707 | DT24: 0.06052124899 | DV24: 0.01826424496 | DW24: 0.01283883852 | DX24: 0.0651114023 | DY24: 0.01522161824 | DZ24: 0.1159212808 | EA24: 0.01721069443 | EB24: 0.1661402419 | EC24: 0.01910863949 | ED24: 0.2256806821 | EE24: 0.0206901663 | EF24: 0.2820003455 | EG24: 0.02289397444 | EH24: 0.3390106067 | EI24: 0.0251688755 | EJ24: 0.3969440724 | EK24: 0.02748689105 | EL24: 0.4578074426 | EM24: 0.02986717832 | EN24: 0.5815236454 | EO24: 0.03247737687 | EP24: 0.7047740748 | EQ24: 0.03468119875 | ER24: 0.8272219153 | ES24: 0.03687775323 | ET24: 0.947712601 | EU24: 0.0390685194 | EV24: 1.069795836 | EW24: 0.04124730423 | EX24: 1.197721368 | EY24: 0.0434131073 | EZ24: 1.327848711 | FA24: 0.04556802951 | FB24: 1.429939436 | FC24: 0.04771503538 | FD24: 1.528680819 | FE24: 0.04985736008 | FF24: 1.619181471 | FG24: 0.05199191355 | FH24: 1.697681769 | FI24: 0.05411872853 | FJ24: 1.777901527 | FK24: 0.05623777165 | FL24: 1.856932188 | FM24: 0.05835163623 | FN24: 1.916939373 | FO24: 0.06045886665 | FP24: 1.974566299 | FQ24: 0.0625599747 | FR24: 1.989853034 | FS24: 0.06465546244 | FT24: 2.006056366 | FU24: 0.06674563785 | FV24: 2.022577156 | FW24: 0.06883061001 | FX24: 2.039971624 | FY24: 0.0709106953 | FZ24: 2.060463151 | GA24: 0.07298620934 | GB24: 2.080745051 | GC24: 0.07505725998 | GE24: 0.01826424496 | GF24: 0.01283883852 | GG24: 0.07898299771 | GH24: 0.01797012926 | GI24: 0.151109374 | GJ24: 0.02128047565 | GK24: 0.2224471354 | GL24: 0.02466387224 | GM24: 0.3077947221 | GN24: 0.02810512774 | GO24: 0.4075095835 | GP24: 0.0316049016 | GQ24: 0.5325504177 | GR24: 0.03517016289 | GS24: 0.6670218005 | GT24: 0.03880413929 | GU24: 0.7921991772 | GV24: 0.04250108708 | GW24: 0.9248407141 | GX24: 0.04613386333 | GY24: 1.04302907 | GZ24: 0.04917691862 | HA24: 1.149114928 | HB24: 0.05219923094 | HC24: 1.238776358 | HD24: 0.05520382058 | HE24: 1.401743798 | HF24: 0.05818227762 | HG24: 1.798072661 | HH24: 0.08454608719 | HI24: 2.195834915 | HJ24: 0.110921044 | HK24: 2.543913249 | HL24: 0.1373104881 | HM24: 2.874378859 | HN24: 0.1637235311 | HO24: 3.190767388 | HP24: 0.1901515291 | HQ24: 3.498553732 | HR24: 0.2165917998 | HS24: 3.800220823 | HT24: 0.2430424665 | HU24: 4.083895481 | HV24: 0.2695130381 | HW24: 4.35906067 | HX24: 0.295994875 | HY24: 4.64714133 | HZ24: 0.3224901277 | IA24: 4.929730052 | IB24: 0.3489986505 | IC24: 5.227192308 | ID24: 0.3755204037 | IE24: 5.536460062 | IF24: 0.4020550215 | IG24: 5.857462483 | IH24: 0.4286028021 | II24: 6.111018602 | IJ24: 0.4551632513 | IK24: 6.136892992 | IL24: 0.4580867469 | IN24: 0.01826424496 | IO24: 0.01283883852 | IP24: 0.07898299771 | IQ24: 0.01797012926 | IR24: 0.1546698351 | IS24: 0.02128047565 | IT24: 0.2465632923 | IU24: 0.02466387224 | IV24: 0.35984191 | IW24: 0.02810512774 | IX24: 0.4802608056 | IY24: 0.0316049016 | IZ24: 0.6090697503 | JA24: 0.03517016289 | JB24: 0.7447293487 | JC24: 0.03880413929 | JD24: 0.9033934241 | JE24: 0.04250108708 | JF24: 1.291662219 | JG24: 0.06943193593 | JH24: 1.68066733 | JI24: 0.09582061103 | JJ24: 2.069857743 | JK24: 0.1222371547 | JL24: 2.457699736 | JM24: 0.1486889703 | JN24: 2.847861147 | JO24: 0.1751515659 | JP24: 3.24416979 | JQ24: 0.2016116371 | JR24: 3.641912614 | JS24: 0.2280740445 | JT24: 3.977453707 | JU24: 0.2545491021 | JV24: 4.29795118 | JW24: 0.2810528493 | JX24: 4.596759126 | JY24: 0.3075686478 | JZ24: 4.886275161 | KA24: 0.3340929471 | KB24: 5.173749747 | KC24: 0.3606238704 | KD24: 5.453610524 | KE24: 0.3871758089 | KF24: 5.725745219 | KG24: 0.4137360524 | KH24: 5.977478072 | KI24: 0.440308105 | KJ24: 6.007597222 | KK24: 0.443313212 | KL24: 6.037437264 | KM24: 0.4463005486 | KN24: 6.066810084 | KO24: 0.4492706884 | KP24: 6.096097976 | KQ24: 0.4522248108 | KR24: 6.126722414 | KS24: 0.4551632513 | KT24: 6.156253732 | KU24: 0.4580867469
A25: Westmorland and Furness** | B25: Eden | D25: 159.3819655 | E25: 98.85312875 | F25: 497.0793485 | G25: 116.9438348 | H25: 864.9769408 | I25: 131.8233377 | J25: 1173.076729 | K25: 145.8845505 | L25: 1429.706756 | M25: 157.4992059 | N25: 1641.460033 | O25: 173.7835549 | P25: 1842.706688 | Q25: 190.4933869 | R25: 2042.231747 | S25: 207.4247566 | T25: 2376.247887 | U25: 224.7178453 | V25: 3222.812918 | W25: 243.6169674 | X25: 4071.095621 | Y25: 259.384869 | Z25: 4918.132981 | AA25: 274.9181929 | AB25: 5756.316981 | AC25: 290.2938542 | AD25: 6603.745571 | AE25: 305.5420046 | AF25: 7475.752732 | AG25: 320.6091178 | AH25: 8355.616445 | AI25: 335.5017276 | AJ25: 9012.094584 | AK25: 350.2876202 | AL25: 9634.296736 | AM25: 364.9499381 | AN25: 10234.29426 | AO25: 379.4631633 | AP25: 10882.21837 | AQ25: 393.8108785 | AR25: 11577.25664 | AS25: 408.0332747 | AT25: 12339.6096 | AU25: 422.1230916 | AV25: 12720.87757 | AW25: 436.1070763 | AX25: 12930.418 | AY25: 449.9921856 | AZ25: 13035.8031 | BA25: 463.757216 | BB25: 13143.12211 | BC25: 477.4163319 | BD25: 13251.46864 | BE25: 490.9715682 | BF25: 13362.9986 | BG25: 504.4263816 | BH25: 13486.92906 | BI25: 517.7841599 | BJ25: 13613.52662 | BK25: 531.0467603 | BM25: 159.3819655 | BN25: 98.85312875 | BO25: 442.8971897 | BP25: 113.8370025 | BQ25: 764.0699097 | BR25: 127.1702627 | BS25: 835.0387912 | BT25: 139.3191624 | BU25: 962.1049587 | BV25: 148.2304088 | BW25: 1098.666486 | BX25: 162.8816509 | BY25: 1242.483336 | BZ25: 177.9162355 | CA25: 1391.6133 | CB25: 193.1294298 | CC25: 1548.613974 | CD25: 208.6550577 | CE25: 1712.37714 | CF25: 226.0463896 | CG25: 1880.126774 | CH25: 237.6201514 | CI25: 2048.90015 | CJ25: 248.9673488 | CK25: 2211.046924 | CL25: 260.1635992 | CM25: 2529.924683 | CN25: 271.2388036 | CO25: 3314.285147 | CP25: 282.1410206 | CQ25: 4109.392343 | CR25: 292.8810994 | CS25: 4731.524128 | CT25: 303.5201503 | CU25: 5323.931134 | CV25: 314.0400866 | CW25: 6046.66428 | CX25: 324.425021 | CY25: 6720.086806 | CZ25: 334.6586219 | DA25: 7395.222443 | DB25: 344.778391 | DC25: 8061.974686 | DD25: 354.7783639 | DE25: 8753.234173 | DF25: 364.6799867 | DG25: 9454.38541 | DH25: 374.4946087 | DI25: 10158.88001 | DJ25: 384.2004185 | DK25: 10863.58623 | DL25: 393.8109291 | DM25: 11620.03032 | DN25: 403.3292444 | DO25: 11947.26078 | DP25: 412.7598873 | DQ25: 12161.44393 | DR25: 422.1043573 | DS25: 12288.74539 | DT25: 431.367057 | DV25: 159.3819655 | DW25: 98.85312875 | DX25: 497.0793485 | DY25: 116.9438348 | DZ25: 864.9769408 | EA25: 131.8233377 | EB25: 1173.076729 | EC25: 145.8845505 | ED25: 1429.706756 | EE25: 157.4992059 | EF25: 1641.460033 | EG25: 173.7835549 | EH25: 1842.706688 | EI25: 190.4933869 | EJ25: 2042.231747 | EK25: 207.4247566 | EL25: 2376.247887 | EM25: 224.7178453 | EN25: 3222.812918 | EO25: 243.6169674 | EP25: 4071.095621 | EQ25: 259.384869 | ER25: 4918.132981 | ES25: 274.9181929 | ET25: 5756.316981 | EU25: 290.2938542 | EV25: 6603.745571 | EW25: 305.5420046 | EX25: 7475.752732 | EY25: 320.6091178 | EZ25: 8355.616445 | FA25: 335.5017276 | FB25: 9012.094584 | FC25: 350.2876202 | FD25: 9634.296736 | FE25: 364.9499381 | FF25: 10234.29426 | FG25: 379.4631633 | FH25: 10882.21837 | FI25: 393.8108785 | FJ25: 11577.25664 | FK25: 408.0332747 | FL25: 12339.6096 | FM25: 422.1230916 | FN25: 12720.87757 | FO25: 436.1070763 | FP25: 12930.418 | FQ25: 449.9921856 | FR25: 13035.8031 | FS25: 463.757216 | FT25: 13143.12211 | FU25: 477.4163319 | FV25: 13251.46864 | FW25: 490.9715682 | FX25: 13362.9986 | FY25: 504.4263816 | FZ25: 13486.92906 | GA25: 517.7841599 | GB25: 13613.52662 | GC25: 531.0467603 | GE25: 159.3819655 | GF25: 98.85312875 | GG25: 633.9471935 | GH25: 138.0599483 | GI25: 1209.789221 | GJ25: 162.9953596 | GK25: 1728.084492 | GL25: 188.295871 | GM25: 2321.932173 | GN25: 213.9439208 | GO25: 3010.615566 | GP25: 239.9064509 | GQ25: 3881.19279 | GR25: 266.1892243 | GS25: 4777.572978 | GT25: 292.8282842 | GU25: 5652.718931 | GV25: 319.7741885 | GW25: 6550.354306 | GX25: 346.056023 | GY25: 7412.366674 | GZ25: 367.8001063 | HA25: 8243.345413 | HB25: 389.1375419 | HC25: 9027.838722 | HD25: 410.1852358 | HE25: 9975.7428 | HF25: 430.988887 | HG25: 11442.52769 | HH25: 624.3793202 | HI25: 12909.00697 | HJ25: 816.673495 | HK25: 14001.65635 | HL25: 1008.029518 | HM25: 14849.79454 | HN25: 1198.436749 | HO25: 15572.28747 | HP25: 1387.821601 | HQ25: 16298.26994 | HR25: 1576.094067 | HS25: 17016.96295 | HT25: 1763.395145 | HU25: 17685.82135 | HV25: 1949.69129 | HW25: 18334.57559 | HX25: 2135.095591 | HY25: 19025.09216 | HZ25: 2319.662661 | IA25: 19704.44764 | IB25: 2503.278709 | IC25: 20423.29612 | ID25: 2686.011843 | IE25: 21172.61243 | IF25: 2867.874982 | IG25: 21952.79713 | IH25: 3048.885076 | II25: 23661.46971 | IJ25: 3229.052772 | IK25: 23829.65197 | IL25: 3241.065328 | IN25: 159.3819655 | IO25: 98.85312875 | IP25: 633.9471935 | IQ25: 138.0599483 | IR25: 1205.962603 | IS25: 162.9953596 | IT25: 1826.049187 | IU25: 188.295871 | IV25: 2654.794462 | IW25: 213.9439208 | IX25: 3508.06478 | IY25: 239.9064509 | IZ25: 4387.72769 | JA25: 266.1892243 | JB25: 5288.881505 | JC25: 292.8282842 | JD25: 6214.942827 | JE25: 319.7741885 | JF25: 7643.849072 | JG25: 520.8178525 | JH25: 9078.492474 | JI25: 716.6539086 | JJ25: 10515.25858 | JK25: 911.2598986 | JL25: 11944.30939 | JM25: 1104.815205 | JN25: 13385.16069 | JO25: 1297.446259 | JP25: 14851.86785 | JQ25: 1488.91736 | JR25: 16318.27319 | JS25: 1679.230742 | JT25: 17149.45088 | JU25: 1868.706551 | JV25: 17872.85536 | JW25: 2057.273384 | JX25: 18550.17686 | JY25: 2244.790854 | JZ25: 19238.10229 | KA25: 2431.125796 | KB25: 19922.65241 | KC25: 2616.507277 | KD25: 20582.98247 | KE25: 2800.878606 | KF25: 21224.37146 | KG25: 2984.396337 | KH25: 22805.50663 | KI25: 3167.124147 | KJ25: 23025.0396 | KK25: 3179.773112 | KL25: 23237.85605 | KM25: 3192.286086 | KN25: 23442.71185 | KO25: 3204.666272 | KP25: 23647.81514 | KQ25: 3216.921282 | KR25: 23875.32294 | KS25: 3229.052772 | KT25: 24092.48033 | KU25: 3241.065328
A26: Lancashire | B26: Fylde | D26: 176.7785731 | E26: 71.98566328 | F26: 627.3706853 | G26: 85.67649487 | H26: 1084.977306 | I26: 97.16907718 | J26: 1449.077635 | K26: 108.1250421 | L26: 1962.731311 | M26: 117.3434695 | N26: 2454.161776 | O26: 130.1139518 | P26: 2951.202864 | Q26: 143.3098575 | R26: 3457.274778 | S26: 156.7650316 | T26: 3952.689819 | U26: 170.5968354 | V26: 4704.721344 | W26: 185.7356292 | X26: 5457.728455 | Y26: 198.5650461 | Z26: 6207.80309 | AA26: 211.3569667 | AB26: 6942.911341 | AC26: 224.0965301 | AD26: 7698.272015 | AE26: 236.8100072 | AF26: 8518.768554 | AG26: 249.461231 | AH26: 9367.175343 | AI26: 262.056935 | AJ26: 10000.00664 | AK26: 274.6238299 | AL26: 10635.21795 | AM26: 287.1646238 | AN26: 11247.98582 | AO26: 299.6328847 | AP26: 11682.87921 | AQ26: 312.0530688 | AR26: 12117.24135 | AS26: 324.4293758 | AT26: 12533.82286 | AU26: 336.772245 | AV26: 12965.15664 | AW26: 349.0720578 | AX26: 13437.19502 | AY26: 361.4234087 | AZ26: 13634.07994 | BA26: 373.7257412 | BB26: 13832.43083 | BC26: 386.0132643 | BD26: 14029.78935 | BE26: 398.286597 | BF26: 14236.32705 | BG26: 410.5475456 | BH26: 14482.8519 | BI26: 422.7979043 | BJ26: 14724.12112 | BK26: 435.0382569 | BM26: 176.7785731 | BN26: 71.98566328 | BO26: 606.1959329 | BP26: 83.38038362 | BQ26: 1062.510602 | BR26: 93.68737384 | BS26: 1217.492994 | BT26: 103.1695471 | BU26: 1553.512036 | BV26: 110.3107628 | BW26: 1912.602701 | BX26: 121.7792249 | BY26: 2292.751657 | BZ26: 133.6316944 | CA26: 2685.085565 | CB26: 145.7038845 | CC26: 3091.81948 | CD26: 158.1085549 | CE26: 3512.053128 | CF26: 172.0116872 | CG26: 3937.845071 | CH26: 181.5499812 | CI26: 4364.385051 | CJ26: 191.026919 | CK26: 4778.398561 | CL26: 200.4330181 | CM26: 5237.39264 | CN26: 209.7947096 | CO26: 5830.810475 | CP26: 219.0770164 | CQ26: 6455.421039 | CR26: 228.290027 | CS26: 6881.789793 | CT26: 237.4588168 | CU26: 7295.676787 | CV26: 246.5834531 | CW26: 7780.26471 | CX26: 255.629144 | CY26: 8093.094085 | CZ26: 264.615277 | DA26: 8409.389099 | DB26: 273.5480653 | DC26: 8701.420512 | DD26: 282.4366325 | DE26: 8992.770179 | DF26: 291.2722098 | DG26: 9303.411779 | DH26: 300.1381369 | DI26: 9618.469857 | DJ26: 308.9471803 | DK26: 9930.227405 | DL26: 317.7291982 | DM26: 10251.01402 | DN26: 326.4858198 | DO26: 10605.68298 | DP26: 335.2198655 | DQ26: 10936.89509 | DR26: 343.9317444 | DS26: 11155.47814 | DT26: 352.6242594 | DV26: 176.7785731 | DW26: 71.98566328 | DX26: 627.3706853 | DY26: 85.67649487 | DZ26: 1084.977306 | EA26: 97.16907718 | EB26: 1449.077635 | EC26: 108.1250421 | ED26: 1962.731311 | EE26: 117.3434695 | EF26: 2454.161776 | EG26: 130.1139518 | EH26: 2951.202864 | EI26: 143.3098575 | EJ26: 3457.274778 | EK26: 156.7650316 | EL26: 3952.689819 | EM26: 170.5968354 | EN26: 4704.721344 | EO26: 185.7356292 | EP26: 5457.728455 | EQ26: 198.5650461 | ER26: 6207.80309 | ES26: 211.3569667 | ET26: 6942.911341 | EU26: 224.0965301 | EV26: 7698.272015 | EW26: 236.8100072 | EX26: 8518.768554 | EY26: 249.461231 | EZ26: 9367.175343 | FA26: 262.056935 | FB26: 10000.00664 | FC26: 274.6238299 | FD26: 10635.21795 | FE26: 287.1646238 | FF26: 11247.98582 | FG26: 299.6328847 | FH26: 11682.87921 | FI26: 312.0530688 | FJ26: 12117.24135 | FK26: 324.4293758 | FL26: 12533.82286 | FM26: 336.772245 | FN26: 12965.15664 | FO26: 349.0720578 | FP26: 13437.19502 | FQ26: 361.4234087 | FR26: 13634.07994 | FS26: 373.7257412 | FT26: 13832.43083 | FU26: 386.0132643 | FV26: 14029.78935 | FW26: 398.286597 | FX26: 14236.32705 | FY26: 410.5475456 | FZ26: 14482.8519 | GA26: 422.7979043 | GB26: 14724.12112 | GC26: 435.0382569 | GE26: 176.7785731 | GF26: 71.98566328 | GG26: 705.2746802 | GH26: 101.146781 | GI26: 1303.340658 | GJ26: 120.1464699 | GK26: 1843.679764 | GL26: 139.5589794 | GM26: 2502.259686 | GN26: 159.3971335 | GO26: 3249.18393 | GP26: 179.6210026 | GQ26: 4132.500283 | GR26: 200.2565046 | GS26: 5088.618225 | GT26: 221.3103006 | GU26: 5990.196462 | GV26: 242.7598242 | GW26: 6948.986894 | GX26: 263.8360286 | GY26: 7803.192405 | GZ26: 281.5593884 | HA26: 8555.615587 | HB26: 299.168744 | HC26: 9145.783308 | HD26: 316.6484123 | HE26: 10186.57088 | HF26: 334.0374806 | HG26: 12715.76047 | HH26: 485.82035 | HI26: 15259.88723 | HJ26: 637.895234 | HK26: 17401.49169 | HL26: 790.2903524 | HM26: 19488.73871 | HN26: 943.0023197 | HO26: 21508.4045 | HP26: 1095.856015 | HQ26: 23437.124 | HR26: 1248.886248 | HS26: 25343.4742 | HT26: 1402.084638 | HU26: 27124.34248 | HV26: 1555.474992 | HW26: 28844.14583 | HX26: 1708.989035 | HY26: 30656.59287 | HZ26: 1863.099878 | IA26: 32433.32591 | IB26: 2017.304871 | IC26: 34320.94374 | ID26: 2171.76525 | IE26: 36309.43273 | IF26: 2326.48129 | IG26: 38453.05062 | IH26: 2481.45682 | II26: 40886.1816 | IJ26: 2636.690828 | IK26: 41187.99985 | IL26: 2655.109711 | IN26: 176.7785731 | IO26: 71.98566328 | IP26: 705.2746802 | IQ26: 101.146781 | IR26: 1332.359917 | IS26: 120.1464699 | IT26: 2004.912634 | IU26: 139.5589794 | IV26: 2770.7605 | IW26: 159.3971335 | IX26: 3600.215999 | IY26: 179.6210026 | IZ26: 4503.777726 | JA26: 200.2565046 | JB26: 5467.518666 | JC26: 221.3103006 | JD26: 6461.696494 | JE26: 242.7598242 | JF26: 8900.594692 | JG26: 397.0759203 | JH26: 11347.33994 | JI26: 548.6149479 | JJ26: 13796.99587 | JK26: 700.576146 | JL26: 16235.52298 | JM26: 852.8780411 | JN26: 18699.02748 | JO26: 1005.58435 | JP26: 21227.97146 | JQ26: 1158.504661 | JR26: 23771.86325 | JS26: 1311.629793 | JT26: 25926.23984 | JU26: 1465.057057 | JV26: 27982.47797 | JW26: 1618.786787 | JX26: 29861.73258 | JY26: 1772.538745 | JZ26: 31671.79072 | KA26: 1926.40759 | KB26: 33490.29331 | KC26: 2080.398525 | KD26: 35252.33816 | KE26: 2234.557158 | KF26: 36966.53174 | KG26: 2388.792632 | KH26: 39294.13602 | KI26: 2543.761517 | KJ26: 39649.86909 | KK26: 2562.468081 | KL26: 40005.86217 | KM26: 2581.111474 | KN26: 40357.42522 | KO26: 2599.69356 | KP26: 40707.12375 | KQ26: 2618.219794 | KR26: 41070.15309 | KS26: 2636.690828 | KT26: 41415.39957 | KU26: 2655.109711
A27: Derbyshire | B27: High Peak | D27: 245.1588154 | E27: 70.1625538 | F27: 532.3865943 | G27: 83.19200222 | H27: 843.6559884 | I27: 94.06934659 | J27: 1178.155616 | K27: 104.4506986 | L27: 1606.110682 | M27: 113.1023576 | N27: 2022.688088 | O27: 125.1533846 | P27: 2450.088981 | Q27: 137.5961792 | R27: 2886.980411 | S27: 150.274807 | T27: 3288.165396 | U27: 163.2937755 | V27: 4031.548255 | W27: 177.5695645 | X27: 4770.193307 | Y27: 189.6238727 | Z27: 5502.104236 | AA27: 201.6381681 | AB27: 6219.789912 | AC27: 213.6208252 | AD27: 6947.642758 | AE27: 225.5397209 | AF27: 7716.91504 | AG27: 237.3892722 | AH27: 8502.020154 | AI27: 249.1771337 | AJ27: 9126.500784 | AK27: 260.9205101 | AL27: 9734.376167 | AM27: 272.6420188 | AN27: 10277.09184 | AO27: 284.3232236 | AP27: 10695.91739 | AQ27: 295.9623348 | AR27: 11111.06572 | AS27: 307.5601021 | AT27: 11521.2018 | AU27: 319.1306687 | AV27: 11917.0684 | AW27: 330.6648943 | AX27: 12361.97049 | AY27: 342.1663716 | AZ27: 12458.6818 | BA27: 353.6378151 | BB27: 12562.00891 | BC27: 365.0808253 | BD27: 12668.18488 | BE27: 376.4959919 | BF27: 12780.63903 | BG27: 387.8850379 | BH27: 12913.49146 | BI27: 399.2496829 | BJ27: 13044.27941 | BK27: 410.5905102 | BM27: 245.1588154 | BN27: 70.1625538 | BO27: 509.7314085 | BP27: 80.91327676 | BQ27: 795.5201291 | BR27: 90.57176203 | BS27: 902.276585 | BT27: 99.44594082 | BU27: 1136.331555 | BV27: 106.0163109 | BW27: 1386.447204 | BX27: 116.7214623 | BY27: 1651.213022 | BZ27: 127.785538 | CA27: 1924.447138 | CB27: 139.0577143 | CC27: 2207.64381 | CD27: 150.6409322 | CE27: 2500.197314 | CF27: 163.6717822 | CG27: 2796.58355 | CH27: 172.5395173 | CI27: 3093.337473 | CJ27: 181.3501559 | CK27: 3381.074634 | CL27: 190.114286 | CM27: 3710.256485 | CN27: 198.8056887 | CO27: 4163.547824 | CP27: 207.4169988 | CQ27: 4638.506364 | CR27: 215.9587255 | CS27: 4969.139956 | CT27: 224.447417 | CU27: 5289.004226 | CV27: 232.9002923 | CW27: 5668.886666 | CX27: 241.3059592 | CY27: 5928.109917 | CZ27: 249.6609941 | DA27: 6189.67346 | DB27: 257.9683482 | DC27: 6434.2379 | DD27: 266.2400298 | DE27: 6677.528023 | DF27: 274.4675761 | DG27: 6934.10015 | DH27: 282.6583098 | DI27: 7193.637312 | DJ27: 290.8114241 | DK27: 7450.810267 | DL27: 298.9295255 | DM27: 7718.573149 | DN27: 307.0141869 | DO27: 7976.572833 | DP27: 315.0681035 | DQ27: 8204.771007 | DR27: 323.0917055 | DS27: 8355.458221 | DT27: 331.0876751 | DV27: 245.1588154 | DW27: 70.1625538 | DX27: 532.3865943 | DY27: 83.19200222 | DZ27: 843.6559884 | EA27: 94.06934659 | EB27: 1178.155616 | EC27: 104.4506986 | ED27: 1606.110682 | EE27: 113.1023576 | EF27: 2022.688088 | EG27: 125.1533846 | EH27: 2450.088981 | EI27: 137.5961792 | EJ27: 2886.980411 | EK27: 150.274807 | EL27: 3288.165396 | EM27: 163.2937755 | EN27: 4031.548255 | EO27: 177.5695645 | EP27: 4770.193307 | EQ27: 189.6238727 | ER27: 5502.104236 | ES27: 201.6381681 | ET27: 6219.789912 | EU27: 213.6208252 | EV27: 6947.642758 | EW27: 225.5397209 | EX27: 7716.91504 | EY27: 237.3892722 | EZ27: 8502.020154 | FA27: 249.1771337 | FB27: 9126.500784 | FC27: 260.9205101 | FD27: 9734.376167 | FE27: 272.6420188 | FF27: 10277.09184 | FG27: 284.3232236 | FH27: 10695.91739 | FI27: 295.9623348 | FJ27: 11111.06572 | FK27: 307.5601021 | FL27: 11521.2018 | FM27: 319.1306687 | FN27: 11917.0684 | FO27: 330.6648943 | FP27: 12361.97049 | FQ27: 342.1663716 | FR27: 12458.6818 | FS27: 353.6378151 | FT27: 12562.00891 | FU27: 365.0808253 | FV27: 12668.18488 | FW27: 376.4959919 | FX27: 12780.63903 | FY27: 387.8850379 | FZ27: 12913.49146 | GA27: 399.2496829 | GB27: 13044.27941 | GC27: 410.5905102 | GE27: 245.1588154 | GF27: 70.1625538 | GG27: 613.0379263 | GH27: 98.21367278 | GI27: 1051.817104 | GJ27: 116.3137517 | GK27: 1515.849378 | GL27: 134.8164367 | GM27: 2078.123321 | GN27: 153.6360879 | GO27: 2730.790635 | GP27: 172.7729896 | GQ27: 3527.913317 | GR27: 192.2723976 | GS27: 4407.093709 | GT27: 212.1478391 | GU27: 5191.998319 | GV27: 232.3675474 | GW27: 6039.131002 | GX27: 252.2361967 | GY27: 6744.913014 | GZ27: 268.8810678 | HA27: 7336.412881 | HB27: 285.4121085 | HC27: 7786.199981 | HD27: 301.8462405 | HE27: 8766.320976 | HF27: 318.1399344 | HG27: 11469.05733 | HH27: 462.3104714 | HI27: 14153.91635 | HJ27: 606.5434063 | HK27: 16573.24543 | HL27: 750.8560417 | HM27: 18922.73865 | HN27: 895.3124269 | HO27: 21219.45778 | HP27: 1039.863548 | HQ27: 23438.5667 | HR27: 1184.488559 | HS27: 25594.83995 | HT27: 1329.180791 | HU27: 27597.49519 | HV27: 1473.992533 | HW27: 29523.96725 | HX27: 1618.871135 | HY27: 31569.45714 | HZ27: 1763.831865 | IA27: 33565.44493 | IB27: 1908.873831 | IC27: 35705.44043 | ID27: 2053.996386 | IE27: 37956.49797 | IF27: 2199.197481 | IG27: 40311.49617 | IH27: 2344.478692 | II27: 41746.27618 | IJ27: 2489.837263 | IK27: 41911.33051 | IL27: 2505.901111 | IN27: 245.1588154 | IO27: 70.1625538 | IP27: 613.0379263 | IQ27: 98.21367278 | IR27: 1082.701665 | IS27: 116.3137517 | IT27: 1682.12585 | IU27: 134.8164367 | IV27: 2372.370661 | IW27: 153.6360879 | IX27: 3124.596983 | IY27: 172.7729896 | IZ27: 3954.99285 | JA27: 192.2723976 | JB27: 4846.955934 | JC27: 212.1478391 | JD27: 5809.287025 | JE27: 232.3675474 | JF27: 8473.21639 | JG27: 379.6180547 | JH27: 11141.69088 | JI27: 523.9113987 | JJ27: 13810.03515 | JK27: 668.3616487 | JL27: 16464.73825 | JM27: 813.0090672 | JN27: 19131.9618 | JO27: 957.7264757 | JP27: 21834.44247 | JQ27: 1102.44216 | JR27: 24519.05758 | JS27: 1247.164675 | JT27: 26955.48502 | JU27: 1391.952893 | JV27: 29290.79309 | JW27: 1536.920849 | JX27: 31447.85129 | JY27: 1681.971357 | JZ27: 33521.57536 | KA27: 1827.074127 | KB27: 35565.33735 | KC27: 1972.22456 | KD27: 37534.65485 | KE27: 2117.501459 | KF27: 39436.99901 | KG27: 2262.827533 | KH27: 40896.76044 | KI27: 2408.227103 | KJ27: 41080.1168 | KK27: 2424.734273 | KL27: 41263.0358 | KM27: 2441.144889 | KN27: 41444.27065 | KO27: 2457.462071 | KP27: 41624.96817 | KQ27: 2473.692255 | KR27: 41810.61982 | KS27: 2489.837263 | KT27: 41990.7839 | KU27: 2505.901111
A28: Lancashire | B28: Hyndburn | D28: 209.8493145 | E28: 72.05598387 | F28: 345.6893247 | G28: 85.15729064 | H28: 487.8353696 | I28: 95.89726283 | J28: 619.8089947 | K28: 106.006247 | L28: 788.6328266 | M28: 114.3235755 | N28: 947.0541479 | O28: 126.0177537 | P28: 1106.941942 | Q28: 138.0321561 | R28: 1270.705839 | S28: 150.1959628 | T28: 1450.900615 | U28: 162.6638237 | V28: 1803.817017 | W28: 176.3203293 | X28: 2153.846938 | Y28: 187.7021565 | Z28: 2501.243661 | AA28: 198.9806527 | AB28: 2844.269121 | AC28: 210.2046053 | AD28: 3193.041358 | AE28: 221.3519795 | AF28: 3560.441904 | AG28: 232.4406381 | AH28: 3935.411999 | AI28: 243.4744292 | AJ28: 4246.894732 | AK28: 254.4720758 | AL28: 4558.930156 | AM28: 265.4377598 | AN28: 4862.451242 | AO28: 276.3425261 | AP28: 5110.959512 | AQ28: 287.2015648 | AR28: 5357.936145 | AS28: 298.0046608 | AT28: 5581.417845 | AU28: 308.755347 | AV28: 5820.74616 | AW28: 319.4586094 | AX28: 6058.068304 | AY28: 330.0841582 | AZ28: 6114.807005 | BA28: 340.6707713 | BB28: 6178.458717 | BC28: 351.2094301 | BD28: 6244.752908 | BE28: 361.701295 | BF28: 6314.835709 | BG28: 372.1485795 | BH28: 6396.773017 | BI28: 382.5534573 | BJ28: 6478.243555 | BK28: 392.9169803 | BM28: 209.8493145 | BN28: 72.05598387 | BO28: 336.8096134 | BP28: 82.91239927 | BQ28: 473.3349269 | BR28: 92.55736975 | BS28: 519.9467868 | BT28: 101.3127817 | BU28: 619.5474127 | BV28: 107.7047026 | BW28: 725.9846555 | BX28: 118.2593404 | BY28: 838.66716 | BZ28: 129.102185 | CA28: 954.9669075 | CB28: 140.0618052 | CC28: 1075.466467 | CD28: 151.2836586 | CE28: 1199.951181 | CF28: 163.8777977 | CG28: 1326.06694 | CH28: 172.246915 | CI28: 1452.349177 | CJ28: 180.5125021 | CK28: 1574.757549 | CL28: 188.721186 | CM28: 1714.632667 | CN28: 196.8541946 | CO28: 1906.822344 | CP28: 204.9236102 | CQ28: 2108.245288 | CR28: 212.9351908 | CS28: 2251.573006 | CT28: 220.9057957 | CU28: 2391.465599 | CV28: 228.8360265 | CW28: 2552.871226 | CX28: 236.7047769 | CY28: 2662.261319 | CZ28: 244.5228688 | DA28: 2772.650013 | DB28: 252.2835076 | DC28: 2875.816116 | DD28: 259.9896666 | DE28: 2977.887336 | DF28: 267.6446307 | DG28: 3085.556152 | DH28: 275.2272259 | DI28: 3194.456491 | DJ28: 282.7668809 | DK28: 3301.92121 | DL28: 290.257243 | DM28: 3388.893383 | DN28: 297.7002923 | DO28: 3493.38172 | DP28: 305.0990695 | DQ28: 3601.240054 | DR28: 312.4543942 | DS28: 3664.766113 | DT28: 319.7692435 | DV28: 209.8493145 | DW28: 72.05598387 | DX28: 345.6893247 | DY28: 85.15729064 | DZ28: 487.8353696 | EA28: 95.89726283 | EB28: 619.8089947 | EC28: 106.006247 | ED28: 788.6328266 | EE28: 114.3235755 | EF28: 947.0541479 | EG28: 126.0177537 | EH28: 1106.941942 | EI28: 138.0321561 | EJ28: 1270.705839 | EK28: 150.1959628 | EL28: 1450.900615 | EM28: 162.6638237 | EN28: 1803.817017 | EO28: 176.3203293 | EP28: 2153.846938 | EQ28: 187.7021565 | ER28: 2501.243661 | ES28: 198.9806527 | ET28: 2844.269121 | EU28: 210.2046053 | EV28: 3193.041358 | EW28: 221.3519795 | EX28: 3560.441904 | EY28: 232.4406381 | EZ28: 3935.411999 | FA28: 243.4744292 | FB28: 4246.894732 | FC28: 254.4720758 | FD28: 4558.930156 | FE28: 265.4377598 | FF28: 4862.451242 | FG28: 276.3425261 | FH28: 5110.959512 | FI28: 287.2015648 | FJ28: 5357.936145 | FK28: 298.0046608 | FL28: 5581.417845 | FM28: 308.755347 | FN28: 5820.74616 | FO28: 319.4586094 | FP28: 6058.068304 | FQ28: 330.0841582 | FR28: 6114.807005 | FS28: 340.6707713 | FT28: 6178.458717 | FU28: 351.2094301 | FV28: 6244.752908 | FW28: 361.701295 | FX28: 6314.835709 | FY28: 372.1485795 | FZ28: 6396.773017 | GA28: 382.5534573 | GB28: 6478.243555 | GC28: 392.9169803 | GE28: 209.8493145 | GF28: 72.05598387 | GG28: 380.1451121 | GH28: 100.533826 | GI28: 581.1816915 | GJ28: 118.573912 | GK28: 790.2555854 | GL28: 136.8242116 | GM28: 1042.833956 | GN28: 155.2949669 | GO28: 1341.098524 | GP28: 173.9662423 | GQ28: 1721.114684 | GR28: 192.8816174 | GS28: 2150.038628 | GT28: 212.0365321 | GU28: 2532.058257 | GV28: 231.4711239 | GW28: 2949.657993 | GX28: 250.4616677 | GY28: 3296.396146 | GZ28: 266.1561309 | HA28: 3583.810501 | HB28: 281.6504839 | HC28: 3786.305153 | HD28: 297.0191215 | HE28: 4523.007842 | HF28: 312.2328252 | HG28: 6959.246843 | HH28: 452.6731137 | HI28: 9364.856285 | HJ28: 592.6619648 | HK28: 11682.75935 | HL28: 732.2992566 | HM28: 13983.75752 | HN28: 871.6548018 | HO28: 16263.672 | HP28: 1010.675513 | HQ28: 18508.56493 | HR28: 1149.426558 | HS28: 20719.57927 | HT28: 1287.885093 | HU28: 22836.35408 | HV28: 1426.071264 | HW28: 24906.53883 | HX28: 1564.00734 | HY28: 27033.5659 | HZ28: 1701.549319 | IA28: 29130.01339 | IB28: 1838.880042 | IC28: 31298.07006 | ID28: 1975.953954 | IE28: 33523.07541 | IF28: 2112.77834 | IG28: 35827.966 | IH28: 2249.363419 | II28: 37221.61367 | IJ28: 2385.714739 | IK28: 37286.29917 | IL28: 2398.036663 | IN28: 209.8493145 | IO28: 72.05598387 | IP28: 380.1451121 | IQ28: 100.533826 | IR28: 591.4289039 | IS28: 118.573912 | IT28: 848.4287608 | IU28: 136.8242116 | IV28: 1159.382071 | IW28: 155.2949669 | IX28: 1504.737714 | IY28: 173.9662423 | IZ28: 1899.182369 | JA28: 192.8816174 | JB28: 2340.380773 | JC28: 212.0365321 | JD28: 3075.087842 | JE28: 231.4711239 | JF28: 5506.723762 | JG28: 376.9473705 | JH28: 7940.42549 | JI28: 518.6018932 | JJ28: 10373.49756 | JK28: 659.5528928 | JL28: 12797.8905 | JM28: 800.0074427 | JN28: 15225.33809 | JO28: 939.9437511 | JP28: 17661.35587 | JQ28: 1079.460571 | JR28: 20066.75404 | JS28: 1218.621881 | JT28: 22416.3701 | JU28: 1357.551931 | JV28: 24728.24308 | JW28: 1496.309443 | JX28: 26961.3753 | JY28: 1634.759932 | JZ28: 29126.02413 | KA28: 1772.990973 | KB28: 31272.68686 | KC28: 1910.950435 | KD28: 33373.0957 | KE28: 2048.658941 | KF28: 35429.09036 | KG28: 2186.139954 | KH28: 36881.08365 | KI28: 2323.19036 | KJ28: 36956.19462 | KK28: 2335.825129 | KL28: 37030.97065 | KM28: 2348.392591 | KN28: 37104.98339 | KO28: 2360.894226 | KP28: 37178.59656 | KQ28: 2373.334801 | KR28: 37254.3917 | KS28: 2385.714739 | KT28: 37326.82009 | KU28: 2398.036663
A29: Lancashire | B29: Lancaster | D29: 361.6101792 | E29: 134.3080612 | F29: 928.0922331 | G29: 159.1949887 | H29: 1527.42988 | I29: 179.990335 | J29: 2095.286926 | K29: 199.8669551 | L29: 2812.613267 | M29: 216.5676823 | N29: 3494.790557 | O29: 239.8667676 | P29: 4186.203495 | Q29: 263.9873871 | R29: 4890.250584 | S29: 288.4799756 | T29: 5585.363216 | U29: 313.6104594 | V29: 6830.77478 | W29: 341.1231726 | X29: 8072.998158 | Y29: 364.3728793 | Z29: 9307.619194 | AA29: 387.2811669 | AB29: 10520.0324 | AC29: 409.8259821 | AD29: 11754.5745 | AE29: 432.1059564 | AF29: 13066.53281 | AG29: 454.3029334 | AH29: 14409.55606 | AI29: 476.2698363 | AJ29: 15450.42509 | AK29: 497.8942839 | AL29: 16471.75202 | AM29: 519.1746603 | AN29: 17419.23058 | AO29: 540.4071166 | AP29: 18167.66927 | AQ29: 561.6205877 | AR29: 18921.53327 | AS29: 582.7649824 | AT29: 19673.07636 | AU29: 603.8007126 | AV29: 20347.52352 | AW29: 624.7730701 | AX29: 21051.24104 | AY29: 645.4574972 | AZ29: 21265.42643 | BA29: 666.1155791 | BB29: 21486.1631 | BC29: 686.6695313 | BD29: 21708.87089 | BE29: 707.1214155 | BF29: 21942.76509 | BG29: 727.4753786 | BH29: 22218.41395 | BI29: 747.7355123 | BJ29: 22489.33207 | BK29: 767.9037369 | BM29: 361.6101792 | BN29: 134.3080612 | BO29: 884.8696104 | BP29: 154.9115866 | BQ29: 1449.87607 | BR29: 173.4972378 | BS29: 1644.364701 | BT29: 190.631871 | BU29: 2061.718838 | BV29: 203.4824461 | BW29: 2507.827509 | BX29: 224.3590222 | BY29: 2979.966219 | BZ29: 245.9815312 | CA29: 3467.339758 | CB29: 267.9146267 | CC29: 3972.845506 | CD29: 290.4134978 | CE29: 4495.29954 | CF29: 315.6516096 | CG29: 5024.86159 | CH29: 332.8639487 | CI29: 5555.271855 | CJ29: 349.7243506 | CK29: 6069.476885 | CL29: 366.2267584 | CM29: 6675.17413 | CN29: 382.4695859 | CO29: 7554.079754 | CP29: 398.6097026 | CQ29: 8471.429641 | CR29: 414.5242386 | CS29: 9120.082135 | CT29: 430.1206829 | CU29: 9746.65429 | CV29: 445.39733 | CW29: 10489.51152 | CX29: 460.6186932 | CY29: 11020.79174 | CZ29: 475.803907 | DA29: 11556.31169 | DB29: 490.9132656 | DC29: 12061.66323 | DD29: 505.9130313 | DE29: 12567.8308 | DF29: 520.8393219 | DG29: 13098.00836 | DH29: 535.5133713 | DI29: 13633.68369 | DJ29: 550.1474618 | DK29: 14165.40199 | DL29: 564.6791418 | DM29: 14721.58246 | DN29: 579.1121527 | DO29: 15205.16937 | DP29: 593.4523116 | DQ29: 15624.82396 | DR29: 607.701127 | DS29: 15898.79041 | DT29: 621.8643145 | DV29: 361.6101792 | DW29: 134.3080612 | DX29: 928.0922331 | DY29: 159.1949887 | DZ29: 1527.42988 | EA29: 179.990335 | EB29: 2095.286926 | EC29: 199.8669551 | ED29: 2812.613267 | EE29: 216.5676823 | EF29: 3494.790557 | EG29: 239.8667676 | EH29: 4186.203495 | EI29: 263.9873871 | EJ29: 4890.250584 | EK29: 288.4799756 | EL29: 5585.363216 | EM29: 313.6104594 | EN29: 6830.77478 | EO29: 341.1231726 | EP29: 8072.998158 | EQ29: 364.3728793 | ER29: 9307.619194 | ES29: 387.2811669 | ET29: 10520.0324 | EU29: 409.8259821 | EV29: 11754.5745 | EW29: 432.1059564 | EX29: 13066.53281 | EY29: 454.3029334 | EZ29: 14409.55606 | FA29: 476.2698363 | FB29: 15450.42509 | FC29: 497.8942839 | FD29: 16471.75202 | FE29: 519.1746603 | FF29: 17419.23058 | FG29: 540.4071166 | FH29: 18167.66927 | FI29: 561.6205877 | FJ29: 18921.53327 | FK29: 582.7649824 | FL29: 19673.07636 | FM29: 603.8007126 | FN29: 20347.52352 | FO29: 624.7730701 | FP29: 21051.24104 | FQ29: 645.4574972 | FR29: 21265.42643 | FS29: 666.1155791 | FT29: 21486.1631 | FU29: 686.6695313 | FV29: 21708.87089 | FW29: 707.1214155 | FX29: 21942.76509 | FY29: 727.4753786 | FZ29: 22218.41395 | GA29: 747.7355123 | GB29: 22489.33207 | GC29: 767.9037369 | GE29: 361.6101792 | GF29: 134.3080612 | GG29: 1070.247928 | GH29: 187.9402359 | GI29: 1900.568764 | GJ29: 222.5523181 | GK29: 2729.938754 | GL29: 257.9719529 | GM29: 3729.897767 | GN29: 294.1814138 | GO29: 4880.467576 | GP29: 331.1336617 | GQ29: 6273.802105 | GR29: 368.8873349 | GS29: 7790.90407 | GT29: 407.2565765 | GU29: 9186.327179 | GV29: 446.2686533 | GW29: 10677.60641 | GX29: 484.5628354 | GY29: 11969.68454 | GZ29: 516.6700136 | HA29: 13086.24786 | HB29: 548.1835877 | HC29: 13963.11736 | HD29: 579.0841406 | HE29: 15639.14715 | HF29: 609.5164084 | HG29: 19926.30516 | HH29: 884.7451332 | HI29: 24201.0362 | HJ29: 1159.329207 | HK29: 27944.61076 | HL29: 1432.800093 | HM29: 31547.36528 | HN29: 1704.885868 | HO29: 35041.9656 | HP29: 1976.446576 | HQ29: 38411.17565 | HR29: 2247.69534 | HS29: 41702.96005 | HT29: 2518.532199 | HU29: 44769.88026 | HV29: 2788.819218 | HW29: 47725.36822 | HX29: 3058.767673 | HY29: 50848.53784 | HZ29: 3327.265903 | IA29: 53900.50799 | IB29: 3595.573049 | IC29: 57158.00237 | ID29: 3863.299955 | IE29: 60587.24504 | IF29: 4130.454691 | IG29: 64231.90201 | IH29: 4397.051593 | II29: 67268.76703 | IJ29: 4663.096356 | IK29: 67601.22745 | IL29: 4686.642236 | IN29: 361.6101792 | IO29: 134.3080612 | IP29: 1070.247928 | IQ29: 187.9402359 | IR29: 1944.296241 | IS29: 222.5523181 | IT29: 2984.859094 | IU29: 257.9719529 | IV29: 4200.725923 | IW29: 294.1814138 | IX29: 5515.244241 | IY29: 331.1336617 | IZ29: 6950.447152 | JA29: 368.8873349 | JB29: 8484.023972 | JC29: 407.2565765 | JD29: 10117.19105 | JE29: 446.2686533 | JF29: 14317.57552 | JG29: 729.2720212 | JH29: 18527.01392 | JI29: 1006.725062 | JJ29: 22737.83648 | JK29: 1283.704775 | JL29: 26928.0909 | JM29: 1559.736693 | JN29: 31144.46152 | JO29: 1834.884397 | JP29: 35431.15792 | JQ29: 2109.795033 | JR29: 39705.44763 | JS29: 2383.793837 | JT29: 43427.59584 | JU29: 2656.155275 | JV29: 46982.54427 | JW29: 2926.65952 | JX29: 50267.1991 | JY29: 3196.887261 | JZ29: 53430.15686 | KA29: 3467.071056 | KB29: 56564.09777 | KC29: 3736.971742 | KD29: 59589.79407 | KE29: 4006.349171 | KF29: 62525.95223 | KG29: 4275.487749 | KH29: 65540.40126 | KI29: 4542.843388 | KJ29: 65922.23908 | KK29: 4567.252724 | KL29: 66303.6303 | KM29: 4591.475917 | KN29: 66680.38111 | KO29: 4615.518081 | KP29: 67055.74485 | KQ29: 4639.390629 | KR29: 67444.99027 | KS29: 4663.096356 | KT29: 67818.8359 | KU29: 4686.642236
A30: Greater Manchester | B30: Manchester | D30: 3070.704856 | E30: 430.4544819 | F30: 5406.930293 | G30: 510.1120403 | H30: 7729.185366 | I30: 576.5180537 | J30: 9505.34427 | K30: 639.8352109 | L30: 12076.98098 | M30: 692.6151088 | N30: 14518.6292 | O30: 766.4673814 | P30: 16987.19544 | Q30: 842.9634105 | R30: 19510.02855 | S30: 920.9305402 | T30: 22209.38262 | U30: 1001.269998 | V30: 26310.46999 | W30: 1089.674522 | X30: 30412.35723 | Y30: 1164.870756 | Z30: 34498.79078 | AA30: 1239.705862 | AB30: 38511.33256 | AC30: 1314.065376 | AD30: 42639.32757 | AE30: 1388.069557 | AF30: 47127.79495 | AG30: 1461.979455 | AH30: 51772.78197 | AI30: 1535.502201 | AJ30: 55296.98124 | AK30: 1608.290918 | AL30: 58891.60837 | AM30: 1680.252673 | AN30: 62517.13281 | AO30: 1751.88547 | AP30: 65166.66049 | AQ30: 1823.292071 | AR30: 67818.33879 | AS30: 1894.365369 | AT30: 70187.7296 | AU30: 1965.038353 | AV30: 72775.1711 | AW30: 2035.36188 | AX30: 75422.73267 | AY30: 2105.856487 | AZ30: 76577.86845 | BA30: 2175.959114 | BB30: 77753.44759 | BC30: 2245.85883 | BD30: 78931.06484 | BE30: 2315.559677 | BF30: 80148.92104 | BG30: 2385.072653 | BH30: 81540.82132 | BI30: 2454.408718 | BJ30: 82900.25439 | BK30: 2523.571829 | BM30: 3070.704856 | BN30: 430.4544819 | BO30: 5297.49847 | BP30: 496.1551584 | BQ30: 7666.819744 | BR30: 555.1230737 | BS30: 8513.023585 | BT30: 609.2469335 | BU30: 10347.67063 | BV30: 649.319789 | BW30: 12308.14755 | BX30: 714.9608272 | BY30: 14383.72419 | BZ30: 783.0252928 | CA30: 16525.56595 | CB30: 852.3845371 | CC30: 18745.7397 | CD30: 923.90939 | CE30: 21039.45478 | CF30: 1004.636982 | CG30: 23363.44427 | CH30: 1060.186527 | CI30: 25692.19935 | CJ30: 1115.255711 | CK30: 27954.5041 | CL30: 1169.769214 | CM30: 30467.4324 | CN30: 1223.855857 | CO30: 33730.1754 | CP30: 1277.729052 | CQ30: 37163.51882 | CR30: 1331.153266 | CS30: 39547.97936 | CT30: 1383.842805 | CU30: 41873.16163 | CV30: 1435.715054 | CW30: 44534.2447 | CX30: 1487.230785 | CY30: 46261.28075 | CZ30: 1538.46576 | DA30: 48007.43748 | DB30: 1589.34364 | DC30: 49621.1285 | DD30: 1639.810625 | DE30: 51229.47874 | DF30: 1689.906152 | DG30: 52943.34914 | DH30: 1740.087972 | DI30: 54681.40265 | DJ30: 1789.869838 | DK30: 56400.6385 | DL30: 1839.416519 | DM30: 57977.65532 | DN30: 1888.73804 | DO30: 59893.8536 | DP30: 1937.851315 | DQ30: 61870.30849 | DR30: 1986.759306 | DS30: 63063.01766 | DT30: 2035.478818 | DV30: 3070.704856 | DW30: 430.4544819 | DX30: 5406.930293 | DY30: 510.1120403 | DZ30: 7729.185366 | EA30: 576.5180537 | EB30: 9505.34427 | EC30: 639.8352109 | ED30: 12076.98098 | EE30: 692.6151088 | EF30: 14518.6292 | EG30: 766.4673814 | EH30: 16987.19544 | EI30: 842.9634105 | EJ30: 19510.02855 | EK30: 920.9305402 | EL30: 22209.38262 | EM30: 1001.269998 | EN30: 26310.46999 | EO30: 1089.674522 | EP30: 30412.35723 | EQ30: 1164.870756 | ER30: 34498.79078 | ES30: 1239.705862 | ET30: 38511.33256 | EU30: 1314.065376 | EV30: 42639.32757 | EW30: 1388.069557 | EX30: 47127.79495 | EY30: 1461.979455 | EZ30: 51772.78197 | FA30: 1535.502201 | FB30: 55296.98124 | FC30: 1608.290918 | FD30: 58891.60837 | FE30: 1680.252673 | FF30: 62517.13281 | FG30: 1751.88547 | FH30: 65166.66049 | FI30: 1823.292071 | FJ30: 67818.33879 | FK30: 1894.365369 | FL30: 70187.7296 | FM30: 1965.038353 | FN30: 72775.1711 | FO30: 2035.36188 | FP30: 75422.73267 | FQ30: 2105.856487 | FR30: 76577.86845 | FS30: 2175.959114 | FT30: 77753.44759 | FU30: 2245.85883 | FV30: 78931.06484 | FW30: 2315.559677 | FX30: 80148.92104 | FY30: 2385.072653 | FZ30: 81540.82132 | GA30: 2454.408718 | GB30: 82900.25439 | GC30: 2523.571829 | GE30: 3070.704856 | GF30: 430.4544819 | GG30: 5845.490179 | GH30: 602.221075 | GI30: 9016.181443 | GJ30: 712.8462163 | GK30: 11994.25754 | GL30: 825.8470682 | GM30: 15628.57271 | GN30: 940.835169 | GO30: 19793.57442 | GP30: 1058.100516 | GQ30: 24868.59767 | GR30: 1177.929481 | GS30: 30413.51437 | GT30: 1300.107636 | GU30: 35627.94799 | GV30: 1424.810303 | GW30: 41183.8646 | GX30: 1547.874253 | GY30: 46071.10756 | GZ30: 1651.752432 | HA30: 50297.08633 | HB30: 1754.762341 | HC30: 53479.80101 | HD30: 1856.774466 | HE30: 59419.65879 | HF30: 1957.971555 | HG30: 74766.77378 | HH30: 2847.173357 | HI30: 89717.13453 | HJ30: 3737.697443 | HK30: 103267.8535 | HL30: 4628.210149 | HM30: 116561.9433 | HN30: 5517.67884 | HO30: 129337.2044 | HP30: 6407.221392 | HQ30: 141591.8244 | HR30: 7297.106235 | HS30: 153615.3073 | HT30: 8186.86833 | HU30: 164818.7517 | HV30: 9076.068656 | HW30: 175613.416 | HX30: 9964.736671 | HY30: 186940.9236 | HZ30: 10855.46998 | IA30: 198032.3646 | IB30: 11745.43907 | IC30: 209837.0329 | ID30: 12635.51959 | IE30: 222289.9966 | IF30: 13525.70311 | IG30: 235724.7781 | IH30: 14416.00337 | II30: 247939.2493 | IJ30: 15306.40736 | IK30: 249473.4993 | IL30: 15401.77206 | IN30: 3070.704856 | IO30: 430.4544819 | IP30: 5845.490179 | IQ30: 602.221075 | IR30: 9136.163352 | IS30: 712.8462163 | IT30: 12750.50093 | IU30: 825.8470682 | IV30: 16983.87451 | IW30: 940.835169 | IX30: 21616.92362 | IY30: 1058.100516 | IZ30: 26782.8029 | JA30: 1177.929481 | JB30: 32401.53061 | JC30: 1300.107636 | JD30: 38284.49445 | JE30: 1424.810303 | JF30: 53421.07731 | JG30: 2329.566576 | JH30: 68598.51532 | JI30: 3218.418961 | JJ30: 83773.70743 | JK30: 4109.201455 | JL30: 98817.89296 | JM30: 5001.137249 | JN30: 113942.1479 | JO30: 5894.265365 | JP30: 129283.9924 | JQ30: 6789.471882 | JR30: 144229.3276 | JS30: 7685.392617 | JT30: 157794.1158 | JU30: 8579.874372 | JV30: 170828.8272 | JW30: 9471.817207 | JX30: 182945.3848 | JY30: 10363.63173 | JZ30: 194620.1265 | KA30: 11255.78959 | KB30: 206206.917 | KC30: 12147.58962 | KD30: 217326.6639 | KE30: 13038.45725 | KF30: 228065.2146 | KG30: 13928.52093 | KH30: 240050.5155 | KI30: 14821.38833 | KJ30: 241754.7837 | KK30: 14919.56577 | KL30: 243500.6605 | KM30: 15017.13162 | KN30: 245228.7965 | KO30: 15114.10533 | KP30: 246953.0079 | KQ30: 15210.52676 | KR30: 248745.651 | KS30: 15306.40736 | KT30: 250471.3693 | KU30: 15401.77206
